Workbook

Sheet GUIA PARA PREENCHIMENTO
A1: GUIA PARA PREENCHIMENTO
A3: 1 - Preencher apenas as guias azuis:
A5: 2 - Recomendamos preencher somente as células com fundo azul claro. As demais possuem fórmulas e sugerimos não alterá-las.

Sheet MODELO PROPOSTA
B2: MODELO DA PROPOSTA COMPLETA
B4: .
B5: I – FORMALIZAÇÃO
B7: PREGÃO ELETRÔNICO N. 98/2023
B8: OBJETO: Prestação de serviços continuados de bombeiro civil (brigada de incêndio) na área de segurança contra incêndio, pânico, abandono de edificações, formação de brigada voluntária, primeiros socorros e desenvolvimento e implantação de política prevencionista de segurança contra incêndio para atuação nas edificações da Câmara dos Deputados, incluindo Centro de Gestão e Armazenamento de Materiais (CEAM) e Complexo Avançado (CETEC-NORTE e CEFOR), pelo período de trinta meses.
B9: LICITANTE: _____________________________________________________
B10: CNPJ: ________________________________________________________
B11: ENDEREÇO COMPLETO: _________________________________________
B12: TELEFONE:_____________________________________________________
B13: E-MAIL: ________________________________________________________
B15: Apresentamos nossa proposta para o item único da presente licitação, de acordo com as disposições do Edital.
B16: Decorre do conteúdo da presente proposta a explicitação do seguinte PREÇO DE JULGAMENTO (GLOBAL) PARA O ITEM PARA O PERÍODO DE TRINTA MESES:
B17: =Resumo!H86 -> 25425687.88
B18: =Extenso_Valor(B17) -> 
B20: (por extenso)
B22: No valor proposto estão incluídos todos os custos e todas as despesas, diretas e indiretas, para a execução dos serviços objeto da licitação, em conformidade com as especificações e demais condições e exigências constantes do Edital.
B23: Informamos que eventuais rubricas dispostas em Acordo ou Convenção Coletiva de Trabalho que não se relacionem ao custo direto da venda do serviço, tais como “Participação nos Resultados” e “Abono substitutivo de Participação nos Resultados”, serão consideradas nos custos indiretos da proposta.
B24: O prazo de validade da presente proposta é de ______ (por extenso) dias. (observado o disposto no Título 11 do Edital).
B26: Convenção coletiva de trabalho ou a norma coletiva a que estamos obrigados:
B27: Data-Base:
B28: Número do Registro SRT:
B29: Regime de tributação da empresa:
B30: Empresa é beneficiada pela desoneração da folha de pagamento instituída pela Lei n. 12.546, de 2001, alterada pela Lei n. 13.161, de 2015?
B31: Empresa adere ao PAT (Programa de Alimentação do Trabalhador)?
B32: (Se adere ao PAT): Os valores do auxílio-alimentação apresentados na presente proposta correspondem somente aos efetivamente pagos pela empresa aos empregados?
B34: DECLARAÇÕES
B36: A SEREM PRESTADAS SOMENTE NA HIPÓTESE DE LICITANTE MICROEMPRESA OU EMPRESA DE PEQUENO PORTE, EM CONFORMIDADE COM OS ARTIGOS 17, 18, 30 E 31 DA LEI COMPLEMENTAR N. 123, de 2006, E O ACÓRDÃO TCU 2798/2010-PLENÁRIO
B37: Declaramos que:
B38: a) em se tratando dos serviços vedados descritos no artigo 17 da Lei Complementar n. 123, de 2006, notadamente os descritos no inciso XII (cessão ou locação de mão de obra), ressalvados os serviços listados nos parágrafos 5o-B a 5o-E do artigo 18 da referida Lei, a proposta apresentada não contempla qualquer benefício tributário referente ao SIMPLES NACIONAL, conforme os subitens 5.7 e 5.8 do Edital;
B39: b) na hipótese de contratação desta Microempresa ou Empresa de Pequeno Porte inscrita no SIMPLES NACIONAL e executora de atividade vedada, ficamos sujeitos à exclusão obrigatória no SIMPLES NACIONAL a contar do mês seguinte ao da contratação, em consequência do que dispõem o artigo 17, inciso XII e o artigo 31, inciso II da Lei Complementar n, 123, de 2006, devendo entregar à Câmara dos Deputados, à título de comprovação, cópia de ofício – com comprovante de entrega e recebimento, que comunique a assinatura do contrato de prestação de serviços mediante cessão de mão de obra e encaminhado pela contratada à Receita Federal do Brasil até o último dia útil do mês subsequente ao da contratação, consoante artigo 30, § 1º, inciso II da Lei Complementar n. 123, de 2006.
B42: A SEREM PRESTADAS SOMENTE NA HIPÓTESE DE LICITANTE BENEFICIADA PELA DESONERAÇÃO DA FOLHA DE PAGAMENTO INSTITUÍDA PELA LEI N. 12.546, DE 2011, ALTERADA PELA LEI N. 13.161, DE 2015.
B44: Declaramos, sob as penas da Lei, que:
B45: a) recolhemos a contribuição previdenciária incidente sobre o valor da receita bruta, em substituição às contribuições previdenciárias incidentes sobre a folha de pagamento, previstas nos incisos I e III do caput do artigo 22 da Lei n. 8.212, de 24 de julho de 1991, na forma do caput do artigo 7º (ou 8º) da Lei n. 12.546, de 14 de dezembro de 2011, alterada pela Lei n. 13.161, de 31 de agosto de 2015;
B46: b) temos ciência que nossa manifestação, conforme alínea “a” anterior, será remetida à Receita Federal do Brasil e que, em caso de constatação de falsidade, estará sujeita às sanções administrativas cabíveis, sem prejuízo do encaminhamento dos documentos ao Ministério Público para apuração de eventual responsabilidade criminal desta declarante.
B48: A SEREM PRESTADAS SOMENTE PARA A LICITANTE QUE SEJA A ATUAL TITULAR DO CONTRATO QUE SERÁ SUCEDIDO PELA CONTRATAÇÃO DECORRENTE DO PREGÃO EM EPÍGRAFE, NA HIPÓTESE DE HAVER SALÁRIO(S) PRATICADO(S) NO CONTRATO VIGENTE SUPERIOR(ES) AOS MÍNIMOS FIXADOS NO EDITAL E QUE TENHA OPTADO POR TOMAR COMO BASE EM SEUS LANCES E NA PRESENTE PROPOSTA DE PREÇOS SALÁRIO(S) FIXADO(S) NESTE EDITAL:
B50: Declaramos que:
B51: a) estamos cientes de que deveremos apresentar à Câmara dos Deputados, no prazo improrrogável de 60 (sessenta) dias, contado da data de início da vigência do contrato, a convenção ou o acordo coletivo de trabalho, entabulado com a participação do sindicato dos trabalhadores, em que se autoriza a redução salarial, na forma do art. 7°, VI, da Constituição Federal, considerado, ainda, o disposto no subitem 10.11.2.1 Título 10 do Anexo n. 6 do Edital;
B52: b) estamos cientes de que, na hipótese de não cumprirmos o disposto no teor da declaração da alínea anterior (“a”) e não logrado êxito na contratação de remanescente, sendo necessária a realização de nova licitação, caso participemos do certame, deveremos tomar como base em nossos lances e em nossa proposta de preços o(s) salário(s) maior(es), absorvendo ou acrescentando eventual diferença no BDI, sob pena de desclassificação.
B54: É OBRIGATÓRIA A COMPROVAÇÃO A QUE SE REFERE O SUBITEM 5.9.4 DO TÍTULO 5 DO EDITAL.
B56: DADOS PARA ASSINATURA DO CONTRATO
B57: Nome do signatário
B58: Cargo
B59: Qualificação (CPF, naturalidade e domicílio)
B60: OBS.: O signatário deve possuir poderes de administração estabelecidos em contrato social e/ou possuir procuração com poderes para assinar contratos em nome da empresa. A documentação comprobatória deverá ser encaminhada quando da assinatura do contrato.
B63: Brasília, de de 2023.
B65: Assinatura do representante legal da empresa
B68: Nome do representante legal da empresa

Sheet Remunerações
B1: QUADRO DE REMUNERAÇÕES
C3: ITEM | D3: POSTO DE TRABALHO | E3: QUANTIDADE | F3: SALÁRIO | G3: ADICIONAL DE PERICULOSIDADE | H3: ADICIONAL DE INSALUBRIDADE | I3: ADICIONAL NOTURNO | J3: OUTROS | K3: SALÁRIO COM ADICIONAIS
D4: POSTO DE TRABALHO - EQUIPE DE TRABALHO
C5: 1 | D5: =HLOOKUP($C5,'Dados Gerais'!$D$5:$L$68,6) -> BOMBEIRO CIVIL MESTRE | E5: =HLOOKUP($C5,'Dados Gerais'!$D$5:$L$68,10) -> 2 | F5: =HLOOKUP($C5,'Dados Gerais'!$D$5:$L$68,8) -> 8161.01 | G5: =HLOOKUP($C5,'Dados Gerais'!$D$5:$L$68,25) -> 2448.3 | H5: =HLOOKUP($C5,'Dados Gerais'!$D$5:$L$68,31) -> 0 | I5: =HLOOKUP($C5,'Dados Gerais'!$D$5:$L$68,46) -> 0 | J5: =HLOOKUP($C5,'Dados Gerais'!$D$5:$L$68,33) -> 0 | K5: =SUM(F5:J5) -> 10609.31
C6: 2 | D6: =HLOOKUP($C6,'Dados Gerais'!$D$5:$L$68,6) -> BOMBEIRO CIVIL LÍDER DIURNO | E6: =HLOOKUP($C6,'Dados Gerais'!$D$5:$L$68,10) -> 2 | F6: =HLOOKUP($C6,'Dados Gerais'!$D$5:$L$68,8) -> 4330.6 | G6: =HLOOKUP($C6,'Dados Gerais'!$D$5:$L$68,25) -> 1299.18 | H6: =HLOOKUP($C6,'Dados Gerais'!$D$5:$L$68,31) -> 0 | I6: =HLOOKUP($C6,'Dados Gerais'!$D$5:$L$68,46) -> 0 | J6: =HLOOKUP($C6,'Dados Gerais'!$D$5:$L$68,33) -> 0 | K6: =SUM(F6:J6) -> 5629.78
C7: 3 | D7: =HLOOKUP($C7,'Dados Gerais'!$D$5:$L$68,6) -> BOMBEIRO CIVIL LÍDER NOTURNO | E7: =HLOOKUP($C7,'Dados Gerais'!$D$5:$L$68,10) -> 2 | F7: =HLOOKUP($C7,'Dados Gerais'!$D$5:$L$68,8) -> 4330.6 | G7: =HLOOKUP($C7,'Dados Gerais'!$D$5:$L$68,25) -> 1299.18 | H7: =HLOOKUP($C7,'Dados Gerais'!$D$5:$L$68,31) -> 0 | I7: =HLOOKUP($C7,'Dados Gerais'!$D$5:$L$68,46) -> 763.54 | J7: =HLOOKUP($C7,'Dados Gerais'!$D$5:$L$68,33) -> 0 | K7: 6393.32
C8: 4 | D8: =HLOOKUP($C8,'Dados Gerais'!$D$5:$L$68,6) -> BOMBEIRO CIVIL BÁSICO DIURNO | E8: =HLOOKUP($C8,'Dados Gerais'!$D$5:$L$68,10) -> 36 | F8: =HLOOKUP($C8,'Dados Gerais'!$D$5:$L$68,8) -> 3494.54 | G8: =HLOOKUP($C8,'Dados Gerais'!$D$5:$L$68,25) -> 1048.36 | H8: =HLOOKUP($C8,'Dados Gerais'!$D$5:$L$68,31) -> 0 | I8: =HLOOKUP($C8,'Dados Gerais'!$D$5:$L$68,46) -> 0 | J8: =HLOOKUP($C8,'Dados Gerais'!$D$5:$L$68,33) -> 0 | K8: 4542.9
C9: 5 | D9: =HLOOKUP($C9,'Dados Gerais'!$D$5:$L$68,6) -> BOMBEIRO CIVIL BÁSICO NOTURNO | E9: =HLOOKUP($C9,'Dados Gerais'!$D$5:$L$68,10) -> 28 | F9: =HLOOKUP($C9,'Dados Gerais'!$D$5:$L$68,8) -> 3494.54 | G9: =HLOOKUP($C9,'Dados Gerais'!$D$5:$L$68,25) -> 1048.36 | H9: =HLOOKUP($C9,'Dados Gerais'!$D$5:$L$68,31) -> 0 | I9: =HLOOKUP($C9,'Dados Gerais'!$D$5:$L$68,46) -> 616.13 | J9: =HLOOKUP($C9,'Dados Gerais'!$D$5:$L$68,33) -> 0 | K9: =SUM(F9:J9) -> 5159.03
D16: TOTAL DE POSTOS | E16: =SUM(E5:E15) -> 70

Sheet Resumo
B3: RESUMO - TOTAIS MENSAIS - FATURA ORDINÁRIA (SEM O 13º E SEM OS ITENS SOB DEMANDA)
C6: ITEM | D6: POSTO DE TRABALHO | E6: QUANTIDADE | F6: PREÇO UNIT (SEM O 13º) | G6: DESTAQUE DO 13º | H6: PREÇO POR EMPREGADO | I6: PREÇO TOTAL (MENSAL)
C7: 1 | D7: =HLOOKUP(C7,'Dados Gerais'!$D$5:$BK$10,6) -> BOMBEIRO CIVIL MESTRE | E7: =HLOOKUP(C7,'Dados Gerais'!$D$5:$BK$14,10) -> 2 | F7: ='1'!$E$116 -> 22731.1145 | G7: 0 | H7: =G7+F7 -> 22731.1145 | I7: =H7*E7 -> 45462.229
C8: 2 | D8: =HLOOKUP(C8,'Dados Gerais'!$D$5:$BK$10,6) -> BOMBEIRO CIVIL LÍDER DIURNO | E8: =HLOOKUP(C8,'Dados Gerais'!$D$5:$BK$14,10) -> 2 | F8: ='2'!$E$116 -> 12329.3925 | G8: 0 | H8: 12329.3925 | I8: 24658.785
C9: 3 | D9: =HLOOKUP(C9,'Dados Gerais'!$D$5:$BK$10,6) -> BOMBEIRO CIVIL LÍDER NOTURNO | E9: =HLOOKUP(C9,'Dados Gerais'!$D$5:$BK$14,10) -> 2 | F9: ='3'!$E$115 -> 13857.19048 | G9: 0 | H9: 13857.19048 | I9: 27714.38096
C10: 4 | D10: =HLOOKUP(C10,'Dados Gerais'!$D$5:$BK$10,6) -> BOMBEIRO CIVIL BÁSICO DIURNO | E10: =HLOOKUP(C10,'Dados Gerais'!$D$5:$BK$14,10) -> 36 | F10: ='4'!$E$115 -> 10171.62259 | G10: 0 | H10: 10171.62259 | I10: 366178.4134
C11: 5 | D11: =HLOOKUP(C11,'Dados Gerais'!$D$5:$BK$10,6) -> BOMBEIRO CIVIL BÁSICO NOTURNO | E11: =HLOOKUP(C11,'Dados Gerais'!$D$5:$BK$14,10) -> 28 | F11: ='5'!$E$115 -> 11404.45102 | G11: 0 | H11: =G11+F11 -> 11404.45102 | I11: =H11*E11 -> 319324.6285
D13: TOTAL MENSAL - SALÁRIOS | I13: =SUM(I7:I12) -> 783338.4368
B16: RESUMO - TOTAIS MENSAIS - DESTAQUE DO 13º SALÁRIO
C19: ITEM | D19: POSTO DE TRABALHO | E19: QUANTIDADE | F19: PREÇO UNIT (SEM O 13º) | G19: DESTAQUE DO 13º | H19: PREÇO POR EMPREGADO | I19: PREÇO TOTAL (MENSAL)
C20: 1 | D20: =HLOOKUP(C20,'Dados Gerais'!$D$5:$BK$10,6) -> BOMBEIRO CIVIL MESTRE | E20: =HLOOKUP(C20,'Dados Gerais'!$D$5:$BK$14,10) -> 2 | F20: 0 | G20: =G33 -> 1569.7 | H20: =G20+F20 -> 1569.7 | I20: =H20*E20 -> 3139.4
C21: 2 | D21: =HLOOKUP(C21,'Dados Gerais'!$D$5:$BK$10,6) -> BOMBEIRO CIVIL LÍDER DIURNO | E21: =HLOOKUP(C21,'Dados Gerais'!$D$5:$BK$14,10) -> 2 | F21: 0 | G21: =G34 -> 832.96 | H21: =G21+F21 -> 832.96 | I21: 1665.92
C22: 3 | D22: =HLOOKUP(C22,'Dados Gerais'!$D$5:$BK$10,6) -> BOMBEIRO CIVIL LÍDER NOTURNO | E22: =HLOOKUP(C22,'Dados Gerais'!$D$5:$BK$14,10) -> 2 | F22: 0 | G22: =G35 -> 897.49 | H22: 897.49 | I22: 1794.98
C23: 4 | D23: =HLOOKUP(C23,'Dados Gerais'!$D$5:$BK$10,6) -> BOMBEIRO CIVIL BÁSICO DIURNO | E23: =HLOOKUP(C23,'Dados Gerais'!$D$5:$BK$14,10) -> 36 | F23: 0 | G23: =G36 -> 637.74 | H23: 637.74 | I23: 22958.64
C24: 5 | D24: =HLOOKUP(C24,'Dados Gerais'!$D$5:$BK$10,6) -> BOMBEIRO CIVIL BÁSICO NOTURNO | E24: =HLOOKUP(C24,'Dados Gerais'!$D$5:$BK$14,10) -> 28 | F24: 0 | G24: 724.22 | H24: =G24+F24 -> 724.22 | I24: =H24*E24 -> 20278.16
D26: TOTAL MENSAL - DESTAQUE DO 13º | I26: =SUM(I20:I25) -> 49837.1
B29: RESUMO - TOTAIS MENSAIS - FATURA ORDINÁRIA TOTAL
C32: ITEM | D32: POSTO DE TRABALHO | E32: QUANTIDADE | F32: PREÇO UNIT (SEM O 13º) | G32: DESTAQUE DO 13º | H32: PREÇO POR EMPREGADO | I32: PREÇO TOTAL (MENSAL)
C33: 1 | D33: =HLOOKUP(C33,'Dados Gerais'!$D$5:$BK$10,6) -> BOMBEIRO CIVIL MESTRE | E33: =HLOOKUP(C33,'Dados Gerais'!$D$5:$BK$14,10) -> 2 | F33: =F7 -> 22731.1145 | G33: ='1'!$E$117 -> 1569.7 | H33: =G33+F33 -> 24300.8145 | I33: =H33*E33 -> 48601.629 | K33: =I33/$I$39 -> 0.05833300049 | L33: =$I$52*K33 -> 836.9264537
C34: 2 | D34: =HLOOKUP(C34,'Dados Gerais'!$D$5:$BK$10,6) -> BOMBEIRO CIVIL LÍDER DIURNO | E34: =HLOOKUP(C34,'Dados Gerais'!$D$5:$BK$14,10) -> 2 | F34: =F8 -> 12329.3925 | G34: ='2'!$E$117 -> 832.96 | H34: 13162.3525 | I34: 26324.705 | K34: =I34/$I$39 -> 0.03159562882 | L34: =$I$52*K34 -> 453.3148879
C35: 3 | D35: =HLOOKUP(C35,'Dados Gerais'!$D$5:$BK$10,6) -> BOMBEIRO CIVIL LÍDER NOTURNO | E35: =HLOOKUP(C35,'Dados Gerais'!$D$5:$BK$14,10) -> 2 | F35: =F9 -> 13857.19048 | G35: ='3'!$E$116 -> 897.49 | H35: 14754.68048 | I35: 29509.36096 | K35: =I35/$I$39 -> 0.03541793974 | L35: =$I$52*K35 -> 508.155083
C36: 4 | D36: =HLOOKUP(C36,'Dados Gerais'!$D$5:$BK$10,6) -> BOMBEIRO CIVIL BÁSICO DIURNO | E36: =HLOOKUP(C36,'Dados Gerais'!$D$5:$BK$14,10) -> 36 | F36: =F10 -> 10171.62259 | G36: ='4'!$E$116 -> 637.74 | H36: 10809.36259 | I36: 389137.0534 | K36: =I36/$I$39 -> 0.4670529032 | L36: =$I$52*K36 -> 6700.991321
C37: 5 | D37: =HLOOKUP(C37,'Dados Gerais'!$D$5:$BK$10,6) -> BOMBEIRO CIVIL BÁSICO NOTURNO | E37: =HLOOKUP(C37,'Dados Gerais'!$D$5:$BK$14,10) -> 28 | F37: =F11 -> 11404.45102 | G37: ='5'!$E$116 -> 724.22 | H37: =G37+F37 -> 12128.67102 | I37: =H37*E37 -> 339602.7885 | K37: =I37/$I$39 -> 0.4076005277 | L37: =$I$52*K37 -> 5848.004754
D39: TOTAL MENSAL - SALÁRIOS | I39: =SUM(I33:I38) -> 833175.5368
C41: ITEM | D41: DESCRIÇÃO | I41: PREÇO TOTAL (MENSAL)
C42: EQUIP | D42: EQUIPAMENTOS NÃO RELACIONADOS DIRETAMENTE A UM POSTO DE TRABALHO | I42: ='Não Rel - Depr'!M70 -> 0
C43: HEXTRA | D43: HORAS EXTRAS | I43: ='Não Rel - Depr'!M70 -> 0
C44: HNOT | D44: ADICIONAL DE HORAS NOTURNAS (SOB DEMANDA) | I44: 0
C45: SREP | D45: SISTEMA DE REGISTRO ELETRÔNICO DE PRESENÇA - SREP | I45: =SREP!$M$46 -> 768.88
C46: EPI - N.REL | D46: EQUIPAMENTOS DE PROTEÇÃO INDIVIDUAL NÃO RELACIONADOS DIRETAMENTE A UM POSTO DE TRABALHO | I46: ='Não Rel - EPI'!K19 -> 12813.21333
C47: EQUIP - N.REL | D47: EQUIPAMENTOS NÃO RELACIONADAS DIRETAMENTE A UM POSTO DE TRABALHO | I47: ='Não Rel - Depr'!M71 -> 530.91
C48: MAT | D48: MATERIAIS NÃO RELACIONADOS DIRETAMENTE A UM POSTO DE TRABALHO | I48: ='Não Rel - Mat Consumo'!L24 -> 234.3891667
C49: MAT CONS DURAVEL | D49: MATERIAIS DE CONSUMO DURÁVEL NÃO RELACIONADOS DIRETAMENTE A UM POSTO DE TRABALHO | I49: ='Não Rel - Mat Cons Durável'!M37 -> 0
C50: EQ SOB DEMANDA | D50: SERVIÇOS NÃO RELACIONADOS DIRETAMENTE A UM POSTO DE TRABALHO | I50: ='Não Rel - Serviços'!K10 -> 0
D52: TOTAL MENSAL | I52: =SUM(I42:I51) -> 14347.3925 | K52: =(I52+I39)*12 -> 10170275.15
D54: TOTAL MENSAL - ITENS ORDINÁRIOS
D55: DESCRIÇÃO | H55: VALOR
D56: Postos de Trabalho - Inclusive 13º Salário | H56: =I39 -> 833175.5368
D57: Adicional de Horas Noturnas | H57: =I44 -> 0
D58: Sistema de Registro Eletrônico de Presença - SREP | H58: =I45 -> 768.88
D59: Equipamentos de Proteção Individual não relacionados diretamente a um posto de trabalho | H59: =I46 -> 12813.21333
D60: Equipamentos não relacionadas diretamente a um posto de trabalho | H60: =I47 -> 530.91
D61: Materiais de consumo não relacionados diretamente a um posto de trabalho | H61: =$I$48 -> 234.3891667
D62: Materiais de consumo duráveis não relacionados diretamente a um posto de trabalho | H62: =$I$49 -> 0
G64: TOTAL MENSAL DA CONTRATAÇÃO | H64: =SUM(H56:H63) -> 847522.9293 | K64: =Extenso_Valor(H64) -> oitocentos e quarenta e sete mil, quinhentos e vinte e dois reais e noventa e três centavos
D66: TOTAL ANUAL - ITENS ORDINÁRIOS
G68: 12 x TOTAL MENSAL | H68: =H64*12 -> 10170275.15 | K68: =Extenso_Valor(H68) -> dez milhões, cento e setenta mil, duzentos e setenta e cinco reais e quinze centavos
D70: TOTAL MENSAL - ITENS SOB DEMANDA
D71: DESCRIÇÃO | H71: VALOR
D72: Serviços não relacionados diretamente a um posto de trabalho - AQUISIÇÃO SOB DEMANDA | H72: =I50 -> 0
G74: TOTAL MENSAL DA CONTRATAÇÃO | H74: =SUM(H72:H73) -> 0
D76: TOTAL ANUAL - ITENS SOB DEMANDA
G78: 12 x TOTAL MENSAL | H78: =H74*12 -> 0
D80: TOTAL ANUAL DA CONTRATAÇÃO
H82: =H78+H68 -> 10170275.15 | K82: =Extenso_Valor(H82) -> dez milhões, cento e setenta mil, duzentos e setenta e cinco reais e quinze centavos
D84: TOTAL GLOBAL DA CONTRATAÇÃO (30 MESES)
H86: =H82/12*30 -> 25425687.88
H91: =H64+H74 -> 847522.9293 | K91: =Extenso_Valor(H91) -> oitocentos e quarenta e sete mil, quinhentos e vinte e dois reais e noventa e três centavos

Sheet 1
B2: PLANILHA DE ESTIMATIVA DE CUSTOS
B5: 1 | D5: =HLOOKUP($B$5,'Dados Gerais'!$D$5:$BK$20,6) -> BOMBEIRO CIVIL MESTRE | E5: QUANTIDADE | F5: =HLOOKUP($B$5,'Dados Gerais'!$D$5:$BK$20,10) -> 2
B6: CCT | D6: =HLOOKUP($B$5,'Dados Gerais'!$D$5:$BK$20,15) -> SEAC/DF X SINDIBOMBEIROS/DF 2023/2023 Nº DF000140/2023 | E6: DATA-BASE | F6: =HLOOKUP($B$5,'Dados Gerais'!$D$5:$BK$20,16) -> 2023-01-01
B8: MÓDULO 1 - COMPOSIÇÃO DA REMUNERAÇÃO | F8: Valor
C9: A | D9: Salário-Base | F9: =HLOOKUP($B$5,'Dados Gerais'!$D$5:$BK$20,8) -> 8161.01
C10: B | D10: Adicional de Periculosidade | F10: =HLOOKUP($B$5,'Dados Gerais'!$D$5:$BK$37,25) -> 2448.3
C11: C | D11: Adicional de Insalubridade | F11: =HLOOKUP($B$5,'Dados Gerais'!$D$5:$BK$37,31) -> 0
C12: D | D12: Adicional Noturno | F12: =HLOOKUP($B$5,'Dados Gerais'!$D$5:$BK$50,46) -> 0 | H12: * Nota 1 - O Módulo 1 refere-se ao valor mensal devido ao empregado pela prestação do serviço no período de 12 meses.
C13: E | D13: Adicional de Hora Extra | F13: =HLOOKUP($B$5,'Dados Gerais'!$D$5:$BK$67,63) -> 0 | H13: * Nota 2 - O adicional de hora extra no feriado trabalhado foi suprimido pela Lei 13.467/17
C14: F | D14: Outros (especificar) | F14: =HLOOKUP($B$5,'Dados Gerais'!$D$5:$BK$59,33) -> 0 | H14: * Nota 3 - ART. 7º, § 2º, DA LEI Nº 605/49.Sendo mensalista o obreiro, o adicional noturno pago de forma fixa já é considerado integrado para os efeitos do pagamento do repouso semanal remunerado, nos termos do art. 7º, § 2º, da Lei nº 605/49.
D16: TOTAL DA REMUNERAÇÃO | F16: =SUM(F9:F14) -> 10609.31
B18: MÓDULO 2 - ENCARGOS E BENEFÍCIOS ANUAIS, MENSAIS E DIÁRIOS | E18: Percentuais | F18: Valor
B19: Submódulo 2.1 - 13º Salário e Adicional de Férias
C20: A | D20: 13º Salário - Calculado no Módulo 7 - Destacado | E20: 0 | F20: =ROUND(E20*F$16,2) -> 0
C21: B | D21: Adicional de Férias | E21: ='Encargos Sociais'!E31 -> 0.0303030303 | F21: =ROUND(E21*F$16,2) -> 321.49 | H21: * Nota 1 - Provisiona-se, mensalmente, o proporcional a 1/12 dos valores referentes a gratificação natalina, férias e adicional de férias.
H22: * Nota 2 - O adicional de férias contido no Submódulo 2.1 corresponde a 1/3 da remuneração que, por sua vez, é dividida por 12 contome Nota 1.
B23: Submódulo 2.2 - Encargos Previdenciários (GPS), Fundo de Garantia por Tempo de Serviço (FGTS) e Outras Contribuições
C24: A | D24: ='Encargos Sociais'!D14 -> INSS (art. 22, inciso I, Lei nº 8.212/91) | E24: ='Encargos Sociais'!E14 -> 0.2 | F24: =ROUND(E24*($F$16+$F$41+$F$73),2) -> 2421.56
C25: B | D25: ='Encargos Sociais'!D15 -> Salário Educação (art. 3º, inciso I, Decreto nº 87.043/82) | E25: ='Encargos Sociais'!E15 -> 0.025 | F25: =ROUND(E25*($F$16+$F$41+$F$73),2) -> 302.7
C26: C | D26: ='Encargos Sociais'!D16 -> SAT/RAT (art. 22, II, Lei 8.212/91 e Anexo V, Decreto 6.042/07) - Enquadramento 8011-1/01 | E26: ='Encargos Sociais'!E16 -> 0.03 | F26: 363.23
C27: D | D27: ='Encargos Sociais'!D17 -> SESC ou SESI (art. 30, Lei nº 8.036/90 e art. 1º, Lei 8.154/90) | E27: ='Encargos Sociais'!E17 -> 0.015 | F27: 181.62
C28: E | D28: ='Encargos Sociais'!D18 -> SENAI ou SENAC (Decreto nº 2.318/86) | E28: ='Encargos Sociais'!E18 -> 0.01 | F28: 121.08
C29: F | D29: ='Encargos Sociais'!D19 -> SEBRAE (§ 3º, art. 8º, Lei 8.029/90, alterada pela Lei nº 8.154/90) | E29: ='Encargos Sociais'!E19 -> 0.006 | F29: 72.65
C30: G | D30: ='Encargos Sociais'!D20 -> INCRA (art. 1º, I, Decreto Lei 1.146/70 e Lei 7.787, de 30/06/89) | E30: ='Encargos Sociais'!E20 -> 0.002 | F30: 24.22 | H30: * Nota 1 - Os percentuais dos encargos previdenciários, do FGTS e demais contribuições são estabelecidos por legislação vigente.
C31: H | D31: ='Encargos Sociais'!D21 -> FGTS (Lei Complementar nº 110/01 e art. 30, Lei nº 8.036/90) | E31: ='Encargos Sociais'!E21 -> 0.08 | F31: 968.63 | H31: * Nota 2 - O SAT, a depender do grau de risco do serviço, irá variar entre 1%, para risco leve, de 2%, para risco médio, e de 3% para risco grave.
C32: I | D32: ='Encargos Sociais'!D22 -> SECONCI (Convenções Coletivas de Trabalho da construção) | E32: ='Encargos Sociais'!E22 -> 0 | F32: 0 | H32: * Nota 3 - Os percentuais do Submódulo 2.2 incidem sobre o Módulo 1 e o Submódulo 2.1.
B34: Submódulo 2.3 - Benefícios Mensais e Diários
C35: A | D35: Auxílio Transporte | F35: =HLOOKUP($B$5,'Dados Gerais'!$D$5:$BK$93,82) -> 0
C36: B | D36: Auxílio Alimentação | F36: =HLOOKUP($B$5,'Dados Gerais'!$D$5:$BK$93,89) -> 1134.12
C37: C | D37: Assistência Médica e Familiar | F37: =HLOOKUP($B$5,'Dados Gerais'!$D$5:$BK$101,97) -> 0
C38: D | D38: Outros (Seguro de vida e auxílio funeral e auxílio odontológico) | F38: =HLOOKUP($B$5,'Dados Gerais'!$D$5:$BK$118,114) -> 0 | H38: * Nota 1 - O valor informado deverá ser o custo real do benefício (descontado o valor eventualmente pago pelo empregado).
H39: * Nota 2 - Observar a previsão dos benefícios contidos em Acordos, Convenções e Dissídios Coletivos de Trabalho e o disposto no art. 6º da IN 5/2017
D40: QUADRO-RESUMO DO MÓDULO 2
D41: 2.1 - 13º Salário, Férias e Adicional de Férias - 13º Destacado - Calculado no Módulo 7 | E41: =SUM(E20:E21) -> 0.0303030303 | F41: =F20+F21 -> 321.49
D42: 2.2 - Encargos Previdenciários (GPS), Fundo de Garantia por Tempo de Serviço (FGTS) e Contribuições | E42: =SUM(E24:E32) -> 0.368 | F42: =SUM(F24:F32) -> 4455.69
D43: 2.3 - Benefícios Mensais e Diários | F43: =SUM(F35:F38) -> 1134.12
D45: TOTAL DOS ENCARGOS E BENEFÍCIOS | F45: =SUM(F41:F43) -> 5911.3
B47: MÓDULO 3 - PREVISÃO PARA RESCISÃO | E47: Percentuais | F47: Valor
C48: A | D48: ='Encargos Sociais'!D36 -> Aviso Prévio Indenizado (Art. 7º, inciso XXI, da CF/1988 e arts. 477, 487, §1º, e 491 da CLT) | E48: ='Encargos Sociais'!E36 -> 0.008333333333 | F48: =ROUND(E48*$F$16,2) -> 88.41
C49: B | D49: ='Encargos Sociais'!D37 -> Incidência do FGTS sobre o Aviso Prévio Indenizado (Súmula 305 TST) | E49: ='Encargos Sociais'!E37 -> 0.0006666666667 | F49: 7.07 | H49: * Nota 1 - Adotou-se os parâmetros do estudo do STF (http://www.stf.jus.br/arquivo/cms/sobrestfestudosci/anexo/encargos_sociais_03102007.pdf), onde 5% do pessoal é demitido pelo empregador no decurso do contrato (para estes, considerou-se o aviso prévio indenizado). Desprezou-se as demissões por justa causa e os pedidos de demissão.
C50: C | D50: ='Encargos Sociais'!D38 -> Multa do FGTS e Contribuição Social sobre o Aviso Prévio Indenizado (Art. 18, §1º, da Lei 8.036/1990 e art. 1º da LC nº 110/2001) | E50: ='Encargos Sociais'!E38 -> 0.007717066667 | F50: 81.87 | H50: * Nota 2 - No cálculo do percentual, considerou-se 36 dias, correspondendo à metade da duração média dos contratos (2 anos)
C51: D | D51: ='Encargos Sociais'!D39 -> Aviso Prévio Trabalhado (Art. 488, parágrafo único, CLT) | E51: ='Encargos Sociais'!E39 -> 0.01203703704 | F51: 127.7 | H51: * Nota 3 - Incide sobre a Remuneração + 13º salário (1/12) + Férias (1/12) + Adicional de Férias (1/36) x 50% multa (40% para o empregado e 10% de contribuição social) x 8% FGTS
C52: E | D52: ='Encargos Sociais'!D40 -> Incidência de GPS, FGTS e outras contribuições sobre o Aviso Prévio Trabalhado | E52: ='Encargos Sociais'!E40 -> 0.00442962963 | F52: 47 | H52: * Nota 4 - Os 95% restantes do cálculo, a um prazo médio de contrato de 4 anos. Assim, calcula-se 7 dias para o 1º ano de contrato e mais 3 dias para os 3 anos seguintes.
C53: F | D53: ='Encargos Sociais'!D41 -> Multa do FGTS e Contribuição Social sobre o Aviso Prévio Trabalhado | E53: ='Encargos Sociais'!E41 -> 0.03050515556 | F53: 323.64
D55: TOTAL DE PREVISÃO PARA RESCISÃO | F55: =SUM(F48:F53) -> 675.69
B57: MÓDULO 4 - CUSTO DO PROFISSIONAL AUSENTE | E57: Percentuais | F57: Valor
B58: Submódulo 4.1 - Ausências Legais
C59: A | D59: ='Encargos Sociais'!D25 -> Férias (Arts. 129 e 130, inc. I, da CLT) | E59: ='Encargos Sociais'!E25 -> 0.09090909091 | F59: =ROUND(E59*$F$16,2) -> 964.48 | H59: * Nota 1 - As alíneas “A” a “F” referem-se somente ao custo que será pago ao profissional ausente.
C60: B | D60: ='Encargos Sociais'!D26 -> Ausências Legais (Arts. 131 e 473 da CLT) | E60: ='Encargos Sociais'!E26 -> 0.007936507937 | F60: 84.2 | H60: * Nota 2 - Adotou-se a estimativa do SINAPI de 2 dias por ano.
C61: C | D61: ='Encargos Sociais'!D27 -> Licença-Paternidade (Art. 7º, XIX, e art. 10, §1º, do ADCT, CF/1988 e Art. 1º, II, da Lei 11.770/2008) | E61: ='Encargos Sociais'!E27 -> 0.0008277777778 | F61: 8.78 | H61: * Nota 3 - Utilizada a proporção de 50% para homens, 5 dias de afastamento, e a probabilidade de um trabalhador requerer a Licença Paternidade em 5,22%, conforme SINAPI (citando dados da PNAD 2015)
C62: D | D62: ='Encargos Sociais'!D28 -> Ausência por Acidente de Trabalho (Art. 131, III, da CLT) | E62: ='Encargos Sociais'!E28 -> 0.0008541666667 | F62: 9.06 | H62: * Nota 4 - Utilzada a estatística de 1,96% dos contribuintes beneficiados com a emissão do auxílio, conforme Anuário Estatístico da Previdência Social. Afastamento de 15 dias a cargo da empresa.
C63: E | D63: ='Encargos Sociais'!D29 -> Afastamento Maternidade (Art. 71 da Lei nº 8.213/1991) | E63: ='Encargos Sociais'!E29 -> 0.003292592593 | F63: 34.93 | H63: * Nota 5 - Utilizada a proporção de 50% para mulheres, 180 dias de afastamento, e a probabilidade de uma trabalhadora requerer a Licença Maternidade em 4,91%, conforme SINAPI (citando dados do IBGE 2016)
C64: F | D64: ='Encargos Sociais'!D30 -> Auxílio Enfermidade - Doença (Art. 59 da Lei nº 8.213/1991) | E64: ='Encargos Sociais'!E30 -> 0.007122222222 | F64: 75.56 | H64: * Nota 6 - Utilizada a estatística de 3,37% dos contribuintes beneficiados com o auxílio, conforme Anuário Estatístico da Previdência Social de 2015 (acrescidos de 2 dias ao ano, para os quais o trabalhador nem requer o benefício da Previdência - conforme SINAPI)
B66: Submódulo 4.2 - Intrajornada
C67: A | D67: Intervalo para repouso ou alimentação | E67: ='Encargos Sociais'!E33 -> 0 | F67: =ROUND(E67*$F$16,2) -> 0
D69: QUADRO-RESUMO DO MÓDULO 4 | F69: Valor
D70: 4.1 - Ausências Legais | E70: =SUM(E59:E64) -> 0.1109423581 | F70: =ROUND(E70*$F$16,2) -> 1177.02
D71: 4.2 - Intrajornada | E71: =E67 -> 0 | F71: =ROUND(E71*$F$16,2) -> 0
D73: TOTAL DE PREVISÃO PARA RESCISÃO E INTERVALO INTRAJORNADA | F73: =SUM(F70:F71) -> 1177.02
B75: MÓDULO 5 - INSUMOS DIVERSOS | F75: Valor
C76: A | D76: Uniformes - aquisição | F76: =ROUND(HLOOKUP($B$5,Uniformes!L4:EA73,3)/12,2) -> 86.25
C77: B | D77: Materiais de consumo relacionados ao posto - aquisição | F77: =ROUND(HLOOKUP(B5,'Mat Cons'!I11:DX13,3)/12,2) -> 0
C78: C | D78: Materiais permanentes relacionados ao posto - remuneração da sua depreciação / manutenção | F78: =HLOOKUP(B5,'Mat Perm'!Q11:EF13,3) -> 0
C79: D | D79: Equipamentos relacionados ao posto - remuneração da sua depreciação / manutenção | F79: =HLOOKUP(B5,'Equip Rel'!Q11:EF13,3) -> 0
C80: E | D80: Equipamentos de Proteção Individual - EPI - aquisição | F80: =ROUND(HLOOKUP(B5,EPI!J4:DY6,3)/12,2) -> 0
D82: TOTAL DE INSUMOS DIVERSOS | F82: =SUM(F76:F81) -> 86.25 | H82: * Nota - Valores mensais por empregado
B84: MÓDULO 6 - CUSTOS INDIRETOS, TRIBUTOS E LUCRO - BDI | E84: Percentuais | F84: Valor
C85: A | D85: Custos Indiretos | E85: =BDI!E6 -> 0.0314
C86: A.1 | D86: Administração Central | E86: =BDI!E7 -> 0.026
C87: A.2 | D87: Seguros, Garantias e Riscos | E87: =BDI!E8 -> 0.0054
C88: B | D88: Lucro | E88: =BDI!E10 -> 0.04
C89: C | D89: Tributos | E89: =SUM(E90:E91) -> 0.124
C90: C.1 | D90: Tributos Federais (COFINS, PIS e CPRB) | E90: =BDI!E18 -> 0.074
C91: C.2 | D91: Tributos Distritais (ISS) | E91: =BDI!E23 -> 0.05 | H91: * Nota - Utilizou-se o indicado pelo Sindicato da Arquitetura e da Engenharia (Sinaenco, 2008, p. 22), que adota um percentual redutor de 20% no cálculo dos custos tributários relativos às contribuições PIS e COFINS
C92: D | D92: Despesas Financeiras | E92: =BDI!E13 -> 0.005639499547
D94: TOTAL DE BDI | E94: =BDI!E26 -> 0.2314 | F94: =E94*E102 -> 4271.544498
D96: QUADRO-RESUMO DO CUSTO MENSAL POR EMPREGADO - SEM O 13º | E96: Valor
D97: Módulo 1 - Composição da Remuneração | E97: =F16 -> 10609.31
D98: Módulo 2 - Encargos e Benefícios Anuais, Mensais e Diários | E98: =F45 -> 5911.3
D99: Módulo 3 - Provisão para Rescisão | E99: =F55 -> 675.69
D100: Módulo 4 - Custo de Reposição do Profissional Ausente | E100: =F73 -> 1177.02
D101: Módulo 5 - Insumos Diversos | E101: =F82 -> 86.25
D102: SUBTOTAL (A+B+C+D+E) | E102: =SUM(E97:E101) -> 18459.57
D103: Módulo 6 - Custos Indiretos, Tributos e Lucro | E103: =F94 -> 4271.544498
D105: TOTAL DO POSTO | E105: =SUM(E102:E103) -> 22731.1145
B107: MÓDULO 7 - DESTAQUE DO MÓDULO 2 - 13º SALÁRIO | E107: Percentuais | F107: Valor
C108: A | D108: 13º Salário | E108: ='Encargos Sociais'!E32 -> 0.08333333333 | F108: =ROUND(E108*F$16,2) -> 884.11
C109: B | D109: Encargos Sociais sobre o 13º Salário - Taxa calculada no SUBMÓDULO 2.2 | E109: =SUM($E$24:$E$32) -> 0.368 | F109: =ROUND(E109*$F$108,2) -> 325.35 | H109: * Nota 1 - Provisiona-se, mensalmente, o proporcional a 1/12 dos valores referentes a gratificação natalina e adicional de férias.
C110: C | D110: Reincidência de férias sobre o 13º Salário | E110: =E59 -> 0.09090909091 | F110: =ROUND(E110*$F$108,2) -> 80.37
C111: D | D111: BDI sobre o 13º Salário - Taxa calculada no MÓDULO 6 | E111: =E94 -> 0.2314 | F111: =ROUND(E111*($F$108+$F$109),2) -> 279.87
D113: TOTAL DO DESTAQUE DO 13º SALÁRIO | F113: =SUM(F108:F111) -> 1569.7
D115: QUADRO-RESUMO DO CUSTO MENSAL POR EMPREGADO | E115: Valor
D116: Custo total - sem o 13º Salário | E116: =E105 -> 22731.1145
D117: Destaque do 13º Salário (valor mensal) | E117: =F113 -> 1569.7
D119: TOTAL DO POSTO | E119: =E116+E117 -> 24300.8145

Sheet 2
B2: PLANILHA DE ESTIMATIVA DE CUSTOS
B5: 2 | D5: =HLOOKUP($B$5,'Dados Gerais'!$D$5:$BK$20,6) -> BOMBEIRO CIVIL LÍDER DIURNO | E5: QUANTIDADE | F5: =HLOOKUP($B$5,'Dados Gerais'!$D$5:$BK$20,10) -> 2
B6: CCT | D6: =HLOOKUP($B$5,'Dados Gerais'!$D$5:$BK$20,15) -> SEAC/DF X SINDIBOMBEIROS/DF 2023/2023 Nº DF000140/2023 | E6: DATA-BASE | F6: =HLOOKUP($B$5,'Dados Gerais'!$D$5:$BK$20,16) -> 2023-01-01
B8: MÓDULO 1 - COMPOSIÇÃO DA REMUNERAÇÃO | F8: Valor
C9: A | D9: Salário-Base | F9: =HLOOKUP($B$5,'Dados Gerais'!$D$5:$BK$20,8) -> 4330.6
C10: B | D10: Adicional de Periculosidade | F10: =HLOOKUP($B$5,'Dados Gerais'!$D$5:$BK$37,25) -> 1299.18
C11: C | D11: Adicional de Insalubridade | F11: =HLOOKUP($B$5,'Dados Gerais'!$D$5:$BK$37,31) -> 0
C12: D | D12: Adicional Noturno | F12: =HLOOKUP($B$5,'Dados Gerais'!$D$5:$BK$50,46) -> 0 | H12: * Nota 1 - O Módulo 1 refere-se ao valor mensal devido ao empregado pela prestação do serviço no período de 12 meses.
C13: E | D13: Adicional de Hora Extra | F13: =HLOOKUP($B$5,'Dados Gerais'!$D$5:$BK$67,63) -> 0 | H13: * Nota 2 - O adicional de hora extra no feriado trabalhado foi suprimido pela Lei 13.467/17
C14: F | D14: Outros (especificar) | F14: =HLOOKUP($B$5,'Dados Gerais'!$D$5:$BK$59,33) -> 0 | H14: * Nota 3 - ART. 7º, § 2º, DA LEI Nº 605/49.Sendo mensalista o obreiro, o adicional noturno pago de forma fixa já é considerado integrado para os efeitos do pagamento do repouso semanal remunerado, nos termos do art. 7º, § 2º, da Lei nº 605/49.
D16: TOTAL DA REMUNERAÇÃO | F16: =SUM(F9:F14) -> 5629.78
B18: MÓDULO 2 - ENCARGOS E BENEFÍCIOS ANUAIS, MENSAIS E DIÁRIOS | E18: Percentuais | F18: Valor
B19: Submódulo 2.1 - 13º Salário e Adicional de Férias
C20: A | D20: 13º Salário - Calculado no Módulo 7 - Destacado | E20: 0 | F20: =ROUND(E20*F$16,2) -> 0
C21: B | D21: Adicional de Férias | E21: ='Encargos Sociais'!E31 -> 0.0303030303 | F21: =ROUND(E21*F$16,2) -> 170.6 | H21: * Nota 1 - Provisiona-se, mensalmente, o proporcional a 1/12 dos valores referentes a gratificação natalina, férias e adicional de férias.
H22: * Nota 2 - O adicional de férias contido no Submódulo 2.1 corresponde a 1/3 da remuneração que, por sua vez, é dividida por 12 contome Nota 1.
B23: Submódulo 2.2 - Encargos Previdenciários (GPS), Fundo de Garantia por Tempo de Serviço (FGTS) e Outras Contribuições
C24: A | D24: ='Encargos Sociais'!D14 -> INSS (art. 22, inciso I, Lei nº 8.212/91) | E24: ='Encargos Sociais'!E14 -> 0.2 | F24: =ROUND(E24*($F$16+$F$41+$F$73),2) -> 1284.99
C25: B | D25: ='Encargos Sociais'!D15 -> Salário Educação (art. 3º, inciso I, Decreto nº 87.043/82) | E25: ='Encargos Sociais'!E15 -> 0.025 | F25: =ROUND(E25*($F$16+$F$41+$F$73),2) -> 160.62
C26: C | D26: ='Encargos Sociais'!D16 -> SAT/RAT (art. 22, II, Lei 8.212/91 e Anexo V, Decreto 6.042/07) - Enquadramento 8011-1/01 | E26: ='Encargos Sociais'!E16 -> 0.03 | F26: 192.75
C27: D | D27: ='Encargos Sociais'!D17 -> SESC ou SESI (art. 30, Lei nº 8.036/90 e art. 1º, Lei 8.154/90) | E27: ='Encargos Sociais'!E17 -> 0.015 | F27: 96.37
C28: E | D28: ='Encargos Sociais'!D18 -> SENAI ou SENAC (Decreto nº 2.318/86) | E28: ='Encargos Sociais'!E18 -> 0.01 | F28: 64.25
C29: F | D29: ='Encargos Sociais'!D19 -> SEBRAE (§ 3º, art. 8º, Lei 8.029/90, alterada pela Lei nº 8.154/90) | E29: ='Encargos Sociais'!E19 -> 0.006 | F29: 38.55
C30: G | D30: ='Encargos Sociais'!D20 -> INCRA (art. 1º, I, Decreto Lei 1.146/70 e Lei 7.787, de 30/06/89) | E30: ='Encargos Sociais'!E20 -> 0.002 | F30: 12.85 | H30: * Nota 1 - Os percentuais dos encargos previdenciários, do FGTS e demais contribuições são estabelecidos por legislação vigente.
C31: H | D31: ='Encargos Sociais'!D21 -> FGTS (Lei Complementar nº 110/01 e art. 30, Lei nº 8.036/90) | E31: ='Encargos Sociais'!E21 -> 0.08 | F31: 514 | H31: * Nota 2 - O SAT, a depender do grau de risco do serviço, irá variar entre 1%, para risco leve, de 2%, para risco médio, e de 3% para risco grave.
C32: I | D32: ='Encargos Sociais'!D22 -> SECONCI (Convenções Coletivas de Trabalho da construção) | E32: ='Encargos Sociais'!E22 -> 0 | F32: 0 | H32: * Nota 3 - Os percentuais do Submódulo 2.2 incidem sobre o Módulo 1 e o Submódulo 2.1.
B34: Submódulo 2.3 - Benefícios Mensais e Diários
C35: A | D35: Auxílio Transporte | F35: =HLOOKUP($B$5,'Dados Gerais'!$D$5:$BK$93,82) -> 0
C36: B | D36: Auxílio Alimentação | F36: =HLOOKUP($B$5,'Dados Gerais'!$D$5:$BK$93,89) -> 676.11
C37: C | D37: Assistência Médica e Familiar | F37: =HLOOKUP($B$5,'Dados Gerais'!$D$5:$BK$101,97) -> 0
C38: D | D38: Outros (Seguro de vida e auxílio funeral e auxílio odontológico) | F38: =HLOOKUP($B$5,'Dados Gerais'!$D$5:$BK$118,114) -> 0 | H38: * Nota 1 - O valor informado deverá ser o custo real do benefício (descontado o valor eventualmente pago pelo empregado).
H39: * Nota 2 - Observar a previsão dos benefícios contidos em Acordos, Convenções e Dissídios Coletivos de Trabalho e o disposto no art. 6º da IN 5/2017
D40: QUADRO-RESUMO DO MÓDULO 2
D41: 2.1 - 13º Salário, Férias e Adicional de Férias - 13º Destacado - Calculado no Módulo 7 | E41: =SUM(E20:E21) -> 0.0303030303 | F41: =F20+F21 -> 170.6
D42: 2.2 - Encargos Previdenciários (GPS), Fundo de Garantia por Tempo de Serviço (FGTS) e Contribuições | E42: =SUM(E24:E32) -> 0.368 | F42: =SUM(F24:F32) -> 2364.38
D43: 2.3 - Benefícios Mensais e Diários | F43: =SUM(F35:F38) -> 676.11
D45: TOTAL DOS ENCARGOS E BENEFÍCIOS | F45: =SUM(F41:F43) -> 3211.09
B47: MÓDULO 3 - PREVISÃO PARA RESCISÃO | E47: Percentuais | F47: Valor
C48: A | D48: ='Encargos Sociais'!D36 -> Aviso Prévio Indenizado (Art. 7º, inciso XXI, da CF/1988 e arts. 477, 487, §1º, e 491 da CLT) | E48: ='Encargos Sociais'!E36 -> 0.008333333333 | F48: =ROUND(E48*$F$16,2) -> 46.91
C49: B | D49: ='Encargos Sociais'!D37 -> Incidência do FGTS sobre o Aviso Prévio Indenizado (Súmula 305 TST) | E49: ='Encargos Sociais'!E37 -> 0.0006666666667 | F49: 3.75 | H49: * Nota 1 - Adotou-se os parâmetros do estudo do STF (http://www.stf.jus.br/arquivo/cms/sobrestfestudosci/anexo/encargos_sociais_03102007.pdf), onde 5% do pessoal é demitido pelo empregador no decurso do contrato (para estes, considerou-se o aviso prévio indenizado). Desprezou-se as demissões por justa causa e os pedidos de demissão.
C50: C | D50: ='Encargos Sociais'!D38 -> Multa do FGTS e Contribuição Social sobre o Aviso Prévio Indenizado (Art. 18, §1º, da Lei 8.036/1990 e art. 1º da LC nº 110/2001) | E50: ='Encargos Sociais'!E38 -> 0.007717066667 | F50: 43.45 | H50: * Nota 2 - No cálculo do percentual, considerou-se 36 dias, correspondendo à metade da duração média dos contratos (2 anos)
C51: D | D51: ='Encargos Sociais'!D39 -> Aviso Prévio Trabalhado (Art. 488, parágrafo único, CLT) | E51: ='Encargos Sociais'!E39 -> 0.01203703704 | F51: 67.77 | H51: * Nota 3 - Incide sobre a Remuneração + 13º salário (1/12) + Férias (1/12) + Adicional de Férias (1/36) x 50% multa (40% para o empregado e 10% de contribuição social) x 8% FGTS
C52: E | D52: ='Encargos Sociais'!D40 -> Incidência de GPS, FGTS e outras contribuições sobre o Aviso Prévio Trabalhado | E52: ='Encargos Sociais'!E40 -> 0.00442962963 | F52: 24.94 | H52: * Nota 4 - Os 95% restantes do cálculo, a um prazo médio de contrato de 4 anos. Assim, calcula-se 7 dias para o 1º ano de contrato e mais 3 dias para os 3 anos seguintes.
C53: F | D53: ='Encargos Sociais'!D41 -> Multa do FGTS e Contribuição Social sobre o Aviso Prévio Trabalhado | E53: ='Encargos Sociais'!E41 -> 0.03050515556 | F53: 171.74
D55: TOTAL DE PREVISÃO PARA RESCISÃO | F55: =SUM(F48:F53) -> 358.56
B57: MÓDULO 4 - CUSTO DO PROFISSIONAL AUSENTE | E57: Percentuais | F57: Valor
B58: Submódulo 4.1 - Ausências Legais
C59: A | D59: ='Encargos Sociais'!D25 -> Férias (Arts. 129 e 130, inc. I, da CLT) | E59: ='Encargos Sociais'!E25 -> 0.09090909091 | F59: =ROUND(E59*$F$16,2) -> 511.8 | H59: * Nota 1 - As alíneas “A” a “F” referem-se somente ao custo que será pago ao profissional ausente.
C60: B | D60: ='Encargos Sociais'!D26 -> Ausências Legais (Arts. 131 e 473 da CLT) | E60: ='Encargos Sociais'!E26 -> 0.007936507937 | F60: 44.68 | H60: * Nota 2 - Adotou-se a estimativa do SINAPI de 2 dias por ano.
C61: C | D61: ='Encargos Sociais'!D27 -> Licença-Paternidade (Art. 7º, XIX, e art. 10, §1º, do ADCT, CF/1988 e Art. 1º, II, da Lei 11.770/2008) | E61: ='Encargos Sociais'!E27 -> 0.0008277777778 | F61: 4.66 | H61: * Nota 3 - Utilizada a proporção de 50% para homens, 5 dias de afastamento, e a probabilidade de um trabalhador requerer a Licença Paternidade em 5,22%, conforme SINAPI (citando dados da PNAD 2015)
C62: D | D62: ='Encargos Sociais'!D28 -> Ausência por Acidente de Trabalho (Art. 131, III, da CLT) | E62: ='Encargos Sociais'!E28 -> 0.0008541666667 | F62: 4.81 | H62: * Nota 4 - Utilzada a estatística de 1,96% dos contribuintes beneficiados com a emissão do auxílio, conforme Anuário Estatístico da Previdência Social. Afastamento de 15 dias a cargo da empresa.
C63: E | D63: ='Encargos Sociais'!D29 -> Afastamento Maternidade (Art. 71 da Lei nº 8.213/1991) | E63: ='Encargos Sociais'!E29 -> 0.003292592593 | F63: 18.54 | H63: * Nota 5 - Utilizada a proporção de 50% para mulheres, 180 dias de afastamento, e a probabilidade de uma trabalhadora requerer a Licença Maternidade em 4,91%, conforme SINAPI (citando dados do IBGE 2016)
C64: F | D64: ='Encargos Sociais'!D30 -> Auxílio Enfermidade - Doença (Art. 59 da Lei nº 8.213/1991) | E64: ='Encargos Sociais'!E30 -> 0.007122222222 | F64: 40.1 | H64: * Nota 6 - Utilizada a estatística de 3,37% dos contribuintes beneficiados com o auxílio, conforme Anuário Estatístico da Previdência Social de 2015 (acrescidos de 2 dias ao ano, para os quais o trabalhador nem requer o benefício da Previdência - conforme SINAPI)
B66: Submódulo 4.2 - Intrajornada
C67: A | D67: Intervalo para repouso ou alimentação | E67: ='Encargos Sociais'!E33 -> 0 | F67: =ROUND(E67*$F$16,2) -> 0
D69: QUADRO-RESUMO DO MÓDULO 4 | F69: Valor
D70: 4.1 - Ausências Legais | E70: =SUM(E59:E64) -> 0.1109423581 | F70: =ROUND(E70*$F$16,2) -> 624.58
D71: 4.2 - Intrajornada | E71: =E67 -> 0 | F71: =ROUND(E71*$F$16,2) -> 0
D73: TOTAL DE PREVISÃO PARA RESCISÃO E INTERVALO INTRAJORNADA | F73: =SUM(F70:F71) -> 624.58
B75: MÓDULO 5 - INSUMOS DIVERSOS | F75: Valor
C76: A | D76: Uniformes - aquisição | F76: =ROUND(HLOOKUP($B$5,Uniformes!L4:EA73,3)/12,2) -> 106.57
C77: B | D77: Materiais de consumo relacionados ao posto - aquisição | F77: =ROUND(HLOOKUP(B5,'Mat Cons'!I11:DX13,3)/12,2) -> 0
C78: C | D78: Materiais permanentes relacionados ao posto - remuneração da sua depreciação / manutenção | F78: =HLOOKUP(B5,'Mat Perm'!Q11:EF13,3) -> 0
C79: D | D79: Equipamentos relacionados ao posto - remuneração da sua depreciação / manutenção | F79: =HLOOKUP(B5,'Equip Rel'!Q11:EF13,3) -> 0
C80: E | D80: Equipamentos de Proteção Individual - EPI - aquisição | F80: =ROUND(HLOOKUP(B5,EPI!J4:DY6,3)/12,2) -> 81.92
D82: TOTAL DE INSUMOS DIVERSOS | F82: =SUM(F76:F81) -> 188.49 | H82: * Nota - Valores mensais por empregado
B84: MÓDULO 6 - CUSTOS INDIRETOS, TRIBUTOS E LUCRO - BDI | E84: Percentuais | F84: Valor
C85: A | D85: Custos Indiretos | E85: =BDI!E6 -> 0.0314
C86: A.1 | D86: Administração Central | E86: =BDI!E7 -> 0.026
C87: A.2 | D87: Seguros, Garantias e Riscos | E87: =BDI!E8 -> 0.0054
C88: B | D88: Lucro | E88: =BDI!E10 -> 0.04
C89: C | D89: Tributos | E89: =SUM(E90:E91) -> 0.124
C90: C.1 | D90: Tributos Federais (COFINS, PIS e CPRB) | E90: =BDI!E18 -> 0.074
C91: C.2 | D91: Tributos Distritais (ISS) | E91: =BDI!E23 -> 0.05 | H91: * Nota - Utilizou-se o indicado pelo Sindicato da Arquitetura e da Engenharia (Sinaenco, 2008, p. 22), que adota um percentual redutor de 20% no cálculo dos custos tributários relativos às contribuições PIS e COFINS
C92: D | D92: Despesas Financeiras | E92: =BDI!E13 -> 0.005639499547
D94: TOTAL DE BDI | E94: =BDI!E26 -> 0.2314 | F94: =E94*E102 -> 2316.8925
D96: QUADRO-RESUMO DO CUSTO MENSAL POR EMPREGADO - SEM O 13º | E96: Valor
D97: Módulo 1 - Composição da Remuneração | E97: =F16 -> 5629.78
D98: Módulo 2 - Encargos e Benefícios Anuais, Mensais e Diários | E98: =F45 -> 3211.09
D99: Módulo 3 - Provisão para Rescisão | E99: =F55 -> 358.56
D100: Módulo 4 - Custo de Reposição do Profissional Ausente | E100: =F73 -> 624.58
D101: Módulo 5 - Insumos Diversos | E101: =F82 -> 188.49
D102: SUBTOTAL (A+B+C+D+E) | E102: =SUM(E97:E101) -> 10012.5
D103: Módulo 6 - Custos Indiretos, Tributos e Lucro | E103: =F94 -> 2316.8925
D105: TOTAL DO POSTO | E105: =SUM(E102:E103) -> 12329.3925
B107: MÓDULO 7 - DESTAQUE DO MÓDULO 2 - 13º SALÁRIO | E107: Percentuais | F107: Valor
C108: A | D108: 13º Salário | E108: ='Encargos Sociais'!E32 -> 0.08333333333 | F108: =ROUND(E108*F$16,2) -> 469.15
C109: B | D109: Encargos Sociais sobre o 13º Salário - Taxa calculada no SUBMÓDULO 2.2 | E109: =SUM($E$24:$E$32) -> 0.368 | F109: =ROUND(E109*$F$108,2) -> 172.65 | H109: * Nota 1 - Provisiona-se, mensalmente, o proporcional a 1/12 dos valores referentes a gratificação natalina e adicional de férias.
C110: C | D110: Reincidência de férias sobre o 13º Salário | E110: =E59 -> 0.09090909091 | F110: =ROUND(E110*$F$108,2) -> 42.65
C111: D | D111: BDI sobre o 13º Salário - Taxa calculada no MÓDULO 6 | E111: =E94 -> 0.2314 | F111: =ROUND(E111*($F$108+$F$109),2) -> 148.51
D113: TOTAL DO DESTAQUE DO 13º SALÁRIO | F113: =SUM(F108:F111) -> 832.96
D115: QUADRO-RESUMO DO CUSTO MENSAL POR EMPREGADO | E115: Valor
D116: Custo total - sem o 13º Salário | E116: =E105 -> 12329.3925
D117: Destaque do 13º Salário (valor mensal) | E117: =F113 -> 832.96
D119: TOTAL DO POSTO | E119: =E116+E117 -> 13162.3525

Sheet 3
B2: PLANILHA DE ESTIMATIVA DE CUSTOS
B5: 3 | D5: =HLOOKUP($B$5,'Dados Gerais'!$D$5:$BK$20,6) -> BOMBEIRO CIVIL LÍDER NOTURNO | E5: QUANTIDADE | F5: =HLOOKUP($B$5,'Dados Gerais'!$D$5:$BK$20,10) -> 2
B6: CCT | D6: =HLOOKUP($B$5,'Dados Gerais'!$D$5:$BK$20,15) -> SEAC/DF X SINDIBOMBEIROS/DF 2023/2023 Nº DF000140/2023 | E6: DATA-BASE | F6: =HLOOKUP($B$5,'Dados Gerais'!$D$5:$BK$20,16) -> 2023-01-01
B8: MÓDULO 1 - COMPOSIÇÃO DA REMUNERAÇÃO | F8: Valor
C9: A | D9: Salário-Base | F9: =HLOOKUP($B$5,'Dados Gerais'!$D$5:$BK$20,8) -> 4330.6
C10: B | D10: Adicional de Periculosidade | F10: =HLOOKUP($B$5,'Dados Gerais'!$D$5:$BK$37,25) -> 1299.18
C11: C | D11: Adicional de Insalubridade | F11: =HLOOKUP($B$5,'Dados Gerais'!$D$5:$BK$37,31) -> 0
C12: D | D12: Adicional Noturno | F12: =HLOOKUP($B$5,'Dados Gerais'!$D$5:$BK$50,46) -> 763.54 | H12: * Nota 1 - O Módulo 1 refere-se ao valor mensal devido ao empregado pela prestação do serviço no período de 12 meses.
C13: E | D13: Adicional de Hora Extra | F13: =HLOOKUP($B$5,'Dados Gerais'!$D$5:$BK$67,63) -> 0 | H13: * Nota 2 - O adicional de hora extra no feriado trabalhado foi suprimido pela Lei 13.467/17
C14: F | D14: Outros (especificar) | F14: =HLOOKUP($B$5,'Dados Gerais'!$D$5:$BK$59,33) -> 0 | H14: * Nota 3 - ART. 7º, § 2º, DA LEI Nº 605/49.Sendo mensalista o obreiro, o adicional noturno pago de forma fixa já é considerado integrado para os efeitos do pagamento do repouso semanal remunerado, nos termos do art. 7º, § 2º, da Lei nº 605/49.
D16: TOTAL DA REMUNERAÇÃO | F16: =SUM(F9:F14) -> 6393.32
B18: MÓDULO 2 - ENCARGOS E BENEFÍCIOS ANUAIS, MENSAIS E DIÁRIOS | E18: Percentuais | F18: Valor
B19: Submódulo 2.1 - 13º Salário e Adicional de Férias
C20: A | D20: 13º Salário - Calculado no Módulo 7 - Destacado | E20: 0 | F20: =ROUND(E20*F$16,2) -> 0
C21: B | D21: Adicional de Férias | E21: ='Encargos Sociais'!E31 -> 0.0303030303 | F21: =ROUND(E21*F$16,2) -> 193.74 | H21: * Nota 1 - Provisiona-se, mensalmente, o proporcional a 1/12 dos valores referentes a gratificação natalina, férias e adicional de férias.
H22: * Nota 2 - O adicional de férias contido no Submódulo 2.1 corresponde a 1/3 da remuneração que, por sua vez, é dividida por 12 contome Nota 1.
B23: Submódulo 2.2 - Encargos Previdenciários (GPS), Fundo de Garantia por Tempo de Serviço (FGTS) e Outras Contribuições
C24: A | D24: ='Encargos Sociais'!D14 -> INSS (art. 22, inciso I, Lei nº 8.212/91) | E24: ='Encargos Sociais'!E14 -> 0.2 | F24: =ROUND(E24*($F$16+$F$41+$F$73),2) -> 1459.27
C25: B | D25: ='Encargos Sociais'!D15 -> Salário Educação (art. 3º, inciso I, Decreto nº 87.043/82) | E25: ='Encargos Sociais'!E15 -> 0.025 | F25: =ROUND(E25*($F$16+$F$41+$F$73),2) -> 182.41
C26: C | D26: ='Encargos Sociais'!D16 -> SAT/RAT (art. 22, II, Lei 8.212/91 e Anexo V, Decreto 6.042/07) - Enquadramento 8011-1/01 | E26: ='Encargos Sociais'!E16 -> 0.03 | F26: 218.89
C27: D | D27: ='Encargos Sociais'!D17 -> SESC ou SESI (art. 30, Lei nº 8.036/90 e art. 1º, Lei 8.154/90) | E27: ='Encargos Sociais'!E17 -> 0.015 | F27: 109.45
C28: E | D28: ='Encargos Sociais'!D18 -> SENAI ou SENAC (Decreto nº 2.318/86) | E28: ='Encargos Sociais'!E18 -> 0.01 | F28: 72.96
C29: F | D29: ='Encargos Sociais'!D19 -> SEBRAE (§ 3º, art. 8º, Lei 8.029/90, alterada pela Lei nº 8.154/90) | E29: ='Encargos Sociais'!E19 -> 0.006 | F29: 43.78
C30: G | D30: ='Encargos Sociais'!D20 -> INCRA (art. 1º, I, Decreto Lei 1.146/70 e Lei 7.787, de 30/06/89) | E30: ='Encargos Sociais'!E20 -> 0.002 | F30: 14.59 | H30: * Nota 1 - Os percentuais dos encargos previdenciários, do FGTS e demais contribuições são estabelecidos por legislação vigente.
C31: H | D31: ='Encargos Sociais'!D21 -> FGTS (Lei Complementar nº 110/01 e art. 30, Lei nº 8.036/90) | E31: ='Encargos Sociais'!E21 -> 0.08 | F31: 583.71 | H31: * Nota 2 - O SAT, a depender do grau de risco do serviço, irá variar entre 1%, para risco leve, de 2%, para risco médio, e de 3% para risco grave.
C32: I | D32: ='Encargos Sociais'!D22 -> SECONCI (Convenções Coletivas de Trabalho da construção) | E32: ='Encargos Sociais'!E22 -> 0 | F32: 0 | H32: * Nota 3 - Os percentuais do Submódulo 2.2 incidem sobre o Módulo 1 e o Submódulo 2.1.
B34: Submódulo 2.3 - Benefícios Mensais e Diários
C35: A | D35: Auxílio Transporte | F35: =HLOOKUP($B$5,'Dados Gerais'!$D$5:$BK$93,82) -> 0
C36: B | D36: Auxílio Alimentação | F36: =HLOOKUP($B$5,'Dados Gerais'!$D$5:$BK$93,89) -> 676.11
C37: C | D37: Assistência Médica e Familiar | F37: =HLOOKUP($B$5,'Dados Gerais'!$D$5:$BK$101,97) -> 0
C38: D | D38: Outros (Seguro de vida e auxílio funeral e auxílio odontológico) | F38: =HLOOKUP($B$5,'Dados Gerais'!$D$5:$BK$118,114) -> 0 | H38: * Nota 1 - O valor informado deverá ser o custo real do benefício (descontado o valor eventualmente pago pelo empregado).
H39: * Nota 2 - Observar a previsão dos benefícios contidos em Acordos, Convenções e Dissídios Coletivos de Trabalho e o disposto no art. 6º da IN 5/2017
D40: QUADRO-RESUMO DO MÓDULO 2
D41: 2.1 - 13º Salário, Férias e Adicional de Férias - 13º Destacado - Calculado no Módulo 7 | E41: =SUM(E20:E21) -> 0.0303030303 | F41: =F20+F21 -> 193.74
D42: 2.2 - Encargos Previdenciários (GPS), Fundo de Garantia por Tempo de Serviço (FGTS) e Contribuições | E42: =SUM(E24:E32) -> 0.368 | F42: =SUM(F24:F32) -> 2685.06
D43: 2.3 - Benefícios Mensais e Diários | F43: =SUM(F35:F38) -> 676.11
D45: TOTAL DOS ENCARGOS E BENEFÍCIOS | F45: =SUM(F41:F43) -> 3554.91
B47: MÓDULO 3 - PREVISÃO PARA RESCISÃO | E47: Percentuais | F47: Valor
C48: A | D48: ='Encargos Sociais'!D36 -> Aviso Prévio Indenizado (Art. 7º, inciso XXI, da CF/1988 e arts. 477, 487, §1º, e 491 da CLT) | E48: ='Encargos Sociais'!E36 -> 0.008333333333 | F48: =ROUND(E48*$F$16,2) -> 53.28
C49: B | D49: ='Encargos Sociais'!D37 -> Incidência do FGTS sobre o Aviso Prévio Indenizado (Súmula 305 TST) | E49: ='Encargos Sociais'!E37 -> 0.0006666666667 | F49: 4.26 | H49: * Nota 1 - Adotou-se os parâmetros do estudo do STF (http://www.stf.jus.br/arquivo/cms/sobrestfestudosci/anexo/encargos_sociais_03102007.pdf), onde 5% do pessoal é demitido pelo empregador no decurso do contrato (para estes, considerou-se o aviso prévio indenizado). Desprezou-se as demissões por justa causa e os pedidos de demissão.
C50: C | D50: ='Encargos Sociais'!D38 -> Multa do FGTS e Contribuição Social sobre o Aviso Prévio Indenizado (Art. 18, §1º, da Lei 8.036/1990 e art. 1º da LC nº 110/2001) | E50: ='Encargos Sociais'!E38 -> 0.007717066667 | F50: 49.34 | H50: * Nota 2 - No cálculo do percentual, considerou-se 36 dias, correspondendo à metade da duração média dos contratos (2 anos)
C51: D | D51: ='Encargos Sociais'!D39 -> Aviso Prévio Trabalhado (Art. 488, parágrafo único, CLT) | E51: ='Encargos Sociais'!E39 -> 0.01203703704 | F51: 76.96 | H51: * Nota 3 - Incide sobre a Remuneração + 13º salário (1/12) + Férias (1/12) + Adicional de Férias (1/36) x 50% multa (40% para o empregado e 10% de contribuição social) x 8% FGTS
C52: E | D52: ='Encargos Sociais'!D40 -> Incidência de GPS, FGTS e outras contribuições sobre o Aviso Prévio Trabalhado | E52: ='Encargos Sociais'!E40 -> 0.00442962963 | F52: 28.32 | H52: * Nota 4 - Os 95% restantes do cálculo, a um prazo médio de contrato de 4 anos. Assim, calcula-se 7 dias para o 1º ano de contrato e mais 3 dias para os 3 anos seguintes.
C53: F | D53: ='Encargos Sociais'!D41 -> Multa do FGTS e Contribuição Social sobre o Aviso Prévio Trabalhado | E53: ='Encargos Sociais'!E41 -> 0.03050515556 | F53: 195.03
D55: TOTAL DE PREVISÃO PARA RESCISÃO | F55: =SUM(F48:F53) -> 407.19
B57: MÓDULO 4 - CUSTO DO PROFISSIONAL AUSENTE | E57: Percentuais | F57: Valor
B58: Submódulo 4.1 - Ausências Legais
C59: A | D59: ='Encargos Sociais'!D25 -> Férias (Arts. 129 e 130, inc. I, da CLT) | E59: ='Encargos Sociais'!E25 -> 0.09090909091 | F59: =ROUND(E59*$F$16,2) -> 581.21 | H59: * Nota 1 - As alíneas “A” a “F” referem-se somente ao custo que será pago ao profissional ausente.
C60: B | D60: ='Encargos Sociais'!D26 -> Ausências Legais (Arts. 131 e 473 da CLT) | E60: ='Encargos Sociais'!E26 -> 0.007936507937 | F60: 50.74 | H60: * Nota 2 - Adotou-se a estimativa do SINAPI de 2 dias por ano.
C61: C | D61: ='Encargos Sociais'!D27 -> Licença-Paternidade (Art. 7º, XIX, e art. 10, §1º, do ADCT, CF/1988 e Art. 1º, II, da Lei 11.770/2008) | E61: ='Encargos Sociais'!E27 -> 0.0008277777778 | F61: 5.29 | H61: * Nota 3 - Utilizada a proporção de 50% para homens, 5 dias de afastamento, e a probabilidade de um trabalhador requerer a Licença Paternidade em 5,22%, conforme SINAPI (citando dados da PNAD 2015)
C62: D | D62: ='Encargos Sociais'!D28 -> Ausência por Acidente de Trabalho (Art. 131, III, da CLT) | E62: ='Encargos Sociais'!E28 -> 0.0008541666667 | F62: 5.46 | H62: * Nota 4 - Utilzada a estatística de 1,96% dos contribuintes beneficiados com a emissão do auxílio, conforme Anuário Estatístico da Previdência Social. Afastamento de 15 dias a cargo da empresa.
C63: E | D63: ='Encargos Sociais'!D29 -> Afastamento Maternidade (Art. 71 da Lei nº 8.213/1991) | E63: ='Encargos Sociais'!E29 -> 0.003292592593 | F63: 21.05 | H63: * Nota 5 - Utilizada a proporção de 50% para mulheres, 180 dias de afastamento, e a probabilidade de uma trabalhadora requerer a Licença Maternidade em 4,91%, conforme SINAPI (citando dados do IBGE 2016)
C64: F | D64: ='Encargos Sociais'!D30 -> Auxílio Enfermidade - Doença (Art. 59 da Lei nº 8.213/1991) | E64: ='Encargos Sociais'!E30 -> 0.007122222222 | F64: 45.53 | H64: * Nota 6 - Utilizada a estatística de 3,37% dos contribuintes beneficiados com o auxílio, conforme Anuário Estatístico da Previdência Social de 2015 (acrescidos de 2 dias ao ano, para os quais o trabalhador nem requer o benefício da Previdência - conforme SINAPI)
B66: Submódulo 4.2 - Intrajornada
C67: A | D67: Intervalo para repouso ou alimentação | E67: ='Encargos Sociais'!E33 -> 0 | F67: =ROUND(E67*$F$16,2) -> 0
D69: QUADRO-RESUMO DO MÓDULO 4 | F69: Valor
D70: 4.1 - Ausências Legais | E70: =SUM(E59:E64) -> 0.1109423581 | F70: =ROUND(E70*$F$16,2) -> 709.29
D71: 4.2 - Intrajornada | E71: =E67 -> 0 | F71: =ROUND(E71*$F$16,2) -> 0
D73: TOTAL DE PREVISÃO PARA RESCISÃO E INTERVALO INTRAJORNADA | F73: =SUM(F70:F71) -> 709.29
B75: MÓDULO 5 - INSUMOS DIVERSOS | F75: Valor
C76: A | D76: Uniformes - aquisição | F76: =ROUND(HLOOKUP($B$5,Uniformes!L4:EA6,3)/12,2) -> 106.57
C77: B | D77: Materiais de consumo relacionados ao posto - aquisição | F77: =ROUND(HLOOKUP(B5,'Mat Cons'!I11:DX13,3)/12,2) -> 0
C78: C | D78: Materiais permanentes relacionados ao posto - remuneração da sua depreciação / manutenção | F78: =HLOOKUP(B5,'Mat Perm'!Q11:EF13,3) -> 0
C79: D | D79: Equipamentos relacionados ao posto - remuneração da sua depreciação / manutenção | F79: =HLOOKUP(B5,'Equip Rel'!Q11:EF13,3) -> 0
C80: E | D80: Equipamentos de Proteção Individual - EPI - aquisição | F80: =ROUND(HLOOKUP(B5,EPI!J4:DY6,3)/12,2) -> 81.92
D82: TOTAL DE INSUMOS DIVERSOS | F82: =SUM(F76:F81) -> 188.49 | H82: * Nota - Valores mensais por empregado
B84: MÓDULO 6 - CUSTOS INDIRETOS, TRIBUTOS E LUCRO - BDI | E84: Percentuais | F84: Valor
C85: A | D85: Custos Indiretos | E85: =BDI!E6 -> 0.0314
C86: A.1 | D86: Administração Central | E86: =BDI!E7 -> 0.026
C87: A.2 | D87: Seguros, Garantias e Riscos | E87: =BDI!E8 -> 0.0054
C88: B | D88: Lucro | E88: =BDI!E10 -> 0.04
C89: C | D89: Tributos | E89: =SUM(E90:E91) -> 0.124
C90: C.1 | D90: Tributos Federais (COFINS, PIS e CPRB) | E90: =BDI!E18 -> 0.074
C91: C.2 | D91: Tributos Distritais (ISS) | E91: =BDI!E23 -> 0.05 | H91: * Nota - Utilizou-se o indicado pelo Sindicato da Arquitetura e da Engenharia (Sinaenco, 2008, p. 22), que adota um percentual redutor de 20% no cálculo dos custos tributários relativos às contribuições PIS e COFINS
C92: D | D92: Despesas Financeiras | E92: =BDI!E13 -> 0.005639499547
D94: TOTAL DE BDI | E94: =BDI!E26 -> 0.2314 | F94: =E94*E102 -> 2603.99048
D96: QUADRO-RESUMO DO CUSTO MENSAL POR EMPREGADO - SEM O 13º | E96: Valor
D97: Módulo 1 - Composição da Remuneração | E97: =F16 -> 6393.32
D98: Módulo 2 - Encargos e Benefícios Anuais, Mensais e Diários | E98: =F45 -> 3554.91
D99: Módulo 3 - Provisão para Rescisão | E99: =F55 -> 407.19
D100: Módulo 4 - Custo de Reposição do Profissional Ausente | E100: =F73 -> 709.29
D101: Módulo 5 - Insumos Diversos | E101: =F82 -> 188.49
D102: SUBTOTAL (A+B+C+D+E) | E102: =SUM(E97:E101) -> 11253.2
D103: Módulo 6 - Custos Indiretos, Tributos e Lucro | E103: =F94 -> 2603.99048
D105: TOTAL DO POSTO | E105: =SUM(E102:E103) -> 13857.19048
B107: MÓDULO 7 - DESTAQUE DO MÓDULO 2 - 13º SALÁRIO | E107: Percentuais | F107: Valor
C108: A | D108: 13º Salário | E108: ='Encargos Sociais'!E32 -> 0.08333333333 | F108: =ROUND(E108*F$16,2) -> 532.78
C109: B | D109: Encargos Sociais sobre o 13º Salário - Taxa calculada no SUBMÓDULO 2.2 | E109: =SUM($E$24:$E$32) -> 0.368 | F109: =ROUND(E109*$F$108,2) -> 196.06 | H109: * Nota 1 - Provisiona-se, mensalmente, o proporcional a 1/12 dos valores referentes a gratificação natalina e adicional de férias.
C110: C | D110: BDI sobre o 13º Salário - Taxa calculada no MÓDULO 6 | E110: =E94 -> 0.2314 | F110: =ROUND(E110*($F$108+$F$109),2) -> 168.65
D112: TOTAL DO DESTAQUE DO 13º SALÁRIO | F112: =SUM(F108:F110) -> 897.49
D114: QUADRO-RESUMO DO CUSTO MENSAL POR EMPREGADO | E114: Valor
D115: Custo total - sem o 13º Salário | E115: =E105 -> 13857.19048
D116: Destaque do 13º Salário (valor mensal) | E116: =F112 -> 897.49
D118: TOTAL DO POSTO | E118: =E115+E116 -> 14754.68048

Sheet 4
B2: PLANILHA DE ESTIMATIVA DE CUSTOS
B5: 4 | D5: =HLOOKUP($B$5,'Dados Gerais'!$D$5:$BK$20,6) -> BOMBEIRO CIVIL BÁSICO DIURNO | E5: QUANTIDADE | F5: =HLOOKUP($B$5,'Dados Gerais'!$D$5:$BK$20,10) -> 36
B6: CCT | D6: =HLOOKUP($B$5,'Dados Gerais'!$D$5:$BK$20,15) -> SEAC/DF X SINDIBOMBEIROS/DF 2023/2023 Nº DF000140/2023 | E6: DATA-BASE | F6: =HLOOKUP($B$5,'Dados Gerais'!$D$5:$BK$20,16) -> 2023-01-01
B8: MÓDULO 1 - COMPOSIÇÃO DA REMUNERAÇÃO | F8: Valor
C9: A | D9: Salário-Base | F9: =HLOOKUP($B$5,'Dados Gerais'!$D$5:$BK$20,8) -> 3494.54
C10: B | D10: Adicional de Periculosidade | F10: =HLOOKUP($B$5,'Dados Gerais'!$D$5:$BK$37,25) -> 1048.36
C11: C | D11: Adicional de Insalubridade | F11: =HLOOKUP($B$5,'Dados Gerais'!$D$5:$BK$37,31) -> 0
C12: D | D12: Adicional Noturno | F12: =HLOOKUP($B$5,'Dados Gerais'!$D$5:$BK$50,46) -> 0 | H12: * Nota 1 - O Módulo 1 refere-se ao valor mensal devido ao empregado pela prestação do serviço no período de 12 meses.
C13: E | D13: Adicional de Hora Extra | F13: =HLOOKUP($B$5,'Dados Gerais'!$D$5:$BK$67,63) -> 0 | H13: * Nota 2 - O adicional de hora extra no feriado trabalhado foi suprimido pela Lei 13.467/17
C14: F | D14: Outros (especificar) | F14: =HLOOKUP($B$5,'Dados Gerais'!$D$5:$BK$59,33) -> 0 | H14: * Nota 3 - ART. 7º, § 2º, DA LEI Nº 605/49.Sendo mensalista o obreiro, o adicional noturno pago de forma fixa já é considerado integrado para os efeitos do pagamento do repouso semanal remunerado, nos termos do art. 7º, § 2º, da Lei nº 605/49.
D16: TOTAL DA REMUNERAÇÃO | F16: =SUM(F9:F14) -> 4542.9
B18: MÓDULO 2 - ENCARGOS E BENEFÍCIOS ANUAIS, MENSAIS E DIÁRIOS | E18: Percentuais | F18: Valor
B19: Submódulo 2.1 - 13º Salário e Adicional de Férias
C20: A | D20: 13º Salário - Calculado no Módulo 7 - Destacado | E20: 0 | F20: =ROUND(E20*F$16,2) -> 0
C21: B | D21: Adicional de Férias | E21: ='Encargos Sociais'!E31 -> 0.0303030303 | F21: =ROUND(E21*F$16,2) -> 137.66 | H21: * Nota 1 - Provisiona-se, mensalmente, o proporcional a 1/12 dos valores referentes a gratificação natalina, férias e adicional de férias.
H22: * Nota 2 - O adicional de férias contido no Submódulo 2.1 corresponde a 1/3 da remuneração que, por sua vez, é dividida por 12 contome Nota 1.
B23: Submódulo 2.2 - Encargos Previdenciários (GPS), Fundo de Garantia por Tempo de Serviço (FGTS) e Outras Contribuições
C24: A | D24: ='Encargos Sociais'!D14 -> INSS (art. 22, inciso I, Lei nº 8.212/91) | E24: ='Encargos Sociais'!E14 -> 0.2 | F24: =ROUND(E24*($F$16+$F$41+$F$73),2) -> 1036.91
C25: B | D25: ='Encargos Sociais'!D15 -> Salário Educação (art. 3º, inciso I, Decreto nº 87.043/82) | E25: ='Encargos Sociais'!E15 -> 0.025 | F25: =ROUND(E25*($F$16+$F$41+$F$73),2) -> 129.61
C26: C | D26: ='Encargos Sociais'!D16 -> SAT/RAT (art. 22, II, Lei 8.212/91 e Anexo V, Decreto 6.042/07) - Enquadramento 8011-1/01 | E26: ='Encargos Sociais'!E16 -> 0.03 | F26: 155.54
C27: D | D27: ='Encargos Sociais'!D17 -> SESC ou SESI (art. 30, Lei nº 8.036/90 e art. 1º, Lei 8.154/90) | E27: ='Encargos Sociais'!E17 -> 0.015 | F27: 77.77
C28: E | D28: ='Encargos Sociais'!D18 -> SENAI ou SENAC (Decreto nº 2.318/86) | E28: ='Encargos Sociais'!E18 -> 0.01 | F28: 51.85
C29: F | D29: ='Encargos Sociais'!D19 -> SEBRAE (§ 3º, art. 8º, Lei 8.029/90, alterada pela Lei nº 8.154/90) | E29: ='Encargos Sociais'!E19 -> 0.006 | F29: 31.11
C30: G | D30: ='Encargos Sociais'!D20 -> INCRA (art. 1º, I, Decreto Lei 1.146/70 e Lei 7.787, de 30/06/89) | E30: ='Encargos Sociais'!E20 -> 0.002 | F30: 10.37 | H30: * Nota 1 - Os percentuais dos encargos previdenciários, do FGTS e demais contribuições são estabelecidos por legislação vigente.
C31: H | D31: ='Encargos Sociais'!D21 -> FGTS (Lei Complementar nº 110/01 e art. 30, Lei nº 8.036/90) | E31: ='Encargos Sociais'!E21 -> 0.08 | F31: 414.76 | H31: * Nota 2 - O SAT, a depender do grau de risco do serviço, irá variar entre 1%, para risco leve, de 2%, para risco médio, e de 3% para risco grave.
C32: I | D32: ='Encargos Sociais'!D22 -> SECONCI (Convenções Coletivas de Trabalho da construção) | E32: ='Encargos Sociais'!E22 -> 0 | F32: 0 | H32: * Nota 3 - Os percentuais do Submódulo 2.2 incidem sobre o Módulo 1 e o Submódulo 2.1.
B34: Submódulo 2.3 - Benefícios Mensais e Diários
C35: A | D35: Auxílio Transporte | F35: =HLOOKUP($B$5,'Dados Gerais'!$D$5:$BK$93,82) -> 13.8
C36: B | D36: Auxílio Alimentação | F36: =HLOOKUP($B$5,'Dados Gerais'!$D$5:$BK$93,89) -> 676.11
C37: C | D37: Assistência Médica e Familiar | F37: =HLOOKUP($B$5,'Dados Gerais'!$D$5:$BK$101,97) -> 0
C38: D | D38: Outros (Seguro de vida e auxílio funeral e auxílio odontológico) | F38: =HLOOKUP($B$5,'Dados Gerais'!$D$5:$BK$118,114) -> 0 | H38: * Nota 1 - O valor informado deverá ser o custo real do benefício (descontado o valor eventualmente pago pelo empregado).
H39: * Nota 2 - Observar a previsão dos benefícios contidos em Acordos, Convenções e Dissídios Coletivos de Trabalho e o disposto no art. 6º da IN 5/2017
D40: QUADRO-RESUMO DO MÓDULO 2
D41: 2.1 - 13º Salário, Férias e Adicional de Férias - 13º Destacado - Calculado no Módulo 7 | E41: =SUM(E20:E21) -> 0.0303030303 | F41: =F20+F21 -> 137.66
D42: 2.2 - Encargos Previdenciários (GPS), Fundo de Garantia por Tempo de Serviço (FGTS) e Contribuições | E42: =SUM(E24:E32) -> 0.368 | F42: =SUM(F24:F32) -> 1907.92
D43: 2.3 - Benefícios Mensais e Diários | F43: =SUM(F35:F38) -> 689.91
D45: TOTAL DOS ENCARGOS E BENEFÍCIOS | F45: =SUM(F41:F43) -> 2735.49
B47: MÓDULO 3 - PREVISÃO PARA RESCISÃO | E47: Percentuais | F47: Valor
C48: A | D48: ='Encargos Sociais'!D36 -> Aviso Prévio Indenizado (Art. 7º, inciso XXI, da CF/1988 e arts. 477, 487, §1º, e 491 da CLT) | E48: ='Encargos Sociais'!E36 -> 0.008333333333 | F48: =ROUND(E48*$F$16,2) -> 37.86
C49: B | D49: ='Encargos Sociais'!D37 -> Incidência do FGTS sobre o Aviso Prévio Indenizado (Súmula 305 TST) | E49: ='Encargos Sociais'!E37 -> 0.0006666666667 | F49: 3.03 | H49: * Nota 1 - As alíneas “A” a “F” referem-se somente ao custo que será pago ao profissional ausente.
C50: C | D50: ='Encargos Sociais'!D38 -> Multa do FGTS e Contribuição Social sobre o Aviso Prévio Indenizado (Art. 18, §1º, da Lei 8.036/1990 e art. 1º da LC nº 110/2001) | E50: ='Encargos Sociais'!E38 -> 0.007717066667 | F50: 35.06 | H50: * Nota 2 - No cálculo do percentual, considerou-se 36 dias, correspondendo à metade da duração média dos contratos (2 anos)
C51: D | D51: ='Encargos Sociais'!D39 -> Aviso Prévio Trabalhado (Art. 488, parágrafo único, CLT) | E51: ='Encargos Sociais'!E39 -> 0.01203703704 | F51: 54.68 | H51: * Nota 3 - Incide sobre a Remuneração + 13º salário (1/12) + Férias (1/12) + Adicional de Férias (1/36) x 50% multa (40% para o empregado e 10% de contribuição social) x 8% FGTS
C52: E | D52: ='Encargos Sociais'!D40 -> Incidência de GPS, FGTS e outras contribuições sobre o Aviso Prévio Trabalhado | E52: ='Encargos Sociais'!E40 -> 0.00442962963 | F52: 20.12 | H52: * Nota 4 - Os 95% restantes do cálculo, a um prazo médio de contrato de 4 anos. Assim, calcula-se 7 dias para o 1º ano de contrato e mais 3 dias para os 3 anos seguintes.
C53: F | D53: ='Encargos Sociais'!D41 -> Multa do FGTS e Contribuição Social sobre o Aviso Prévio Trabalhado | E53: ='Encargos Sociais'!E41 -> 0.03050515556 | F53: 138.58
D55: TOTAL DE PREVISÃO PARA RESCISÃO | F55: =SUM(F48:F53) -> 289.33
B57: MÓDULO 4 - CUSTO DO PROFISSIONAL AUSENTE | E57: Percentuais | F57: Valor
B58: Submódulo 4.1 - Ausências Legais
C59: A | D59: ='Encargos Sociais'!D25 -> Férias (Arts. 129 e 130, inc. I, da CLT) | E59: ='Encargos Sociais'!E25 -> 0.09090909091 | F59: =ROUND(E59*$F$16,2) -> 412.99 | H59: * Nota 1 - As alíneas “A” a “F” referem-se somente ao custo que será pago ao repositor pelos dias trabalhados quando da necessidade de substituir a mão de obra alocada na prestação do serviço.
C60: B | D60: ='Encargos Sociais'!D26 -> Ausências Legais (Arts. 131 e 473 da CLT) | E60: ='Encargos Sociais'!E26 -> 0.007936507937 | F60: 36.05 | H60: * Nota 2 - Adotou-se a estimativa do SINAPI de 2 dias por ano.
C61: C | D61: ='Encargos Sociais'!D27 -> Licença-Paternidade (Art. 7º, XIX, e art. 10, §1º, do ADCT, CF/1988 e Art. 1º, II, da Lei 11.770/2008) | E61: ='Encargos Sociais'!E27 -> 0.0008277777778 | F61: 3.76 | H61: * Nota 3 - Utilizada a proporção de 50% para homens, 5 dias de afastamento, e a probabilidade de um trabalhador requerer a Licença Paternidade em 5,22%, conforme SINAPI (citando dados da PNAD 2015)
C62: D | D62: ='Encargos Sociais'!D28 -> Ausência por Acidente de Trabalho (Art. 131, III, da CLT) | E62: ='Encargos Sociais'!E28 -> 0.0008541666667 | F62: 3.88 | H62: * Nota 4 - Utilzada a estatística de 1,96% dos contribuintes beneficiados com a emissão do auxílio, conforme Anuário Estatístico da Previdência Social. Afastamento de 15 dias a cargo da empresa.
C63: E | D63: ='Encargos Sociais'!D29 -> Afastamento Maternidade (Art. 71 da Lei nº 8.213/1991) | E63: ='Encargos Sociais'!E29 -> 0.003292592593 | F63: 14.96 | H63: * Nota 5 - Utilizada a proporção de 50% para mulheres, 180 dias de afastamento, e a probabilidade de uma trabalhadora requerer a Licença Maternidade em 4,91%, conforme SINAPI (citando dados do IBGE 2016)
C64: F | D64: ='Encargos Sociais'!D30 -> Auxílio Enfermidade - Doença (Art. 59 da Lei nº 8.213/1991) | E64: ='Encargos Sociais'!E30 -> 0.007122222222 | F64: 32.36 | H64: * Nota 6 - Utilizada a estatística de 3,37% dos contribuintes beneficiados com o auxílio, conforme Anuário Estatístico da Previdência Social de 2015 (acrescidos de 2 dias ao ano, para os quais o trabalhador nem requer o benefício da Previdência - conforme SINAPI)
B66: Submódulo 4.2 - Intrajornada
C67: A | D67: Intervalo para repouso ou alimentação | E67: ='Encargos Sociais'!E33 -> 0 | F67: =ROUND(E67*$F$16,2) -> 0
D69: QUADRO-RESUMO DO MÓDULO 4 | F69: Valor
D70: 4.1 - Ausências Legais | E70: =SUM(E59:E64) -> 0.1109423581 | F70: =ROUND(E70*$F$16,2) -> 504
D71: 4.2 - Intrajornada | E71: =E67 -> 0 | F71: =ROUND(E71*$F$16,2) -> 0
D73: TOTAL DE PREVISÃO PARA RESCISÃO E INTERVALO INTRAJORNADA | F73: =SUM(F70:F71) -> 504
B75: MÓDULO 5 - INSUMOS DIVERSOS | F75: Valor
C76: A | D76: Uniformes - aquisição | F76: =ROUND(HLOOKUP($B$5,Uniformes!L4:EA6,3)/12,2) -> 106.57
C77: B | D77: Materiais de consumo relacionados ao posto - aquisição | F77: =ROUND(HLOOKUP(B5,'Mat Cons'!I11:DX13,3)/12,2) -> 0
C78: C | D78: Materiais permanentes relacionados ao posto - remuneração da sua depreciação / manutenção | F78: =HLOOKUP(B5,'Mat Perm'!Q11:EF13,3) -> 0
C79: D | D79: Equipamentos relacionados ao posto - remuneração da sua depreciação / manutenção | F79: =HLOOKUP(B5,'Equip Rel'!Q11:EF13,3) -> 0
C80: E | D80: Equipamentos de Proteção Individual - EPI - aquisição | F80: =ROUND(HLOOKUP(B5,EPI!J4:DY6,3)/12,2) -> 81.92
D82: TOTAL DE INSUMOS DIVERSOS | F82: =SUM(F76:F81) -> 188.49 | H82: * Nota - Valores mensais por empregado
B84: MÓDULO 6 - CUSTOS INDIRETOS, TRIBUTOS E LUCRO - BDI | E84: Percentuais | F84: Valor
C85: A | D85: Custos Indiretos | E85: =BDI!E6 -> 0.0314
C86: A.1 | D86: Administração Central | E86: =BDI!E7 -> 0.026
C87: A.2 | D87: Seguros, Garantias e Riscos | E87: =BDI!E8 -> 0.0054
C88: B | D88: Lucro | E88: =BDI!E10 -> 0.04
C89: C | D89: Tributos | E89: =SUM(E90:E91) -> 0.124
C90: C.1 | D90: Tributos Federais (COFINS, PIS e CPRB) | E90: =BDI!E18 -> 0.074
C91: C.2 | D91: Tributos Distritais (ISS) | E91: =BDI!E23 -> 0.05 | H91: * Nota - Utilizou-se o indicado pelo Sindicato da Arquitetura e da Engenharia (Sinaenco, 2008, p. 22), que adota um percentual redutor de 20% no cálculo dos custos tributários relativos às contribuições PIS e COFINS
C92: D | D92: Despesas Financeiras | E92: =BDI!E13 -> 0.005639499547
D94: TOTAL DE BDI | E94: =BDI!E26 -> 0.2314 | F94: =E94*E102 -> 1911.412594
D96: QUADRO-RESUMO DO CUSTO MENSAL POR EMPREGADO - SEM O 13º | E96: Valor
D97: Módulo 1 - Composição da Remuneração | E97: =F16 -> 4542.9
D98: Módulo 2 - Encargos e Benefícios Anuais, Mensais e Diários | E98: =F45 -> 2735.49
D99: Módulo 3 - Provisão para Rescisão | E99: =F55 -> 289.33
D100: Módulo 4 - Custo de Reposição do Profissional Ausente | E100: =F73 -> 504
D101: Módulo 5 - Insumos Diversos | E101: =F82 -> 188.49
D102: SUBTOTAL (A+B+C+D+E) | E102: =SUM(E97:E101) -> 8260.21
D103: Módulo 6 - Custos Indiretos, Tributos e Lucro | E103: =F94 -> 1911.412594
D105: TOTAL DO POSTO | E105: =SUM(E102:E103) -> 10171.62259
B107: MÓDULO 7 - DESTAQUE DO MÓDULO 2 - 13º SALÁRIO | E107: Percentuais | F107: Valor
C108: A | D108: 13º Salário | E108: ='Encargos Sociais'!E32 -> 0.08333333333 | F108: =ROUND(E108*F$16,2) -> 378.58
C109: B | D109: Encargos Sociais sobre o 13º Salário - Taxa calculada no SUBMÓDULO 2.2 | E109: =SUM($E$24:$E$32) -> 0.368 | F109: =ROUND(E109*$F$108,2) -> 139.32 | H109: * Nota 1 - Provisiona-se, mensalmente, o proporcional a 1/12 dos valores referentes a gratificação natalina e adicional de férias.
C110: C | D110: BDI sobre o 13º Salário - Taxa calculada no MÓDULO 6 | E110: =E94 -> 0.2314 | F110: =ROUND(E110*($F$108+$F$109),2) -> 119.84
D112: TOTAL DO DESTAQUE DO 13º SALÁRIO | F112: =SUM(F108:F110) -> 637.74
D114: QUADRO-RESUMO DO CUSTO MENSAL POR EMPREGADO | E114: Valor
D115: Custo total - sem o 13º Salário | E115: =E105 -> 10171.62259
D116: Destaque do 13º Salário (valor mensal) | E116: =F112 -> 637.74
D118: TOTAL DO POSTO | E118: =E115+E116 -> 10809.36259

Sheet 5
B2: PLANILHA DE ESTIMATIVA DE CUSTOS
B5: 5 | D5: =HLOOKUP($B$5,'Dados Gerais'!$D$5:$BK$20,6) -> BOMBEIRO CIVIL BÁSICO NOTURNO | E5: QUANTIDADE | F5: =HLOOKUP($B$5,'Dados Gerais'!$D$5:$BK$20,10) -> 28
B6: CCT | D6: =HLOOKUP($B$5,'Dados Gerais'!$D$5:$BK$20,15) -> SEAC/DF X SINDIBOMBEIROS/DF 2023/2023 Nº DF000140/2023 | E6: DATA-BASE | F6: =HLOOKUP($B$5,'Dados Gerais'!$D$5:$BK$20,16) -> 2023-01-01
B8: MÓDULO 1 - COMPOSIÇÃO DA REMUNERAÇÃO | F8: Valor
C9: A | D9: Salário-Base | F9: =HLOOKUP($B$5,'Dados Gerais'!$D$5:$BK$20,8) -> 3494.54
C10: B | D10: Adicional de Periculosidade | F10: =HLOOKUP($B$5,'Dados Gerais'!$D$5:$BK$37,25) -> 1048.36
C11: C | D11: Adicional de Insalubridade | F11: =HLOOKUP($B$5,'Dados Gerais'!$D$5:$BK$37,31) -> 0
C12: D | D12: Adicional Noturno | F12: =HLOOKUP($B$5,'Dados Gerais'!$D$5:$BK$50,46) -> 616.13 | H12: * Nota 1 - O Módulo 1 refere-se ao valor mensal devido ao empregado pela prestação do serviço no período de 12 meses.
C13: E | D13: Adicional de Hora Extra | F13: =HLOOKUP($B$5,'Dados Gerais'!$D$5:$BK$67,63) -> 0 | H13: * Nota 2 - O adicional de hora extra no feriado trabalhado foi suprimido pela Lei 13.467/17
C14: F | D14: Outros (especificar) | F14: =HLOOKUP($B$5,'Dados Gerais'!$D$5:$BK$59,33) -> 0 | H14: * Nota 3 - ART. 7º, § 2º, DA LEI Nº 605/49.Sendo mensalista o obreiro, o adicional noturno pago de forma fixa já é considerado integrado para os efeitos do pagamento do repouso semanal remunerado, nos termos do art. 7º, § 2º, da Lei nº 605/49.
D16: TOTAL DA REMUNERAÇÃO | F16: =SUM(F9:F14) -> 5159.03
B18: MÓDULO 2 - ENCARGOS E BENEFÍCIOS ANUAIS, MENSAIS E DIÁRIOS | E18: Percentuais | F18: Valor
B19: Submódulo 2.1 - 13º Salário e Adicional de Férias
C20: A | D20: 13º Salário - Calculado no Módulo 7 - Destacado | E20: 0 | F20: =ROUND(E20*F$16,2) -> 0
C21: B | D21: Adicional de Férias | E21: ='Encargos Sociais'!E31 -> 0.0303030303 | F21: =ROUND(E21*F$16,2) -> 156.33 | H21: * Nota 1 - Provisiona-se, mensalmente, o proporcional a 1/12 dos valores referentes a gratificação natalina, férias e adicional de férias.
H22: * Nota 2 - O adicional de férias contido no Submódulo 2.1 corresponde a 1/3 da remuneração que, por sua vez, é dividida por 12 contome Nota 1.
B23: Submódulo 2.2 - Encargos Previdenciários (GPS), Fundo de Garantia por Tempo de Serviço (FGTS) e Outras Contribuições
C24: A | D24: ='Encargos Sociais'!D14 -> INSS (art. 22, inciso I, Lei nº 8.212/91) | E24: ='Encargos Sociais'!E14 -> 0.2 | F24: =ROUND(E24*($F$16+$F$41+$F$73),2) -> 1177.54
C25: B | D25: ='Encargos Sociais'!D15 -> Salário Educação (art. 3º, inciso I, Decreto nº 87.043/82) | E25: ='Encargos Sociais'!E15 -> 0.025 | F25: =ROUND(E25*($F$16+$F$41+$F$73),2) -> 147.19
C26: C | D26: ='Encargos Sociais'!D16 -> SAT/RAT (art. 22, II, Lei 8.212/91 e Anexo V, Decreto 6.042/07) - Enquadramento 8011-1/01 | E26: ='Encargos Sociais'!E16 -> 0.03 | F26: 176.63
C27: D | D27: ='Encargos Sociais'!D17 -> SESC ou SESI (art. 30, Lei nº 8.036/90 e art. 1º, Lei 8.154/90) | E27: ='Encargos Sociais'!E17 -> 0.015 | F27: 88.32
C28: E | D28: ='Encargos Sociais'!D18 -> SENAI ou SENAC (Decreto nº 2.318/86) | E28: ='Encargos Sociais'!E18 -> 0.01 | F28: 58.88
C29: F | D29: ='Encargos Sociais'!D19 -> SEBRAE (§ 3º, art. 8º, Lei 8.029/90, alterada pela Lei nº 8.154/90) | E29: ='Encargos Sociais'!E19 -> 0.006 | F29: 35.33
C30: G | D30: ='Encargos Sociais'!D20 -> INCRA (art. 1º, I, Decreto Lei 1.146/70 e Lei 7.787, de 30/06/89) | E30: ='Encargos Sociais'!E20 -> 0.002 | F30: 11.78 | H30: * Nota 1 - Os percentuais dos encargos previdenciários, do FGTS e demais contribuições são estabelecidos por legislação vigente.
C31: H | D31: ='Encargos Sociais'!D21 -> FGTS (Lei Complementar nº 110/01 e art. 30, Lei nº 8.036/90) | E31: ='Encargos Sociais'!E21 -> 0.08 | F31: 471.02 | H31: * Nota 2 - O SAT, a depender do grau de risco do serviço, irá variar entre 1%, para risco leve, de 2%, para risco médio, e de 3% para risco grave.
C32: I | D32: ='Encargos Sociais'!D22 -> SECONCI (Convenções Coletivas de Trabalho da construção) | E32: ='Encargos Sociais'!E22 -> 0 | F32: 0 | H32: * Nota 3 - Os percentuais do Submódulo 2.2 incidem sobre o Módulo 1 e o Submódulo 2.1.
B34: Submódulo 2.3 - Benefícios Mensais e Diários
C35: A | D35: Auxílio Transporte | F35: =HLOOKUP($B$5,'Dados Gerais'!$D$5:$BK$93,82) -> 13.8
C36: B | D36: Auxílio Alimentação | F36: =HLOOKUP($B$5,'Dados Gerais'!$D$5:$BK$93,89) -> 676.11
C37: C | D37: Assistência Médica e Familiar | F37: =HLOOKUP($B$5,'Dados Gerais'!$D$5:$BK$101,97) -> 0
C38: D | D38: Outros (Seguro de vida e auxílio funeral e auxílio odontológico) | F38: =HLOOKUP($B$5,'Dados Gerais'!$D$5:$BK$118,114) -> 0 | H38: * Nota 1 - O valor informado deverá ser o custo real do benefício (descontado o valor eventualmente pago pelo empregado).
H39: * Nota 2 - Observar a previsão dos benefícios contidos em Acordos, Convenções e Dissídios Coletivos de Trabalho e o disposto no art. 6º da IN 5/2017
D40: QUADRO-RESUMO DO MÓDULO 2
D41: 2.1 - 13º Salário, Férias e Adicional de Férias - 13º Destacado - Calculado no Módulo 7 | E41: =SUM(E20:E21) -> 0.0303030303 | F41: =F20+F21 -> 156.33
D42: 2.2 - Encargos Previdenciários (GPS), Fundo de Garantia por Tempo de Serviço (FGTS) e Contribuições | E42: =SUM(E24:E32) -> 0.368 | F42: =SUM(F24:F32) -> 2166.69
D43: 2.3 - Benefícios Mensais e Diários | F43: =SUM(F35:F38) -> 689.91
D45: TOTAL DOS ENCARGOS E BENEFÍCIOS | F45: =SUM(F41:F43) -> 3012.93
B47: MÓDULO 3 - PREVISÃO PARA RESCISÃO | E47: Percentuais | F47: Valor
C48: A | D48: ='Encargos Sociais'!D36 -> Aviso Prévio Indenizado (Art. 7º, inciso XXI, da CF/1988 e arts. 477, 487, §1º, e 491 da CLT) | E48: ='Encargos Sociais'!E36 -> 0.008333333333 | F48: =ROUND(E48*$F$16,2) -> 42.99
C49: B | D49: ='Encargos Sociais'!D37 -> Incidência do FGTS sobre o Aviso Prévio Indenizado (Súmula 305 TST) | E49: ='Encargos Sociais'!E37 -> 0.0006666666667 | F49: 3.44 | H49: * Nota 1 - As alíneas “A” a “F” referem-se somente ao custo que será pago ao profissional ausente.
C50: C | D50: ='Encargos Sociais'!D38 -> Multa do FGTS e Contribuição Social sobre o Aviso Prévio Indenizado (Art. 18, §1º, da Lei 8.036/1990 e art. 1º da LC nº 110/2001) | E50: ='Encargos Sociais'!E38 -> 0.007717066667 | F50: 39.81 | H50: * Nota 2 - No cálculo do percentual, considerou-se 36 dias, correspondendo à metade da duração média dos contratos (2 anos)
C51: D | D51: ='Encargos Sociais'!D39 -> Aviso Prévio Trabalhado (Art. 488, parágrafo único, CLT) | E51: ='Encargos Sociais'!E39 -> 0.01203703704 | F51: 62.1 | H51: * Nota 3 - Incide sobre a Remuneração + 13º salário (1/12) + Férias (1/12) + Adicional de Férias (1/36) x 50% multa (40% para o empregado e 10% de contribuição social) x 8% FGTS
C52: E | D52: ='Encargos Sociais'!D40 -> Incidência de GPS, FGTS e outras contribuições sobre o Aviso Prévio Trabalhado | E52: ='Encargos Sociais'!E40 -> 0.00442962963 | F52: 22.85 | H52: * Nota 4 - Os 95% restantes do cálculo, a um prazo médio de contrato de 4 anos. Assim, calcula-se 7 dias para o 1º ano de contrato e mais 3 dias para os 3 anos seguintes.
C53: F | D53: ='Encargos Sociais'!D41 -> Multa do FGTS e Contribuição Social sobre o Aviso Prévio Trabalhado | E53: ='Encargos Sociais'!E41 -> 0.03050515556 | F53: 157.38
D55: TOTAL DE PREVISÃO PARA RESCISÃO | F55: =SUM(F48:F53) -> 328.57
B57: MÓDULO 4 - CUSTO DO PROFISSIONAL AUSENTE | E57: Percentuais | F57: Valor
B58: Submódulo 4.1 - Ausências Legais
C59: A | D59: ='Encargos Sociais'!D25 -> Férias (Arts. 129 e 130, inc. I, da CLT) | E59: ='Encargos Sociais'!E25 -> 0.09090909091 | F59: =ROUND(E59*$F$16,2) -> 469 | H59: * Nota 1 - As alíneas “A” a “F” referem-se somente ao custo que será pago ao repositor pelos dias trabalhados quando da necessidade de substituir a mão de obra alocada na prestação do serviço.
C60: B | D60: ='Encargos Sociais'!D26 -> Ausências Legais (Arts. 131 e 473 da CLT) | E60: ='Encargos Sociais'!E26 -> 0.007936507937 | F60: 40.94 | H60: * Nota 2 - Adotou-se a estimativa do SINAPI de 2 dias por ano.
C61: C | D61: ='Encargos Sociais'!D27 -> Licença-Paternidade (Art. 7º, XIX, e art. 10, §1º, do ADCT, CF/1988 e Art. 1º, II, da Lei 11.770/2008) | E61: ='Encargos Sociais'!E27 -> 0.0008277777778 | F61: 4.27 | H61: * Nota 3 - Utilizada a proporção de 50% para homens, 5 dias de afastamento, e a probabilidade de um trabalhador requerer a Licença Paternidade em 5,22%, conforme SINAPI (citando dados da PNAD 2015)
C62: D | D62: ='Encargos Sociais'!D28 -> Ausência por Acidente de Trabalho (Art. 131, III, da CLT) | E62: ='Encargos Sociais'!E28 -> 0.0008541666667 | F62: 4.41 | H62: * Nota 4 - Utilzada a estatística de 1,96% dos contribuintes beneficiados com a emissão do auxílio, conforme Anuário Estatístico da Previdência Social. Afastamento de 15 dias a cargo da empresa.
C63: E | D63: ='Encargos Sociais'!D29 -> Afastamento Maternidade (Art. 71 da Lei nº 8.213/1991) | E63: ='Encargos Sociais'!E29 -> 0.003292592593 | F63: 16.99 | H63: * Nota 5 - Utilizada a proporção de 50% para mulheres, 180 dias de afastamento, e a probabilidade de uma trabalhadora requerer a Licença Maternidade em 4,91%, conforme SINAPI (citando dados do IBGE 2016)
C64: F | D64: ='Encargos Sociais'!D30 -> Auxílio Enfermidade - Doença (Art. 59 da Lei nº 8.213/1991) | E64: ='Encargos Sociais'!E30 -> 0.007122222222 | F64: 36.74 | H64: * Nota 6 - Utilizada a estatística de 3,37% dos contribuintes beneficiados com o auxílio, conforme Anuário Estatístico da Previdência Social de 2015 (acrescidos de 2 dias ao ano, para os quais o trabalhador nem requer o benefício da Previdência - conforme SINAPI)
B66: Submódulo 4.2 - Intrajornada
C67: A | D67: Intervalo para repouso ou alimentação | E67: ='Encargos Sociais'!E33 -> 0 | F67: =ROUND(E67*$F$16,2) -> 0
D69: QUADRO-RESUMO DO MÓDULO 4 | F69: Valor
D70: 4.1 - Ausências Legais | E70: =SUM(E59:E64) -> 0.1109423581 | F70: =ROUND(E70*$F$16,2) -> 572.35
D71: 4.2 - Intrajornada | E71: =E67 -> 0 | F71: =ROUND(E71*$F$16,2) -> 0
D73: TOTAL DE PREVISÃO PARA RESCISÃO E INTERVALO INTRAJORNADA | F73: =SUM(F70:F71) -> 572.35
B75: MÓDULO 5 - INSUMOS DIVERSOS | F75: Valor
C76: A | D76: Uniformes - aquisição | F76: =ROUND(HLOOKUP($B$5,Uniformes!L4:EA6,3)/12,2) -> 106.57
C77: B | D77: Materiais de consumo relacionados ao posto - aquisição | F77: =ROUND(HLOOKUP(B5,'Mat Cons'!I11:DX13,3)/12,2) -> 0
C78: C | D78: Materiais permanentes relacionados ao posto - remuneração da sua depreciação / manutenção | F78: =HLOOKUP(B5,'Mat Perm'!Q11:EF13,3) -> 0
C79: D | D79: Equipamentos relacionados ao posto - remuneração da sua depreciação / manutenção | F79: =HLOOKUP(B5,'Equip Rel'!Q11:EF13,3) -> 0
C80: E | D80: Equipamentos de Proteção Individual - EPI - aquisição | F80: =ROUND(HLOOKUP(B5,EPI!J4:DY6,3)/12,2) -> 81.92
D82: TOTAL DE INSUMOS DIVERSOS | F82: =SUM(F76:F81) -> 188.49 | H82: * Nota - Valores mensais por empregado
B84: MÓDULO 6 - CUSTOS INDIRETOS, TRIBUTOS E LUCRO - BDI | E84: Percentuais | F84: Valor
C85: A | D85: Custos Indiretos | E85: =BDI!E6 -> 0.0314
C86: A.1 | D86: Administração Central | E86: =BDI!E7 -> 0.026
C87: A.2 | D87: Seguros, Garantias e Riscos | E87: =BDI!E8 -> 0.0054
C88: B | D88: Lucro | E88: =BDI!E10 -> 0.04
C89: C | D89: Tributos | E89: =SUM(E90:E91) -> 0.124
C90: C.1 | D90: Tributos Federais (COFINS, PIS e CPRB) | E90: =BDI!E18 -> 0.074
C91: C.2 | D91: Tributos Distritais (ISS) | E91: =BDI!E23 -> 0.05 | H91: * Nota - Utilizou-se o indicado pelo Sindicato da Arquitetura e da Engenharia (Sinaenco, 2008, p. 22), que adota um percentual redutor de 20% no cálculo dos custos tributários relativos às contribuições PIS e COFINS
C92: D | D92: Despesas Financeiras | E92: =BDI!E13 -> 0.005639499547
D94: TOTAL DE BDI | E94: =BDI!E26 -> 0.2314 | F94: =E94*E102 -> 2143.081018
D96: QUADRO-RESUMO DO CUSTO MENSAL POR EMPREGADO - SEM O 13º | E96: Valor
D97: Módulo 1 - Composição da Remuneração | E97: =F16 -> 5159.03
D98: Módulo 2 - Encargos e Benefícios Anuais, Mensais e Diários | E98: =F45 -> 3012.93
D99: Módulo 3 - Provisão para Rescisão | E99: =F55 -> 328.57
D100: Módulo 4 - Custo de Reposição do Profissional Ausente | E100: =F73 -> 572.35
D101: Módulo 5 - Insumos Diversos | E101: =F82 -> 188.49
D102: SUBTOTAL (A+B+C+D+E) | E102: =SUM(E97:E101) -> 9261.37
D103: Módulo 6 - Custos Indiretos, Tributos e Lucro | E103: =F94 -> 2143.081018
D105: TOTAL DO POSTO | E105: =SUM(E102:E103) -> 11404.45102
B107: MÓDULO 7 - DESTAQUE DO MÓDULO 2 - 13º SALÁRIO | E107: Percentuais | F107: Valor
C108: A | D108: 13º Salário | E108: ='Encargos Sociais'!E32 -> 0.08333333333 | F108: =ROUND(E108*F$16,2) -> 429.92
C109: B | D109: Encargos Sociais sobre o 13º Salário - Taxa calculada no SUBMÓDULO 2.2 | E109: =SUM($E$24:$E$32) -> 0.368 | F109: =ROUND(E109*$F$108,2) -> 158.21 | H109: * Nota 1 - Provisiona-se, mensalmente, o proporcional a 1/12 dos valores referentes a gratificação natalina e adicional de férias.
C110: C | D110: BDI sobre o 13º Salário - Taxa calculada no MÓDULO 6 | E110: =E94 -> 0.2314 | F110: =ROUND(E110*($F$108+$F$109),2) -> 136.09
D112: TOTAL DO DESTAQUE DO 13º SALÁRIO | F112: =SUM(F108:F110) -> 724.22
D114: QUADRO-RESUMO DO CUSTO MENSAL POR EMPREGADO | E114: Valor
D115: Custo total - sem o 13º Salário | E115: =E105 -> 11404.45102
D116: Destaque do 13º Salário (valor mensal) | E116: =F112 -> 724.22
D118: TOTAL DO POSTO | E118: =E115+E116 -> 12128.67102

Sheet Dados Gerais
B3: INFORMAÇÕES DE ENTRADA
D5: 1 | E5: 2 | F5: 3 | G5: 4 | H5: 5 | M5: 10 | N5: 11 | O5: 12 | P5: 13 | Q5: 14 | R5: 15 | S5: 16 | T5: 17 | U5: 18 | V5: 19 | W5: 20 | X5: 21 | Y5: 22 | Z5: 23 | AA5: 24 | AB5: 25 | AC5: 26 | AD5: 27 | AE5: 28 | AF5: 29 | AG5: 30 | AH5: 31 | AI5: 32 | AJ5: 33 | AK5: 34 | AL5: 35 | AM5: 36 | AN5: 37 | AO5: 38 | AP5: 39 | AQ5: 40 | AR5: 41 | AS5: 42 | AT5: 43 | AU5: 44 | AV5: 45 | AW5: 46 | AX5: 47 | AY5: 48 | AZ5: 49 | BA5: 50 | BB5: 51 | BC5: 52 | BD5: 53 | BE5: 54 | BF5: 55 | BG5: 56 | BH5: 57 | BI5: 58 | BJ5: 59 | BK5: 60
D6: CARGO 1 | E6: CARGO 2 | F6: CARGO 3 | G6: CARGO 4 | H6: CARGO 5 | I6: CARGO 6 | J6: CARGO 7 | K6: CARGO 8 | L6: CARGO 9 | M6: CARGO 10 | N6: CARGO 11 | O6: CARGO 12 | P6: CARGO 13 | Q6: CARGO 14 | R6: CARGO 15 | S6: CARGO 16 | T6: CARGO 17 | U6: CARGO 18 | V6: CARGO 19 | W6: CARGO 20 | X6: CARGO 21 | Y6: CARGO 22 | Z6: CARGO 23 | AA6: CARGO 24 | AB6: CARGO 25 | AC6: CARGO 26 | AD6: CARGO 27 | AE6: CARGO 28 | AF6: CARGO 29 | AG6: CARGO 30 | AH6: CARGO 31 | AI6: CARGO 32 | AJ6: CARGO 33 | AK6: CARGO 34 | AL6: CARGO 35 | AM6: CARGO 36 | AN6: CARGO 37 | AO6: CARGO 38 | AP6: CARGO 39 | AQ6: CARGO 40 | AR6: CARGO 41 | AS6: CARGO 42 | AT6: CARGO 43 | AU6: CARGO 44 | AV6: CARGO 45 | AW6: CARGO 46 | AX6: CARGO 47 | AY6: CARGO 48 | AZ6: CARGO 49 | BA6: CARGO 50 | BB6: CARGO 51 | BC6: CARGO 52 | BD6: CARGO 53 | BE6: CARGO 54 | BF6: CARGO 55 | BG6: CARGO 56 | BH6: CARGO 57 | BI6: CARGO 58 | BJ6: CARGO 59 | BK6: CARGO 60
B7: INFORMAÇÕES BÁSICAS
B9: DESCRIÇÃO DOS POSTOS DE SERVIÇO
D10: BOMBEIRO CIVIL MESTRE | E10: BOMBEIRO CIVIL LÍDER DIURNO | F10: BOMBEIRO CIVIL LÍDER NOTURNO | G10: BOMBEIRO CIVIL BÁSICO DIURNO | H10: BOMBEIRO CIVIL BÁSICO NOTURNO
B11: REMUNERAÇÕES
D12: 8161.01 | E12: 4330.6 | F12: 4330.6 | G12: 3494.54 | H12: 3494.54
B13: QUANTIDADE DE POSTOS
D14: 2 | E14: 2 | F14: 2 | G14: 36 | H14: 28
B15: JORNADA
C16: HORAS | D16: =36*5 -> 180 | E16: 180 | F16: =E16 -> 180 | G16: 180 | H16: 180
C17: DIAS/MÊS | D17: 26 | E17: 15.5 | F17: =E17 -> 15.5 | G17: 15.5 | H17: 15.5
B18: CCT UTILIZADA
C19: SINDICATOS E REFERÊNCIA | D19: SEAC/DF X SINDIBOMBEIROS/DF 2023/2023 Nº DF000140/2023 | E19: =D19 -> SEAC/DF X SINDIBOMBEIROS/DF 2023/2023 Nº DF000140/2023 | F19: =E19 -> SEAC/DF X SINDIBOMBEIROS/DF 2023/2023 Nº DF000140/2023 | G19: SEAC/DF X SINDIBOMBEIROS/DF 2023/2023 Nº DF000140/2023 | H19: SEAC/DF X SINDIBOMBEIROS/DF 2023/2023 Nº DF000140/2023
C20: DATA-BASE | D20: 2023-01-01 | E20: =D20 -> 2023-01-01 | F20: =E20 -> 2023-01-01 | G20: 2023-01-01 | H20: 2023-01-01
B22: ADICIONAIS LEGAIS E GRATIFICAÇÕES
B24: PERICULOSIDADE (PERCENTUAL)
D25: 0.3 | E25: 0.3 | F25: 0.3 | G25: 0.3 | H25: 0.3
B26: BASE DE CÁLCULO DO ADICIONAL DE PERICULOSIDADE (SALÁRIO BÁSICO)
D27: =D12 -> 8161.01 | E27: =E12 -> 4330.6 | F27: 4330.6 | G27: 3494.54 | H27: 3494.54
B28: VALOR MENSAL DO ADICIONAL DE PERICULOSIDADE
D29: =ROUND(D25*D12,2) -> 2448.3 | E29: =ROUND(E25*E12,2) -> 1299.18 | F29: 1299.18 | G29: 1048.36 | H29: 1048.36
B30: INSALUBRIDADE (PERCENTUAL)
D31: 0 | E31: 0 | F31: 0 | G31: 0 | H31: 0
B32: BASE DE CÁLCULO DO ADICIONAL DE INSALUBRIDADE (SALÁRIO MÍNIMO LEGAL)
D33: 1320 | E33: =D33 -> 1320 | F33: 1320 | G33: 1320 | H33: 1320
B34: VALOR MENSAL DO ADICIONAL DE INSALUBRIDADE
D35: =D31*D33 -> 0 | E35: =E31*E33 -> 0 | F35: 0 | G35: =G31*G33 -> 0 | H35: 0
B36: GRATIFICAÇÃO - VALOR MENSAL (R$)
D37: 0 | E37: 0 | F37: 0 | G37: 0 | H37: 0
B39: ADICIONAL NOTURNO
B41: INCIDÊNCIA (PERCENTUAL CONFORME CCT)
D42: 0.225 | E42: =D42 -> 0.225 | F42: 0.225 | G42: 0.225 | H42: 0.225
B43: HORAS REAIS POR DIA
D44: 0 | E44: 0 | F44: 7 | G44: 0 | H44: 7
B45: HORAS FICTAS POR DIA
D46: =D44*60/60 -> 0 | E46: =E44*60/60 -> 0 | F46: 7 | G46: 0 | H46: 7
B47: BASE DE CÁLCULO DO ADICIONAL NOTURNO (INCLUINDO ADICIONAIS E GRATIFICAÇÕES)
D48: =D12+D29+D35+D37 -> 10609.31 | E48: =E12+E29+E35+E37 -> 5629.78 | F48: =F12+F29+F35+F37 -> 5629.78 | G48: 4542.9 | H48: 4542.9
B49: VALOR MENSAL DO ADICIONAL NOTURNO (HORA NORMAL + HORA REDUZIDA) - POR POSTO
D50: =ROUND(D46*D17*D42*D48/D16,2) -> 0 | E50: =ROUND(E46*E17*E42*E48/E16,2) -> 0 | F50: =ROUND(F46*F17*F42*F48/F16,2) -> 763.54 | G50: 0 | H50: 616.13
B52: ADICIONAL DE HORA EXTRA
B54: INCIDÊNCIA (PERCENTUAL 1)
D55: 0.5 | E55: 0.5 | F55: 0.5 | G55: 0.5 | H55: 0.5
B56: HORAS EXTRAS POR MÊS (PERCENTUAL 1)
D57: 0 | E57: 0 | F57: 0 | G57: 0 | H57: 0
B58: VALOR MENSAL DO ADICIONAL DE HORAS EXTRAS (PERCENTUAL 1) - POR POSTO
D59: =ROUND(D57*D55*D12/D16,2) -> 0 | E59: 0 | F59: 0 | G59: 0 | H59: 0
B60: INCIDÊNCIA (PERCENTUAL 2)
D61: 1 | E61: 1 | F61: 1 | G61: 1 | H61: 1
B62: HORAS EXTRAS POR MÊS (PERCENTUAL 2)
D63: 0 | E63: 0 | F63: 0 | G63: 0 | H63: 0
B64: VALOR MENSAL DO ADICIONAL DE HORAS EXTRAS (PERCENTUAL 2) - POR POSTO
D65: =ROUND(D63*D61*D12/D16,2) -> 0 | E65: 0 | F65: 0 | G65: 0 | H65: 0
B66: TOTAL MENSAL DOS ADICIONAIS DE HORAS EXTRAS - POR POSTO
D67: =D65+D59 -> 0 | E67: 0 | F67: 0 | G67: 0 | H67: 0
B69: BENEFÍCIOS COMUNS - AUXÍLIO TRANSPORTE
B71: DISTRIBUIÇÃO ESTIMADA DE PROCEDÊNCIA
C72: Cidade-satélite | D72: 0.68 | E72: 0.68 | F72: 0.68 | G72: 0.68 | H72: 0.68
C73: Região do entorno | D73: 0.32 | E73: 0.32 | F73: 0.32 | G73: 0.32 | H73: 0.32
C74: Esplanada - apenas para os que vêm do entorno | D74: =D73 -> 0.32 | E74: =E73 -> 0.32 | F74: =F73 -> 0.32 | G74: =G73 -> 0.32 | H74: 0.32
B75: VALORES DOS VALES
C76: Cidade-satélite | D76: 5.5 | E76: =D76 -> 5.5 | F76: 5.5 | G76: =F76 -> 5.5 | H76: =G76 -> 5.5
C77: Região do entorno | D77: 8.09 | E77: 8.09 | F77: 8.09 | G77: 8.09 | H77: 8.09
C78: Esplanada | D78: 2.75 | E78: 2.75 | F78: 2.75 | G78: 2.75 | H78: 2.75
B79: VALOR MENSAL BRUTO DE PAGAMENTO - POR POSTO
D80: =ROUND((D72*D76+D73*D77+D74*D78)*2*D17,2) -> 374.86 | E80: =ROUND((E72*E76+E73*E77+E74*E78)*2*E17,2) -> 223.47 | F80: =ROUND((F72*F76+F73*F77+F74*F78)*2*F17,2) -> 223.47 | G80: =ROUND((G72*G76+G73*G77+G74*G78)*2*G17,2) -> 223.47 | H80: 223.47
B81: PERCENTUAL DE DESCONTO
D82: 0.06 | E82: 0.06 | F82: 0.06 | G82: 0.06 | H82: 0.06
B83: VALOR MENSAL DO DESCONTO - POR POSTO
D84: =ROUND(D82*D12,2) -> 489.66 | E84: =ROUND(E82*E12,2) -> 259.84 | F84: =ROUND(F82*F12,2) -> 259.84 | G84: 209.67 | H84: 209.67
B85: VALOR MENSAL LÍQUIDO DO VALE TRANSPORTE - POR POSTO
D86: =IF(D80>D84,D80-D84,0) -> 0 | E86: 0 | F86: =IF(F80>F84,F80-F84,0) -> 0 | G86: 13.8 | H86: 13.8
D87: =D86*D14 -> 0 | E87: 2962.54 | F87: 2962.54 | G87: 2962.54 | H87: 2962.54
B88: BENEFÍCIOS COMUNS - AUXÍLIO ALIMENTAÇÃO
C90: VALOR CCT | D90: 43.62 | E90: =D90 -> 43.62 | F90: 43.62 | G90: 43.62 | H90: 43.62
C91: VALOR CD | D91: 35 | E91: 35 | F91: 35 | G91: 35 | H91: 35
B92: VALOR MENSAL DO AUXÍLIO ALIMENTAÇÃO - POR POSTO
D93: =ROUND(LARGE(D90:D91,1)*D17,2) -> 1134.12 | E93: =ROUND(LARGE(E90:E91,1)*E17,2) -> 676.11 | F93: =ROUND(LARGE(F90:F91,1)*F17,2) -> 676.11 | G93: =ROUND(LARGE(G90:G91,1)*G17,2) -> 676.11 | H93: 676.11
D94: =D93*D14 -> 2268.24 | E94: 10339.56 | F94: 10339.56 | G94: 10339.56 | H94: 10339.56
B95: BENEFÍCIOS ESPECIAIS - ASSISTÊNCIA MÉDICA E FAMILIAR
C97: OBRIGAÇÃO DE PAGTO | D97: NÃO | E97: NÃO | F97: NÃO | G97: NÃO | H97: NÃO
C98: VALOR CCT | D98: 0 | E98: 0 | F98: 0 | G98: 0 | H98: 0
C99: VALOR MERCADO | D99: 0 | E99: 0 | F99: 0 | G99: 0 | H99: 0
B100: VALOR MENSAL DO AUXÍLIO ESPECIAL - ASSISTÊNCIA MÉDICA E FAMILIAR - POR POSTO
D101: =IF(D97="SIM",ROUND(SMALL(D98:D99,1),2),0) -> 0 | E101: 0 | F101: =IF(F97="SIM",ROUND(SMALL(F98:F99,1),2),0) -> 0 | G101: 0 | H101: 0
B103: BENEFÍCIOS ESPECIAIS - SEGURO DE VIDA E AUXÍLIO-FUNERAL, AUX ODONT, AUX CRECHE
B105: SEGURO DE VIDA E AUXÍLIO FUNERAL
C106: OBRIGAÇÃO DE PAGTO | D106: NÃO | E106: NÃO | F106: NÃO | G106: NÃO | H106: NÃO
C107: VALOR CCT | D107: 0 | E107: 0 | F107: 0 | G107: 0 | H107: 0
C108: VALOR MERCADO | D108: 0 | E108: 0 | F108: 0 | G108: 0 | H108: 0
B109: VALOR MENSAL DO AUXÍLIO ESPECIAL - SEGURO DE VIDA E AUXÍLIO FUNERAL - POR POSTO
D110: =IF(D106="SIM",ROUND(SMALL(D107:D108,1),2),0) -> 0 | E110: 0 | F110: =IF(F106="SIM",ROUND(SMALL(F107:F108,1),2),0) -> 0 | G110: 0 | H110: 0
B111: AUXÍLIO ODONTOLÓGICO
C112: OBRIGAÇÃO DE PAGTO | D112: NÃO | E112: NÃO | F112: NÃO | G112: NÃO | H112: NÃO
C113: VALOR CCT | D113: 0 | E113: 0 | F113: 0 | G113: 0 | H113: 0
C114: VALOR MERCADO | D114: 0 | E114: 0 | F114: 0 | G114: 0 | H114: 0
B115: VALOR MENSAL DO AUXÍLIO ODONTOLÓGICO - POR POSTO
D116: =IF(D112="SIM",ROUND(SMALL(D113:D114,1),2)*D17,0) -> 0 | E116: 0 | F116: 0 | G116: 0 | H116: 0
B117: TOTAL MENSAL DOS AUXÍLIOS ESPECIAIS - POR POSTO
D118: =D116+D110 -> 0 | E118: 0 | F118: =F116+F110 -> 0 | G118: 0 | H118: 0

Sheet Encargos Sociais
B4: ENCARGOS SOCIAIS SOBRE A MÃO DE OBRA
E5: Percentuais
B7: Referência:
C8: SINAPI OUT/2018
B10: Categorias:
C11: TODAS
B13: GRUPO A: Encargos Sociais Básicos - Previdenciários (GPS), Fundo de Garantia por Tempo de Serviço (FGTS) e Outras Contribuições | E13: =ROUND(SUM(E14:E22),4) -> 0.368
C14: A | D14: INSS (art. 22, inciso I, Lei nº 8.212/91) | E14: 0.2
C15: B | D15: Salário Educação (art. 3º, inciso I, Decreto nº 87.043/82) | E15: 0.025
C16: C | D16: SAT/RAT (art. 22, II, Lei 8.212/91 e Anexo V, Decreto 6.042/07) - Enquadramento 8011-1/01 | E16: 0.03
C17: D | D17: SESC ou SESI (art. 30, Lei nº 8.036/90 e art. 1º, Lei 8.154/90) | E17: 0.015
C18: E | D18: SENAI ou SENAC (Decreto nº 2.318/86) | E18: 0.01
C19: F | D19: SEBRAE (§ 3º, art. 8º, Lei 8.029/90, alterada pela Lei nº 8.154/90) | E19: 0.006 | G19: * Nota 1 - Os percentuais dos encargos previdenciários, do FGTS e demais contribuições são estabelecidos por legislação vigente.
C20: G | D20: INCRA (art. 1º, I, Decreto Lei 1.146/70 e Lei 7.787, de 30/06/89) | E20: 0.002 | G20: * Nota 2 - O SAT, a depender do grau de risco do serviço, irá variar entre 1%, para risco leve, de 2%, para risco médio, e de 3% para risco grave.
C21: H | D21: FGTS (Lei Complementar nº 110/01 e art. 30, Lei nº 8.036/90) | E21: 0.08 | G21: * Nota 3 - Os percentuais do Submódulo 2.2 incidem sobre o Módulo 1, o Submódulo 2.1, o Módulo 3, o Módulo 4 e o Módulo 6.
C22: I | D22: SECONCI (Convenções Coletivas de Trabalho da construção) | E22: 0
B24: GRUPO B: Encargos Sociais Relacionados ao Custo do Profissional Ausente - Ausências Legais | E24: =ROUND(SUM(E25:E33),4) -> 0.2246
C25: A | D25: Férias (Arts. 129 e 130, inc. I, da CLT) | E25: =1/11 -> 0.09090909091 | G25: * Nota 1 - As alíneas “A” a “F” referem-se ao custo que será pago pela empresa ao profissional ausente (férias e ausências legais)
C26: B | D26: Ausências Legais (Arts. 131 e 473 da CLT) | E26: =2/252 -> 0.007936507937 | G26: * Nota 2 - Adotou-se a estimativa do SINAPI de 2 dias por ano. Em 252 dias úteis por ano.
C27: C | D27: Licença-Paternidade (Art. 7º, XIX, e art. 10, §1º, do ADCT, CF/1988 e Art. 1º, II, da Lei 11.770/2008) | E27: =(5/(30*12))*0.0596 -> 0.0008277777778 | G27: * Nota 3 - Utilizada a proporção de 50% para homens, 5 dias de afastamento, e a probabilidade de um trabalhador requerer a Licença Paternidade em 5,96%, conforme SINAPI (Anuário Estatístico da Previdência Social - 2017)
C28: D | D28: Ausência por Acidente de Trabalho (Art. 131, III, da CLT) | E28: =0.0205*15/360 -> 0.0008541666667 | G28: * Nota 4 - Utilzada a estatística de 2,05% dos contribuintes beneficiados com a emissão do auxílio, conforme Anuário Estatístico da Previdência Social. Afastamento de 15 dias a cargo da empresa.
C29: E | D29: Afastamento Maternidade (Art. 71 da Lei nº 8.213/1991) | E29: =0.0508*(120/360)*(30+30*4/3)/360 -> 0.003292592593 | G29: * Nota 5 - Utilizada a estimativa de 120 dias de afastamento, e a probabilidade de uma trabalhadora requerer a Licença Maternidade em 5,08%, conforme SINAPI (citando dados do IBGE 2017) - A própria previdência paga o benefício pelos 120 dias, contudo o empregador arca com o 13º e com as férias
C30: F | D30: Auxílio Enfermidade - Doença (Art. 59 da Lei nº 8.213/1991) | E30: =((0.0376*15)+2)/360 -> 0.007122222222 | G30: * Nota 6 - Utilizada a estatística de 3,76% dos contribuintes beneficiados com o auxílio, conforme Anuário Estatístico da Previdência Social de 2016 (acrescidos de 2 dias ao ano, para os quais o trabalhador nem requer o benefício da Previdência - conforme SINAPI)
C31: G | D31: Adicional de Férias (componente do Submódulo 2.1) | E31: =1/3*1/11 -> 0.0303030303 | G31: * Nota 7 - O adicional de férias contido no Submódulo 2.1 corresponde a 1/3 da remuneração que, por sua vez, é dividida por 11 contome Nota 1.
C32: H | D32: 13º Salário (destacado na planilha de custos) | E32: =1/12 -> 0.08333333333 | G32: * Nota 8 - Provisiona-se, mensalmente, o proporcional a 1/12 dos valores referentes a gratificação natalina e adicional de férias.
C33: I | D33: Intervalo para repouso ou alimentação (componente do Submódulo 4.2) | E33: 0
B35: GRUPO C: Encargos Sociais Relacionados à Previsão para Rescisão Trabalhista | E35: =ROUND(SUM(E36:E41),4) -> 0.0637
C36: A | D36: Aviso Prévio Indenizado (Art. 7º, inciso XXI, da CF/1988 e arts. 477, 487, §1º, e 491 da CLT) | E36: =0.1*30/360 -> 0.008333333333 | G36: * Nota 1 - Considerou-se demissões de 10% por ano para substituições, a um prazo estimado de contrato de 3 anos. Aviso prévio - 1º ano 30 dias. Considerou-se os 10% demitidos sem justa causa e recebendo aviso indenizado.
C37: B | D37: Incidência do FGTS sobre o Aviso Prévio Indenizado (Súmula 305 TST) | E37: =E21*E36 -> 0.0006666666667
C38: C | D38: Multa do FGTS e Contribuição Social sobre o Aviso Prévio Indenizado (Art. 18, §1º, da Lei 8.036/1990 e art. 1º da LC nº 110/2001) | E38: =(1+1/12+1/12+1/36)*0.4*E21*0.2019 -> 0.007717066667 | G38: * Nota 2 - Incide sobre a Remuneração + 13º salário (1/12) + Férias (1/12) + Adicional de Férias (1/36) x 40% multa para o empregador x 8% FGTS
C39: D | D39: Aviso Prévio Trabalhado (Art. 488, parágrafo único, CLT) | E39: =((7+2*3)*100%/360)/3 -> 0.01203703704 | G39: * Nota 3 - Considerou-se demissões de 100% ao final do contrato, com um prazo médio estimado de 3 anos. Assim, calcula-se 7 dias para o 1º ano de contrato e mais 3 dias para os 2 anos seguintes. Total 13 dias.
C40: E | D40: Incidência de GPS, FGTS e outras contribuições sobre o Aviso Prévio Trabalhado | E40: =E39*E13 -> 0.00442962963
C41: F | D41: Multa do FGTS e Contribuição Social sobre o Aviso Prévio Trabalhado | E41: =(1+1/12+1/12+1/36)*0.4*E21*(1-0.2019) -> 0.03050515556 | G41: * Nota 4 - Incide sobre a Remuneração + 13º salário (1/12) + Férias (1/12) + Adicional de Férias (1/36) x 40% multa para o empregador x 8% FGTS
B43: GRUPO D: Reincidências | E43: =ROUND(SUM(E44:E44),4) -> 0.0827
C44: A | D44: Reincidência do Grupo A sobre o Grupo B | E44: =E13*E24 -> 0.0826528
D46: SOMATÓRIO - ENCARGOS SOCIAIS SOBRE A MÃO DE OBRA | E46: =E43+E35+E24+E13 -> 0.739

Sheet BDI
B3: COMPOSIÇÃO DA TAXA DE CUSTOS INDIRETOS, TRIBUTOS E LUCRO - BDI
B4: APLICAÇÃO: MÃO DE OBRA, 13º, MATERIAIS, EPC E EQUIPAMENTO DE REGISTRO DE FREQUÊNCIA | E4: Percentuais
B6: Custos Indiretos da Contratada | E6: =SUM(E7:E8) -> 0.0314
C7: A | D7: Administração Central | E7: 0.026 | G7: * Nota 1 - O Somatório da Administração Central com o Lucro deve ser inferior a 12%
C8: B | D8: Seguros, Garantias e Riscos | E8: =0.34%+0.2% -> 0.0054 | G8: * Nota 2 - O risco previsto para o porte do contrato majorado em mais 0,20% devido ao não pagamento dos insumos componentes do custo do posto quando da ausência do mesmo.
B10: Lucro | E10: =SUM(E11:E11) -> 0.04
C11: A | D11: Lucro Real sobre os Custos Administrados | E11: 0.04
B13: Despesas Financeiras | E13: =E14 -> 0.005639499547
C14: A | D14: Cálculo Baseado no Prazo para a Restituição dos Desembolsos Realizados pelo Contratado e na Taxa de Retorno Arbitrada | E14: =(1+E16)^(E15/252)-1 -> 0.005639499547 | G14: * Nota 1 - DF = [(1+TR)^(DU/252)]/100
C15: A.1 | D15: Dias Úteis Considerados | E15: 11 | G15: * Nota 2 - Diferença de dias entre o desembolso, pelo contratado, e o pagamento, pela Câmara
C16: A.2 | D16: Taxa de Retorno | E16: 0.1375 | G16: * Nota 3 - A taxa sugerida é a meta da SELIC
B18: Impostos - Tributos Federais | E18: =SUM(E19:E21) -> 0.074
C19: A | D19: Contribuição para o Financiamento da Seguridade Social - COFINS | E19: =0.8*7.6% -> 0.0608 | G19: * Nota 1 - Redução de 20% considerando as deduções permitidas em Lei, conforme SENGE, citado pelo TCU - Acórdão 2622/2013
C20: B | D20: Programa de Integração Social - PIS | E20: =0.8*1.65% -> 0.0132 | G20: * Nota 2 - Redução de 20% considerando as deduções permitidas em Lei, conforme SENGE, citado pelo TCU - Acórdão 2622/2013
C21: C | D21: Contribuição Previdenciária sobre a Receita Bruta - CPRB | E21: 0 | G21: * Nota 3 - Lei 12.546/2011 - Verificar atualizações e setores beneficiados
B23: Impostos - Tributos Distritais | E23: =SUM(E24:E24) -> 0.05
C24: A | D24: Imposto sobre Serviço de Qualquer Natureza - ISS | E24: 0.05
D26: SOMATÓRIO - ENCARGOS SOCIAIS SOBRE A MÃO DE OBRA | E26: =ROUND((((1+E6)*(1+E10)*(1+E13)/(1-E18-E23))-1),4) -> 0.2314 | G26: * Nota 1 - [(1+AC+SGR)*(1+L)*(1+DF)/(1-CONFINS-PIS-CPRB-ISS)]-1

Sheet Uniformes
B4: UNIFORMES - AQUISIÇÃO | L4: 1 | N4: =L4+1 -> 2 | P4: =N4+1 -> 3 | R4: =P4+1 -> 4 | T4: =R4+1 -> 5 | V4: =T4+1 -> 6 | X4: =V4+1 -> 7 | Z4: =X4+1 -> 8 | AB4: =Z4+1 -> 9 | AD4: =AB4+1 -> 10 | AF4: =AD4+1 -> 11 | AH4: =AF4+1 -> 12 | AJ4: =AH4+1 -> 13 | AL4: =AJ4+1 -> 14 | AN4: =AL4+1 -> 15 | AP4: =AN4+1 -> 16 | AR4: =AP4+1 -> 17 | AT4: =AR4+1 -> 18 | AV4: =AT4+1 -> 19 | AX4: =AV4+1 -> 20 | AZ4: =AX4+1 -> 21 | BB4: =AZ4+1 -> 22 | BD4: =BB4+1 -> 23 | BF4: =BD4+1 -> 24 | BH4: =BF4+1 -> 25 | BJ4: =BH4+1 -> 26 | BL4: =BJ4+1 -> 27 | BN4: =BL4+1 -> 28 | BP4: =BN4+1 -> 29 | BR4: =BP4+1 -> 30 | BT4: =BR4+1 -> 31 | BV4: =BT4+1 -> 32 | BX4: =BV4+1 -> 33 | BZ4: =BX4+1 -> 34 | CB4: =BZ4+1 -> 35 | CD4: =CB4+1 -> 36 | CF4: =CD4+1 -> 37 | CH4: =CF4+1 -> 38 | CJ4: =CH4+1 -> 39 | CL4: =CJ4+1 -> 40 | CN4: =CL4+1 -> 41 | CP4: =CN4+1 -> 42 | CR4: =CP4+1 -> 43 | CT4: =CR4+1 -> 44 | CV4: =CT4+1 -> 45 | CX4: =CV4+1 -> 46 | CZ4: =CX4+1 -> 47 | DB4: =CZ4+1 -> 48 | DD4: =DB4+1 -> 49 | DF4: =DD4+1 -> 50 | DH4: =DF4+1 -> 51 | DJ4: =DH4+1 -> 52 | DL4: =DJ4+1 -> 53 | DN4: =DL4+1 -> 54 | DP4: =DN4+1 -> 55 | DR4: =DP4+1 -> 56 | DT4: =DR4+1 -> 57 | DV4: =DT4+1 -> 58 | DX4: =DV4+1 -> 59 | DZ4: =DX4+1 -> 60
L6: =ROUND(SUM(M5:M92),2) -> 1035.02 | N6: =ROUND(SUM(O5:O92),2) -> 1278.88 | P6: =ROUND(SUM(Q5:Q92),2) -> 1278.88 | R6: =ROUND(SUM(S5:S92),2) -> 1278.88 | T6: =ROUND(SUM(U5:U92),2) -> 1278.88 | V6: =ROUND(SUM(W5:W92),2) -> 0 | X6: =ROUND(SUM(Y5:Y92),2) -> 0 | Z6: =ROUND(SUM(AA5:AA92),2) -> 0 | AB6: =ROUND(SUM(AC5:AC92),2) -> 0 | AD6: =ROUND(SUM(AE5:AE92),2) -> 0 | AF6: =ROUND(SUM(AG5:AG92),2) -> 0 | AH6: =ROUND(SUM(AI5:AI92),2) -> 0 | AJ6: =ROUND(SUM(AK5:AK92),2) -> 0 | AL6: =ROUND(SUM(AM5:AM92),2) -> 0 | AN6: =ROUND(SUM(AO5:AO92),2) -> 0 | AP6: =ROUND(SUM(AQ5:AQ92),2) -> 0 | AR6: =ROUND(SUM(AS5:AS92),2) -> 0 | AT6: =ROUND(SUM(AU5:AU92),2) -> 0 | AV6: =ROUND(SUM(AW5:AW92),2) -> 0 | AX6: =ROUND(SUM(AY5:AY92),2) -> 0 | AZ6: =ROUND(SUM(BA5:BA92),2) -> 0 | BB6: =ROUND(SUM(BC5:BC92),2) -> 0 | BD6: =ROUND(SUM(BE5:BE92),2) -> 0 | BF6: =ROUND(SUM(BG5:BG92),2) -> 0 | BH6: =ROUND(SUM(BI5:BI92),2) -> 0 | BJ6: =ROUND(SUM(BK5:BK92),2) -> 0 | BL6: =ROUND(SUM(BM5:BM92),2) -> 0 | BN6: =ROUND(SUM(BO5:BO92),2) -> 0 | BP6: =ROUND(SUM(BQ5:BQ92),2) -> 0 | BR6: =ROUND(SUM(BS5:BS92),2) -> 0 | BT6: =ROUND(SUM(BU5:BU92),2) -> 0 | BV6: =ROUND(SUM(BW5:BW92),2) -> 0 | BX6: =ROUND(SUM(BY5:BY92),2) -> 0 | BZ6: =ROUND(SUM(CA5:CA92),2) -> 0 | CB6: =ROUND(SUM(CC5:CC92),2) -> 0 | CD6: =ROUND(SUM(CE5:CE92),2) -> 0 | CF6: =ROUND(SUM(CG5:CG92),2) -> 0 | CH6: =ROUND(SUM(CI5:CI92),2) -> 0 | CJ6: =ROUND(SUM(CK5:CK92),2) -> 0 | CL6: =ROUND(SUM(CM5:CM92),2) -> 0 | CN6: =ROUND(SUM(CO5:CO92),2) -> 0 | CP6: =ROUND(SUM(CQ5:CQ92),2) -> 0 | CR6: =ROUND(SUM(CS5:CS92),2) -> 0 | CT6: =ROUND(SUM(CU5:CU92),2) -> 0 | CV6: =ROUND(SUM(CW5:CW92),2) -> 0 | CX6: =ROUND(SUM(CY5:CY92),2) -> 0 | CZ6: =ROUND(SUM(DA5:DA92),2) -> 0 | DB6: =ROUND(SUM(DC5:DC92),2) -> 0 | DD6: =ROUND(SUM(DE5:DE92),2) -> 0 | DF6: =ROUND(SUM(DG5:DG92),2) -> 0 | DH6: =ROUND(SUM(DI5:DI92),2) -> 0 | DJ6: =ROUND(SUM(DK5:DK92),2) -> 0 | DL6: =ROUND(SUM(DM5:DM92),2) -> 0 | DN6: =ROUND(SUM(DO5:DO92),2) -> 0 | DP6: =ROUND(SUM(DQ5:DQ92),2) -> 0 | DR6: =ROUND(SUM(DS5:DS92),2) -> 0 | DT6: =ROUND(SUM(DU5:DU92),2) -> 0 | DV6: =ROUND(SUM(DW5:DW92),2) -> 0 | DX6: =ROUND(SUM(DY5:DY92),2) -> 0 | DZ6: =ROUND(SUM(EA5:EA92),2) -> 0
C7: CATEGORIAS | I7: QUANTIDADE
L8: =IF($C8=L$4,1,0) -> 0
C9: 1 | D9: =HLOOKUP($C9,'Dados Gerais'!$D$5:$BK$10,6) -> BOMBEIRO CIVIL MESTRE | I9: =HLOOKUP($C9,'Dados Gerais'!$D$5:$BK$14,10) -> 2 | L9: 1 | N9: =IF($C9=N$4,1,0) -> 0 | P9: =IF($C9=P$4,1,0) -> 0 | R9: =IF($C9=R$4,1,0) -> 0 | T9: =IF($C9=T$4,1,0) -> 0 | V9: =IF($C9=V$4,1,0) -> 0 | X9: =IF($C9=X$4,1,0) -> 0 | Z9: =IF($C9=Z$4,1,0) -> 0 | AB9: =IF($C9=AB$4,1,0) -> 0 | AD9: =IF($C9=AD$4,1,0) -> 0 | AF9: =IF($C9=AF$4,1,0) -> 0 | AH9: =IF($C9=AH$4,1,0) -> 0 | AJ9: =IF($C9=AJ$4,1,0) -> 0 | AL9: =IF($C9=AL$4,1,0) -> 0 | AN9: =IF($C9=AN$4,1,0) -> 0 | AP9: =IF($C9=AP$4,1,0) -> 0 | AR9: =IF($C9=AR$4,1,0) -> 0 | AT9: =IF($C9=AT$4,1,0) -> 0 | AV9: =IF($C9=AV$4,1,0) -> 0 | AX9: =IF($C9=AX$4,1,0) -> 0 | AZ9: =IF($C9=AZ$4,1,0) -> 0 | BB9: =IF($C9=BB$4,1,0) -> 0 | BD9: =IF($C9=BD$4,1,0) -> 0 | BF9: =IF($C9=BF$4,1,0) -> 0 | BH9: =IF($C9=BH$4,1,0) -> 0 | BJ9: =IF($C9=BJ$4,1,0) -> 0 | BL9: =IF($C9=BL$4,1,0) -> 0 | BN9: =IF($C9=BN$4,1,0) -> 0 | BP9: =IF($C9=BP$4,1,0) -> 0 | BR9: =IF($C9=BR$4,1,0) -> 0 | BT9: =IF($C9=BT$4,1,0) -> 0 | BV9: =IF($C9=BV$4,1,0) -> 0 | BX9: =IF($C9=BX$4,1,0) -> 0 | BZ9: =IF($C9=BZ$4,1,0) -> 0 | CB9: =IF($C9=CB$4,1,0) -> 0 | CD9: =IF($C9=CD$4,1,0) -> 0 | CF9: =IF($C9=CF$4,1,0) -> 0 | CH9: =IF($C9=CH$4,1,0) -> 0 | CJ9: =IF($C9=CJ$4,1,0) -> 0 | CL9: =IF($C9=CL$4,1,0) -> 0 | CN9: =IF($C9=CN$4,1,0) -> 0 | CP9: =IF($C9=CP$4,1,0) -> 0 | CR9: =IF($C9=CR$4,1,0) -> 0 | CT9: =IF($C9=CT$4,1,0) -> 0 | CV9: =IF($C9=CV$4,1,0) -> 0 | CX9: =IF($C9=CX$4,1,0) -> 0 | CZ9: =IF($C9=CZ$4,1,0) -> 0 | DB9: =IF($C9=DB$4,1,0) -> 0 | DD9: =IF($C9=DD$4,1,0) -> 0 | DF9: =IF($C9=DF$4,1,0) -> 0 | DH9: =IF($C9=DH$4,1,0) -> 0 | DJ9: =IF($C9=DJ$4,1,0) -> 0 | DL9: =IF($C9=DL$4,1,0) -> 0 | DN9: =IF($C9=DN$4,1,0) -> 0 | DP9: =IF($C9=DP$4,1,0) -> 0 | DR9: =IF($C9=DR$4,1,0) -> 0 | DT9: =IF($C9=DT$4,1,0) -> 0 | DV9: =IF($C9=DV$4,1,0) -> 0 | DX9: =IF($C9=DX$4,1,0) -> 0 | DZ9: =IF($C9=DZ$4,1,0) -> 0
L10: 0
C12: ITEM | D12: DESCRIÇÃO | E12: QUANT ANUAL POR POSTO | F12: % ESTIMADO POR GÊNERO | G12: Nº DE POSTOS | H12: QUANT ANUAL TOTAL ESTIMADA | I12: VALOR
M13: =IF(SUM(L$27:L$32)>0,$E13*$I13,0) -> 0 | O13: =IF(SUM(N$27:N$32)>0,$E13*$I13,0) -> 0 | Q13: =IF(SUM(P$27:P$32)>0,$E13*$I13,0) -> 0 | S13: =IF(SUM(R$27:R$32)>0,$E13*$I13,0) -> 0 | U13: =IF(SUM(T$27:T$32)>0,$E13*$I13,0) -> 0 | W13: =IF(SUM(V$27:V$32)>0,$E13*$I13,0) -> 0 | Y13: =IF(SUM(X$27:X$32)>0,$E13*$I13,0) -> 0 | AA13: =IF(SUM(Z$27:Z$32)>0,$E13*$I13,0) -> 0 | AC13: =IF(SUM(AB$27:AB$32)>0,$E13*$I13,0) -> 0 | AE13: =IF(SUM(AD$27:AD$32)>0,$E13*$I13,0) -> 0 | AG13: =IF(SUM(AF$27:AF$32)>0,$E13*$I13,0) -> 0 | AI13: =IF(SUM(AH$27:AH$32)>0,$E13*$I13,0) -> 0 | AK13: =IF(SUM(AJ$27:AJ$32)>0,$E13*$I13,0) -> 0 | AM13: =IF(SUM(AL$27:AL$32)>0,$E13*$I13,0) -> 0 | AO13: =IF(SUM(AN$27:AN$32)>0,$E13*$I13,0) -> 0 | AQ13: =IF(SUM(AP$27:AP$32)>0,$E13*$I13,0) -> 0 | AS13: =IF(SUM(AR$27:AR$32)>0,$E13*$I13,0) -> 0 | AU13: =IF(SUM(AT$27:AT$32)>0,$E13*$I13,0) -> 0 | AW13: =IF(SUM(AV$27:AV$32)>0,$E13*$I13,0) -> 0 | AY13: =IF(SUM(AX$27:AX$32)>0,$E13*$I13,0) -> 0 | BA13: =IF(SUM(AZ$27:AZ$32)>0,$E13*$I13,0) -> 0 | BC13: =IF(SUM(BB$27:BB$32)>0,$E13*$I13,0) -> 0 | BE13: =IF(SUM(BD$27:BD$32)>0,$E13*$I13,0) -> 0 | BG13: =IF(SUM(BF$27:BF$32)>0,$E13*$I13,0) -> 0 | BI13: =IF(SUM(BH$27:BH$32)>0,$E13*$I13,0) -> 0 | BK13: =IF(SUM(BJ$27:BJ$32)>0,$E13*$I13,0) -> 0 | BM13: =IF(SUM(BL$27:BL$32)>0,$E13*$I13,0) -> 0 | BO13: =IF(SUM(BN$27:BN$32)>0,$E13*$I13,0) -> 0 | BQ13: =IF(SUM(BP$27:BP$32)>0,$E13*$I13,0) -> 0 | BS13: =IF(SUM(BR$27:BR$32)>0,$E13*$I13,0) -> 0 | BU13: =IF(SUM(BT$27:BT$32)>0,$E13*$I13,0) -> 0 | BW13: =IF(SUM(BV$27:BV$32)>0,$E13*$I13,0) -> 0 | BY13: =IF(SUM(BX$27:BX$32)>0,$E13*$I13,0) -> 0 | CA13: =IF(SUM(BZ$27:BZ$32)>0,$E13*$I13,0) -> 0 | CC13: =IF(SUM(CB$27:CB$32)>0,$E13*$I13,0) -> 0 | CE13: =IF(SUM(CD$27:CD$32)>0,$E13*$I13,0) -> 0 | CG13: =IF(SUM(CF$27:CF$32)>0,$E13*$I13,0) -> 0 | CI13: =IF(SUM(CH$27:CH$32)>0,$E13*$I13,0) -> 0 | CK13: =IF(SUM(CJ$27:CJ$32)>0,$E13*$I13,0) -> 0 | CM13: =IF(SUM(CL$27:CL$32)>0,$E13*$I13,0) -> 0 | CO13: =IF(SUM(CN$27:CN$32)>0,$E13*$I13,0) -> 0 | CQ13: =IF(SUM(CP$27:CP$32)>0,$E13*$I13,0) -> 0 | CS13: =IF(SUM(CR$27:CR$32)>0,$E13*$I13,0) -> 0 | CU13: =IF(SUM(CT$27:CT$32)>0,$E13*$I13,0) -> 0 | CW13: =IF(SUM(CV$27:CV$32)>0,$E13*$I13,0) -> 0 | CY13: =IF(SUM(CX$27:CX$32)>0,$E13*$I13,0) -> 0 | DA13: =IF(SUM(CZ$27:CZ$32)>0,$E13*$I13,0) -> 0 | DC13: =IF(SUM(DB$27:DB$32)>0,$E13*$I13,0) -> 0 | DE13: =IF(SUM(DD$27:DD$32)>0,$E13*$I13,0) -> 0 | DG13: =IF(SUM(DF$27:DF$32)>0,$E13*$I13,0) -> 0 | DI13: =IF(SUM(DH$27:DH$32)>0,$E13*$I13,0) -> 0 | DK13: =IF(SUM(DJ$27:DJ$32)>0,$E13*$I13,0) -> 0 | DM13: =IF(SUM(DL$27:DL$32)>0,$E13*$I13,0) -> 0 | DO13: =IF(SUM(DN$27:DN$32)>0,$E13*$I13,0) -> 0 | DQ13: =IF(SUM(DP$27:DP$32)>0,$E13*$I13,0) -> 0 | DS13: =IF(SUM(DR$27:DR$32)>0,$E13*$I13,0) -> 0 | DU13: =IF(SUM(DT$27:DT$32)>0,$E13*$I13,0) -> 0 | DW13: =IF(SUM(DV$27:DV$32)>0,$E13*$I13,0) -> 0 | DY13: =IF(SUM(DX$27:DX$32)>0,$E13*$I13,0) -> 0 | EA13: =IF(SUM(DZ$27:DZ$32)>0,$E13*$I13,0) -> 0
C14: MASCULINO | D14: Terno composto de 1(um) paletó e 1 (uma calça), confeccionados em tecido lã fria super 120, na cor preta, tamanho de acordo com o manequim do usuário, com forro cetim com elastano | E14: 2 | F14: =(62-11)/62 -> 0.8225806452 | G14: =SUM($I$7:$I$10) -> 2 | H14: =ROUND(E14*F14*G14,0) -> 3 | I14: 242.45 | M14: =IF(SUM(L$8:L$11)>0,$H14*$I14,0)/SUM($I$8:$I$11) -> 363.675 | O14: =IF(SUM(N$8:N$11)>0,$H14*$I14,0)/SUM($I$8:$I$11) -> 0 | Q14: =IF(SUM(P$8:P$11)>0,$H14*$I14,0)/SUM($I$8:$I$11) -> 0 | S14: =IF(SUM(R$8:R$11)>0,$H14*$I14,0)/SUM($I$8:$I$11) -> 0 | U14: =IF(SUM(T$8:T$11)>0,$H14*$I14,0)/SUM($I$8:$I$11) -> 0 | W14: =IF(SUM(V$27:V$32)>0,$H14*$I14,0) -> 0 | Y14: =IF(SUM(X$27:X$32)>0,$H14*$I14,0) -> 0 | AA14: =IF(SUM(Z$27:Z$32)>0,$H14*$I14,0) -> 0 | AC14: =IF(SUM(AB$27:AB$32)>0,$H14*$I14,0) -> 0 | AE14: =IF(SUM(AD$27:AD$32)>0,$H14*$I14,0) -> 0 | AG14: =IF(SUM(AF$27:AF$32)>0,$H14*$I14,0) -> 0 | AI14: =IF(SUM(AH$27:AH$32)>0,$H14*$I14,0) -> 0 | AK14: =IF(SUM(AJ$27:AJ$32)>0,$H14*$I14,0) -> 0 | AM14: =IF(SUM(AL$27:AL$32)>0,$H14*$I14,0) -> 0 | AO14: =IF(SUM(AN$27:AN$32)>0,$H14*$I14,0) -> 0 | AQ14: =IF(SUM(AP$27:AP$32)>0,$H14*$I14,0) -> 0 | AS14: =IF(SUM(AR$27:AR$32)>0,$H14*$I14,0) -> 0 | AU14: =IF(SUM(AT$27:AT$32)>0,$H14*$I14,0) -> 0 | AW14: =IF(SUM(AV$27:AV$32)>0,$H14*$I14,0) -> 0 | AY14: =IF(SUM(AX$27:AX$32)>0,$H14*$I14,0) -> 0 | BA14: =IF(SUM(AZ$27:AZ$32)>0,$H14*$I14,0) -> 0 | BC14: =IF(SUM(BB$27:BB$32)>0,$H14*$I14,0) -> 0 | BE14: =IF(SUM(BD$27:BD$32)>0,$H14*$I14,0) -> 0 | BG14: =IF(SUM(BF$27:BF$32)>0,$H14*$I14,0) -> 0 | BI14: =IF(SUM(BH$27:BH$32)>0,$H14*$I14,0) -> 0 | BK14: =IF(SUM(BJ$27:BJ$32)>0,$H14*$I14,0) -> 0 | BM14: =IF(SUM(BL$27:BL$32)>0,$H14*$I14,0) -> 0 | BO14: =IF(SUM(BN$27:BN$32)>0,$H14*$I14,0) -> 0 | BQ14: =IF(SUM(BP$27:BP$32)>0,$H14*$I14,0) -> 0 | BS14: =IF(SUM(BR$27:BR$32)>0,$H14*$I14,0) -> 0 | BU14: =IF(SUM(BT$27:BT$32)>0,$H14*$I14,0) -> 0 | BW14: =IF(SUM(BV$27:BV$32)>0,$H14*$I14,0) -> 0 | BY14: =IF(SUM(BX$27:BX$32)>0,$H14*$I14,0) -> 0 | CA14: =IF(SUM(BZ$27:BZ$32)>0,$H14*$I14,0) -> 0 | CC14: =IF(SUM(CB$27:CB$32)>0,$H14*$I14,0) -> 0 | CE14: =IF(SUM(CD$27:CD$32)>0,$H14*$I14,0) -> 0 | CG14: =IF(SUM(CF$27:CF$32)>0,$H14*$I14,0) -> 0 | CI14: =IF(SUM(CH$27:CH$32)>0,$H14*$I14,0) -> 0 | CK14: =IF(SUM(CJ$27:CJ$32)>0,$H14*$I14,0) -> 0 | CM14: =IF(SUM(CL$27:CL$32)>0,$H14*$I14,0) -> 0 | CO14: =IF(SUM(CN$27:CN$32)>0,$H14*$I14,0) -> 0 | CQ14: =IF(SUM(CP$27:CP$32)>0,$H14*$I14,0) -> 0 | CS14: =IF(SUM(CR$27:CR$32)>0,$H14*$I14,0) -> 0 | CU14: =IF(SUM(CT$27:CT$32)>0,$H14*$I14,0) -> 0 | CW14: =IF(SUM(CV$27:CV$32)>0,$H14*$I14,0) -> 0 | CY14: =IF(SUM(CX$27:CX$32)>0,$H14*$I14,0) -> 0 | DA14: =IF(SUM(CZ$27:CZ$32)>0,$H14*$I14,0) -> 0 | DC14: =IF(SUM(DB$27:DB$32)>0,$H14*$I14,0) -> 0 | DE14: =IF(SUM(DD$27:DD$32)>0,$H14*$I14,0) -> 0 | DG14: =IF(SUM(DF$27:DF$32)>0,$H14*$I14,0) -> 0 | DI14: =IF(SUM(DH$27:DH$32)>0,$H14*$I14,0) -> 0 | DK14: =IF(SUM(DJ$27:DJ$32)>0,$H14*$I14,0) -> 0 | DM14: =IF(SUM(DL$27:DL$32)>0,$H14*$I14,0) -> 0 | DO14: =IF(SUM(DN$27:DN$32)>0,$H14*$I14,0) -> 0 | DQ14: =IF(SUM(DP$27:DP$32)>0,$H14*$I14,0) -> 0 | DS14: =IF(SUM(DR$27:DR$32)>0,$H14*$I14,0) -> 0 | DU14: =IF(SUM(DT$27:DT$32)>0,$H14*$I14,0) -> 0 | DW14: =IF(SUM(DV$27:DV$32)>0,$H14*$I14,0) -> 0 | DY14: =IF(SUM(DX$27:DX$32)>0,$H14*$I14,0) -> 0 | EA14: =IF(SUM(DZ$27:DZ$32)>0,$H14*$I14,0) -> 0
D15: Camisa social na cor branca em tecido 100% algodão, manga longa, com bolso, tamanho de acordo com o manequm do usuário | E15: 3 | F15: =F14 -> 0.8225806452 | G15: =G14 -> 2 | H15: =ROUND(E15*F15*G15,0) -> 5 | I15: 74 | M15: =IF(SUM(L$8:L$11)>0,$H15*$I15,0)/SUM($I$8:$I$11) -> 185 | O15: 0 | Q15: =IF(SUM(P$8:P$11)>0,$H15*$I15,0)/SUM($I$8:$I$11) -> 0 | S15: =IF(SUM(R$8:R$11)>0,$H15*$I15,0)/SUM($I$8:$I$11) -> 0 | U15: =IF(SUM(T$8:T$11)>0,$H15*$I15,0)/SUM($I$8:$I$11) -> 0 | W15: 0 | Y15: 0 | AA15: 0 | AC15: 0 | AE15: 0 | AG15: 0 | AI15: 0 | AK15: 0 | AM15: 0 | AO15: 0 | AQ15: 0 | AS15: 0 | AU15: 0 | AW15: 0 | AY15: 0 | BA15: 0 | BC15: 0 | BE15: 0 | BG15: 0 | BI15: 0 | BK15: 0 | BM15: 0 | BO15: 0 | BQ15: 0 | BS15: 0 | BU15: 0 | BW15: 0 | BY15: 0 | CA15: 0 | CC15: 0 | CE15: 0 | CG15: 0 | CI15: 0 | CK15: 0 | CM15: 0 | CO15: 0 | CQ15: 0 | CS15: 0 | CU15: 0 | CW15: 0 | CY15: 0 | DA15: 0 | DC15: 0 | DE15: 0 | DG15: 0 | DI15: 0 | DK15: 0 | DM15: 0 | DO15: 0 | DQ15: 0 | DS15: 0 | DU15: 0 | DW15: 0 | DY15: 0 | EA15: 0
D16: Cinto social (100% Couro, Cor = Preto). Tamanho de acordo com o manequim do usuário | E16: 2 | F16: =F15 -> 0.8225806452 | G16: 2 | H16: 3 | I16: 31.835 | M16: 47.7525 | O16: 0 | Q16: =IF(SUM(P$8:P$11)>0,$H16*$I16,0)/SUM($I$8:$I$11) -> 0 | S16: =IF(SUM(R$8:R$11)>0,$H16*$I16,0)/SUM($I$8:$I$11) -> 0 | U16: =IF(SUM(T$8:T$11)>0,$H16*$I16,0)/SUM($I$8:$I$11) -> 0 | W16: 0 | Y16: 0 | AA16: 0 | AC16: 0 | AE16: 0 | AG16: 0 | AI16: 0 | AK16: 0 | AM16: 0 | AO16: 0 | AQ16: 0 | AS16: 0 | AU16: 0 | AW16: 0 | AY16: 0 | BA16: 0 | BC16: 0 | BE16: 0 | BG16: 0 | BI16: 0 | BK16: 0 | BM16: 0 | BO16: 0 | BQ16: 0 | BS16: 0 | BU16: 0 | BW16: 0 | BY16: 0 | CA16: 0 | CC16: 0 | CE16: 0 | CG16: 0 | CI16: 0 | CK16: 0 | CM16: 0 | CO16: 0 | CQ16: 0 | CS16: 0 | CU16: 0 | CW16: 0 | CY16: 0 | DA16: 0 | DC16: 0 | DE16: 0 | DG16: 0 | DI16: 0 | DK16: 0 | DM16: 0 | DO16: 0 | DQ16: 0 | DS16: 0 | DU16: 0 | DW16: 0 | DY16: 0 | EA16: 0
D17: Sapato social na cor preta, em 100% couro, acolchoado, solado antiderrapante em borracha colado e costurado, reforço interno anterior e posterior, revestimento interno em couro, palmilha anti-stress, amortecedor de impacto | E17: 2 | F17: 0.8225806452 | G17: 2 | H17: 3 | I17: 132.35 | M17: 198.525 | O17: 0 | Q17: =IF(SUM(P$8:P$11)>0,$H17*$I17,0)/SUM($I$8:$I$11) -> 0 | S17: =IF(SUM(R$8:R$11)>0,$H17*$I17,0)/SUM($I$8:$I$11) -> 0 | U17: =IF(SUM(T$8:T$11)>0,$H17*$I17,0)/SUM($I$8:$I$11) -> 0 | W17: 0 | Y17: 0 | AA17: 0 | AC17: 0 | AE17: 0 | AG17: 0 | AI17: 0 | AK17: 0 | AM17: 0 | AO17: 0 | AQ17: 0 | AS17: 0 | AU17: 0 | AW17: 0 | AY17: 0 | BA17: 0 | BC17: 0 | BE17: 0 | BG17: 0 | BI17: 0 | BK17: 0 | BM17: 0 | BO17: 0 | BQ17: 0 | BS17: 0 | BU17: 0 | BW17: 0 | BY17: 0 | CA17: 0 | CC17: 0 | CE17: 0 | CG17: 0 | CI17: 0 | CK17: 0 | CM17: 0 | CO17: 0 | CQ17: 0 | CS17: 0 | CU17: 0 | CW17: 0 | CY17: 0 | DA17: 0 | DC17: 0 | DE17: 0 | DG17: 0 | DI17: 0 | DK17: 0 | DM17: 0 | DO17: 0 | DQ17: 0 | DS17: 0 | DU17: 0 | DW17: 0 | DY17: 0 | EA17: 0
D18: Meia, em algodão e lycra, cano longo na cor preta | E18: 2 | F18: 0.8225806452 | G18: 2 | H18: 3 | I18: 9.45 | M18: 14.175 | O18: 0 | Q18: =IF(SUM(P$8:P$11)>0,$H18*$I18,0)/SUM($I$8:$I$11) -> 0 | S18: =IF(SUM(R$8:R$11)>0,$H18*$I18,0)/SUM($I$8:$I$11) -> 0 | U18: =IF(SUM(T$8:T$11)>0,$H18*$I18,0)/SUM($I$8:$I$11) -> 0 | W18: 0 | Y18: 0 | AA18: 0 | AC18: 0 | AE18: 0 | AG18: 0 | AI18: 0 | AK18: 0 | AM18: 0 | AO18: 0 | AQ18: 0 | AS18: 0 | AU18: 0 | AW18: 0 | AY18: 0 | BA18: 0 | BC18: 0 | BE18: 0 | BG18: 0 | BI18: 0 | BK18: 0 | BM18: 0 | BO18: 0 | BQ18: 0 | BS18: 0 | BU18: 0 | BW18: 0 | BY18: 0 | CA18: 0 | CC18: 0 | CE18: 0 | CG18: 0 | CI18: 0 | CK18: 0 | CM18: 0 | CO18: 0 | CQ18: 0 | CS18: 0 | CU18: 0 | CW18: 0 | CY18: 0 | DA18: 0 | DC18: 0 | DE18: 0 | DG18: 0 | DI18: 0 | DK18: 0 | DM18: 0 | DO18: 0 | DQ18: 0 | DS18: 0 | DU18: 0 | DW18: 0 | DY18: 0 | EA18: 0
C19: FEMININO | D19: Terninho feminino composto de 1(um) blazer e 1 (um) calça confeccionados em tecido crepe de alfaiataria de 1º qualidade, na cor preta, tamanho de acordo com o manequim do usuário com forro cetim com elastano | E19: =E14 -> 2 | F19: =100%-F18 -> 0.1774193548 | G19: =G18 -> 2 | H19: 1 | I19: 245.5 | M19: 122.75 | O19: 0 | Q19: =IF(SUM(P$8:P$11)>0,$H19*$I19,0)/SUM($I$8:$I$11) -> 0 | S19: =IF(SUM(R$8:R$11)>0,$H19*$I19,0)/SUM($I$8:$I$11) -> 0 | U19: =IF(SUM(T$8:T$11)>0,$H19*$I19,0)/SUM($I$8:$I$11) -> 0 | W19: 0 | Y19: 0 | AA19: 0 | AC19: 0 | AE19: 0 | AG19: 0 | AI19: 0 | AK19: 0 | AM19: 0 | AO19: 0 | AQ19: 0 | AS19: 0 | AU19: 0 | AW19: 0 | AY19: 0 | BA19: 0 | BC19: 0 | BE19: 0 | BG19: 0 | BI19: 0 | BK19: 0 | BM19: 0 | BO19: 0 | BQ19: 0 | BS19: 0 | BU19: 0 | BW19: 0 | BY19: 0 | CA19: 0 | CC19: 0 | CE19: 0 | CG19: 0 | CI19: 0 | CK19: 0 | CM19: 0 | CO19: 0 | CQ19: 0 | CS19: 0 | CU19: 0 | CW19: 0 | CY19: 0 | DA19: 0 | DC19: 0 | DE19: 0 | DG19: 0 | DI19: 0 | DK19: 0 | DM19: 0 | DO19: 0 | DQ19: 0 | DS19: 0 | DU19: 0 | DW19: 0 | DY19: 0 | EA19: 0
D20: Blusa social feminina na cor branca, tecido em crepe, manga curta e gola em V, tamanho de acordo com o manequim do usuário | E20: =E15 -> 3 | F20: =F19 -> 0.1774193548 | G20: 2 | H20: 1 | I20: 75 | M20: 37.5 | O20: 0 | Q20: =IF(SUM(P$8:P$11)>0,$H20*$I20,0)/SUM($I$8:$I$11) -> 0 | S20: =IF(SUM(R$8:R$11)>0,$H20*$I20,0)/SUM($I$8:$I$11) -> 0 | U20: =IF(SUM(T$8:T$11)>0,$H20*$I20,0)/SUM($I$8:$I$11) -> 0 | W20: 0 | Y20: 0 | AA20: 0 | AC20: 0 | AE20: 0 | AG20: 0 | AI20: 0 | AK20: 0 | AM20: 0 | AO20: 0 | AQ20: 0 | AS20: 0 | AU20: 0 | AW20: 0 | AY20: 0 | BA20: 0 | BC20: 0 | BE20: 0 | BG20: 0 | BI20: 0 | BK20: 0 | BM20: 0 | BO20: 0 | BQ20: 0 | BS20: 0 | BU20: 0 | BW20: 0 | BY20: 0 | CA20: 0 | CC20: 0 | CE20: 0 | CG20: 0 | CI20: 0 | CK20: 0 | CM20: 0 | CO20: 0 | CQ20: 0 | CS20: 0 | CU20: 0 | CW20: 0 | CY20: 0 | DA20: 0 | DC20: 0 | DE20: 0 | DG20: 0 | DI20: 0 | DK20: 0 | DM20: 0 | DO20: 0 | DQ20: 0 | DS20: 0 | DU20: 0 | DW20: 0 | DY20: 0 | EA20: 0
D21: Cinto social (100% Couro, Cor = Preto). Tamanho de acordo com o manequim do usuário | E21: =E16 -> 2 | F21: =F20 -> 0.1774193548 | G21: 2 | H21: 1 | I21: =I16 -> 31.835 | M21: 15.9175 | O21: 0 | Q21: =IF(SUM(P$8:P$11)>0,$H21*$I21,0)/SUM($I$8:$I$11) -> 0 | S21: =IF(SUM(R$8:R$11)>0,$H21*$I21,0)/SUM($I$8:$I$11) -> 0 | U21: =IF(SUM(T$8:T$11)>0,$H21*$I21,0)/SUM($I$8:$I$11) -> 0 | W21: 0 | Y21: 0 | AA21: 0 | AC21: 0 | AE21: 0 | AG21: 0 | AI21: 0 | AK21: 0 | AM21: 0 | AO21: 0 | AQ21: 0 | AS21: 0 | AU21: 0 | AW21: 0 | AY21: 0 | BA21: 0 | BC21: 0 | BE21: 0 | BG21: 0 | BI21: 0 | BK21: 0 | BM21: 0 | BO21: 0 | BQ21: 0 | BS21: 0 | BU21: 0 | BW21: 0 | BY21: 0 | CA21: 0 | CC21: 0 | CE21: 0 | CG21: 0 | CI21: 0 | CK21: 0 | CM21: 0 | CO21: 0 | CQ21: 0 | CS21: 0 | CU21: 0 | CW21: 0 | CY21: 0 | DA21: 0 | DC21: 0 | DE21: 0 | DG21: 0 | DI21: 0 | DK21: 0 | DM21: 0 | DO21: 0 | DQ21: 0 | DS21: 0 | DU21: 0 | DW21: 0 | DY21: 0 | EA21: 0
D22: Sapato social feminino, com tecnologia antistaffa, em couro bovino macio, forro em material tecnológico espumado respirante, palmilha em espuma de PU suave anti impacto respirante, solado em poliuretano gel flexível, altura de salto de 4,5 cm, cor preta | E22: =E16 -> 2 | F22: =F20 -> 0.1774193548 | G22: 2 | H22: 1 | I22: 90 | M22: 45 | O22: 0 | Q22: =IF(SUM(P$8:P$11)>0,$H22*$I22,0)/SUM($I$8:$I$11) -> 0 | S22: =IF(SUM(R$8:R$11)>0,$H22*$I22,0)/SUM($I$8:$I$11) -> 0 | U22: =IF(SUM(T$8:T$11)>0,$H22*$I22,0)/SUM($I$8:$I$11) -> 0 | W22: 0 | Y22: 0 | AA22: 0 | AC22: 0 | AE22: 0 | AG22: 0 | AI22: 0 | AK22: 0 | AM22: 0 | AO22: 0 | AQ22: 0 | AS22: 0 | AU22: 0 | AW22: 0 | AY22: 0 | BA22: 0 | BC22: 0 | BE22: 0 | BG22: 0 | BI22: 0 | BK22: 0 | BM22: 0 | BO22: 0 | BQ22: 0 | BS22: 0 | BU22: 0 | BW22: 0 | BY22: 0 | CA22: 0 | CC22: 0 | CE22: 0 | CG22: 0 | CI22: 0 | CK22: 0 | CM22: 0 | CO22: 0 | CQ22: 0 | CS22: 0 | CU22: 0 | CW22: 0 | CY22: 0 | DA22: 0 | DC22: 0 | DE22: 0 | DG22: 0 | DI22: 0 | DK22: 0 | DM22: 0 | DO22: 0 | DQ22: 0 | DS22: 0 | DU22: 0 | DW22: 0 | DY22: 0 | EA22: 0
D23: Meia, em algodão e lycra, cano longo na cor preta | E23: =E17 -> 2 | F23: =F21 -> 0.1774193548 | G23: 2 | H23: 1 | I23: =I18 -> 9.45 | M23: 4.725 | O23: 0 | Q23: =IF(SUM(P$8:P$11)>0,$H23*$I23,0)/SUM($I$8:$I$11) -> 0 | S23: =IF(SUM(R$8:R$11)>0,$H23*$I23,0)/SUM($I$8:$I$11) -> 0 | U23: =IF(SUM(T$8:T$11)>0,$H23*$I23,0)/SUM($I$8:$I$11) -> 0 | W23: 0 | Y23: 0 | AA23: 0 | AC23: 0 | AE23: 0 | AG23: 0 | AI23: 0 | AK23: 0 | AM23: 0 | AO23: 0 | AQ23: 0 | AS23: 0 | AU23: 0 | AW23: 0 | AY23: 0 | BA23: 0 | BC23: 0 | BE23: 0 | BG23: 0 | BI23: 0 | BK23: 0 | BM23: 0 | BO23: 0 | BQ23: 0 | BS23: 0 | BU23: 0 | BW23: 0 | BY23: 0 | CA23: 0 | CC23: 0 | CE23: 0 | CG23: 0 | CI23: 0 | CK23: 0 | CM23: 0 | CO23: 0 | CQ23: 0 | CS23: 0 | CU23: 0 | CW23: 0 | CY23: 0 | DA23: 0 | DC23: 0 | DE23: 0 | DG23: 0 | DI23: 0 | DK23: 0 | DM23: 0 | DO23: 0 | DQ23: 0 | DS23: 0 | DU23: 0 | DW23: 0 | DY23: 0 | EA23: 0
M24: =IF(SUM(L$8:L$11)>0,$H24*$I24,0)/SUM($I$28:$I$31) -> 0 | O24: 0 | Q24: =IF(SUM(P$8:P$11)>0,$H24*$I24,0)/SUM($I$28:$I$31) -> 0 | S24: =IF(SUM(R$8:R$11)>0,$H24*$I24,0)/SUM($I$28:$I$31) -> 0 | U24: =IF(SUM(T$8:T$11)>0,$H24*$I24,0)/SUM($I$28:$I$31) -> 0 | W24: =IF(SUM(V$27:V$32)>0,$E24*$I24,0) -> 0 | Y24: =IF(SUM(X$27:X$32)>0,$E24*$I24,0) -> 0 | AA24: =IF(SUM(Z$27:Z$32)>0,$E24*$I24,0) -> 0 | AC24: =IF(SUM(AB$27:AB$32)>0,$E24*$I24,0) -> 0 | AE24: =IF(SUM(AD$27:AD$32)>0,$E24*$I24,0) -> 0 | AG24: =IF(SUM(AF$27:AF$32)>0,$E24*$I24,0) -> 0 | AI24: =IF(SUM(AH$27:AH$32)>0,$E24*$I24,0) -> 0 | AK24: =IF(SUM(AJ$27:AJ$32)>0,$E24*$I24,0) -> 0 | AM24: =IF(SUM(AL$27:AL$32)>0,$E24*$I24,0) -> 0 | AO24: =IF(SUM(AN$27:AN$32)>0,$E24*$I24,0) -> 0 | AQ24: =IF(SUM(AP$27:AP$32)>0,$E24*$I24,0) -> 0 | AS24: =IF(SUM(AR$27:AR$32)>0,$E24*$I24,0) -> 0 | AU24: =IF(SUM(AT$27:AT$32)>0,$E24*$I24,0) -> 0 | AW24: =IF(SUM(AV$27:AV$32)>0,$E24*$I24,0) -> 0 | AY24: =IF(SUM(AX$27:AX$32)>0,$E24*$I24,0) -> 0 | BA24: =IF(SUM(AZ$27:AZ$32)>0,$E24*$I24,0) -> 0 | BC24: =IF(SUM(BB$27:BB$32)>0,$E24*$I24,0) -> 0 | BE24: =IF(SUM(BD$27:BD$32)>0,$E24*$I24,0) -> 0 | BG24: =IF(SUM(BF$27:BF$32)>0,$E24*$I24,0) -> 0 | BI24: =IF(SUM(BH$27:BH$32)>0,$E24*$I24,0) -> 0 | BK24: =IF(SUM(BJ$27:BJ$32)>0,$E24*$I24,0) -> 0 | BM24: =IF(SUM(BL$27:BL$32)>0,$E24*$I24,0) -> 0 | BO24: =IF(SUM(BN$27:BN$32)>0,$E24*$I24,0) -> 0 | BQ24: =IF(SUM(BP$27:BP$32)>0,$E24*$I24,0) -> 0 | BS24: =IF(SUM(BR$27:BR$32)>0,$E24*$I24,0) -> 0 | BU24: =IF(SUM(BT$27:BT$32)>0,$E24*$I24,0) -> 0 | BW24: =IF(SUM(BV$27:BV$32)>0,$E24*$I24,0) -> 0 | BY24: =IF(SUM(BX$27:BX$32)>0,$E24*$I24,0) -> 0 | CA24: =IF(SUM(BZ$27:BZ$32)>0,$E24*$I24,0) -> 0 | CC24: =IF(SUM(CB$27:CB$32)>0,$E24*$I24,0) -> 0 | CE24: =IF(SUM(CD$27:CD$32)>0,$E24*$I24,0) -> 0 | CG24: =IF(SUM(CF$27:CF$32)>0,$E24*$I24,0) -> 0 | CI24: =IF(SUM(CH$27:CH$32)>0,$E24*$I24,0) -> 0 | CK24: =IF(SUM(CJ$27:CJ$32)>0,$E24*$I24,0) -> 0 | CM24: =IF(SUM(CL$27:CL$32)>0,$E24*$I24,0) -> 0 | CO24: =IF(SUM(CN$27:CN$32)>0,$E24*$I24,0) -> 0 | CQ24: =IF(SUM(CP$27:CP$32)>0,$E24*$I24,0) -> 0 | CS24: =IF(SUM(CR$27:CR$32)>0,$E24*$I24,0) -> 0 | CU24: =IF(SUM(CT$27:CT$32)>0,$E24*$I24,0) -> 0 | CW24: =IF(SUM(CV$27:CV$32)>0,$E24*$I24,0) -> 0 | CY24: =IF(SUM(CX$27:CX$32)>0,$E24*$I24,0) -> 0 | DA24: =IF(SUM(CZ$27:CZ$32)>0,$E24*$I24,0) -> 0 | DC24: =IF(SUM(DB$27:DB$32)>0,$E24*$I24,0) -> 0 | DE24: =IF(SUM(DD$27:DD$32)>0,$E24*$I24,0) -> 0 | DG24: =IF(SUM(DF$27:DF$32)>0,$E24*$I24,0) -> 0 | DI24: =IF(SUM(DH$27:DH$32)>0,$E24*$I24,0) -> 0 | DK24: =IF(SUM(DJ$27:DJ$32)>0,$E24*$I24,0) -> 0 | DM24: =IF(SUM(DL$27:DL$32)>0,$E24*$I24,0) -> 0 | DO24: =IF(SUM(DN$27:DN$32)>0,$E24*$I24,0) -> 0 | DQ24: =IF(SUM(DP$27:DP$32)>0,$E24*$I24,0) -> 0 | DS24: =IF(SUM(DR$27:DR$32)>0,$E24*$I24,0) -> 0 | DU24: =IF(SUM(DT$27:DT$32)>0,$E24*$I24,0) -> 0 | DW24: =IF(SUM(DV$27:DV$32)>0,$E24*$I24,0) -> 0 | DY24: =IF(SUM(DX$27:DX$32)>0,$E24*$I24,0) -> 0 | EA24: =IF(SUM(DZ$27:DZ$32)>0,$E24*$I24,0) -> 0
C26: CATEGORIAS | I26: QUANTIDADE
L27: =IF($C27=L$4,1,0) -> 0
C28: 2 | D28: =HLOOKUP($C28,'Dados Gerais'!$D$5:$BK$10,6) -> BOMBEIRO CIVIL LÍDER DIURNO | I28: =HLOOKUP($C28,'Dados Gerais'!$D$5:$BK$14,10) -> 2 | L28: 0 | N28: =IF($C28=N$4,1,0) -> 1 | P28: =IF($C28=P$4,1,0) -> 0 | R28: =IF($C28=R$4,1,0) -> 0 | T28: =IF($C28=T$4,1,0) -> 0 | V28: =IF($C28=V$4,1,0) -> 0 | X28: =IF($C28=X$4,1,0) -> 0 | Z28: =IF($C28=Z$4,1,0) -> 0 | AB28: =IF($C28=AB$4,1,0) -> 0 | AD28: =IF($C28=AD$4,1,0) -> 0 | AF28: =IF($C28=AF$4,1,0) -> 0 | AH28: =IF($C28=AH$4,1,0) -> 0 | AJ28: =IF($C28=AJ$4,1,0) -> 0 | AL28: =IF($C28=AL$4,1,0) -> 0 | AN28: =IF($C28=AN$4,1,0) -> 0 | AP28: =IF($C28=AP$4,1,0) -> 0 | AR28: =IF($C28=AR$4,1,0) -> 0 | AT28: =IF($C28=AT$4,1,0) -> 0 | AV28: =IF($C28=AV$4,1,0) -> 0 | AX28: =IF($C28=AX$4,1,0) -> 0 | AZ28: =IF($C28=AZ$4,1,0) -> 0 | BB28: =IF($C28=BB$4,1,0) -> 0 | BD28: =IF($C28=BD$4,1,0) -> 0 | BF28: =IF($C28=BF$4,1,0) -> 0 | BH28: =IF($C28=BH$4,1,0) -> 0 | BJ28: =IF($C28=BJ$4,1,0) -> 0 | BL28: =IF($C28=BL$4,1,0) -> 0 | BN28: =IF($C28=BN$4,1,0) -> 0 | BP28: =IF($C28=BP$4,1,0) -> 0 | BR28: =IF($C28=BR$4,1,0) -> 0 | BT28: =IF($C28=BT$4,1,0) -> 0 | BV28: =IF($C28=BV$4,1,0) -> 0 | BX28: =IF($C28=BX$4,1,0) -> 0 | BZ28: =IF($C28=BZ$4,1,0) -> 0 | CB28: =IF($C28=CB$4,1,0) -> 0 | CD28: =IF($C28=CD$4,1,0) -> 0 | CF28: =IF($C28=CF$4,1,0) -> 0 | CH28: =IF($C28=CH$4,1,0) -> 0 | CJ28: =IF($C28=CJ$4,1,0) -> 0 | CL28: =IF($C28=CL$4,1,0) -> 0 | CN28: =IF($C28=CN$4,1,0) -> 0 | CP28: =IF($C28=CP$4,1,0) -> 0 | CR28: =IF($C28=CR$4,1,0) -> 0 | CT28: =IF($C28=CT$4,1,0) -> 0 | CV28: =IF($C28=CV$4,1,0) -> 0 | CX28: =IF($C28=CX$4,1,0) -> 0 | CZ28: =IF($C28=CZ$4,1,0) -> 0 | DB28: =IF($C28=DB$4,1,0) -> 0 | DD28: =IF($C28=DD$4,1,0) -> 0 | DF28: =IF($C28=DF$4,1,0) -> 0 | DH28: =IF($C28=DH$4,1,0) -> 0 | DJ28: =IF($C28=DJ$4,1,0) -> 0 | DL28: =IF($C28=DL$4,1,0) -> 0 | DN28: =IF($C28=DN$4,1,0) -> 0 | DP28: =IF($C28=DP$4,1,0) -> 0 | DR28: =IF($C28=DR$4,1,0) -> 0 | DT28: =IF($C28=DT$4,1,0) -> 0 | DV28: =IF($C28=DV$4,1,0) -> 0 | DX28: =IF($C28=DX$4,1,0) -> 0 | DZ28: =IF($C28=DZ$4,1,0) -> 0
C29: 3 | D29: =HLOOKUP($C29,'Dados Gerais'!$D$5:$BK$10,6) -> BOMBEIRO CIVIL LÍDER NOTURNO | I29: =HLOOKUP($C29,'Dados Gerais'!$D$5:$BK$14,10) -> 2 | L29: =IF($C29=L$4,1,0) -> 0 | N29: 0 | P29: 1 | R29: 0 | T29: 0 | V29: 0 | X29: 0 | Z29: 0 | AB29: 0 | AD29: 0 | AF29: 0 | AH29: 0 | AJ29: 0 | AL29: 0 | AN29: 0 | AP29: 0 | AR29: 0 | AT29: 0 | AV29: 0 | AX29: 0 | AZ29: 0 | BB29: 0 | BD29: 0 | BF29: 0 | BH29: 0 | BJ29: 0 | BL29: 0 | BN29: 0 | BP29: 0 | BR29: 0 | BT29: 0 | BV29: 0 | BX29: 0 | BZ29: 0 | CB29: 0 | CD29: 0 | CF29: 0 | CH29: 0 | CJ29: 0 | CL29: 0 | CN29: 0 | CP29: 0 | CR29: 0 | CT29: 0 | CV29: 0 | CX29: 0 | CZ29: 0 | DB29: 0 | DD29: 0 | DF29: 0 | DH29: 0 | DJ29: 0 | DL29: 0 | DN29: 0 | DP29: 0 | DR29: 0 | DT29: 0 | DV29: 0 | DX29: 0 | DZ29: 0
C30: 4 | D30: =HLOOKUP($C30,'Dados Gerais'!$D$5:$BK$10,6) -> BOMBEIRO CIVIL BÁSICO DIURNO | I30: =HLOOKUP($C30,'Dados Gerais'!$D$5:$BK$14,10) -> 36 | L30: =IF($C30=L$4,1,0) -> 0 | N30: 0 | P30: 0 | R30: 1 | T30: 0 | V30: 0 | X30: 0 | Z30: 0 | AB30: 0 | AD30: 0 | AF30: 0 | AH30: 0 | AJ30: 0 | AL30: 0 | AN30: 0 | AP30: 0 | AR30: 0 | AT30: 0 | AV30: 0 | AX30: 0 | AZ30: 0 | BB30: 0 | BD30: 0 | BF30: 0 | BH30: 0 | BJ30: 0 | BL30: 0 | BN30: 0 | BP30: 0 | BR30: 0 | BT30: 0 | BV30: 0 | BX30: 0 | BZ30: 0 | CB30: 0 | CD30: 0 | CF30: 0 | CH30: 0 | CJ30: 0 | CL30: 0 | CN30: 0 | CP30: 0 | CR30: 0 | CT30: 0 | CV30: 0 | CX30: 0 | CZ30: 0 | DB30: 0 | DD30: 0 | DF30: 0 | DH30: 0 | DJ30: 0 | DL30: 0 | DN30: 0 | DP30: 0 | DR30: 0 | DT30: 0 | DV30: 0 | DX30: 0 | DZ30: 0
C31: 5 | D31: =HLOOKUP($C31,'Dados Gerais'!$D$5:$BK$10,6) -> BOMBEIRO CIVIL BÁSICO NOTURNO | I31: =HLOOKUP($C31,'Dados Gerais'!$D$5:$BK$14,10) -> 28 | L31: =IF($C31=L$4,1,0) -> 0 | N31: 0 | P31: 0 | R31: 0 | T31: 1 | V31: 0 | X31: 0 | Z31: 0 | AB31: 0 | AD31: 0 | AF31: 0 | AH31: 0 | AJ31: 0 | AL31: 0 | AN31: 0 | AP31: 0 | AR31: 0 | AT31: 0 | AV31: 0 | AX31: 0 | AZ31: 0 | BB31: 0 | BD31: 0 | BF31: 0 | BH31: 0 | BJ31: 0 | BL31: 0 | BN31: 0 | BP31: 0 | BR31: 0 | BT31: 0 | BV31: 0 | BX31: 0 | BZ31: 0 | CB31: 0 | CD31: 0 | CF31: 0 | CH31: 0 | CJ31: 0 | CL31: 0 | CN31: 0 | CP31: 0 | CR31: 0 | CT31: 0 | CV31: 0 | CX31: 0 | CZ31: 0 | DB31: 0 | DD31: 0 | DF31: 0 | DH31: 0 | DJ31: 0 | DL31: 0 | DN31: 0 | DP31: 0 | DR31: 0 | DT31: 0 | DV31: 0 | DX31: 0 | DZ31: 0
L32: 0
C34: ITEM | D34: DESCRIÇÃO | E34: QUANT ANUAL POR POSTO | G34: Nº DE POSTOS | H34: QUANT ANUAL TOTAL ESTIMADA | I34: VALOR
M35: =IF(SUM(L$27:L$32)>0,$E35*$I35,0) -> 0 | O35: =IF(SUM(N$27:N$32)>0,$E35*$I35,0) -> 0 | Q35: =IF(SUM(P$27:P$32)>0,$E35*$I35,0) -> 0 | S35: =IF(SUM(R$27:R$32)>0,$E35*$I35,0) -> 0 | U35: =IF(SUM(T$27:T$32)>0,$E35*$I35,0) -> 0 | W35: =IF(SUM(V$27:V$32)>0,$E35*$I35,0) -> 0 | Y35: =IF(SUM(X$27:X$32)>0,$E35*$I35,0) -> 0 | AA35: =IF(SUM(Z$27:Z$32)>0,$E35*$I35,0) -> 0 | AC35: =IF(SUM(AB$27:AB$32)>0,$E35*$I35,0) -> 0 | AE35: =IF(SUM(AD$27:AD$32)>0,$E35*$I35,0) -> 0 | AG35: =IF(SUM(AF$27:AF$32)>0,$E35*$I35,0) -> 0 | AI35: =IF(SUM(AH$27:AH$32)>0,$E35*$I35,0) -> 0 | AK35: =IF(SUM(AJ$27:AJ$32)>0,$E35*$I35,0) -> 0 | AM35: =IF(SUM(AL$27:AL$32)>0,$E35*$I35,0) -> 0 | AO35: =IF(SUM(AN$27:AN$32)>0,$E35*$I35,0) -> 0 | AQ35: =IF(SUM(AP$27:AP$32)>0,$E35*$I35,0) -> 0 | AS35: =IF(SUM(AR$27:AR$32)>0,$E35*$I35,0) -> 0 | AU35: =IF(SUM(AT$27:AT$32)>0,$E35*$I35,0) -> 0 | AW35: =IF(SUM(AV$27:AV$32)>0,$E35*$I35,0) -> 0 | AY35: =IF(SUM(AX$27:AX$32)>0,$E35*$I35,0) -> 0 | BA35: =IF(SUM(AZ$27:AZ$32)>0,$E35*$I35,0) -> 0 | BC35: =IF(SUM(BB$27:BB$32)>0,$E35*$I35,0) -> 0 | BE35: =IF(SUM(BD$27:BD$32)>0,$E35*$I35,0) -> 0 | BG35: =IF(SUM(BF$27:BF$32)>0,$E35*$I35,0) -> 0 | BI35: =IF(SUM(BH$27:BH$32)>0,$E35*$I35,0) -> 0 | BK35: =IF(SUM(BJ$27:BJ$32)>0,$E35*$I35,0) -> 0 | BM35: =IF(SUM(BL$27:BL$32)>0,$E35*$I35,0) -> 0 | BO35: =IF(SUM(BN$27:BN$32)>0,$E35*$I35,0) -> 0 | BQ35: =IF(SUM(BP$27:BP$32)>0,$E35*$I35,0) -> 0 | BS35: =IF(SUM(BR$27:BR$32)>0,$E35*$I35,0) -> 0 | BU35: =IF(SUM(BT$27:BT$32)>0,$E35*$I35,0) -> 0 | BW35: =IF(SUM(BV$27:BV$32)>0,$E35*$I35,0) -> 0 | BY35: =IF(SUM(BX$27:BX$32)>0,$E35*$I35,0) -> 0 | CA35: =IF(SUM(BZ$27:BZ$32)>0,$E35*$I35,0) -> 0 | CC35: =IF(SUM(CB$27:CB$32)>0,$E35*$I35,0) -> 0 | CE35: =IF(SUM(CD$27:CD$32)>0,$E35*$I35,0) -> 0 | CG35: =IF(SUM(CF$27:CF$32)>0,$E35*$I35,0) -> 0 | CI35: =IF(SUM(CH$27:CH$32)>0,$E35*$I35,0) -> 0 | CK35: =IF(SUM(CJ$27:CJ$32)>0,$E35*$I35,0) -> 0 | CM35: =IF(SUM(CL$27:CL$32)>0,$E35*$I35,0) -> 0 | CO35: =IF(SUM(CN$27:CN$32)>0,$E35*$I35,0) -> 0 | CQ35: =IF(SUM(CP$27:CP$32)>0,$E35*$I35,0) -> 0 | CS35: =IF(SUM(CR$27:CR$32)>0,$E35*$I35,0) -> 0 | CU35: =IF(SUM(CT$27:CT$32)>0,$E35*$I35,0) -> 0 | CW35: =IF(SUM(CV$27:CV$32)>0,$E35*$I35,0) -> 0 | CY35: =IF(SUM(CX$27:CX$32)>0,$E35*$I35,0) -> 0 | DA35: =IF(SUM(CZ$27:CZ$32)>0,$E35*$I35,0) -> 0 | DC35: =IF(SUM(DB$27:DB$32)>0,$E35*$I35,0) -> 0 | DE35: =IF(SUM(DD$27:DD$32)>0,$E35*$I35,0) -> 0 | DG35: =IF(SUM(DF$27:DF$32)>0,$E35*$I35,0) -> 0 | DI35: =IF(SUM(DH$27:DH$32)>0,$E35*$I35,0) -> 0 | DK35: =IF(SUM(DJ$27:DJ$32)>0,$E35*$I35,0) -> 0 | DM35: =IF(SUM(DL$27:DL$32)>0,$E35*$I35,0) -> 0 | DO35: =IF(SUM(DN$27:DN$32)>0,$E35*$I35,0) -> 0 | DQ35: =IF(SUM(DP$27:DP$32)>0,$E35*$I35,0) -> 0 | DS35: =IF(SUM(DR$27:DR$32)>0,$E35*$I35,0) -> 0 | DU35: =IF(SUM(DT$27:DT$32)>0,$E35*$I35,0) -> 0 | DW35: =IF(SUM(DV$27:DV$32)>0,$E35*$I35,0) -> 0 | DY35: =IF(SUM(DX$27:DX$32)>0,$E35*$I35,0) -> 0 | EA35: =IF(SUM(DZ$27:DZ$32)>0,$E35*$I35,0) -> 0
C36: UNISEX | D36: Gandola - Características: Tecido Rip-Stop, padrão estipulado e aprovado pelo CBMDF para a Câmara dos Deputados | E36: 2 | G36: =SUM($I$28:$I$31) -> 68 | H36: =ROUNDUP(E36*G36,0) -> 136 | I36: 197.5 | M36: =IF(SUM(L$27:L$32)>0,$H36*$I36,0)/SUM($I$28:$I$31) -> 0 | O36: =IF(SUM(N$27:N$32)>0,$H36*$I36,0)/SUM($I$28:$I$31) -> 395 | Q36: =IF(SUM(P$27:P$32)>0,$H36*$I36,0)/SUM($I$28:$I$31) -> 395 | S36: =IF(SUM(R$27:R$32)>0,$H36*$I36,0)/SUM($I$28:$I$31) -> 395 | U36: =IF(SUM(T$27:T$32)>0,$H36*$I36,0)/SUM($I$28:$I$31) -> 395 | W36: =IF(SUM(V$27:V$32)>0,$H36*$I36,0) -> 0 | Y36: =IF(SUM(X$27:X$32)>0,$H36*$I36,0) -> 0 | AA36: =IF(SUM(Z$27:Z$32)>0,$H36*$I36,0) -> 0 | AC36: =IF(SUM(AB$27:AB$32)>0,$H36*$I36,0) -> 0 | AE36: =IF(SUM(AD$27:AD$32)>0,$H36*$I36,0) -> 0 | AG36: =IF(SUM(AF$27:AF$32)>0,$H36*$I36,0) -> 0 | AI36: =IF(SUM(AH$27:AH$32)>0,$H36*$I36,0) -> 0 | AK36: =IF(SUM(AJ$27:AJ$32)>0,$H36*$I36,0) -> 0 | AM36: =IF(SUM(AL$27:AL$32)>0,$H36*$I36,0) -> 0 | AO36: =IF(SUM(AN$27:AN$32)>0,$H36*$I36,0) -> 0 | AQ36: =IF(SUM(AP$27:AP$32)>0,$H36*$I36,0) -> 0 | AS36: =IF(SUM(AR$27:AR$32)>0,$H36*$I36,0) -> 0 | AU36: =IF(SUM(AT$27:AT$32)>0,$H36*$I36,0) -> 0 | AW36: =IF(SUM(AV$27:AV$32)>0,$H36*$I36,0) -> 0 | AY36: =IF(SUM(AX$27:AX$32)>0,$H36*$I36,0) -> 0 | BA36: =IF(SUM(AZ$27:AZ$32)>0,$H36*$I36,0) -> 0 | BC36: =IF(SUM(BB$27:BB$32)>0,$H36*$I36,0) -> 0 | BE36: =IF(SUM(BD$27:BD$32)>0,$H36*$I36,0) -> 0 | BG36: =IF(SUM(BF$27:BF$32)>0,$H36*$I36,0) -> 0 | BI36: =IF(SUM(BH$27:BH$32)>0,$H36*$I36,0) -> 0 | BK36: =IF(SUM(BJ$27:BJ$32)>0,$H36*$I36,0) -> 0 | BM36: =IF(SUM(BL$27:BL$32)>0,$H36*$I36,0) -> 0 | BO36: =IF(SUM(BN$27:BN$32)>0,$H36*$I36,0) -> 0 | BQ36: =IF(SUM(BP$27:BP$32)>0,$H36*$I36,0) -> 0 | BS36: =IF(SUM(BR$27:BR$32)>0,$H36*$I36,0) -> 0 | BU36: =IF(SUM(BT$27:BT$32)>0,$H36*$I36,0) -> 0 | BW36: =IF(SUM(BV$27:BV$32)>0,$H36*$I36,0) -> 0 | BY36: =IF(SUM(BX$27:BX$32)>0,$H36*$I36,0) -> 0 | CA36: =IF(SUM(BZ$27:BZ$32)>0,$H36*$I36,0) -> 0 | CC36: =IF(SUM(CB$27:CB$32)>0,$H36*$I36,0) -> 0 | CE36: =IF(SUM(CD$27:CD$32)>0,$H36*$I36,0) -> 0 | CG36: =IF(SUM(CF$27:CF$32)>0,$H36*$I36,0) -> 0 | CI36: =IF(SUM(CH$27:CH$32)>0,$H36*$I36,0) -> 0 | CK36: =IF(SUM(CJ$27:CJ$32)>0,$H36*$I36,0) -> 0 | CM36: =IF(SUM(CL$27:CL$32)>0,$H36*$I36,0) -> 0 | CO36: =IF(SUM(CN$27:CN$32)>0,$H36*$I36,0) -> 0 | CQ36: =IF(SUM(CP$27:CP$32)>0,$H36*$I36,0) -> 0 | CS36: =IF(SUM(CR$27:CR$32)>0,$H36*$I36,0) -> 0 | CU36: =IF(SUM(CT$27:CT$32)>0,$H36*$I36,0) -> 0 | CW36: =IF(SUM(CV$27:CV$32)>0,$H36*$I36,0) -> 0 | CY36: =IF(SUM(CX$27:CX$32)>0,$H36*$I36,0) -> 0 | DA36: =IF(SUM(CZ$27:CZ$32)>0,$H36*$I36,0) -> 0 | DC36: =IF(SUM(DB$27:DB$32)>0,$H36*$I36,0) -> 0 | DE36: =IF(SUM(DD$27:DD$32)>0,$H36*$I36,0) -> 0 | DG36: =IF(SUM(DF$27:DF$32)>0,$H36*$I36,0) -> 0 | DI36: =IF(SUM(DH$27:DH$32)>0,$H36*$I36,0) -> 0 | DK36: =IF(SUM(DJ$27:DJ$32)>0,$H36*$I36,0) -> 0 | DM36: =IF(SUM(DL$27:DL$32)>0,$H36*$I36,0) -> 0 | DO36: =IF(SUM(DN$27:DN$32)>0,$H36*$I36,0) -> 0 | DQ36: =IF(SUM(DP$27:DP$32)>0,$H36*$I36,0) -> 0 | DS36: =IF(SUM(DR$27:DR$32)>0,$H36*$I36,0) -> 0 | DU36: =IF(SUM(DT$27:DT$32)>0,$H36*$I36,0) -> 0 | DW36: =IF(SUM(DV$27:DV$32)>0,$H36*$I36,0) -> 0 | DY36: =IF(SUM(DX$27:DX$32)>0,$H36*$I36,0) -> 0 | EA36: =IF(SUM(DZ$27:DZ$32)>0,$H36*$I36,0) -> 0
D37: Calça - Características: Tecido Rip-Stop, padrão estipulado e aprovado pelo CBMDF para a Câmara dos Deputados | E37: 2 | G37: 68 | H37: =ROUNDUP(E37*G37,0) -> 136 | I37: 127.575 | M37: =IF(SUM(L$27:L$32)>0,$H37*$I37,0)/SUM($I$28:$I$31) -> 0 | O37: =IF(SUM(N$27:N$32)>0,$H37*$I37,0)/SUM($I$28:$I$31) -> 255.15 | Q37: 255.15 | S37: =IF(SUM(R$27:R$32)>0,$H37*$I37,0)/SUM($I$28:$I$31) -> 255.15 | U37: =IF(SUM(T$27:T$32)>0,$H37*$I37,0)/SUM($I$28:$I$31) -> 255.15 | W37: 0 | Y37: 0 | AA37: 0 | AC37: 0 | AE37: 0 | AG37: 0 | AI37: 0 | AK37: 0 | AM37: 0 | AO37: 0 | AQ37: 0 | AS37: 0 | AU37: 0 | AW37: 0 | AY37: 0 | BA37: 0 | BC37: 0 | BE37: 0 | BG37: 0 | BI37: 0 | BK37: 0 | BM37: 0 | BO37: 0 | BQ37: 0 | BS37: 0 | BU37: 0 | BW37: 0 | BY37: 0 | CA37: 0 | CC37: 0 | CE37: 0 | CG37: 0 | CI37: 0 | CK37: 0 | CM37: 0 | CO37: 0 | CQ37: 0 | CS37: 0 | CU37: 0 | CW37: 0 | CY37: 0 | DA37: 0 | DC37: 0 | DE37: 0 | DG37: 0 | DI37: 0 | DK37: 0 | DM37: 0 | DO37: 0 | DQ37: 0 | DS37: 0 | DU37: 0 | DW37: 0 | DY37: 0 | EA37: 0
D38: Camisa – Características: 100% algodão, padrão estipulado pelo CBMDF para a Câmara dos Deputados (deve haver a inscrição do nome e tipo sanguíneo do bombeiro civil) | E38: 3 | G38: 68 | H38: 204 | I38: 53.1 | M38: =IF(SUM(L$27:L$32)>0,$H38*$I38,0)/SUM($I$28:$I$31) -> 0 | O38: 159.3 | Q38: 159.3 | S38: =IF(SUM(R$27:R$32)>0,$H38*$I38,0)/SUM($I$28:$I$31) -> 159.3 | U38: =IF(SUM(T$27:T$32)>0,$H38*$I38,0)/SUM($I$28:$I$31) -> 159.3 | W38: 0 | Y38: 0 | AA38: 0 | AC38: 0 | AE38: 0 | AG38: 0 | AI38: 0 | AK38: 0 | AM38: 0 | AO38: 0 | AQ38: 0 | AS38: 0 | AU38: 0 | AW38: 0 | AY38: 0 | BA38: 0 | BC38: 0 | BE38: 0 | BG38: 0 | BI38: 0 | BK38: 0 | BM38: 0 | BO38: 0 | BQ38: 0 | BS38: 0 | BU38: 0 | BW38: 0 | BY38: 0 | CA38: 0 | CC38: 0 | CE38: 0 | CG38: 0 | CI38: 0 | CK38: 0 | CM38: 0 | CO38: 0 | CQ38: 0 | CS38: 0 | CU38: 0 | CW38: 0 | CY38: 0 | DA38: 0 | DC38: 0 | DE38: 0 | DG38: 0 | DI38: 0 | DK38: 0 | DM38: 0 | DO38: 0 | DQ38: 0 | DS38: 0 | DU38: 0 | DW38: 0 | DY38: 0 | EA38: 0
D39: =D23 -> Meia, em algodão e lycra, cano longo na cor preta | E39: 2 | G39: 68 | H39: 136 | I39: =I23 -> 9.45 | M39: =IF(SUM(L$27:L$32)>0,$H39*$I39,0)/SUM($I$28:$I$31) -> 0 | O39: 18.9 | Q39: 18.9 | S39: =IF(SUM(R$27:R$32)>0,$H39*$I39,0)/SUM($I$28:$I$31) -> 18.9 | U39: =IF(SUM(T$27:T$32)>0,$H39*$I39,0)/SUM($I$28:$I$31) -> 18.9 | W39: 0 | Y39: 0 | AA39: 0 | AC39: 0 | AE39: 0 | AG39: 0 | AI39: 0 | AK39: 0 | AM39: 0 | AO39: 0 | AQ39: 0 | AS39: 0 | AU39: 0 | AW39: 0 | AY39: 0 | BA39: 0 | BC39: 0 | BE39: 0 | BG39: 0 | BI39: 0 | BK39: 0 | BM39: 0 | BO39: 0 | BQ39: 0 | BS39: 0 | BU39: 0 | BW39: 0 | BY39: 0 | CA39: 0 | CC39: 0 | CE39: 0 | CG39: 0 | CI39: 0 | CK39: 0 | CM39: 0 | CO39: 0 | CQ39: 0 | CS39: 0 | CU39: 0 | CW39: 0 | CY39: 0 | DA39: 0 | DC39: 0 | DE39: 0 | DG39: 0 | DI39: 0 | DK39: 0 | DM39: 0 | DO39: 0 | DQ39: 0 | DS39: 0 | DU39: 0 | DW39: 0 | DY39: 0 | EA39: 0
D40: Cinto, confeccionado em poliéster, com fivela e ponteira prata | E40: 2 | G40: 68 | H40: 136 | I40: 15.5 | M40: =IF(SUM(L$27:L$32)>0,$H40*$I40,0)/SUM($I$28:$I$31) -> 0 | O40: 31 | Q40: 31 | S40: =IF(SUM(R$27:R$32)>0,$H40*$I40,0)/SUM($I$28:$I$31) -> 31 | U40: =IF(SUM(T$27:T$32)>0,$H40*$I40,0)/SUM($I$28:$I$31) -> 31 | W40: 0 | Y40: 0 | AA40: 0 | AC40: 0 | AE40: 0 | AG40: 0 | AI40: 0 | AK40: 0 | AM40: 0 | AO40: 0 | AQ40: 0 | AS40: 0 | AU40: 0 | AW40: 0 | AY40: 0 | BA40: 0 | BC40: 0 | BE40: 0 | BG40: 0 | BI40: 0 | BK40: 0 | BM40: 0 | BO40: 0 | BQ40: 0 | BS40: 0 | BU40: 0 | BW40: 0 | BY40: 0 | CA40: 0 | CC40: 0 | CE40: 0 | CG40: 0 | CI40: 0 | CK40: 0 | CM40: 0 | CO40: 0 | CQ40: 0 | CS40: 0 | CU40: 0 | CW40: 0 | CY40: 0 | DA40: 0 | DC40: 0 | DE40: 0 | DG40: 0 | DI40: 0 | DK40: 0 | DM40: 0 | DO40: 0 | DQ40: 0 | DS40: 0 | DU40: 0 | DW40: 0 | DY40: 0 | EA40: 0
D41: Coturno, material: Cabedal em couro nobuk hidrofugado, espessura mínima de 2mm, dublado com tecido de poliéster e colarinho de couro pelica, forração interna de acrílico, com isolamento térmico em EVA, reforço interno de material termoplástico leve e resistente, no bico e calcanhar, solado de borracha maciço, vulcanizado ao cabedal, resistente à corrente elétrica e 100% impermeável. Marca de ref. Guartela, mod. Attack II | E41: 1 | G41: 68 | H41: 68 | I41: 282.6333333 | M41: =IF(SUM(L$27:L$32)>0,$H41*$I41,0)/SUM($I$28:$I$31) -> 0 | O41: 282.6333333 | Q41: 282.6333333 | S41: =IF(SUM(R$27:R$32)>0,$H41*$I41,0)/SUM($I$28:$I$31) -> 282.6333333 | U41: =IF(SUM(T$27:T$32)>0,$H41*$I41,0)/SUM($I$28:$I$31) -> 282.6333333 | W41: 0 | Y41: 0 | AA41: 0 | AC41: 0 | AE41: 0 | AG41: 0 | AI41: 0 | AK41: 0 | AM41: 0 | AO41: 0 | AQ41: 0 | AS41: 0 | AU41: 0 | AW41: 0 | AY41: 0 | BA41: 0 | BC41: 0 | BE41: 0 | BG41: 0 | BI41: 0 | BK41: 0 | BM41: 0 | BO41: 0 | BQ41: 0 | BS41: 0 | BU41: 0 | BW41: 0 | BY41: 0 | CA41: 0 | CC41: 0 | CE41: 0 | CG41: 0 | CI41: 0 | CK41: 0 | CM41: 0 | CO41: 0 | CQ41: 0 | CS41: 0 | CU41: 0 | CW41: 0 | CY41: 0 | DA41: 0 | DC41: 0 | DE41: 0 | DG41: 0 | DI41: 0 | DK41: 0 | DM41: 0 | DO41: 0 | DQ41: 0 | DS41: 0 | DU41: 0 | DW41: 0 | DY41: 0 | EA41: 0
D42: Bombachas | E42: 1 | G42: 68 | H42: 68 | I42: 10.96666667 | M42: =IF(SUM(L$27:L$32)>0,$H42*$I42,0)/SUM($I$28:$I$31) -> 0 | O42: 10.96666667 | Q42: 10.96666667 | S42: =IF(SUM(R$27:R$32)>0,$H42*$I42,0)/SUM($I$28:$I$31) -> 10.96666667 | U42: =IF(SUM(T$27:T$32)>0,$H42*$I42,0)/SUM($I$28:$I$31) -> 10.96666667 | W42: 0 | Y42: 0 | AA42: 0 | AC42: 0 | AE42: 0 | AG42: 0 | AI42: 0 | AK42: 0 | AM42: 0 | AO42: 0 | AQ42: 0 | AS42: 0 | AU42: 0 | AW42: 0 | AY42: 0 | BA42: 0 | BC42: 0 | BE42: 0 | BG42: 0 | BI42: 0 | BK42: 0 | BM42: 0 | BO42: 0 | BQ42: 0 | BS42: 0 | BU42: 0 | BW42: 0 | BY42: 0 | CA42: 0 | CC42: 0 | CE42: 0 | CG42: 0 | CI42: 0 | CK42: 0 | CM42: 0 | CO42: 0 | CQ42: 0 | CS42: 0 | CU42: 0 | CW42: 0 | CY42: 0 | DA42: 0 | DC42: 0 | DE42: 0 | DG42: 0 | DI42: 0 | DK42: 0 | DM42: 0 | DO42: 0 | DQ42: 0 | DS42: 0 | DU42: 0 | DW42: 0 | DY42: 0 | EA42: 0
D43: Camisa térmica – Segunda pele, confeccionada em poliéster térmico + elastano + lã acrílica (fleece). Tamanhos a ser definidos no momento da contratação. Cor preta | E43: 1 | G43: 68 | H43: 68 | I43: 67.415 | M43: =IF(SUM(L$27:L$32)>0,$H43*$I43,0)/SUM($I$28:$I$31) -> 0 | O43: 67.415 | Q43: 67.415 | S43: =IF(SUM(R$27:R$32)>0,$H43*$I43,0)/SUM($I$28:$I$31) -> 67.415 | U43: =IF(SUM(T$27:T$32)>0,$H43*$I43,0)/SUM($I$28:$I$31) -> 67.415 | W43: 0 | Y43: 0 | AA43: 0 | AC43: 0 | AE43: 0 | AG43: 0 | AI43: 0 | AK43: 0 | AM43: 0 | AO43: 0 | AQ43: 0 | AS43: 0 | AU43: 0 | AW43: 0 | AY43: 0 | BA43: 0 | BC43: 0 | BE43: 0 | BG43: 0 | BI43: 0 | BK43: 0 | BM43: 0 | BO43: 0 | BQ43: 0 | BS43: 0 | BU43: 0 | BW43: 0 | BY43: 0 | CA43: 0 | CC43: 0 | CE43: 0 | CG43: 0 | CI43: 0 | CK43: 0 | CM43: 0 | CO43: 0 | CQ43: 0 | CS43: 0 | CU43: 0 | CW43: 0 | CY43: 0 | DA43: 0 | DC43: 0 | DE43: 0 | DG43: 0 | DI43: 0 | DK43: 0 | DM43: 0 | DO43: 0 | DQ43: 0 | DS43: 0 | DU43: 0 | DW43: 0 | DY43: 0 | EA43: 0
D44: Bolsa de perna (pochete): Tecido 800D oxford ou superior e nailon resistente, à prova d'água, resistente a perfurações, ajuste completo na cintura e perna, dimensões aproximadas: 17 x 31 x 11 cm, mínimo de 6 bolsos, sistema MOLLE, cor preta. Marca de ref. TACTICAL CLUB, mod. Assalt. | E44: 1 | G44: 68 | H44: 68 | I44: 58.51 | M44: =IF(SUM(L$27:L$32)>0,$H44*$I44,0)/SUM($I$28:$I$31) -> 0 | O44: 58.51 | Q44: 58.51 | S44: =IF(SUM(R$27:R$32)>0,$H44*$I44,0)/SUM($I$28:$I$31) -> 58.51 | U44: =IF(SUM(T$27:T$32)>0,$H44*$I44,0)/SUM($I$28:$I$31) -> 58.51 | W44: 0 | Y44: 0 | AA44: 0 | AC44: 0 | AE44: 0 | AG44: 0 | AI44: 0 | AK44: 0 | AM44: 0 | AO44: 0 | AQ44: 0 | AS44: 0 | AU44: 0 | AW44: 0 | AY44: 0 | BA44: 0 | BC44: 0 | BE44: 0 | BG44: 0 | BI44: 0 | BK44: 0 | BM44: 0 | BO44: 0 | BQ44: 0 | BS44: 0 | BU44: 0 | BW44: 0 | BY44: 0 | CA44: 0 | CC44: 0 | CE44: 0 | CG44: 0 | CI44: 0 | CK44: 0 | CM44: 0 | CO44: 0 | CQ44: 0 | CS44: 0 | CU44: 0 | CW44: 0 | CY44: 0 | DA44: 0 | DC44: 0 | DE44: 0 | DG44: 0 | DI44: 0 | DK44: 0 | DM44: 0 | DO44: 0 | DQ44: 0 | DS44: 0 | DU44: 0 | DW44: 0 | DY44: 0 | EA44: 0
M45: =IF(SUM(L$27:L$32)>0,$E45*$I45,0) -> 0 | O45: 0 | Q45: 0 | S45: =IF(SUM(R$27:R$32)>0,$H45*$I45,0)/SUM($I$28:$I$31) -> 0 | U45: =IF(SUM(T$27:T$32)>0,$H45*$I45,0)/SUM($I$28:$I$31) -> 0 | W45: =IF(SUM(V$27:V$32)>0,$E45*$I45,0) -> 0 | Y45: =IF(SUM(X$27:X$32)>0,$E45*$I45,0) -> 0 | AA45: =IF(SUM(Z$27:Z$32)>0,$E45*$I45,0) -> 0 | AC45: =IF(SUM(AB$27:AB$32)>0,$E45*$I45,0) -> 0 | AE45: =IF(SUM(AD$27:AD$32)>0,$E45*$I45,0) -> 0 | AG45: =IF(SUM(AF$27:AF$32)>0,$E45*$I45,0) -> 0 | AI45: =IF(SUM(AH$27:AH$32)>0,$E45*$I45,0) -> 0 | AK45: =IF(SUM(AJ$27:AJ$32)>0,$E45*$I45,0) -> 0 | AM45: =IF(SUM(AL$27:AL$32)>0,$E45*$I45,0) -> 0 | AO45: =IF(SUM(AN$27:AN$32)>0,$E45*$I45,0) -> 0 | AQ45: =IF(SUM(AP$27:AP$32)>0,$E45*$I45,0) -> 0 | AS45: =IF(SUM(AR$27:AR$32)>0,$E45*$I45,0) -> 0 | AU45: =IF(SUM(AT$27:AT$32)>0,$E45*$I45,0) -> 0 | AW45: =IF(SUM(AV$27:AV$32)>0,$E45*$I45,0) -> 0 | AY45: =IF(SUM(AX$27:AX$32)>0,$E45*$I45,0) -> 0 | BA45: =IF(SUM(AZ$27:AZ$32)>0,$E45*$I45,0) -> 0 | BC45: =IF(SUM(BB$27:BB$32)>0,$E45*$I45,0) -> 0 | BE45: =IF(SUM(BD$27:BD$32)>0,$E45*$I45,0) -> 0 | BG45: =IF(SUM(BF$27:BF$32)>0,$E45*$I45,0) -> 0 | BI45: =IF(SUM(BH$27:BH$32)>0,$E45*$I45,0) -> 0 | BK45: =IF(SUM(BJ$27:BJ$32)>0,$E45*$I45,0) -> 0 | BM45: =IF(SUM(BL$27:BL$32)>0,$E45*$I45,0) -> 0 | BO45: =IF(SUM(BN$27:BN$32)>0,$E45*$I45,0) -> 0 | BQ45: =IF(SUM(BP$27:BP$32)>0,$E45*$I45,0) -> 0 | BS45: =IF(SUM(BR$27:BR$32)>0,$E45*$I45,0) -> 0 | BU45: =IF(SUM(BT$27:BT$32)>0,$E45*$I45,0) -> 0 | BW45: =IF(SUM(BV$27:BV$32)>0,$E45*$I45,0) -> 0 | BY45: =IF(SUM(BX$27:BX$32)>0,$E45*$I45,0) -> 0 | CA45: =IF(SUM(BZ$27:BZ$32)>0,$E45*$I45,0) -> 0 | CC45: =IF(SUM(CB$27:CB$32)>0,$E45*$I45,0) -> 0 | CE45: =IF(SUM(CD$27:CD$32)>0,$E45*$I45,0) -> 0 | CG45: =IF(SUM(CF$27:CF$32)>0,$E45*$I45,0) -> 0 | CI45: =IF(SUM(CH$27:CH$32)>0,$E45*$I45,0) -> 0 | CK45: =IF(SUM(CJ$27:CJ$32)>0,$E45*$I45,0) -> 0 | CM45: =IF(SUM(CL$27:CL$32)>0,$E45*$I45,0) -> 0 | CO45: =IF(SUM(CN$27:CN$32)>0,$E45*$I45,0) -> 0 | CQ45: =IF(SUM(CP$27:CP$32)>0,$E45*$I45,0) -> 0 | CS45: =IF(SUM(CR$27:CR$32)>0,$E45*$I45,0) -> 0 | CU45: =IF(SUM(CT$27:CT$32)>0,$E45*$I45,0) -> 0 | CW45: =IF(SUM(CV$27:CV$32)>0,$E45*$I45,0) -> 0 | CY45: =IF(SUM(CX$27:CX$32)>0,$E45*$I45,0) -> 0 | DA45: =IF(SUM(CZ$27:CZ$32)>0,$E45*$I45,0) -> 0 | DC45: =IF(SUM(DB$27:DB$32)>0,$E45*$I45,0) -> 0 | DE45: =IF(SUM(DD$27:DD$32)>0,$E45*$I45,0) -> 0 | DG45: =IF(SUM(DF$27:DF$32)>0,$E45*$I45,0) -> 0 | DI45: =IF(SUM(DH$27:DH$32)>0,$E45*$I45,0) -> 0 | DK45: =IF(SUM(DJ$27:DJ$32)>0,$E45*$I45,0) -> 0 | DM45: =IF(SUM(DL$27:DL$32)>0,$E45*$I45,0) -> 0 | DO45: =IF(SUM(DN$27:DN$32)>0,$E45*$I45,0) -> 0 | DQ45: =IF(SUM(DP$27:DP$32)>0,$E45*$I45,0) -> 0 | DS45: =IF(SUM(DR$27:DR$32)>0,$E45*$I45,0) -> 0 | DU45: =IF(SUM(DT$27:DT$32)>0,$E45*$I45,0) -> 0 | DW45: =IF(SUM(DV$27:DV$32)>0,$E45*$I45,0) -> 0 | DY45: =IF(SUM(DX$27:DX$32)>0,$E45*$I45,0) -> 0 | EA45: =IF(SUM(DZ$27:DZ$32)>0,$E45*$I45,0) -> 0
C47: CATEGORIAS | I47: QUANTIDADE
L48: =IF($C48=L$4,1,0) -> 0 | N48: =IF($C48=N$4,1,0) -> 0 | P48: =IF($C48=P$4,1,0) -> 0 | R48: =IF($C48=R$4,1,0) -> 0 | T48: =IF($C48=T$4,1,0) -> 0 | V48: =IF($C48=V$4,1,0) -> 0 | X48: =IF($C48=X$4,1,0) -> 0 | Z48: =IF($C48=Z$4,1,0) -> 0 | AB48: =IF($C48=AB$4,1,0) -> 0 | AD48: =IF($C48=AD$4,1,0) -> 0 | AF48: 0 | AH48: 0 | AJ48: 0 | AL48: 0 | AN48: 0 | AP48: 0 | AR48: 0 | AT48: 0 | AV48: 0 | AX48: 0 | AZ48: 0 | BB48: 0 | BD48: 0 | BF48: 0 | BH48: 0 | BJ48: 0 | BL48: 0 | BN48: 0 | BP48: 0 | BR48: 0 | BT48: 0 | BV48: 0 | BX48: 0 | BZ48: 0 | CB48: 0 | CD48: 0 | CF48: 0 | CH48: 0 | CJ48: 0 | CL48: 0 | CN48: 0 | CP48: =IF($C48=CP$4,1,0) -> 0 | CR48: 0 | CT48: 0 | CV48: 0 | CX48: 0 | CZ48: 0 | DB48: 0 | DD48: 0 | DF48: 0 | DH48: 0 | DJ48: 0 | DL48: 0 | DN48: 0 | DP48: 0 | DR48: 0 | DT48: 0 | DV48: 0 | DX48: 0 | DZ48: 0
D49: =HLOOKUP($C49,'Dados Gerais'!$D$5:$BK$10,6) ->  | I49: =HLOOKUP($C49,'Dados Gerais'!$D$5:$BK$14,10) ->  | L49: =IF($C49=L$4,1,0) -> 0 | N49: 0 | P49: 0 | R49: 0 | T49: 0 | V49: 0 | X49: 0 | Z49: 0 | AB49: 0 | AD49: 0 | AF49: 0 | AH49: 0 | AJ49: 0 | AL49: 0 | AN49: 0 | AP49: 0 | AR49: 0 | AT49: 0 | AV49: 0 | AX49: 0 | AZ49: 0 | BB49: 0 | BD49: 0 | BF49: 0 | BH49: 0 | BJ49: 0 | BL49: 0 | BN49: 0 | BP49: 0 | BR49: 0 | BT49: 0 | BV49: 0 | BX49: 0 | BZ49: 0 | CB49: 0 | CD49: 0 | CF49: 0 | CH49: 0 | CJ49: 0 | CL49: 0 | CN49: 0 | CP49: 0 | CR49: 0 | CT49: 0 | CV49: 0 | CX49: 0 | CZ49: 0 | DB49: 0 | DD49: 0 | DF49: 0 | DH49: 0 | DJ49: 0 | DL49: 0 | DN49: 0 | DP49: 0 | DR49: 0 | DT49: 0 | DV49: 0 | DX49: 0 | DZ49: 0
D50: =HLOOKUP($C50,'Dados Gerais'!$D$5:$BK$10,6) ->  | I50: =HLOOKUP($C50,'Dados Gerais'!$D$5:$BK$14,10) ->  | L50: 0 | N50: 0 | P50: 0 | R50: =IF($C50=R$4,1,0) -> 0 | T50: 0 | V50: 0 | X50: 0 | Z50: 0 | AB50: 0 | AD50: 0 | AF50: 0 | AH50: 0 | AJ50: 0 | AL50: 0 | AN50: 0 | AP50: 0 | AR50: 0 | AT50: 0 | AV50: 0 | AX50: 0 | AZ50: 0 | BB50: 0 | BD50: 0 | BF50: 0 | BH50: 0 | BJ50: 0 | BL50: 0 | BN50: 0 | BP50: 0 | BR50: 0 | BT50: 0 | BV50: 0 | BX50: 0 | BZ50: 0 | CB50: 0 | CD50: 0 | CF50: 0 | CH50: 0 | CJ50: 0 | CL50: 0 | CN50: 0 | CP50: 0 | CR50: 0 | CT50: 0 | CV50: 0 | CX50: 0 | CZ50: 0 | DB50: 0 | DD50: 0 | DF50: 0 | DH50: 0 | DJ50: 0 | DL50: 0 | DN50: 0 | DP50: 0 | DR50: 0 | DT50: 0 | DV50: 0 | DX50: 0 | DZ50: 0
L51: =IF($C51=L$4,1,0) -> 0 | N51: =IF($C51=N$4,1,0) -> 0 | P51: =IF($C51=P$4,1,0) -> 0 | R51: 0 | T51: 0 | V51: 0 | X51: 0 | Z51: 0 | AB51: 0 | AD51: 0 | AF51: =IF($C51=AF$4,1,0) -> 0 | AH51: 0 | AJ51: 0 | AL51: 0 | AN51: 0 | AP51: 0 | AR51: 0 | AT51: 0 | AV51: 0 | AX51: 0 | AZ51: 0 | BB51: 0 | BD51: 0 | BF51: 0 | BH51: 0 | BJ51: 0 | BL51: 0 | BN51: 0 | BP51: 0 | BR51: 0 | BT51: 0 | BV51: 0 | BX51: 0 | BZ51: 0 | CB51: 0 | CD51: 0 | CF51: 0 | CH51: 0 | CJ51: 0 | CL51: 0 | CN51: 0 | CP51: 0 | CR51: 0 | CT51: 0 | CV51: 0 | CX51: 0 | CZ51: 0 | DB51: 0 | DD51: 0 | DF51: 0 | DH51: 0 | DJ51: 0 | DL51: 0 | DN51: 0 | DP51: 0 | DR51: 0 | DT51: 0 | DV51: 0 | DX51: 0 | DZ51: 0
C53: ITEM | D53: DESCRIÇÃO | E53: QUANT ANUAL POR POSTO | G53: Nº DE POSTOS | H53: QUANT ANUAL TOTAL | I53: VALOR
M54: =IF(SUM(L$27:L$32)>0,$E54*$I54,0) -> 0 | O54: =IF(SUM(N$27:N$32)>0,$E54*$I54,0) -> 0 | Q54: =IF(SUM(P$27:P$32)>0,$E54*$I54,0) -> 0 | S54: =IF(SUM(R$27:R$32)>0,$E54*$I54,0) -> 0 | U54: =IF(SUM(T$27:T$32)>0,$E54*$I54,0) -> 0 | W54: =IF(SUM(V$27:V$32)>0,$E54*$I54,0) -> 0 | Y54: =IF(SUM(X$27:X$32)>0,$E54*$I54,0) -> 0 | AA54: =IF(SUM(Z$27:Z$32)>0,$E54*$I54,0) -> 0 | AC54: =IF(SUM(AB$27:AB$32)>0,$E54*$I54,0) -> 0 | AE54: =IF(SUM(AD$27:AD$32)>0,$E54*$I54,0) -> 0 | AG54: =IF(SUM(AF$27:AF$32)>0,$E54*$I54,0) -> 0 | AI54: =IF(SUM(AH$27:AH$32)>0,$E54*$I54,0) -> 0 | AK54: =IF(SUM(AJ$27:AJ$32)>0,$E54*$I54,0) -> 0 | AM54: =IF(SUM(AL$27:AL$32)>0,$E54*$I54,0) -> 0 | AO54: =IF(SUM(AN$27:AN$32)>0,$E54*$I54,0) -> 0 | AQ54: =IF(SUM(AP$27:AP$32)>0,$E54*$I54,0) -> 0 | AS54: =IF(SUM(AR$27:AR$32)>0,$E54*$I54,0) -> 0 | AU54: =IF(SUM(AT$27:AT$32)>0,$E54*$I54,0) -> 0 | AW54: =IF(SUM(AV$27:AV$32)>0,$E54*$I54,0) -> 0 | AY54: =IF(SUM(AX$27:AX$32)>0,$E54*$I54,0) -> 0 | BA54: =IF(SUM(AZ$27:AZ$32)>0,$E54*$I54,0) -> 0 | BC54: =IF(SUM(BB$27:BB$32)>0,$E54*$I54,0) -> 0 | BE54: =IF(SUM(BD$27:BD$32)>0,$E54*$I54,0) -> 0 | BG54: =IF(SUM(BF$27:BF$32)>0,$E54*$I54,0) -> 0 | BI54: =IF(SUM(BH$27:BH$32)>0,$E54*$I54,0) -> 0 | BK54: =IF(SUM(BJ$27:BJ$32)>0,$E54*$I54,0) -> 0 | BM54: =IF(SUM(BL$27:BL$32)>0,$E54*$I54,0) -> 0 | BO54: =IF(SUM(BN$27:BN$32)>0,$E54*$I54,0) -> 0 | BQ54: =IF(SUM(BP$27:BP$32)>0,$E54*$I54,0) -> 0 | BS54: =IF(SUM(BR$27:BR$32)>0,$E54*$I54,0) -> 0 | BU54: =IF(SUM(BT$27:BT$32)>0,$E54*$I54,0) -> 0 | BW54: =IF(SUM(BV$27:BV$32)>0,$E54*$I54,0) -> 0 | BY54: =IF(SUM(BX$27:BX$32)>0,$E54*$I54,0) -> 0 | CA54: =IF(SUM(BZ$27:BZ$32)>0,$E54*$I54,0) -> 0 | CC54: =IF(SUM(CB$27:CB$32)>0,$E54*$I54,0) -> 0 | CE54: =IF(SUM(CD$27:CD$32)>0,$E54*$I54,0) -> 0 | CG54: =IF(SUM(CF$27:CF$32)>0,$E54*$I54,0) -> 0 | CI54: =IF(SUM(CH$27:CH$32)>0,$E54*$I54,0) -> 0 | CK54: =IF(SUM(CJ$27:CJ$32)>0,$E54*$I54,0) -> 0 | CM54: =IF(SUM(CL$27:CL$32)>0,$E54*$I54,0) -> 0 | CO54: =IF(SUM(CN$27:CN$32)>0,$E54*$I54,0) -> 0 | CQ54: =IF(SUM(CP$27:CP$32)>0,$E54*$I54,0) -> 0 | CS54: =IF(SUM(CR$27:CR$32)>0,$E54*$I54,0) -> 0 | CU54: =IF(SUM(CT$27:CT$32)>0,$E54*$I54,0) -> 0 | CW54: =IF(SUM(CV$27:CV$32)>0,$E54*$I54,0) -> 0 | CY54: =IF(SUM(CX$27:CX$32)>0,$E54*$I54,0) -> 0 | DA54: =IF(SUM(CZ$27:CZ$32)>0,$E54*$I54,0) -> 0 | DC54: =IF(SUM(DB$27:DB$32)>0,$E54*$I54,0) -> 0 | DE54: =IF(SUM(DD$27:DD$32)>0,$E54*$I54,0) -> 0 | DG54: =IF(SUM(DF$27:DF$32)>0,$E54*$I54,0) -> 0 | DI54: =IF(SUM(DH$27:DH$32)>0,$E54*$I54,0) -> 0 | DK54: =IF(SUM(DJ$27:DJ$32)>0,$E54*$I54,0) -> 0 | DM54: =IF(SUM(DL$27:DL$32)>0,$E54*$I54,0) -> 0 | DO54: =IF(SUM(DN$27:DN$32)>0,$E54*$I54,0) -> 0 | DQ54: =IF(SUM(DP$27:DP$32)>0,$E54*$I54,0) -> 0 | DS54: =IF(SUM(DR$27:DR$32)>0,$E54*$I54,0) -> 0 | DU54: =IF(SUM(DT$27:DT$32)>0,$E54*$I54,0) -> 0 | DW54: =IF(SUM(DV$27:DV$32)>0,$E54*$I54,0) -> 0 | DY54: =IF(SUM(DX$27:DX$32)>0,$E54*$I54,0) -> 0 | EA54: =IF(SUM(DZ$27:DZ$32)>0,$E54*$I54,0) -> 0
C55: 7 | E55: 4 | G55: =I49+I50 ->  | H55: =G55*E55 ->  | M55: =IF(SUM(L$49:L$51)>0,$E55*$I55,0) -> 0 | O55: =IF(SUM(N$49:N$51)>0,$E55*$I55,0) -> 0 | Q55: =IF(SUM(P$49:P$51)>0,$E55*$I55,0) -> 0 | S55: =IF(SUM(R$49:R$51)>0,$E55*$I55,0) -> 0 | U55: =IF(SUM(T$49:T$51)>0,$E55*$I55,0) -> 0 | W55: =IF(SUM(V$49:V$51)>0,$E55*$I55,0) -> 0 | Y55: =IF(SUM(X$49:X$51)>0,$E55*$I55,0) -> 0 | AA55: =IF(SUM(Z$49:Z$51)>0,$E55*$I55,0) -> 0 | AC55: =IF(SUM(AB$49:AB$51)>0,$E55*$I55,0) -> 0 | AE55: =IF(SUM(AD$49:AD$51)>0,$E55*$I55,0) -> 0 | AG55: =IF(SUM(AF$49:AF$51)>0,$E55*$I55,0) -> 0 | AI55: =IF(SUM(AH$49:AH$51)>0,$E55*$I55,0) -> 0 | AK55: =IF(SUM(AJ$49:AJ$51)>0,$E55*$I55,0) -> 0 | AM55: =IF(SUM(AL$49:AL$51)>0,$E55*$I55,0) -> 0 | AO55: =IF(SUM(AN$49:AN$51)>0,$E55*$I55,0) -> 0 | AQ55: =IF(SUM(AP$49:AP$51)>0,$E55*$I55,0) -> 0 | AS55: =IF(SUM(AR$49:AR$51)>0,$E55*$I55,0) -> 0 | AU55: =IF(SUM(AT$49:AT$51)>0,$E55*$I55,0) -> 0 | AW55: =IF(SUM(AV$49:AV$51)>0,$E55*$I55,0) -> 0 | AY55: =IF(SUM(AX$49:AX$51)>0,$E55*$I55,0) -> 0 | BA55: =IF(SUM(AZ$49:AZ$51)>0,$E55*$I55,0) -> 0 | BC55: =IF(SUM(BB$49:BB$51)>0,$E55*$I55,0) -> 0 | BE55: =IF(SUM(BD$49:BD$51)>0,$E55*$I55,0) -> 0 | BG55: =IF(SUM(BF$49:BF$51)>0,$E55*$I55,0) -> 0 | BI55: =IF(SUM(BH$49:BH$51)>0,$E55*$I55,0) -> 0 | BK55: =IF(SUM(BJ$49:BJ$51)>0,$E55*$I55,0) -> 0 | BM55: =IF(SUM(BL$49:BL$51)>0,$E55*$I55,0) -> 0 | BO55: =IF(SUM(BN$49:BN$51)>0,$E55*$I55,0) -> 0 | BQ55: =IF(SUM(BP$49:BP$51)>0,$E55*$I55,0) -> 0 | BS55: =IF(SUM(BR$49:BR$51)>0,$E55*$I55,0) -> 0 | BU55: =IF(SUM(BT$49:BT$51)>0,$E55*$I55,0) -> 0 | BW55: =IF(SUM(BV$49:BV$51)>0,$E55*$I55,0) -> 0 | BY55: =IF(SUM(BX$49:BX$51)>0,$E55*$I55,0) -> 0 | CA55: =IF(SUM(BZ$49:BZ$51)>0,$E55*$I55,0) -> 0 | CC55: =IF(SUM(CB$49:CB$51)>0,$E55*$I55,0) -> 0 | CE55: =IF(SUM(CD$49:CD$51)>0,$E55*$I55,0) -> 0 | CG55: =IF(SUM(CF$49:CF$51)>0,$E55*$I55,0) -> 0 | CI55: =IF(SUM(CH$49:CH$51)>0,$E55*$I55,0) -> 0 | CK55: =IF(SUM(CJ$49:CJ$51)>0,$E55*$I55,0) -> 0 | CM55: =IF(SUM(CL$49:CL$51)>0,$E55*$I55,0) -> 0 | CO55: =IF(SUM(CN$49:CN$51)>0,$E55*$I55,0) -> 0 | CQ55: =IF(SUM(CP$49:CP$51)>0,$E55*$I55,0) -> 0 | CS55: =IF(SUM(CR$49:CR$51)>0,$E55*$I55,0) -> 0 | CU55: =IF(SUM(CT$49:CT$51)>0,$E55*$I55,0) -> 0 | CW55: =IF(SUM(CV$49:CV$51)>0,$E55*$I55,0) -> 0 | CY55: =IF(SUM(CX$49:CX$51)>0,$E55*$I55,0) -> 0 | DA55: =IF(SUM(CZ$49:CZ$51)>0,$E55*$I55,0) -> 0 | DC55: =IF(SUM(DB$49:DB$51)>0,$E55*$I55,0) -> 0 | DE55: =IF(SUM(DD$49:DD$51)>0,$E55*$I55,0) -> 0 | DG55: =IF(SUM(DF$49:DF$51)>0,$E55*$I55,0) -> 0 | DI55: =IF(SUM(DH$49:DH$51)>0,$E55*$I55,0) -> 0 | DK55: =IF(SUM(DJ$49:DJ$51)>0,$E55*$I55,0) -> 0 | DM55: =IF(SUM(DL$49:DL$51)>0,$E55*$I55,0) -> 0 | DO55: =IF(SUM(DN$49:DN$51)>0,$E55*$I55,0) -> 0 | DQ55: =IF(SUM(DP$49:DP$51)>0,$E55*$I55,0) -> 0 | DS55: =IF(SUM(DR$49:DR$51)>0,$E55*$I55,0) -> 0 | DU55: =IF(SUM(DT$49:DT$51)>0,$E55*$I55,0) -> 0 | DW55: =IF(SUM(DV$49:DV$51)>0,$E55*$I55,0) -> 0 | DY55: =IF(SUM(DX$49:DX$51)>0,$E55*$I55,0) -> 0 | EA55: =IF(SUM(DZ$49:DZ$51)>0,$E55*$I55,0) -> 0
C56: 8 | E56: =E55 -> 4 | G56: =G55 ->  | M56: 0 | O56: 0 | Q56: 0 | S56: 0 | U56: 0 | W56: 0 | Y56: 0 | AA56: 0 | AC56: 0 | AE56: 0 | AG56: 0 | AI56: 0 | AK56: 0 | AM56: 0 | AO56: 0 | AQ56: 0 | AS56: 0 | AU56: 0 | AW56: 0 | AY56: 0 | BA56: 0 | BC56: 0 | BE56: 0 | BG56: 0 | BI56: 0 | BK56: 0 | BM56: 0 | BO56: 0 | BQ56: 0 | BS56: 0 | BU56: 0 | BW56: 0 | BY56: 0 | CA56: 0 | CC56: 0 | CE56: 0 | CG56: 0 | CI56: 0 | CK56: 0 | CM56: 0 | CO56: 0 | CQ56: 0 | CS56: 0 | CU56: 0 | CW56: 0 | CY56: 0 | DA56: 0 | DC56: 0 | DE56: 0 | DG56: 0 | DI56: 0 | DK56: 0 | DM56: 0 | DO56: 0 | DQ56: 0 | DS56: 0 | DU56: 0 | DW56: 0 | DY56: 0 | EA56: 0
C57: 9 | E57: =E56 -> 4 | G57: =G56 ->  | M57: 0 | O57: 0 | Q57: 0 | S57: 0 | U57: 0 | W57: 0 | Y57: 0 | AA57: 0 | AC57: 0 | AE57: 0 | AG57: 0 | AI57: 0 | AK57: 0 | AM57: 0 | AO57: 0 | AQ57: 0 | AS57: 0 | AU57: 0 | AW57: 0 | AY57: 0 | BA57: 0 | BC57: 0 | BE57: 0 | BG57: 0 | BI57: 0 | BK57: 0 | BM57: 0 | BO57: 0 | BQ57: 0 | BS57: 0 | BU57: 0 | BW57: 0 | BY57: 0 | CA57: 0 | CC57: 0 | CE57: 0 | CG57: 0 | CI57: 0 | CK57: 0 | CM57: 0 | CO57: 0 | CQ57: 0 | CS57: 0 | CU57: 0 | CW57: 0 | CY57: 0 | DA57: 0 | DC57: 0 | DE57: 0 | DG57: 0 | DI57: 0 | DK57: 0 | DM57: 0 | DO57: 0 | DQ57: 0 | DS57: 0 | DU57: 0 | DW57: 0 | DY57: 0 | EA57: 0
C58: 10 | E58: 4 | M58: 0 | O58: 0 | Q58: 0 | S58: 0 | U58: 0 | W58: 0 | Y58: 0 | AA58: 0 | AC58: 0 | AE58: 0 | AG58: 0 | AI58: 0 | AK58: 0 | AM58: 0 | AO58: 0 | AQ58: 0 | AS58: 0 | AU58: 0 | AW58: 0 | AY58: 0 | BA58: 0 | BC58: 0 | BE58: 0 | BG58: 0 | BI58: 0 | BK58: 0 | BM58: 0 | BO58: 0 | BQ58: 0 | BS58: 0 | BU58: 0 | BW58: 0 | BY58: 0 | CA58: 0 | CC58: 0 | CE58: 0 | CG58: 0 | CI58: 0 | CK58: 0 | CM58: 0 | CO58: 0 | CQ58: 0 | CS58: 0 | CU58: 0 | CW58: 0 | CY58: 0 | DA58: 0 | DC58: 0 | DE58: 0 | DG58: 0 | DI58: 0 | DK58: 0 | DM58: 0 | DO58: 0 | DQ58: 0 | DS58: 0 | DU58: 0 | DW58: 0 | DY58: 0 | EA58: 0
C59: 11 | E59: 4 | M59: 0 | O59: 0 | Q59: 0 | S59: 0 | U59: 0 | W59: 0 | Y59: 0 | AA59: 0 | AC59: 0 | AE59: 0 | AG59: 0 | AI59: 0 | AK59: 0 | AM59: 0 | AO59: 0 | AQ59: 0 | AS59: 0 | AU59: 0 | AW59: 0 | AY59: 0 | BA59: 0 | BC59: 0 | BE59: 0 | BG59: 0 | BI59: 0 | BK59: 0 | BM59: 0 | BO59: 0 | BQ59: 0 | BS59: 0 | BU59: 0 | BW59: 0 | BY59: 0 | CA59: 0 | CC59: 0 | CE59: 0 | CG59: 0 | CI59: 0 | CK59: 0 | CM59: 0 | CO59: 0 | CQ59: 0 | CS59: 0 | CU59: 0 | CW59: 0 | CY59: 0 | DA59: 0 | DC59: 0 | DE59: 0 | DG59: 0 | DI59: 0 | DK59: 0 | DM59: 0 | DO59: 0 | DQ59: 0 | DS59: 0 | DU59: 0 | DW59: 0 | DY59: 0 | EA59: 0
C60: 12 | E60: 4 | M60: 0 | O60: 0 | Q60: 0 | S60: 0 | U60: 0 | W60: 0 | Y60: 0 | AA60: 0 | AC60: 0 | AE60: 0 | AG60: 0 | AI60: 0 | AK60: 0 | AM60: 0 | AO60: 0 | AQ60: 0 | AS60: 0 | AU60: 0 | AW60: 0 | AY60: 0 | BA60: 0 | BC60: 0 | BE60: 0 | BG60: 0 | BI60: 0 | BK60: 0 | BM60: 0 | BO60: 0 | BQ60: 0 | BS60: 0 | BU60: 0 | BW60: 0 | BY60: 0 | CA60: 0 | CC60: 0 | CE60: 0 | CG60: 0 | CI60: 0 | CK60: 0 | CM60: 0 | CO60: 0 | CQ60: 0 | CS60: 0 | CU60: 0 | CW60: 0 | CY60: 0 | DA60: 0 | DC60: 0 | DE60: 0 | DG60: 0 | DI60: 0 | DK60: 0 | DM60: 0 | DO60: 0 | DQ60: 0 | DS60: 0 | DU60: 0 | DW60: 0 | DY60: 0 | EA60: 0
M61: 0 | O61: 0 | Q61: 0 | S61: 0 | U61: 0 | W61: 0 | Y61: 0 | AA61: 0 | AC61: 0 | AE61: 0 | AG61: 0 | AI61: 0 | AK61: 0 | AM61: 0 | AO61: 0 | AQ61: 0 | AS61: 0 | AU61: 0 | AW61: 0 | AY61: 0 | BA61: 0 | BC61: 0 | BE61: 0 | BG61: 0 | BI61: 0 | BK61: 0 | BM61: 0 | BO61: 0 | BQ61: 0 | BS61: 0 | BU61: 0 | BW61: 0 | BY61: 0 | CA61: 0 | CC61: 0 | CE61: 0 | CG61: 0 | CI61: 0 | CK61: 0 | CM61: 0 | CO61: 0 | CQ61: 0 | CS61: 0 | CU61: 0 | CW61: 0 | CY61: 0 | DA61: 0 | DC61: 0 | DE61: 0 | DG61: 0 | DI61: 0 | DK61: 0 | DM61: 0 | DO61: 0 | DQ61: 0 | DS61: 0 | DU61: 0 | DW61: 0 | DY61: 0 | EA61: 0
C62: CATEGORIAS | I62: QUANTIDADE
L63: =IF($C63=L$4,1,0) -> 0 | N63: =IF($C63=N$4,1,0) -> 0 | P63: =IF($C63=P$4,1,0) -> 0 | R63: =IF($C63=R$4,1,0) -> 0 | T63: =IF($C63=T$4,1,0) -> 0 | V63: =IF($C63=V$4,1,0) -> 0 | X63: =IF($C63=X$4,1,0) -> 0 | Z63: =IF($C63=Z$4,1,0) -> 0 | AB63: =IF($C63=AB$4,1,0) -> 0 | AD63: =IF($C63=AD$4,1,0) -> 0 | AF63: 0 | AH63: 0 | AJ63: 0 | AL63: 0 | AN63: 0 | AP63: 0 | AR63: 0 | AT63: 0 | AV63: 0 | AX63: 0 | AZ63: 0 | BB63: 0 | BD63: 0 | BF63: 0 | BH63: 0 | BJ63: 0 | BL63: 0 | BN63: 0 | BP63: 0 | BR63: 0 | BT63: 0 | BV63: 0 | BX63: 0 | BZ63: 0 | CB63: 0 | CD63: 0 | CF63: 0 | CH63: 0 | CJ63: 0 | CL63: 0 | CN63: 0 | CP63: =IF($C63=CP$4,1,0) -> 0 | CR63: 0 | CT63: 0 | CV63: 0 | CX63: 0 | CZ63: 0 | DB63: 0 | DD63: 0 | DF63: 0 | DH63: 0 | DJ63: 0 | DL63: 0 | DN63: 0 | DP63: 0 | DR63: 0 | DT63: 0 | DV63: 0 | DX63: 0 | DZ63: 0
D64: =HLOOKUP($C64,'Dados Gerais'!$D$5:$BK$10,6) ->  | I64: =HLOOKUP($C64,'Dados Gerais'!$D$5:$BK$14,10) ->  | L64: =IF($C64=L$4,1,0) -> 0 | N64: 0 | P64: 0 | R64: 0 | T64: 0 | V64: 0 | X64: 0 | Z64: 0 | AB64: 0 | AD64: 0 | AF64: 0 | AH64: 0 | AJ64: 0 | AL64: 0 | AN64: 0 | AP64: 0 | AR64: 0 | AT64: 0 | AV64: 0 | AX64: 0 | AZ64: 0 | BB64: 0 | BD64: 0 | BF64: 0 | BH64: 0 | BJ64: 0 | BL64: 0 | BN64: 0 | BP64: 0 | BR64: 0 | BT64: 0 | BV64: 0 | BX64: 0 | BZ64: 0 | CB64: 0 | CD64: 0 | CF64: 0 | CH64: 0 | CJ64: 0 | CL64: 0 | CN64: 0 | CP64: 0 | CR64: 0 | CT64: 0 | CV64: 0 | CX64: 0 | CZ64: 0 | DB64: 0 | DD64: 0 | DF64: 0 | DH64: 0 | DJ64: 0 | DL64: 0 | DN64: 0 | DP64: 0 | DR64: 0 | DT64: 0 | DV64: 0 | DX64: 0 | DZ64: 0
D65: =HLOOKUP($C65,'Dados Gerais'!$D$5:$BK$10,6) ->  | I65: =HLOOKUP($C65,'Dados Gerais'!$D$5:$BK$14,10) ->  | L65: 0 | N65: 0 | P65: 0 | R65: =IF($C65=R$4,1,0) -> 0 | T65: 0 | V65: 0 | X65: 0 | Z65: 0 | AB65: 0 | AD65: 0 | AF65: 0 | AH65: 0 | AJ65: 0 | AL65: 0 | AN65: 0 | AP65: 0 | AR65: 0 | AT65: 0 | AV65: 0 | AX65: 0 | AZ65: 0 | BB65: 0 | BD65: 0 | BF65: 0 | BH65: 0 | BJ65: 0 | BL65: 0 | BN65: 0 | BP65: 0 | BR65: 0 | BT65: 0 | BV65: 0 | BX65: 0 | BZ65: 0 | CB65: 0 | CD65: 0 | CF65: 0 | CH65: 0 | CJ65: 0 | CL65: 0 | CN65: 0 | CP65: 0 | CR65: 0 | CT65: 0 | CV65: 0 | CX65: 0 | CZ65: 0 | DB65: 0 | DD65: 0 | DF65: 0 | DH65: 0 | DJ65: 0 | DL65: 0 | DN65: 0 | DP65: 0 | DR65: 0 | DT65: 0 | DV65: 0 | DX65: 0 | DZ65: 0
L66: =IF($C66=L$4,1,0) -> 0 | N66: =IF($C66=N$4,1,0) -> 0 | P66: =IF($C66=P$4,1,0) -> 0 | R66: 0 | T66: 0 | V66: 0 | X66: 0 | Z66: 0 | AB66: 0 | AD66: 0 | AF66: =IF($C66=AF$4,1,0) -> 0 | AH66: 0 | AJ66: 0 | AL66: 0 | AN66: 0 | AP66: 0 | AR66: 0 | AT66: 0 | AV66: 0 | AX66: 0 | AZ66: 0 | BB66: 0 | BD66: 0 | BF66: 0 | BH66: 0 | BJ66: 0 | BL66: 0 | BN66: 0 | BP66: 0 | BR66: 0 | BT66: 0 | BV66: 0 | BX66: 0 | BZ66: 0 | CB66: 0 | CD66: 0 | CF66: 0 | CH66: 0 | CJ66: 0 | CL66: 0 | CN66: 0 | CP66: 0 | CR66: 0 | CT66: 0 | CV66: 0 | CX66: 0 | CZ66: 0 | DB66: 0 | DD66: 0 | DF66: 0 | DH66: 0 | DJ66: 0 | DL66: 0 | DN66: 0 | DP66: 0 | DR66: 0 | DT66: 0 | DV66: 0 | DX66: 0 | DZ66: 0
C68: ITEM | D68: DESCRIÇÃO | E68: QUANT ANUAL POR POSTO | G68: Nº DE POSTOS | H68: QUANT ANUAL TOTAL | I68: VALOR
M69: =IF(SUM(L$27:L$32)>0,$E69*$I69,0) -> 0 | O69: =IF(SUM(N$27:N$32)>0,$E69*$I69,0) -> 0 | Q69: =IF(SUM(P$27:P$32)>0,$E69*$I69,0) -> 0 | S69: =IF(SUM(R$27:R$32)>0,$E69*$I69,0) -> 0 | U69: =IF(SUM(T$27:T$32)>0,$E69*$I69,0) -> 0 | W69: =IF(SUM(V$27:V$32)>0,$E69*$I69,0) -> 0 | Y69: =IF(SUM(X$27:X$32)>0,$E69*$I69,0) -> 0 | AA69: =IF(SUM(Z$27:Z$32)>0,$E69*$I69,0) -> 0 | AC69: =IF(SUM(AB$27:AB$32)>0,$E69*$I69,0) -> 0 | AE69: =IF(SUM(AD$27:AD$32)>0,$E69*$I69,0) -> 0 | AG69: =IF(SUM(AF$27:AF$32)>0,$E69*$I69,0) -> 0 | AI69: =IF(SUM(AH$27:AH$32)>0,$E69*$I69,0) -> 0 | AK69: =IF(SUM(AJ$27:AJ$32)>0,$E69*$I69,0) -> 0 | AM69: =IF(SUM(AL$27:AL$32)>0,$E69*$I69,0) -> 0 | AO69: =IF(SUM(AN$27:AN$32)>0,$E69*$I69,0) -> 0 | AQ69: =IF(SUM(AP$27:AP$32)>0,$E69*$I69,0) -> 0 | AS69: =IF(SUM(AR$27:AR$32)>0,$E69*$I69,0) -> 0 | AU69: =IF(SUM(AT$27:AT$32)>0,$E69*$I69,0) -> 0 | AW69: =IF(SUM(AV$27:AV$32)>0,$E69*$I69,0) -> 0 | AY69: =IF(SUM(AX$27:AX$32)>0,$E69*$I69,0) -> 0 | BA69: =IF(SUM(AZ$27:AZ$32)>0,$E69*$I69,0) -> 0 | BC69: =IF(SUM(BB$27:BB$32)>0,$E69*$I69,0) -> 0 | BE69: =IF(SUM(BD$27:BD$32)>0,$E69*$I69,0) -> 0 | BG69: =IF(SUM(BF$27:BF$32)>0,$E69*$I69,0) -> 0 | BI69: =IF(SUM(BH$27:BH$32)>0,$E69*$I69,0) -> 0 | BK69: =IF(SUM(BJ$27:BJ$32)>0,$E69*$I69,0) -> 0 | BM69: =IF(SUM(BL$27:BL$32)>0,$E69*$I69,0) -> 0 | BO69: =IF(SUM(BN$27:BN$32)>0,$E69*$I69,0) -> 0 | BQ69: =IF(SUM(BP$27:BP$32)>0,$E69*$I69,0) -> 0 | BS69: =IF(SUM(BR$27:BR$32)>0,$E69*$I69,0) -> 0 | BU69: =IF(SUM(BT$27:BT$32)>0,$E69*$I69,0) -> 0 | BW69: =IF(SUM(BV$27:BV$32)>0,$E69*$I69,0) -> 0 | BY69: =IF(SUM(BX$27:BX$32)>0,$E69*$I69,0) -> 0 | CA69: =IF(SUM(BZ$27:BZ$32)>0,$E69*$I69,0) -> 0 | CC69: =IF(SUM(CB$27:CB$32)>0,$E69*$I69,0) -> 0 | CE69: =IF(SUM(CD$27:CD$32)>0,$E69*$I69,0) -> 0 | CG69: =IF(SUM(CF$27:CF$32)>0,$E69*$I69,0) -> 0 | CI69: =IF(SUM(CH$27:CH$32)>0,$E69*$I69,0) -> 0 | CK69: =IF(SUM(CJ$27:CJ$32)>0,$E69*$I69,0) -> 0 | CM69: =IF(SUM(CL$27:CL$32)>0,$E69*$I69,0) -> 0 | CO69: =IF(SUM(CN$27:CN$32)>0,$E69*$I69,0) -> 0 | CQ69: =IF(SUM(CP$27:CP$32)>0,$E69*$I69,0) -> 0 | CS69: =IF(SUM(CR$27:CR$32)>0,$E69*$I69,0) -> 0 | CU69: =IF(SUM(CT$27:CT$32)>0,$E69*$I69,0) -> 0 | CW69: =IF(SUM(CV$27:CV$32)>0,$E69*$I69,0) -> 0 | CY69: =IF(SUM(CX$27:CX$32)>0,$E69*$I69,0) -> 0 | DA69: =IF(SUM(CZ$27:CZ$32)>0,$E69*$I69,0) -> 0 | DC69: =IF(SUM(DB$27:DB$32)>0,$E69*$I69,0) -> 0 | DE69: =IF(SUM(DD$27:DD$32)>0,$E69*$I69,0) -> 0 | DG69: =IF(SUM(DF$27:DF$32)>0,$E69*$I69,0) -> 0 | DI69: =IF(SUM(DH$27:DH$32)>0,$E69*$I69,0) -> 0 | DK69: =IF(SUM(DJ$27:DJ$32)>0,$E69*$I69,0) -> 0 | DM69: =IF(SUM(DL$27:DL$32)>0,$E69*$I69,0) -> 0 | DO69: =IF(SUM(DN$27:DN$32)>0,$E69*$I69,0) -> 0 | DQ69: =IF(SUM(DP$27:DP$32)>0,$E69*$I69,0) -> 0 | DS69: =IF(SUM(DR$27:DR$32)>0,$E69*$I69,0) -> 0 | DU69: =IF(SUM(DT$27:DT$32)>0,$E69*$I69,0) -> 0 | DW69: =IF(SUM(DV$27:DV$32)>0,$E69*$I69,0) -> 0 | DY69: =IF(SUM(DX$27:DX$32)>0,$E69*$I69,0) -> 0 | EA69: =IF(SUM(DZ$27:DZ$32)>0,$E69*$I69,0) -> 0
C70: 13 | E70: 4 | G70: =I64+I65 ->  | H70: =G70*E70 ->  | M70: =IF(SUM(L$63:L$66)>0,$E70*$I70,0) -> 0 | O70: =IF(SUM(N$63:N$66)>0,$E70*$I70,0) -> 0 | Q70: =IF(SUM(P$63:P$66)>0,$E70*$I70,0) -> 0 | S70: =IF(SUM(R$63:R$66)>0,$E70*$I70,0) -> 0 | U70: =IF(SUM(T$63:T$66)>0,$E70*$I70,0) -> 0 | W70: =IF(SUM(V$63:V$66)>0,$E70*$I70,0) -> 0 | Y70: =IF(SUM(X$63:X$66)>0,$E70*$I70,0) -> 0 | AA70: =IF(SUM(Z$63:Z$66)>0,$E70*$I70,0) -> 0 | AC70: =IF(SUM(AB$63:AB$66)>0,$E70*$I70,0) -> 0 | AE70: =IF(SUM(AD$63:AD$66)>0,$E70*$I70,0) -> 0 | AG70: =IF(SUM(AF$63:AF$66)>0,$E70*$I70,0) -> 0 | AI70: =IF(SUM(AH$63:AH$66)>0,$E70*$I70,0) -> 0 | AK70: =IF(SUM(AJ$63:AJ$66)>0,$E70*$I70,0) -> 0 | AM70: =IF(SUM(AL$63:AL$66)>0,$E70*$I70,0) -> 0 | AO70: =IF(SUM(AN$63:AN$66)>0,$E70*$I70,0) -> 0 | AQ70: =IF(SUM(AP$63:AP$66)>0,$E70*$I70,0) -> 0 | AS70: =IF(SUM(AR$63:AR$66)>0,$E70*$I70,0) -> 0 | AU70: =IF(SUM(AT$63:AT$66)>0,$E70*$I70,0) -> 0 | AW70: =IF(SUM(AV$63:AV$66)>0,$E70*$I70,0) -> 0 | AY70: =IF(SUM(AX$63:AX$66)>0,$E70*$I70,0) -> 0 | BA70: =IF(SUM(AZ$63:AZ$66)>0,$E70*$I70,0) -> 0 | BC70: =IF(SUM(BB$63:BB$66)>0,$E70*$I70,0) -> 0 | BE70: =IF(SUM(BD$63:BD$66)>0,$E70*$I70,0) -> 0 | BG70: =IF(SUM(BF$63:BF$66)>0,$E70*$I70,0) -> 0 | BI70: =IF(SUM(BH$63:BH$66)>0,$E70*$I70,0) -> 0 | BK70: =IF(SUM(BJ$63:BJ$66)>0,$E70*$I70,0) -> 0 | BM70: =IF(SUM(BL$63:BL$66)>0,$E70*$I70,0) -> 0 | BO70: =IF(SUM(BN$63:BN$66)>0,$E70*$I70,0) -> 0 | BQ70: =IF(SUM(BP$63:BP$66)>0,$E70*$I70,0) -> 0 | BS70: =IF(SUM(BR$63:BR$66)>0,$E70*$I70,0) -> 0 | BU70: =IF(SUM(BT$63:BT$66)>0,$E70*$I70,0) -> 0 | BW70: =IF(SUM(BV$63:BV$66)>0,$E70*$I70,0) -> 0 | BY70: =IF(SUM(BX$63:BX$66)>0,$E70*$I70,0) -> 0 | CA70: =IF(SUM(BZ$63:BZ$66)>0,$E70*$I70,0) -> 0 | CC70: =IF(SUM(CB$63:CB$66)>0,$E70*$I70,0) -> 0 | CE70: =IF(SUM(CD$63:CD$66)>0,$E70*$I70,0) -> 0 | CG70: =IF(SUM(CF$63:CF$66)>0,$E70*$I70,0) -> 0 | CI70: =IF(SUM(CH$63:CH$66)>0,$E70*$I70,0) -> 0 | CK70: =IF(SUM(CJ$63:CJ$66)>0,$E70*$I70,0) -> 0 | CM70: =IF(SUM(CL$63:CL$66)>0,$E70*$I70,0) -> 0 | CO70: =IF(SUM(CN$63:CN$66)>0,$E70*$I70,0) -> 0 | CQ70: =IF(SUM(CP$63:CP$66)>0,$E70*$I70,0) -> 0 | CS70: =IF(SUM(CR$63:CR$66)>0,$E70*$I70,0) -> 0 | CU70: =IF(SUM(CT$63:CT$66)>0,$E70*$I70,0) -> 0 | CW70: =IF(SUM(CV$63:CV$66)>0,$E70*$I70,0) -> 0 | CY70: =IF(SUM(CX$63:CX$66)>0,$E70*$I70,0) -> 0 | DA70: =IF(SUM(CZ$63:CZ$66)>0,$E70*$I70,0) -> 0 | DC70: =IF(SUM(DB$63:DB$66)>0,$E70*$I70,0) -> 0 | DE70: =IF(SUM(DD$63:DD$66)>0,$E70*$I70,0) -> 0 | DG70: =IF(SUM(DF$63:DF$66)>0,$E70*$I70,0) -> 0 | DI70: =IF(SUM(DH$63:DH$66)>0,$E70*$I70,0) -> 0 | DK70: =IF(SUM(DJ$63:DJ$66)>0,$E70*$I70,0) -> 0 | DM70: =IF(SUM(DL$63:DL$66)>0,$E70*$I70,0) -> 0 | DO70: =IF(SUM(DN$63:DN$66)>0,$E70*$I70,0) -> 0 | DQ70: =IF(SUM(DP$63:DP$66)>0,$E70*$I70,0) -> 0 | DS70: =IF(SUM(DR$63:DR$66)>0,$E70*$I70,0) -> 0 | DU70: =IF(SUM(DT$63:DT$66)>0,$E70*$I70,0) -> 0 | DW70: =IF(SUM(DV$63:DV$66)>0,$E70*$I70,0) -> 0 | DY70: =IF(SUM(DX$63:DX$66)>0,$E70*$I70,0) -> 0 | EA70: =IF(SUM(DZ$63:DZ$66)>0,$E70*$I70,0) -> 0
C71: 14 | E71: =E70 -> 4 | G71: =G70 ->  | M71: =IF(SUM(L$63:L$66)>0,$E71*$I71,0) -> 0 | O71: =IF(SUM(N$63:N$66)>0,$E71*$I71,0) -> 0 | Q71: =IF(SUM(P$63:P$66)>0,$E71*$I71,0) -> 0 | S71: =IF(SUM(R$63:R$66)>0,$E71*$I71,0) -> 0 | U71: =IF(SUM(T$63:T$66)>0,$E71*$I71,0) -> 0 | W71: =IF(SUM(V$63:V$66)>0,$E71*$I71,0) -> 0 | Y71: =IF(SUM(X$63:X$66)>0,$E71*$I71,0) -> 0 | AA71: =IF(SUM(Z$63:Z$66)>0,$E71*$I71,0) -> 0 | AC71: =IF(SUM(AB$63:AB$66)>0,$E71*$I71,0) -> 0 | AE71: =IF(SUM(AD$63:AD$66)>0,$E71*$I71,0) -> 0 | AG71: 0 | AI71: 0 | AK71: 0 | AM71: 0 | AO71: 0 | AQ71: 0 | AS71: 0 | AU71: 0 | AW71: 0 | AY71: 0 | BA71: 0 | BC71: 0 | BE71: 0 | BG71: 0 | BI71: 0 | BK71: 0 | BM71: 0 | BO71: 0 | BQ71: 0 | BS71: 0 | BU71: 0 | BW71: 0 | BY71: 0 | CA71: 0 | CC71: 0 | CE71: 0 | CG71: 0 | CI71: 0 | CK71: 0 | CM71: 0 | CO71: 0 | CQ71: 0 | CS71: 0 | CU71: 0 | CW71: 0 | CY71: 0 | DA71: 0 | DC71: 0 | DE71: 0 | DG71: 0 | DI71: 0 | DK71: 0 | DM71: 0 | DO71: 0 | DQ71: 0 | DS71: 0 | DU71: 0 | DW71: 0 | DY71: 0 | EA71: 0
C72: 15 | E72: 4 | M72: =IF(SUM(L$63:L$66)>0,$E72*$I72,0) -> 0 | O72: =IF(SUM(N$63:N$66)>0,$E72*$I72,0) -> 0 | Q72: =IF(SUM(P$63:P$66)>0,$E72*$I72,0) -> 0 | S72: =IF(SUM(R$63:R$66)>0,$E72*$I72,0) -> 0 | U72: =IF(SUM(T$63:T$66)>0,$E72*$I72,0) -> 0 | W72: =IF(SUM(V$63:V$66)>0,$E72*$I72,0) -> 0 | Y72: =IF(SUM(X$63:X$66)>0,$E72*$I72,0) -> 0 | AA72: =IF(SUM(Z$63:Z$66)>0,$E72*$I72,0) -> 0 | AC72: =IF(SUM(AB$63:AB$66)>0,$E72*$I72,0) -> 0 | AE72: =IF(SUM(AD$63:AD$66)>0,$E72*$I72,0) -> 0 | AG72: 0 | AI72: 0 | AK72: 0 | AM72: 0 | AO72: 0 | AQ72: 0 | AS72: 0 | AU72: 0 | AW72: 0 | AY72: 0 | BA72: 0 | BC72: 0 | BE72: 0 | BG72: 0 | BI72: 0 | BK72: 0 | BM72: 0 | BO72: 0 | BQ72: 0 | BS72: 0 | BU72: 0 | BW72: 0 | BY72: 0 | CA72: 0 | CC72: 0 | CE72: 0 | CG72: 0 | CI72: 0 | CK72: 0 | CM72: 0 | CO72: 0 | CQ72: 0 | CS72: 0 | CU72: 0 | CW72: 0 | CY72: 0 | DA72: 0 | DC72: 0 | DE72: 0 | DG72: 0 | DI72: 0 | DK72: 0 | DM72: 0 | DO72: 0 | DQ72: 0 | DS72: 0 | DU72: 0 | DW72: 0 | DY72: 0 | EA72: 0
F76: =20/53 -> 0.3773584906 | I76: =SUM(I36:I44)*SUM(H36+H41)/52/2 -> 1613.659615

Sheet EPI
B4: EQUIPAMENTOS DE PROTEÇÃO INDIVIDUAL - AQUISIÇÃO | J4: 1 | L4: =J4+1 -> 2 | N4: =L4+1 -> 3 | P4: =N4+1 -> 4 | R4: =P4+1 -> 5 | T4: =R4+1 -> 6 | V4: =T4+1 -> 7 | X4: =V4+1 -> 8 | Z4: =X4+1 -> 9 | AB4: =Z4+1 -> 10 | AD4: =AB4+1 -> 11 | AF4: =AD4+1 -> 12 | AH4: =AF4+1 -> 13 | AJ4: =AH4+1 -> 14 | AL4: =AJ4+1 -> 15 | AN4: =AL4+1 -> 16 | AP4: =AN4+1 -> 17 | AR4: =AP4+1 -> 18 | AT4: =AR4+1 -> 19 | AV4: =AT4+1 -> 20 | AX4: =AV4+1 -> 21 | AZ4: =AX4+1 -> 22 | BB4: =AZ4+1 -> 23 | BD4: =BB4+1 -> 24 | BF4: =BD4+1 -> 25 | BH4: =BF4+1 -> 26 | BJ4: =BH4+1 -> 27 | BL4: =BJ4+1 -> 28 | BN4: =BL4+1 -> 29 | BP4: =BN4+1 -> 30 | BR4: =BP4+1 -> 31 | BT4: =BR4+1 -> 32 | BV4: =BT4+1 -> 33 | BX4: =BV4+1 -> 34 | BZ4: =BX4+1 -> 35 | CB4: =BZ4+1 -> 36 | CD4: =CB4+1 -> 37 | CF4: =CD4+1 -> 38 | CH4: =CF4+1 -> 39 | CJ4: =CH4+1 -> 40 | CL4: =CJ4+1 -> 41 | CN4: =CL4+1 -> 42 | CP4: =CN4+1 -> 43 | CR4: =CP4+1 -> 44 | CT4: =CR4+1 -> 45 | CV4: =CT4+1 -> 46 | CX4: =CV4+1 -> 47 | CZ4: =CX4+1 -> 48 | DB4: =CZ4+1 -> 49 | DD4: =DB4+1 -> 50 | DF4: =DD4+1 -> 51 | DH4: =DF4+1 -> 52 | DJ4: =DH4+1 -> 53 | DL4: =DJ4+1 -> 54 | DN4: =DL4+1 -> 55 | DP4: =DN4+1 -> 56 | DR4: =DP4+1 -> 57 | DT4: =DR4+1 -> 58 | DV4: =DT4+1 -> 59 | DX4: =DV4+1 -> 60
J6: =ROUND(SUM(K5:K82),2) -> 0 | L6: =ROUND(SUM(M5:M82),2) -> 983 | N6: =ROUND(SUM(O5:O82),2) -> 983 | P6: =ROUND(SUM(Q5:Q82),2) -> 983 | R6: =ROUND(SUM(S5:S82),2) -> 983 | T6: =ROUND(SUM(U5:U82),2) -> 0 | V6: =ROUND(SUM(W5:W82),2) -> 0 | X6: =ROUND(SUM(Y5:Y82),2) -> 0 | Z6: =ROUND(SUM(AA5:AA82),2) -> 0 | AB6: =ROUND(SUM(AC5:AC82),2) -> 0 | AD6: =ROUND(SUM(AE5:AE82),2) -> 0 | AF6: =ROUND(SUM(AG5:AG82),2) -> 0 | AH6: =ROUND(SUM(AI5:AI82),2) -> 0 | AJ6: =ROUND(SUM(AK5:AK82),2) -> 0 | AL6: =ROUND(SUM(AM5:AM82),2) -> 0 | AN6: =ROUND(SUM(AO5:AO82),2) -> 0 | AP6: =ROUND(SUM(AQ5:AQ82),2) -> 0 | AR6: =ROUND(SUM(AS5:AS82),2) -> 0 | AT6: =ROUND(SUM(AU5:AU82),2) -> 0 | AV6: =ROUND(SUM(AW5:AW82),2) -> 0 | AX6: =ROUND(SUM(AY5:AY82),2) -> 0 | AZ6: =ROUND(SUM(BA5:BA82),2) -> 0 | BB6: =ROUND(SUM(BC5:BC82),2) -> 0 | BD6: =ROUND(SUM(BE5:BE82),2) -> 0 | BF6: =ROUND(SUM(BG5:BG82),2) -> 0 | BH6: =ROUND(SUM(BI5:BI82),2) -> 0 | BJ6: =ROUND(SUM(BK5:BK82),2) -> 0 | BL6: =ROUND(SUM(BM5:BM82),2) -> 0 | BN6: =ROUND(SUM(BO5:BO82),2) -> 0 | BP6: =ROUND(SUM(BQ5:BQ82),2) -> 0 | BR6: =ROUND(SUM(BS5:BS82),2) -> 0 | BT6: =ROUND(SUM(BU5:BU82),2) -> 0 | BV6: =ROUND(SUM(BW5:BW82),2) -> 0 | BX6: =ROUND(SUM(BY5:BY82),2) -> 0 | BZ6: =ROUND(SUM(CA5:CA82),2) -> 0 | CB6: =ROUND(SUM(CC5:CC82),2) -> 0 | CD6: =ROUND(SUM(CE5:CE82),2) -> 0 | CF6: =ROUND(SUM(CG5:CG82),2) -> 0 | CH6: =ROUND(SUM(CI5:CI82),2) -> 0 | CJ6: =ROUND(SUM(CK5:CK82),2) -> 0 | CL6: =ROUND(SUM(CM5:CM82),2) -> 0 | CN6: =ROUND(SUM(CO5:CO82),2) -> 0 | CP6: =ROUND(SUM(CQ5:CQ82),2) -> 0 | CR6: =ROUND(SUM(CS5:CS82),2) -> 0 | CT6: =ROUND(SUM(CU5:CU82),2) -> 0 | CV6: =ROUND(SUM(CW5:CW82),2) -> 0 | CX6: =ROUND(SUM(CY5:CY82),2) -> 0 | CZ6: =ROUND(SUM(DA5:DA82),2) -> 0 | DB6: =ROUND(SUM(DC5:DC82),2) -> 0 | DD6: =ROUND(SUM(DE5:DE82),2) -> 0 | DF6: =ROUND(SUM(DG5:DG82),2) -> 0 | DH6: =ROUND(SUM(DI5:DI82),2) -> 0 | DJ6: =ROUND(SUM(DK5:DK82),2) -> 0 | DL6: =ROUND(SUM(DM5:DM82),2) -> 0 | DN6: =ROUND(SUM(DO5:DO82),2) -> 0 | DP6: =ROUND(SUM(DQ5:DQ82),2) -> 0 | DR6: =ROUND(SUM(DS5:DS82),2) -> 0 | DT6: =ROUND(SUM(DU5:DU82),2) -> 0 | DV6: =ROUND(SUM(DW5:DW82),2) -> 0 | DX6: =ROUND(SUM(DY5:DY82),2) -> 0
C7: CATEGORIAS | G7: QUANTIDADE
J8: =IF($C8=J$4,1,0) -> 0 | L8: =IF($C8=L$4,1,0) -> 0 | N8: =IF($C8=N$4,1,0) -> 0 | P8: =IF($C8=P$4,1,0) -> 0 | R8: =IF($C8=R$4,1,0) -> 0 | T8: =IF($C8=T$4,1,0) -> 0 | V8: =IF($C8=V$4,1,0) -> 0 | X8: =IF($C8=X$4,1,0) -> 0 | Z8: =IF($C8=Z$4,1,0) -> 0 | AB8: =IF($C8=AB$4,1,0) -> 0 | AD8: =IF($C8=AD$4,1,0) -> 0 | AF8: =IF($C8=AF$4,1,0) -> 0 | AH8: =IF($C8=AH$4,1,0) -> 0 | AJ8: =IF($C8=AJ$4,1,0) -> 0 | AL8: =IF($C8=AL$4,1,0) -> 0 | AN8: =IF($C8=AN$4,1,0) -> 0 | AP8: =IF($C8=AP$4,1,0) -> 0 | AR8: =IF($C8=AR$4,1,0) -> 0 | AT8: =IF($C8=AT$4,1,0) -> 0 | AV8: =IF($C8=AV$4,1,0) -> 0 | AX8: =IF($C8=AX$4,1,0) -> 0 | AZ8: =IF($C8=AZ$4,1,0) -> 0 | BB8: =IF($C8=BB$4,1,0) -> 0 | BD8: =IF($C8=BD$4,1,0) -> 0 | BF8: =IF($C8=BF$4,1,0) -> 0 | BH8: =IF($C8=BH$4,1,0) -> 0 | BJ8: =IF($C8=BJ$4,1,0) -> 0 | BL8: =IF($C8=BL$4,1,0) -> 0 | BN8: =IF($C8=BN$4,1,0) -> 0 | BP8: =IF($C8=BP$4,1,0) -> 0 | BR8: =IF($C8=BR$4,1,0) -> 0 | BT8: =IF($C8=BT$4,1,0) -> 0 | BV8: =IF($C8=BV$4,1,0) -> 0 | BX8: =IF($C8=BX$4,1,0) -> 0 | BZ8: =IF($C8=BZ$4,1,0) -> 0 | CB8: =IF($C8=CB$4,1,0) -> 0 | CD8: =IF($C8=CD$4,1,0) -> 0 | CF8: =IF($C8=CF$4,1,0) -> 0 | CH8: =IF($C8=CH$4,1,0) -> 0 | CJ8: =IF($C8=CJ$4,1,0) -> 0 | CL8: =IF($C8=CL$4,1,0) -> 0 | CN8: =IF($C8=CN$4,1,0) -> 0 | CP8: =IF($C8=CP$4,1,0) -> 0 | CR8: =IF($C8=CR$4,1,0) -> 0 | CT8: =IF($C8=CT$4,1,0) -> 0 | CV8: =IF($C8=CV$4,1,0) -> 0 | CX8: =IF($C8=CX$4,1,0) -> 0 | CZ8: =IF($C8=CZ$4,1,0) -> 0 | DB8: =IF($C8=DB$4,1,0) -> 0 | DD8: =IF($C8=DD$4,1,0) -> 0 | DF8: =IF($C8=DF$4,1,0) -> 0 | DH8: =IF($C8=DH$4,1,0) -> 0 | DJ8: =IF($C8=DJ$4,1,0) -> 0 | DL8: =IF($C8=DL$4,1,0) -> 0 | DN8: =IF($C8=DN$4,1,0) -> 0 | DP8: =IF($C8=DP$4,1,0) -> 0 | DR8: =IF($C8=DR$4,1,0) -> 0 | DT8: =IF($C8=DT$4,1,0) -> 0 | DV8: =IF($C8=DV$4,1,0) -> 0 | DX8: =IF($C8=DX$4,1,0) -> 0
C9: 2 | D9: =HLOOKUP($C9,'Dados Gerais'!$D$5:$BK$10,6) -> BOMBEIRO CIVIL LÍDER DIURNO | G9: =HLOOKUP($C9,'Dados Gerais'!$D$5:$BK$14,10) -> 2 | J9: =IF($C9=J$4,1,0) -> 0 | L9: 1 | N9: 0 | P9: 0 | R9: 0 | T9: 0 | V9: 0 | X9: 0 | Z9: 0 | AB9: 0 | AD9: 0 | AF9: 0 | AH9: 0 | AJ9: 0 | AL9: 0 | AN9: 0 | AP9: 0 | AR9: 0 | AT9: 0 | AV9: 0 | AX9: 0 | AZ9: 0 | BB9: 0 | BD9: 0 | BF9: 0 | BH9: 0 | BJ9: 0 | BL9: 0 | BN9: 0 | BP9: 0 | BR9: 0 | BT9: 0 | BV9: 0 | BX9: 0 | BZ9: 0 | CB9: 0 | CD9: 0 | CF9: 0 | CH9: 0 | CJ9: 0 | CL9: 0 | CN9: 0 | CP9: 0 | CR9: 0 | CT9: 0 | CV9: 0 | CX9: 0 | CZ9: 0 | DB9: 0 | DD9: 0 | DF9: 0 | DH9: 0 | DJ9: 0 | DL9: 0 | DN9: 0 | DP9: 0 | DR9: 0 | DT9: 0 | DV9: 0 | DX9: 0
C10: 3 | D10: =HLOOKUP($C10,'Dados Gerais'!$D$5:$BK$10,6) -> BOMBEIRO CIVIL LÍDER NOTURNO | G10: =HLOOKUP($C10,'Dados Gerais'!$D$5:$BK$14,10) -> 2 | J10: =IF($C10=J$4,1,0) -> 0 | L10: 0 | N10: 1 | P10: 0 | R10: 0 | T10: 0 | V10: 0 | X10: 0 | Z10: 0 | AB10: 0 | AD10: 0 | AF10: 0 | AH10: 0 | AJ10: 0 | AL10: 0 | AN10: 0 | AP10: 0 | AR10: 0 | AT10: 0 | AV10: 0 | AX10: 0 | AZ10: 0 | BB10: 0 | BD10: 0 | BF10: 0 | BH10: 0 | BJ10: 0 | BL10: 0 | BN10: 0 | BP10: 0 | BR10: 0 | BT10: 0 | BV10: 0 | BX10: 0 | BZ10: 0 | CB10: 0 | CD10: 0 | CF10: 0 | CH10: 0 | CJ10: 0 | CL10: 0 | CN10: 0 | CP10: 0 | CR10: 0 | CT10: 0 | CV10: 0 | CX10: 0 | CZ10: 0 | DB10: 0 | DD10: 0 | DF10: 0 | DH10: 0 | DJ10: 0 | DL10: 0 | DN10: 0 | DP10: 0 | DR10: 0 | DT10: 0 | DV10: 0 | DX10: 0
J11: =IF($C11=J$4,1,0) -> 0 | L11: 0 | N11: 0 | P11: 0 | R11: 0 | T11: 0 | V11: 0 | X11: 0 | Z11: 0 | AB11: 0 | AD11: 0 | AF11: 0 | AH11: 0 | AJ11: 0 | AL11: 0 | AN11: 0 | AP11: 0 | AR11: 0 | AT11: 0 | AV11: 0 | AX11: 0 | AZ11: 0 | BB11: 0 | BD11: 0 | BF11: 0 | BH11: 0 | BJ11: 0 | BL11: 0 | BN11: 0 | BP11: 0 | BR11: 0 | BT11: 0 | BV11: 0 | BX11: 0 | BZ11: 0 | CB11: 0 | CD11: 0 | CF11: 0 | CH11: 0 | CJ11: 0 | CL11: 0 | CN11: 0 | CP11: 0 | CR11: 0 | CT11: 0 | CV11: 0 | CX11: 0 | CZ11: 0 | DB11: 0 | DD11: 0 | DF11: 0 | DH11: 0 | DJ11: 0 | DL11: 0 | DN11: 0 | DP11: 0 | DR11: 0 | DT11: 0 | DV11: 0 | DX11: 0
C13: ITEM | D13: DESCRIÇÃO | E13: QUANT ANUAL POR POSTO | F13: UNIDADE | G13: VALOR
C15: 1 | D15: Capa de chuva confeccionada em tecido de náilon emborrachado, com uma face em poliamida e a outra em PVC, emendas através de costuras impermeabilizadas, fechamento frontal, com capuz fixo ajustado por cadarços com regulador e ponteiras em PVC, punhos ajustados com elástico, com faicha reflexiva de elevado brilho, com a logomarca da brigada de incêncio da Câmara dos Deputados. | E15: 1 | F15: UND | G15: 42.245 | K15: =IF(SUM(J$8:J$11)>0,$E15*$G15,0) -> 0 | M15: =IF(SUM(L$8:L$11)>0,$E15*$G15,0) -> 42.245 | O15: =IF(SUM(N$8:N$11)>0,$E15*$G15,0) -> 42.245 | Q15: =IF(SUM(P$8:P$11)>0,$E15*$G15,0) -> 0 | S15: =IF(SUM(R$8:R$11)>0,$E15*$G15,0) -> 0 | U15: =IF(SUM(T$8:T$11)>0,$E15*$G15,0) -> 0 | W15: =IF(SUM(V$8:V$11)>0,$E15*$G15,0) -> 0 | Y15: =IF(SUM(X$8:X$11)>0,$E15*$G15,0) -> 0 | AA15: =IF(SUM(Z$8:Z$11)>0,$E15*$G15,0) -> 0 | AC15: =IF(SUM(AB$8:AB$11)>0,$E15*$G15,0) -> 0 | AE15: =IF(SUM(AD$8:AD$11)>0,$E15*$G15,0) -> 0 | AG15: =IF(SUM(AF$8:AF$11)>0,$E15*$G15,0) -> 0 | AI15: =IF(SUM(AH$8:AH$11)>0,$E15*$G15,0) -> 0 | AK15: =IF(SUM(AJ$8:AJ$11)>0,$E15*$G15,0) -> 0 | AM15: =IF(SUM(AL$8:AL$11)>0,$E15*$G15,0) -> 0 | AO15: =IF(SUM(AN$8:AN$11)>0,$E15*$G15,0) -> 0 | AQ15: =IF(SUM(AP$8:AP$11)>0,$E15*$G15,0) -> 0 | AS15: =IF(SUM(AR$8:AR$11)>0,$E15*$G15,0) -> 0 | AU15: =IF(SUM(AT$8:AT$11)>0,$E15*$G15,0) -> 0 | AW15: =IF(SUM(AV$8:AV$11)>0,$E15*$G15,0) -> 0 | AY15: =IF(SUM(AX$8:AX$11)>0,$E15*$G15,0) -> 0 | BA15: =IF(SUM(AZ$8:AZ$11)>0,$E15*$G15,0) -> 0 | BC15: =IF(SUM(BB$8:BB$11)>0,$E15*$G15,0) -> 0 | BE15: =IF(SUM(BD$8:BD$11)>0,$E15*$G15,0) -> 0 | BG15: =IF(SUM(BF$8:BF$11)>0,$E15*$G15,0) -> 0 | BI15: =IF(SUM(BH$8:BH$11)>0,$E15*$G15,0) -> 0 | BK15: =IF(SUM(BJ$8:BJ$11)>0,$E15*$G15,0) -> 0 | BM15: =IF(SUM(BL$8:BL$11)>0,$E15*$G15,0) -> 0 | BO15: =IF(SUM(BN$8:BN$11)>0,$E15*$G15,0) -> 0 | BQ15: =IF(SUM(BP$8:BP$11)>0,$E15*$G15,0) -> 0 | BS15: =IF(SUM(BR$8:BR$11)>0,$E15*$G15,0) -> 0 | BU15: =IF(SUM(BT$8:BT$11)>0,$E15*$G15,0) -> 0 | BW15: =IF(SUM(BV$8:BV$11)>0,$E15*$G15,0) -> 0 | BY15: =IF(SUM(BX$8:BX$11)>0,$E15*$G15,0) -> 0 | CA15: =IF(SUM(BZ$8:BZ$11)>0,$E15*$G15,0) -> 0 | CC15: =IF(SUM(CB$8:CB$11)>0,$E15*$G15,0) -> 0 | CE15: =IF(SUM(CD$8:CD$11)>0,$E15*$G15,0) -> 0 | CG15: =IF(SUM(CF$8:CF$11)>0,$E15*$G15,0) -> 0 | CI15: =IF(SUM(CH$8:CH$11)>0,$E15*$G15,0) -> 0 | CK15: =IF(SUM(CJ$8:CJ$11)>0,$E15*$G15,0) -> 0 | CM15: =IF(SUM(CL$8:CL$11)>0,$E15*$G15,0) -> 0 | CO15: =IF(SUM(CN$8:CN$11)>0,$E15*$G15,0) -> 0 | CQ15: =IF(SUM(CP$8:CP$11)>0,$E15*$G15,0) -> 0 | CS15: =IF(SUM(CR$8:CR$11)>0,$E15*$G15,0) -> 0 | CU15: =IF(SUM(CT$8:CT$11)>0,$E15*$G15,0) -> 0 | CW15: =IF(SUM(CV$8:CV$11)>0,$E15*$G15,0) -> 0 | CY15: =IF(SUM(CX$8:CX$11)>0,$E15*$G15,0) -> 0 | DA15: =IF(SUM(CZ$8:CZ$11)>0,$E15*$G15,0) -> 0 | DC15: =IF(SUM(DB$8:DB$11)>0,$E15*$G15,0) -> 0 | DE15: =IF(SUM(DD$8:DD$11)>0,$E15*$G15,0) -> 0 | DG15: =IF(SUM(DF$8:DF$11)>0,$E15*$G15,0) -> 0 | DI15: =IF(SUM(DH$8:DH$11)>0,$E15*$G15,0) -> 0 | DK15: =IF(SUM(DJ$8:DJ$11)>0,$E15*$G15,0) -> 0 | DM15: =IF(SUM(DL$8:DL$11)>0,$E15*$G15,0) -> 0 | DO15: =IF(SUM(DN$8:DN$11)>0,$E15*$G15,0) -> 0 | DQ15: =IF(SUM(DP$8:DP$11)>0,$E15*$G15,0) -> 0 | DS15: =IF(SUM(DR$8:DR$11)>0,$E15*$G15,0) -> 0 | DU15: =IF(SUM(DT$8:DT$11)>0,$E15*$G15,0) -> 0 | DW15: =IF(SUM(DV$8:DV$11)>0,$E15*$G15,0) -> 0 | DY15: =IF(SUM(DX$8:DX$11)>0,$E15*$G15,0) -> 0
C16: 2 | D16: Protetor auricular tipo plug em silicone, lavável com proteção de 18 dB(A) de atenuação pelo método NRRsf. Marca 3M ou similar. | E16: 2 | F16: UND | G16: 1.95 | K16: 0 | M16: 3.9 | O16: 3.9 | Q16: 0 | S16: 0 | U16: 0 | W16: 0 | Y16: 0 | AA16: 0 | AC16: 0 | AE16: 0 | AG16: 0 | AI16: 0 | AK16: 0 | AM16: 0 | AO16: 0 | AQ16: 0 | AS16: 0 | AU16: 0 | AW16: 0 | AY16: 0 | BA16: 0 | BC16: 0 | BE16: 0 | BG16: 0 | BI16: 0 | BK16: 0 | BM16: 0 | BO16: 0 | BQ16: 0 | BS16: 0 | BU16: 0 | BW16: 0 | BY16: 0 | CA16: 0 | CC16: 0 | CE16: 0 | CG16: 0 | CI16: 0 | CK16: 0 | CM16: 0 | CO16: 0 | CQ16: 0 | CS16: 0 | CU16: 0 | CW16: 0 | CY16: 0 | DA16: 0 | DC16: 0 | DE16: 0 | DG16: 0 | DI16: 0 | DK16: 0 | DM16: 0 | DO16: 0 | DQ16: 0 | DS16: 0 | DU16: 0 | DW16: 0 | DY16: =IF(SUM(DX$8:DX$11)>0,$E16*$G16,0) -> 0
C17: 3 | D17: Luvas de segurança confeccionada com vaqueta, com formato de cinco dedos, com reforço na palma e entre o polegar e o indicador, cano curto (10 cm). Marca de ref. Giovanni B. S. Bonatto | E17: 2 | F17: PAR | G17: 21.415 | K17: 0 | M17: 42.83 | O17: 42.83 | Q17: 0 | S17: 0 | U17: 0 | W17: 0 | Y17: 0 | AA17: 0 | AC17: 0 | AE17: 0 | AG17: 0 | AI17: 0 | AK17: 0 | AM17: 0 | AO17: 0 | AQ17: 0 | AS17: 0 | AU17: 0 | AW17: 0 | AY17: 0 | BA17: 0 | BC17: 0 | BE17: 0 | BG17: 0 | BI17: 0 | BK17: 0 | BM17: 0 | BO17: 0 | BQ17: 0 | BS17: 0 | BU17: 0 | BW17: 0 | BY17: 0 | CA17: 0 | CC17: 0 | CE17: 0 | CG17: 0 | CI17: 0 | CK17: 0 | CM17: 0 | CO17: 0 | CQ17: 0 | CS17: 0 | CU17: 0 | CW17: 0 | CY17: 0 | DA17: 0 | DC17: 0 | DE17: 0 | DG17: 0 | DI17: 0 | DK17: 0 | DM17: 0 | DO17: 0 | DQ17: 0 | DS17: 0 | DU17: 0 | DW17: 0 | DY17: 0
C18: 4 | D18: Luva de malha pigmentada, tricotada em 4 fios de algodão e poliéster, com pigmentos em PVC antiderrapante na palma e face dos dedos, e punho com elástico, na cor branca. Marca Vonder ou similar. | E18: 2 | F18: PAR | G18: 2.24 | K18: 0 | M18: 4.48 | O18: 4.48 | Q18: 0 | S18: 0 | U18: 0 | W18: 0 | Y18: 0 | AA18: 0 | AC18: 0 | AE18: 0 | AG18: 0 | AI18: 0 | AK18: 0 | AM18: 0 | AO18: 0 | AQ18: 0 | AS18: 0 | AU18: 0 | AW18: 0 | AY18: 0 | BA18: 0 | BC18: 0 | BE18: 0 | BG18: 0 | BI18: 0 | BK18: 0 | BM18: 0 | BO18: 0 | BQ18: 0 | BS18: 0 | BU18: 0 | BW18: 0 | BY18: 0 | CA18: 0 | CC18: 0 | CE18: 0 | CG18: 0 | CI18: 0 | CK18: 0 | CM18: 0 | CO18: 0 | CQ18: 0 | CS18: 0 | CU18: 0 | CW18: 0 | CY18: 0 | DA18: 0 | DC18: 0 | DE18: 0 | DG18: 0 | DI18: 0 | DK18: 0 | DM18: 0 | DO18: 0 | DQ18: 0 | DS18: 0 | DU18: 0 | DW18: 0 | DY18: =IF(SUM(DX$8:DX$11)>0,$E18*$G18,0) -> 0
C19: 5 | D19: Óculos ampla visão, em Acrílico. a serem utilizados em procedimentos que possam gerar respingos de material orgânico e atingir a conjuntiva ocular. Devem ter anteparo em borracha na borda superior, lateral e inferior. Ajuste por meio de tirante elastico. Marca Danny (modelo SILO S8/2 ) ou similar. | E19: 2 | F19: UND | G19: 40 | K19: 0 | M19: 80 | O19: 80 | Q19: 0 | S19: 0 | U19: 0 | W19: 0 | Y19: 0 | AA19: 0 | AC19: 0 | AE19: 0 | AG19: 0 | AI19: 0 | AK19: 0 | AM19: 0 | AO19: 0 | AQ19: 0 | AS19: 0 | AU19: 0 | AW19: 0 | AY19: 0 | BA19: 0 | BC19: 0 | BE19: 0 | BG19: 0 | BI19: 0 | BK19: 0 | BM19: 0 | BO19: 0 | BQ19: 0 | BS19: 0 | BU19: 0 | BW19: 0 | BY19: 0 | CA19: 0 | CC19: 0 | CE19: 0 | CG19: 0 | CI19: 0 | CK19: 0 | CM19: 0 | CO19: 0 | CQ19: 0 | CS19: 0 | CU19: 0 | CW19: 0 | CY19: 0 | DA19: 0 | DC19: 0 | DE19: 0 | DG19: 0 | DI19: 0 | DK19: 0 | DM19: 0 | DO19: 0 | DQ19: 0 | DS19: 0 | DU19: 0 | DW19: 0 | DY19: 0
C20: 6 | D20: JOELHEIRA, na cor Preta, confeccionada em tecido resistente na parte externa, e interior em malha respirável, possui couraça em TPU com rebites metálicos na cor do produto; ajuste maleável triplo, clip de engate rápido, acolchoamento por placa de EVA e etiqueta de identificação. Ref. INVICTUS, modelo Protec | E20: 1 | F20: PAR | G20: 259 | K20: 0 | M20: =IF(SUM(L$8:L$11)>0,$E20*$G20,0) -> 259 | O20: =IF(SUM(N$8:N$11)>0,$E20*$G20,0) -> 259 | Q20: =IF(SUM(P$8:P$11)>0,$E20*$G20,0) -> 0 | S20: =IF(SUM(R$8:R$11)>0,$E20*$G20,0) -> 0 | U20: =IF(SUM(T$8:T$11)>0,$E20*$G20,0) -> 0 | W20: =IF(SUM(V$8:V$11)>0,$E20*$G20,0) -> 0 | Y20: =IF(SUM(X$8:X$11)>0,$E20*$G20,0) -> 0 | AA20: =IF(SUM(Z$8:Z$11)>0,$E20*$G20,0) -> 0 | AC20: =IF(SUM(AB$8:AB$11)>0,$E20*$G20,0) -> 0 | AE20: =IF(SUM(AD$8:AD$11)>0,$E20*$G20,0) -> 0 | AG20: =IF(SUM(AF$8:AF$11)>0,$E20*$G20,0) -> 0 | AI20: =IF(SUM(AH$8:AH$11)>0,$E20*$G20,0) -> 0 | AK20: =IF(SUM(AJ$8:AJ$11)>0,$E20*$G20,0) -> 0 | AM20: =IF(SUM(AL$8:AL$11)>0,$E20*$G20,0) -> 0 | AO20: =IF(SUM(AN$8:AN$11)>0,$E20*$G20,0) -> 0 | AQ20: =IF(SUM(AP$8:AP$11)>0,$E20*$G20,0) -> 0 | AS20: =IF(SUM(AR$8:AR$11)>0,$E20*$G20,0) -> 0 | AU20: =IF(SUM(AT$8:AT$11)>0,$E20*$G20,0) -> 0 | AW20: =IF(SUM(AV$8:AV$11)>0,$E20*$G20,0) -> 0 | AY20: =IF(SUM(AX$8:AX$11)>0,$E20*$G20,0) -> 0 | BA20: =IF(SUM(AZ$8:AZ$11)>0,$E20*$G20,0) -> 0 | BC20: =IF(SUM(BB$8:BB$11)>0,$E20*$G20,0) -> 0 | BE20: =IF(SUM(BD$8:BD$11)>0,$E20*$G20,0) -> 0 | BG20: =IF(SUM(BF$8:BF$11)>0,$E20*$G20,0) -> 0 | BI20: =IF(SUM(BH$8:BH$11)>0,$E20*$G20,0) -> 0 | BK20: =IF(SUM(BJ$8:BJ$11)>0,$E20*$G20,0) -> 0 | BM20: =IF(SUM(BL$8:BL$11)>0,$E20*$G20,0) -> 0 | BO20: =IF(SUM(BN$8:BN$11)>0,$E20*$G20,0) -> 0 | BQ20: =IF(SUM(BP$8:BP$11)>0,$E20*$G20,0) -> 0 | BS20: =IF(SUM(BR$8:BR$11)>0,$E20*$G20,0) -> 0 | BU20: =IF(SUM(BT$8:BT$11)>0,$E20*$G20,0) -> 0 | BW20: =IF(SUM(BV$8:BV$11)>0,$E20*$G20,0) -> 0 | BY20: =IF(SUM(BX$8:BX$11)>0,$E20*$G20,0) -> 0 | CA20: =IF(SUM(BZ$8:BZ$11)>0,$E20*$G20,0) -> 0 | CC20: =IF(SUM(CB$8:CB$11)>0,$E20*$G20,0) -> 0 | CE20: =IF(SUM(CD$8:CD$11)>0,$E20*$G20,0) -> 0 | CG20: =IF(SUM(CF$8:CF$11)>0,$E20*$G20,0) -> 0 | CI20: =IF(SUM(CH$8:CH$11)>0,$E20*$G20,0) -> 0 | CK20: =IF(SUM(CJ$8:CJ$11)>0,$E20*$G20,0) -> 0 | CM20: =IF(SUM(CL$8:CL$11)>0,$E20*$G20,0) -> 0 | CO20: =IF(SUM(CN$8:CN$11)>0,$E20*$G20,0) -> 0 | CQ20: =IF(SUM(CP$8:CP$11)>0,$E20*$G20,0) -> 0 | CS20: =IF(SUM(CR$8:CR$11)>0,$E20*$G20,0) -> 0 | CU20: =IF(SUM(CT$8:CT$11)>0,$E20*$G20,0) -> 0 | CW20: =IF(SUM(CV$8:CV$11)>0,$E20*$G20,0) -> 0 | CY20: =IF(SUM(CX$8:CX$11)>0,$E20*$G20,0) -> 0 | DA20: =IF(SUM(CZ$8:CZ$11)>0,$E20*$G20,0) -> 0 | DC20: =IF(SUM(DB$8:DB$11)>0,$E20*$G20,0) -> 0 | DE20: =IF(SUM(DD$8:DD$11)>0,$E20*$G20,0) -> 0 | DG20: =IF(SUM(DF$8:DF$11)>0,$E20*$G20,0) -> 0 | DI20: =IF(SUM(DH$8:DH$11)>0,$E20*$G20,0) -> 0 | DK20: =IF(SUM(DJ$8:DJ$11)>0,$E20*$G20,0) -> 0 | DM20: =IF(SUM(DL$8:DL$11)>0,$E20*$G20,0) -> 0 | DO20: =IF(SUM(DN$8:DN$11)>0,$E20*$G20,0) -> 0 | DQ20: =IF(SUM(DP$8:DP$11)>0,$E20*$G20,0) -> 0 | DS20: =IF(SUM(DR$8:DR$11)>0,$E20*$G20,0) -> 0 | DU20: =IF(SUM(DT$8:DT$11)>0,$E20*$G20,0) -> 0 | DW20: =IF(SUM(DV$8:DV$11)>0,$E20*$G20,0) -> 0 | DY20: 0
C21: 7 | D21: Respirador de meia peça facial, compatibilidade com filtros químicos, mecânicos ou combinados, encaixes para dois filtros/cartuchos. Diferentes opções de tamanhos para proporcionar vedação adequada aos tipos de rostos dos usuários. Ref.: 3M, modelo 6201 | E21: 1 | F21: UND | G21: 166.265 | K21: 0 | M21: 166.265 | O21: 166.265 | Q21: 0 | S21: 0 | U21: 0 | W21: 0 | Y21: 0 | AA21: 0 | AC21: 0 | AE21: 0 | AG21: 0 | AI21: 0 | AK21: 0 | AM21: 0 | AO21: 0 | AQ21: 0 | AS21: 0 | AU21: 0 | AW21: 0 | AY21: 0 | BA21: 0 | BC21: 0 | BE21: 0 | BG21: 0 | BI21: 0 | BK21: 0 | BM21: 0 | BO21: 0 | BQ21: 0 | BS21: 0 | BU21: 0 | BW21: 0 | BY21: 0 | CA21: 0 | CC21: 0 | CE21: 0 | CG21: 0 | CI21: 0 | CK21: 0 | CM21: 0 | CO21: 0 | CQ21: 0 | CS21: 0 | CU21: 0 | CW21: 0 | CY21: 0 | DA21: 0 | DC21: 0 | DE21: 0 | DG21: 0 | DI21: 0 | DK21: 0 | DM21: 0 | DO21: 0 | DQ21: 0 | DS21: 0 | DU21: 0 | DW21: 0 | DY21: 0
C22: 8 | D22: Cartucho químico para Vapores orgânicos e gases ácidos compatível com o respirador de meia peça facial Ref. 6003 3M | E22: 2 | F22: PAR | G22: 98.99 | K22: 0 | M22: =IF(SUM(L$8:L$11)>0,$E22*$G22,0) -> 197.98 | O22: =IF(SUM(N$8:N$11)>0,$E22*$G22,0) -> 197.98 | Q22: =IF(SUM(P$8:P$11)>0,$E22*$G22,0) -> 0 | S22: =IF(SUM(R$8:R$11)>0,$E22*$G22,0) -> 0 | U22: =IF(SUM(T$8:T$11)>0,$E22*$G22,0) -> 0 | W22: =IF(SUM(V$8:V$11)>0,$E22*$G22,0) -> 0 | Y22: =IF(SUM(X$8:X$11)>0,$E22*$G22,0) -> 0 | AA22: =IF(SUM(Z$8:Z$11)>0,$E22*$G22,0) -> 0 | AC22: =IF(SUM(AB$8:AB$11)>0,$E22*$G22,0) -> 0 | AE22: =IF(SUM(AD$8:AD$11)>0,$E22*$G22,0) -> 0 | AG22: =IF(SUM(AF$8:AF$11)>0,$E22*$G22,0) -> 0 | AI22: =IF(SUM(AH$8:AH$11)>0,$E22*$G22,0) -> 0 | AK22: =IF(SUM(AJ$8:AJ$11)>0,$E22*$G22,0) -> 0 | AM22: =IF(SUM(AL$8:AL$11)>0,$E22*$G22,0) -> 0 | AO22: =IF(SUM(AN$8:AN$11)>0,$E22*$G22,0) -> 0 | AQ22: =IF(SUM(AP$8:AP$11)>0,$E22*$G22,0) -> 0 | AS22: =IF(SUM(AR$8:AR$11)>0,$E22*$G22,0) -> 0 | AU22: =IF(SUM(AT$8:AT$11)>0,$E22*$G22,0) -> 0 | AW22: =IF(SUM(AV$8:AV$11)>0,$E22*$G22,0) -> 0 | AY22: =IF(SUM(AX$8:AX$11)>0,$E22*$G22,0) -> 0 | BA22: =IF(SUM(AZ$8:AZ$11)>0,$E22*$G22,0) -> 0 | BC22: =IF(SUM(BB$8:BB$11)>0,$E22*$G22,0) -> 0 | BE22: =IF(SUM(BD$8:BD$11)>0,$E22*$G22,0) -> 0 | BG22: =IF(SUM(BF$8:BF$11)>0,$E22*$G22,0) -> 0 | BI22: =IF(SUM(BH$8:BH$11)>0,$E22*$G22,0) -> 0 | BK22: =IF(SUM(BJ$8:BJ$11)>0,$E22*$G22,0) -> 0 | BM22: =IF(SUM(BL$8:BL$11)>0,$E22*$G22,0) -> 0 | BO22: =IF(SUM(BN$8:BN$11)>0,$E22*$G22,0) -> 0 | BQ22: =IF(SUM(BP$8:BP$11)>0,$E22*$G22,0) -> 0 | BS22: =IF(SUM(BR$8:BR$11)>0,$E22*$G22,0) -> 0 | BU22: =IF(SUM(BT$8:BT$11)>0,$E22*$G22,0) -> 0 | BW22: =IF(SUM(BV$8:BV$11)>0,$E22*$G22,0) -> 0 | BY22: =IF(SUM(BX$8:BX$11)>0,$E22*$G22,0) -> 0 | CA22: =IF(SUM(BZ$8:BZ$11)>0,$E22*$G22,0) -> 0 | CC22: =IF(SUM(CB$8:CB$11)>0,$E22*$G22,0) -> 0 | CE22: =IF(SUM(CD$8:CD$11)>0,$E22*$G22,0) -> 0 | CG22: =IF(SUM(CF$8:CF$11)>0,$E22*$G22,0) -> 0 | CI22: =IF(SUM(CH$8:CH$11)>0,$E22*$G22,0) -> 0 | CK22: =IF(SUM(CJ$8:CJ$11)>0,$E22*$G22,0) -> 0 | CM22: =IF(SUM(CL$8:CL$11)>0,$E22*$G22,0) -> 0 | CO22: =IF(SUM(CN$8:CN$11)>0,$E22*$G22,0) -> 0 | CQ22: =IF(SUM(CP$8:CP$11)>0,$E22*$G22,0) -> 0 | CS22: =IF(SUM(CR$8:CR$11)>0,$E22*$G22,0) -> 0 | CU22: =IF(SUM(CT$8:CT$11)>0,$E22*$G22,0) -> 0 | CW22: =IF(SUM(CV$8:CV$11)>0,$E22*$G22,0) -> 0 | CY22: =IF(SUM(CX$8:CX$11)>0,$E22*$G22,0) -> 0 | DA22: =IF(SUM(CZ$8:CZ$11)>0,$E22*$G22,0) -> 0 | DC22: =IF(SUM(DB$8:DB$11)>0,$E22*$G22,0) -> 0 | DE22: =IF(SUM(DD$8:DD$11)>0,$E22*$G22,0) -> 0 | DG22: =IF(SUM(DF$8:DF$11)>0,$E22*$G22,0) -> 0 | DI22: =IF(SUM(DH$8:DH$11)>0,$E22*$G22,0) -> 0 | DK22: =IF(SUM(DJ$8:DJ$11)>0,$E22*$G22,0) -> 0 | DM22: =IF(SUM(DL$8:DL$11)>0,$E22*$G22,0) -> 0 | DO22: =IF(SUM(DN$8:DN$11)>0,$E22*$G22,0) -> 0 | DQ22: =IF(SUM(DP$8:DP$11)>0,$E22*$G22,0) -> 0 | DS22: =IF(SUM(DR$8:DR$11)>0,$E22*$G22,0) -> 0 | DU22: =IF(SUM(DT$8:DT$11)>0,$E22*$G22,0) -> 0 | DW22: =IF(SUM(DV$8:DV$11)>0,$E22*$G22,0) -> 0 | DY22: 0
C23: 9 | D23: Filtro mecânico para poeiras, névoas e fumos. a ser utilizado de forma combinada com o cartucho. Compatível com o respirador de meia peça facial a ser adquirido. Ref: 5N11 3M | E23: 2 | F23: UND | G23: 50.995 | K23: 0 | M23: 101.99 | O23: 101.99 | Q23: 0 | S23: 0 | U23: 0 | W23: 0 | Y23: 0 | AA23: 0 | AC23: 0 | AE23: 0 | AG23: 0 | AI23: 0 | AK23: 0 | AM23: 0 | AO23: 0 | AQ23: 0 | AS23: 0 | AU23: 0 | AW23: 0 | AY23: 0 | BA23: 0 | BC23: 0 | BE23: 0 | BG23: 0 | BI23: 0 | BK23: 0 | BM23: 0 | BO23: 0 | BQ23: 0 | BS23: 0 | BU23: 0 | BW23: 0 | BY23: 0 | CA23: 0 | CC23: 0 | CE23: 0 | CG23: 0 | CI23: 0 | CK23: 0 | CM23: 0 | CO23: 0 | CQ23: 0 | CS23: 0 | CU23: 0 | CW23: 0 | CY23: 0 | DA23: 0 | DC23: 0 | DE23: 0 | DG23: 0 | DI23: 0 | DK23: 0 | DM23: 0 | DO23: 0 | DQ23: 0 | DS23: 0 | DU23: 0 | DW23: 0 | DY23: =IF(SUM(DX$8:DX$11)>0,$E23*$G23,0) -> 0
C24: 10 | D24: Retentor para filtro. Compatível com o respirador de meia peça facial a ser adquirido. Ref.: 3M 501 | E24: 2 | F24: UND | G24: 10.685 | K24: 0 | M24: 21.37 | O24: 21.37 | Q24: 0 | S24: 0 | U24: 0 | W24: 0 | Y24: 0 | AA24: 0 | AC24: 0 | AE24: 0 | AG24: 0 | AI24: 0 | AK24: 0 | AM24: 0 | AO24: 0 | AQ24: 0 | AS24: 0 | AU24: 0 | AW24: 0 | AY24: 0 | BA24: 0 | BC24: 0 | BE24: 0 | BG24: 0 | BI24: 0 | BK24: 0 | BM24: 0 | BO24: 0 | BQ24: 0 | BS24: 0 | BU24: 0 | BW24: 0 | BY24: 0 | CA24: 0 | CC24: 0 | CE24: 0 | CG24: 0 | CI24: 0 | CK24: 0 | CM24: 0 | CO24: 0 | CQ24: 0 | CS24: 0 | CU24: 0 | CW24: 0 | CY24: 0 | DA24: 0 | DC24: 0 | DE24: 0 | DG24: 0 | DI24: 0 | DK24: 0 | DM24: 0 | DO24: 0 | DQ24: 0 | DS24: 0 | DU24: 0 | DW24: 0 | DY24: =IF(SUM(DX$8:DX$11)>0,$E24*$G24,0) -> 0
C25: 11 | D25: CAPACETE DE SEGURANÇA com carneira e jugular do tipo III (sem aba); com casco rígido; sem porosidade; não deverá ser condutor de corrente elétrica; na cor vermelha. Ref.: Ultra Safe | E25: 1 | F25: UND | G25: 62.94 | K25: 0 | M25: =IF(SUM(L$8:L$11)>0,$E25*$G25,0) -> 62.94 | O25: =IF(SUM(N$8:N$11)>0,$E25*$G25,0) -> 62.94 | Q25: =IF(SUM(P$8:P$11)>0,$E25*$G25,0) -> 0 | S25: =IF(SUM(R$8:R$11)>0,$E25*$G25,0) -> 0 | U25: =IF(SUM(T$8:T$11)>0,$E25*$G25,0) -> 0 | W25: =IF(SUM(V$8:V$11)>0,$E25*$G25,0) -> 0 | Y25: =IF(SUM(X$8:X$11)>0,$E25*$G25,0) -> 0 | AA25: =IF(SUM(Z$8:Z$11)>0,$E25*$G25,0) -> 0 | AC25: =IF(SUM(AB$8:AB$11)>0,$E25*$G25,0) -> 0 | AE25: =IF(SUM(AD$8:AD$11)>0,$E25*$G25,0) -> 0 | AG25: =IF(SUM(AF$8:AF$11)>0,$E25*$G25,0) -> 0 | AI25: =IF(SUM(AH$8:AH$11)>0,$E25*$G25,0) -> 0 | AK25: =IF(SUM(AJ$8:AJ$11)>0,$E25*$G25,0) -> 0 | AM25: =IF(SUM(AL$8:AL$11)>0,$E25*$G25,0) -> 0 | AO25: =IF(SUM(AN$8:AN$11)>0,$E25*$G25,0) -> 0 | AQ25: =IF(SUM(AP$8:AP$11)>0,$E25*$G25,0) -> 0 | AS25: =IF(SUM(AR$8:AR$11)>0,$E25*$G25,0) -> 0 | AU25: =IF(SUM(AT$8:AT$11)>0,$E25*$G25,0) -> 0 | AW25: =IF(SUM(AV$8:AV$11)>0,$E25*$G25,0) -> 0 | AY25: =IF(SUM(AX$8:AX$11)>0,$E25*$G25,0) -> 0 | BA25: =IF(SUM(AZ$8:AZ$11)>0,$E25*$G25,0) -> 0 | BC25: =IF(SUM(BB$8:BB$11)>0,$E25*$G25,0) -> 0 | BE25: =IF(SUM(BD$8:BD$11)>0,$E25*$G25,0) -> 0 | BG25: =IF(SUM(BF$8:BF$11)>0,$E25*$G25,0) -> 0 | BI25: =IF(SUM(BH$8:BH$11)>0,$E25*$G25,0) -> 0 | BK25: =IF(SUM(BJ$8:BJ$11)>0,$E25*$G25,0) -> 0 | BM25: =IF(SUM(BL$8:BL$11)>0,$E25*$G25,0) -> 0 | BO25: =IF(SUM(BN$8:BN$11)>0,$E25*$G25,0) -> 0 | BQ25: =IF(SUM(BP$8:BP$11)>0,$E25*$G25,0) -> 0 | BS25: =IF(SUM(BR$8:BR$11)>0,$E25*$G25,0) -> 0 | BU25: =IF(SUM(BT$8:BT$11)>0,$E25*$G25,0) -> 0 | BW25: =IF(SUM(BV$8:BV$11)>0,$E25*$G25,0) -> 0 | BY25: =IF(SUM(BX$8:BX$11)>0,$E25*$G25,0) -> 0 | CA25: =IF(SUM(BZ$8:BZ$11)>0,$E25*$G25,0) -> 0 | CC25: =IF(SUM(CB$8:CB$11)>0,$E25*$G25,0) -> 0 | CE25: =IF(SUM(CD$8:CD$11)>0,$E25*$G25,0) -> 0 | CG25: =IF(SUM(CF$8:CF$11)>0,$E25*$G25,0) -> 0 | CI25: =IF(SUM(CH$8:CH$11)>0,$E25*$G25,0) -> 0 | CK25: =IF(SUM(CJ$8:CJ$11)>0,$E25*$G25,0) -> 0 | CM25: =IF(SUM(CL$8:CL$11)>0,$E25*$G25,0) -> 0 | CO25: =IF(SUM(CN$8:CN$11)>0,$E25*$G25,0) -> 0 | CQ25: =IF(SUM(CP$8:CP$11)>0,$E25*$G25,0) -> 0 | CS25: =IF(SUM(CR$8:CR$11)>0,$E25*$G25,0) -> 0 | CU25: =IF(SUM(CT$8:CT$11)>0,$E25*$G25,0) -> 0 | CW25: =IF(SUM(CV$8:CV$11)>0,$E25*$G25,0) -> 0 | CY25: =IF(SUM(CX$8:CX$11)>0,$E25*$G25,0) -> 0 | DA25: =IF(SUM(CZ$8:CZ$11)>0,$E25*$G25,0) -> 0 | DC25: =IF(SUM(DB$8:DB$11)>0,$E25*$G25,0) -> 0 | DE25: =IF(SUM(DD$8:DD$11)>0,$E25*$G25,0) -> 0 | DG25: =IF(SUM(DF$8:DF$11)>0,$E25*$G25,0) -> 0 | DI25: =IF(SUM(DH$8:DH$11)>0,$E25*$G25,0) -> 0 | DK25: =IF(SUM(DJ$8:DJ$11)>0,$E25*$G25,0) -> 0 | DM25: =IF(SUM(DL$8:DL$11)>0,$E25*$G25,0) -> 0 | DO25: =IF(SUM(DN$8:DN$11)>0,$E25*$G25,0) -> 0 | DQ25: =IF(SUM(DP$8:DP$11)>0,$E25*$G25,0) -> 0 | DS25: =IF(SUM(DR$8:DR$11)>0,$E25*$G25,0) -> 0 | DU25: =IF(SUM(DT$8:DT$11)>0,$E25*$G25,0) -> 0 | DW25: =IF(SUM(DV$8:DV$11)>0,$E25*$G25,0) -> 0 | DY25: 0
C27: CATEGORIAS | G27: QUANTIDADE
J28: =IF($C28=J$4,1,0) -> 0 | L28: =IF($C28=L$4,1,0) -> 0 | N28: =IF($C28=N$4,1,0) -> 0 | P28: =IF($C28=P$4,1,0) -> 0 | R28: =IF($C28=R$4,1,0) -> 0 | T28: =IF($C28=T$4,1,0) -> 0 | V28: =IF($C28=V$4,1,0) -> 0 | X28: =IF($C28=X$4,1,0) -> 0 | Z28: =IF($C28=Z$4,1,0) -> 0 | AB28: =IF($C28=AB$4,1,0) -> 0 | AD28: =IF($C28=AD$4,1,0) -> 0 | AF28: =IF($C28=AF$4,1,0) -> 0 | AH28: =IF($C28=AH$4,1,0) -> 0 | AJ28: =IF($C28=AJ$4,1,0) -> 0 | AL28: =IF($C28=AL$4,1,0) -> 0 | AN28: =IF($C28=AN$4,1,0) -> 0 | AP28: =IF($C28=AP$4,1,0) -> 0 | AR28: =IF($C28=AR$4,1,0) -> 0 | AT28: =IF($C28=AT$4,1,0) -> 0 | AV28: =IF($C28=AV$4,1,0) -> 0 | AX28: =IF($C28=AX$4,1,0) -> 0 | AZ28: =IF($C28=AZ$4,1,0) -> 0 | BB28: =IF($C28=BB$4,1,0) -> 0 | BD28: =IF($C28=BD$4,1,0) -> 0 | BF28: =IF($C28=BF$4,1,0) -> 0 | BH28: =IF($C28=BH$4,1,0) -> 0 | BJ28: =IF($C28=BJ$4,1,0) -> 0 | BL28: =IF($C28=BL$4,1,0) -> 0 | BN28: =IF($C28=BN$4,1,0) -> 0 | BP28: =IF($C28=BP$4,1,0) -> 0 | BR28: =IF($C28=BR$4,1,0) -> 0 | BT28: =IF($C28=BT$4,1,0) -> 0 | BV28: =IF($C28=BV$4,1,0) -> 0 | BX28: =IF($C28=BX$4,1,0) -> 0 | BZ28: =IF($C28=BZ$4,1,0) -> 0 | CB28: =IF($C28=CB$4,1,0) -> 0 | CD28: =IF($C28=CD$4,1,0) -> 0 | CF28: =IF($C28=CF$4,1,0) -> 0 | CH28: =IF($C28=CH$4,1,0) -> 0 | CJ28: =IF($C28=CJ$4,1,0) -> 0 | CL28: =IF($C28=CL$4,1,0) -> 0 | CN28: =IF($C28=CN$4,1,0) -> 0 | CP28: =IF($C28=CP$4,1,0) -> 0 | CR28: =IF($C28=CR$4,1,0) -> 0 | CT28: =IF($C28=CT$4,1,0) -> 0 | CV28: =IF($C28=CV$4,1,0) -> 0 | CX28: =IF($C28=CX$4,1,0) -> 0 | CZ28: =IF($C28=CZ$4,1,0) -> 0 | DB28: =IF($C28=DB$4,1,0) -> 0 | DD28: =IF($C28=DD$4,1,0) -> 0 | DF28: =IF($C28=DF$4,1,0) -> 0 | DH28: =IF($C28=DH$4,1,0) -> 0 | DJ28: =IF($C28=DJ$4,1,0) -> 0 | DL28: =IF($C28=DL$4,1,0) -> 0 | DN28: =IF($C28=DN$4,1,0) -> 0 | DP28: =IF($C28=DP$4,1,0) -> 0 | DR28: =IF($C28=DR$4,1,0) -> 0 | DT28: =IF($C28=DT$4,1,0) -> 0 | DV28: =IF($C28=DV$4,1,0) -> 0 | DX28: =IF($C28=DX$4,1,0) -> 0
C29: 4 | D29: =HLOOKUP($C29,'Dados Gerais'!$D$5:$BK$10,6) -> BOMBEIRO CIVIL BÁSICO DIURNO | G29: =HLOOKUP($C29,'Dados Gerais'!$D$5:$BK$14,10) -> 36 | J29: =IF($C29=J$4,1,0) -> 0 | L29: 0 | N29: 0 | P29: 1 | R29: 0 | T29: 0 | V29: 0 | X29: 0 | Z29: 0 | AB29: 0 | AD29: 0 | AF29: 0 | AH29: 0 | AJ29: 0 | AL29: 0 | AN29: 0 | AP29: 0 | AR29: 0 | AT29: 0 | AV29: 0 | AX29: 0 | AZ29: 0 | BB29: 0 | BD29: 0 | BF29: 0 | BH29: 0 | BJ29: 0 | BL29: 0 | BN29: 0 | BP29: 0 | BR29: 0 | BT29: 0 | BV29: 0 | BX29: 0 | BZ29: 0 | CB29: 0 | CD29: 0 | CF29: 0 | CH29: 0 | CJ29: 0 | CL29: 0 | CN29: 0 | CP29: 0 | CR29: 0 | CT29: 0 | CV29: 0 | CX29: 0 | CZ29: 0 | DB29: 0 | DD29: 0 | DF29: 0 | DH29: 0 | DJ29: 0 | DL29: 0 | DN29: 0 | DP29: 0 | DR29: 0 | DT29: 0 | DV29: 0 | DX29: 0
C30: 5 | D30: =HLOOKUP($C30,'Dados Gerais'!$D$5:$BK$10,6) -> BOMBEIRO CIVIL BÁSICO NOTURNO | G30: =HLOOKUP($C30,'Dados Gerais'!$D$5:$BK$14,10) -> 28 | J30: =IF($C30=J$4,1,0) -> 0 | L30: 0 | N30: 0 | P30: 0 | R30: 1 | T30: 0 | V30: 0 | X30: 0 | Z30: 0 | AB30: 0 | AD30: 0 | AF30: 0 | AH30: 0 | AJ30: 0 | AL30: 0 | AN30: 0 | AP30: 0 | AR30: 0 | AT30: 0 | AV30: 0 | AX30: 0 | AZ30: 0 | BB30: 0 | BD30: 0 | BF30: 0 | BH30: 0 | BJ30: 0 | BL30: 0 | BN30: 0 | BP30: 0 | BR30: 0 | BT30: 0 | BV30: 0 | BX30: 0 | BZ30: 0 | CB30: 0 | CD30: 0 | CF30: 0 | CH30: 0 | CJ30: 0 | CL30: 0 | CN30: 0 | CP30: 0 | CR30: 0 | CT30: 0 | CV30: 0 | CX30: 0 | CZ30: 0 | DB30: 0 | DD30: 0 | DF30: 0 | DH30: 0 | DJ30: 0 | DL30: 0 | DN30: 0 | DP30: 0 | DR30: 0 | DT30: 0 | DV30: 0 | DX30: 0
J31: =IF($C31=J$4,1,0) -> 0 | L31: 0 | N31: 0 | P31: 0 | R31: 0 | T31: 0 | V31: 0 | X31: 0 | Z31: 0 | AB31: 0 | AD31: 0 | AF31: 0 | AH31: 0 | AJ31: 0 | AL31: 0 | AN31: 0 | AP31: 0 | AR31: 0 | AT31: 0 | AV31: 0 | AX31: 0 | AZ31: 0 | BB31: 0 | BD31: 0 | BF31: 0 | BH31: 0 | BJ31: 0 | BL31: 0 | BN31: 0 | BP31: 0 | BR31: 0 | BT31: 0 | BV31: 0 | BX31: 0 | BZ31: 0 | CB31: 0 | CD31: 0 | CF31: 0 | CH31: 0 | CJ31: 0 | CL31: 0 | CN31: 0 | CP31: 0 | CR31: 0 | CT31: 0 | CV31: 0 | CX31: 0 | CZ31: 0 | DB31: 0 | DD31: 0 | DF31: 0 | DH31: 0 | DJ31: 0 | DL31: 0 | DN31: 0 | DP31: 0 | DR31: 0 | DT31: 0 | DV31: 0 | DX31: 0
C33: ITEM | D33: DESCRIÇÃO | E33: QUANT ANUAL POR POSTO | F33: UNIDADE | G33: VALOR
C35: 1 | D35: Capa de chuva confeccionada em tecido de náilon emborrachado, com uma face em poliamida e a outra em PVC, emendas através de costuras impermeabilizadas, fechamento frontal, com capuz fixo ajustado por cadarços com regulador e ponteiras em PVC, punhos ajustados com elástico, com faicha reflexiva de elevado brilho, com a logomarca da brigada de incêncio da Câmara dos Deputados. | E35: 1 | F35: UND | G35: =G15 -> 42.245 | K35: =IF(SUM(J$29:J$30)>0,$E35*$G35,0) -> 0 | M35: =IF(SUM(L$29:L$30)>0,$E35*$G35,0) -> 0 | O35: =IF(SUM($J$29:$J$30)>0,$E35*$G35,0) -> 0 | Q35: =IF(SUM($P$29:$P$30)>0,$E35*$G35,0) -> 42.245 | S35: =IF(SUM($P$29:$P$30)>0,$E35*$G35,0) -> 42.245 | U35: =IF(SUM($J$29:$J$30)>0,$E35*$G35,0) -> 0 | W35: =IF(SUM(V$29:V$30)>0,$E35*$G35,0) -> 0 | Y35: =IF(SUM(X$29:X$30)>0,$E35*$G35,0) -> 0 | AA35: =IF(SUM(Z$29:Z$30)>0,$E35*$G35,0) -> 0 | AC35: =IF(SUM($J$29:$J$30)>0,$E35*$G35,0) -> 0 | AE35: =IF(SUM($J$29:$J$30)>0,$E35*$G35,0) -> 0 | AG35: =IF(SUM($J$29:$J$30)>0,$E35*$G35,0) -> 0 | AI35: =IF(SUM($J$29:$J$30)>0,$E35*$G35,0) -> 0 | AK35: =IF(SUM($J$29:$J$30)>0,$E35*$G35,0) -> 0 | AM35: =IF(SUM($J$29:$J$30)>0,$E35*$G35,0) -> 0 | AO35: =IF(SUM($J$29:$J$30)>0,$E35*$G35,0) -> 0 | AQ35: =IF(SUM($J$29:$J$30)>0,$E35*$G35,0) -> 0 | AS35: =IF(SUM($J$29:$J$30)>0,$E35*$G35,0) -> 0 | AU35: =IF(SUM($J$29:$J$30)>0,$E35*$G35,0) -> 0 | AW35: =IF(SUM($J$29:$J$30)>0,$E35*$G35,0) -> 0 | AY35: =IF(SUM($J$29:$J$30)>0,$E35*$G35,0) -> 0 | BA35: =IF(SUM($J$29:$J$30)>0,$E35*$G35,0) -> 0 | BC35: =IF(SUM($J$29:$J$30)>0,$E35*$G35,0) -> 0 | BE35: =IF(SUM($J$29:$J$30)>0,$E35*$G35,0) -> 0 | BG35: =IF(SUM($J$29:$J$30)>0,$E35*$G35,0) -> 0 | BI35: =IF(SUM($J$29:$J$30)>0,$E35*$G35,0) -> 0 | BK35: =IF(SUM($J$29:$J$30)>0,$E35*$G35,0) -> 0 | BM35: =IF(SUM($J$29:$J$30)>0,$E35*$G35,0) -> 0 | BO35: =IF(SUM($J$29:$J$30)>0,$E35*$G35,0) -> 0 | BQ35: =IF(SUM($J$29:$J$30)>0,$E35*$G35,0) -> 0 | BS35: =IF(SUM($J$29:$J$30)>0,$E35*$G35,0) -> 0 | BU35: =IF(SUM($J$29:$J$30)>0,$E35*$G35,0) -> 0 | BW35: =IF(SUM($J$29:$J$30)>0,$E35*$G35,0) -> 0 | BY35: =IF(SUM($J$29:$J$30)>0,$E35*$G35,0) -> 0 | CA35: =IF(SUM($J$29:$J$30)>0,$E35*$G35,0) -> 0 | CC35: =IF(SUM($J$29:$J$30)>0,$E35*$G35,0) -> 0 | CE35: =IF(SUM($J$29:$J$30)>0,$E35*$G35,0) -> 0 | CG35: =IF(SUM($J$29:$J$30)>0,$E35*$G35,0) -> 0 | CI35: =IF(SUM($J$29:$J$30)>0,$E35*$G35,0) -> 0 | CK35: =IF(SUM($J$29:$J$30)>0,$E35*$G35,0) -> 0 | CM35: =IF(SUM($J$29:$J$30)>0,$E35*$G35,0) -> 0 | CO35: =IF(SUM($J$29:$J$30)>0,$E35*$G35,0) -> 0 | CQ35: =IF(SUM($J$29:$J$30)>0,$E35*$G35,0) -> 0 | CS35: =IF(SUM($J$29:$J$30)>0,$E35*$G35,0) -> 0 | CU35: =IF(SUM($J$29:$J$30)>0,$E35*$G35,0) -> 0 | CW35: =IF(SUM($J$29:$J$30)>0,$E35*$G35,0) -> 0 | CY35: =IF(SUM($J$29:$J$30)>0,$E35*$G35,0) -> 0 | DA35: =IF(SUM($J$29:$J$30)>0,$E35*$G35,0) -> 0 | DC35: =IF(SUM($J$29:$J$30)>0,$E35*$G35,0) -> 0 | DE35: =IF(SUM($J$29:$J$30)>0,$E35*$G35,0) -> 0 | DG35: =IF(SUM($J$29:$J$30)>0,$E35*$G35,0) -> 0 | DI35: =IF(SUM($J$29:$J$30)>0,$E35*$G35,0) -> 0 | DK35: =IF(SUM($J$29:$J$30)>0,$E35*$G35,0) -> 0 | DM35: =IF(SUM($J$29:$J$30)>0,$E35*$G35,0) -> 0 | DO35: =IF(SUM($J$29:$J$30)>0,$E35*$G35,0) -> 0 | DQ35: =IF(SUM($J$29:$J$30)>0,$E35*$G35,0) -> 0 | DS35: =IF(SUM($J$29:$J$30)>0,$E35*$G35,0) -> 0 | DU35: =IF(SUM($J$29:$J$30)>0,$E35*$G35,0) -> 0 | DW35: =IF(SUM($J$29:$J$30)>0,$E35*$G35,0) -> 0 | DY35: =IF(SUM($J$29:$J$30)>0,$E35*$G35,0) -> 0
C36: 2 | D36: Protetor auricular tipo plug em silicone, lavável com proteção de 18 dB(A) de atenuação pelo método NRRsf. Marca 3M ou similar. | E36: 2 | F36: UND | G36: =G16 -> 1.95 | K36: =IF(SUM(J$29:J$30)>0,$E36*$G36,0) -> 0 | M36: =IF(SUM(L$29:L$30)>0,$E36*$G36,0) -> 0 | O36: =IF(SUM($J$29:$J$30)>0,$E36*$G36,0) -> 0 | Q36: =IF(SUM($P$29:$P$30)>0,$E36*$G36,0) -> 3.9 | S36: 3.9 | U36: =IF(SUM($J$29:$J$30)>0,$E36*$G36,0) -> 0 | W36: =IF(SUM(V$29:V$30)>0,$E36*$G36,0) -> 0 | Y36: =IF(SUM(X$29:X$30)>0,$E36*$G36,0) -> 0 | AA36: =IF(SUM(Z$29:Z$30)>0,$E36*$G36,0) -> 0 | AC36: =IF(SUM($J$29:$J$30)>0,$E36*$G36,0) -> 0 | AE36: =IF(SUM($J$29:$J$30)>0,$E36*$G36,0) -> 0 | AG36: =IF(SUM($J$29:$J$30)>0,$E36*$G36,0) -> 0 | AI36: =IF(SUM($J$29:$J$30)>0,$E36*$G36,0) -> 0 | AK36: =IF(SUM($J$29:$J$30)>0,$E36*$G36,0) -> 0 | AM36: =IF(SUM($J$29:$J$30)>0,$E36*$G36,0) -> 0 | AO36: =IF(SUM($J$29:$J$30)>0,$E36*$G36,0) -> 0 | AQ36: =IF(SUM($J$29:$J$30)>0,$E36*$G36,0) -> 0 | AS36: =IF(SUM($J$29:$J$30)>0,$E36*$G36,0) -> 0 | AU36: =IF(SUM($J$29:$J$30)>0,$E36*$G36,0) -> 0 | AW36: =IF(SUM($J$29:$J$30)>0,$E36*$G36,0) -> 0 | AY36: =IF(SUM($J$29:$J$30)>0,$E36*$G36,0) -> 0 | BA36: =IF(SUM($J$29:$J$30)>0,$E36*$G36,0) -> 0 | BC36: =IF(SUM($J$29:$J$30)>0,$E36*$G36,0) -> 0 | BE36: =IF(SUM($J$29:$J$30)>0,$E36*$G36,0) -> 0 | BG36: =IF(SUM($J$29:$J$30)>0,$E36*$G36,0) -> 0 | BI36: =IF(SUM($J$29:$J$30)>0,$E36*$G36,0) -> 0 | BK36: =IF(SUM($J$29:$J$30)>0,$E36*$G36,0) -> 0 | BM36: =IF(SUM($J$29:$J$30)>0,$E36*$G36,0) -> 0 | BO36: =IF(SUM($J$29:$J$30)>0,$E36*$G36,0) -> 0 | BQ36: =IF(SUM($J$29:$J$30)>0,$E36*$G36,0) -> 0 | BS36: =IF(SUM($J$29:$J$30)>0,$E36*$G36,0) -> 0 | BU36: =IF(SUM($J$29:$J$30)>0,$E36*$G36,0) -> 0 | BW36: =IF(SUM($J$29:$J$30)>0,$E36*$G36,0) -> 0 | BY36: =IF(SUM($J$29:$J$30)>0,$E36*$G36,0) -> 0 | CA36: =IF(SUM($J$29:$J$30)>0,$E36*$G36,0) -> 0 | CC36: =IF(SUM($J$29:$J$30)>0,$E36*$G36,0) -> 0 | CE36: =IF(SUM($J$29:$J$30)>0,$E36*$G36,0) -> 0 | CG36: =IF(SUM($J$29:$J$30)>0,$E36*$G36,0) -> 0 | CI36: =IF(SUM($J$29:$J$30)>0,$E36*$G36,0) -> 0 | CK36: =IF(SUM($J$29:$J$30)>0,$E36*$G36,0) -> 0 | CM36: =IF(SUM($J$29:$J$30)>0,$E36*$G36,0) -> 0 | CO36: =IF(SUM($J$29:$J$30)>0,$E36*$G36,0) -> 0 | CQ36: =IF(SUM($J$29:$J$30)>0,$E36*$G36,0) -> 0 | CS36: =IF(SUM($J$29:$J$30)>0,$E36*$G36,0) -> 0 | CU36: =IF(SUM($J$29:$J$30)>0,$E36*$G36,0) -> 0 | CW36: =IF(SUM($J$29:$J$30)>0,$E36*$G36,0) -> 0 | CY36: =IF(SUM($J$29:$J$30)>0,$E36*$G36,0) -> 0 | DA36: =IF(SUM($J$29:$J$30)>0,$E36*$G36,0) -> 0 | DC36: =IF(SUM($J$29:$J$30)>0,$E36*$G36,0) -> 0 | DE36: =IF(SUM($J$29:$J$30)>0,$E36*$G36,0) -> 0 | DG36: =IF(SUM($J$29:$J$30)>0,$E36*$G36,0) -> 0 | DI36: =IF(SUM($J$29:$J$30)>0,$E36*$G36,0) -> 0 | DK36: =IF(SUM($J$29:$J$30)>0,$E36*$G36,0) -> 0 | DM36: =IF(SUM($J$29:$J$30)>0,$E36*$G36,0) -> 0 | DO36: =IF(SUM($J$29:$J$30)>0,$E36*$G36,0) -> 0 | DQ36: =IF(SUM($J$29:$J$30)>0,$E36*$G36,0) -> 0 | DS36: =IF(SUM($J$29:$J$30)>0,$E36*$G36,0) -> 0 | DU36: =IF(SUM($J$29:$J$30)>0,$E36*$G36,0) -> 0 | DW36: =IF(SUM($J$29:$J$30)>0,$E36*$G36,0) -> 0 | DY36: =IF(SUM($J$29:$J$30)>0,$E36*$G36,0) -> 0
C37: 3 | D37: Luvas de segurança confeccionada com vaqueta, com formato de cinco dedos, com reforço na palma e entre o polegar e o indicador, cano curto (10 cm). Marca de ref. Giovanni B. S. Bonatto | E37: 2 | F37: PAR | G37: 21.415 | K37: =IF(SUM(J$8:J$11)>0,$E37*$G37,0) -> 0 | M37: =IF(SUM(L$29:L$30)>0,$E37*$G37,0) -> 0 | O37: =IF(SUM($J$29:$J$30)>0,$E37*$G37,0) -> 0 | Q37: 42.83 | S37: 42.83 | U37: =IF(SUM($J$29:$J$30)>0,$E37*$G37,0) -> 0 | W37: =IF(SUM(V$29:V$30)>0,$E37*$G37,0) -> 0 | Y37: =IF(SUM(X$8:X$11)>0,$E37*$G37,0) -> 0 | AA37: =IF(SUM(Z$8:Z$11)>0,$E37*$G37,0) -> 0 | AC37: =IF(SUM(AB$8:AB$11)>0,$E37*$G37,0) -> 0 | AE37: =IF(SUM(AD$8:AD$11)>0,$E37*$G37,0) -> 0 | AG37: =IF(SUM(AF$8:AF$11)>0,$E37*$G37,0) -> 0 | AI37: =IF(SUM(AH$8:AH$11)>0,$E37*$G37,0) -> 0 | AK37: =IF(SUM(AJ$8:AJ$11)>0,$E37*$G37,0) -> 0 | AM37: =IF(SUM(AL$8:AL$11)>0,$E37*$G37,0) -> 0 | AO37: =IF(SUM(AN$8:AN$11)>0,$E37*$G37,0) -> 0 | AQ37: =IF(SUM(AP$8:AP$11)>0,$E37*$G37,0) -> 0 | AS37: =IF(SUM(AR$8:AR$11)>0,$E37*$G37,0) -> 0 | AU37: =IF(SUM(AT$8:AT$11)>0,$E37*$G37,0) -> 0 | AW37: =IF(SUM(AV$8:AV$11)>0,$E37*$G37,0) -> 0 | AY37: =IF(SUM(AX$8:AX$11)>0,$E37*$G37,0) -> 0 | BA37: =IF(SUM(AZ$8:AZ$11)>0,$E37*$G37,0) -> 0 | BC37: =IF(SUM(BB$8:BB$11)>0,$E37*$G37,0) -> 0 | BE37: =IF(SUM(BD$8:BD$11)>0,$E37*$G37,0) -> 0 | BG37: =IF(SUM(BF$8:BF$11)>0,$E37*$G37,0) -> 0 | BI37: =IF(SUM(BH$8:BH$11)>0,$E37*$G37,0) -> 0 | BK37: =IF(SUM(BJ$8:BJ$11)>0,$E37*$G37,0) -> 0 | BM37: =IF(SUM(BL$8:BL$11)>0,$E37*$G37,0) -> 0 | BO37: =IF(SUM(BN$8:BN$11)>0,$E37*$G37,0) -> 0 | BQ37: =IF(SUM(BP$8:BP$11)>0,$E37*$G37,0) -> 0 | BS37: =IF(SUM(BR$8:BR$11)>0,$E37*$G37,0) -> 0 | BU37: =IF(SUM(BT$8:BT$11)>0,$E37*$G37,0) -> 0 | BW37: =IF(SUM(BV$8:BV$11)>0,$E37*$G37,0) -> 0 | BY37: =IF(SUM(BX$8:BX$11)>0,$E37*$G37,0) -> 0 | CA37: =IF(SUM(BZ$8:BZ$11)>0,$E37*$G37,0) -> 0 | CC37: =IF(SUM(CB$8:CB$11)>0,$E37*$G37,0) -> 0 | CE37: =IF(SUM(CD$8:CD$11)>0,$E37*$G37,0) -> 0 | CG37: =IF(SUM(CF$8:CF$11)>0,$E37*$G37,0) -> 0 | CI37: =IF(SUM(CH$8:CH$11)>0,$E37*$G37,0) -> 0 | CK37: =IF(SUM(CJ$8:CJ$11)>0,$E37*$G37,0) -> 0 | CM37: =IF(SUM(CL$8:CL$11)>0,$E37*$G37,0) -> 0 | CO37: =IF(SUM(CN$8:CN$11)>0,$E37*$G37,0) -> 0 | CQ37: =IF(SUM(CP$8:CP$11)>0,$E37*$G37,0) -> 0 | CS37: =IF(SUM(CR$8:CR$11)>0,$E37*$G37,0) -> 0 | CU37: =IF(SUM(CT$8:CT$11)>0,$E37*$G37,0) -> 0 | CW37: =IF(SUM(CV$8:CV$11)>0,$E37*$G37,0) -> 0 | CY37: =IF(SUM(CX$8:CX$11)>0,$E37*$G37,0) -> 0 | DA37: =IF(SUM(CZ$8:CZ$11)>0,$E37*$G37,0) -> 0 | DC37: =IF(SUM(DB$8:DB$11)>0,$E37*$G37,0) -> 0 | DE37: =IF(SUM(DD$8:DD$11)>0,$E37*$G37,0) -> 0 | DG37: =IF(SUM(DF$8:DF$11)>0,$E37*$G37,0) -> 0 | DI37: =IF(SUM(DH$8:DH$11)>0,$E37*$G37,0) -> 0 | DK37: =IF(SUM(DJ$8:DJ$11)>0,$E37*$G37,0) -> 0 | DM37: =IF(SUM(DL$8:DL$11)>0,$E37*$G37,0) -> 0 | DO37: =IF(SUM(DN$8:DN$11)>0,$E37*$G37,0) -> 0 | DQ37: =IF(SUM(DP$8:DP$11)>0,$E37*$G37,0) -> 0 | DS37: =IF(SUM(DR$8:DR$11)>0,$E37*$G37,0) -> 0 | DU37: =IF(SUM(DT$8:DT$11)>0,$E37*$G37,0) -> 0 | DW37: =IF(SUM(DV$8:DV$11)>0,$E37*$G37,0) -> 0 | DY37: =IF(SUM(DX$8:DX$11)>0,$E37*$G37,0) -> 0
C38: 4 | D38: Luva de malha pigmentada, tricotada em 4 fios de algodão e poliéster, com pigmentos em PVC antiderrapante na palma e face dos dedos, e punho com elástico, na cor branca. Marca Vonder ou similar. | E38: 2 | F38: PAR | G38: 2.24 | K38: 0 | M38: 0 | O38: 0 | Q38: 4.48 | S38: 4.48 | U38: 0 | W38: 0 | Y38: 0 | AA38: 0 | AC38: 0 | AE38: 0 | AG38: 0 | AI38: 0 | AK38: 0 | AM38: 0 | AO38: 0 | AQ38: 0 | AS38: 0 | AU38: 0 | AW38: 0 | AY38: 0 | BA38: 0 | BC38: 0 | BE38: 0 | BG38: 0 | BI38: 0 | BK38: 0 | BM38: 0 | BO38: 0 | BQ38: 0 | BS38: 0 | BU38: 0 | BW38: 0 | BY38: 0 | CA38: 0 | CC38: 0 | CE38: 0 | CG38: 0 | CI38: 0 | CK38: 0 | CM38: 0 | CO38: 0 | CQ38: 0 | CS38: 0 | CU38: 0 | CW38: 0 | CY38: 0 | DA38: 0 | DC38: 0 | DE38: 0 | DG38: 0 | DI38: 0 | DK38: 0 | DM38: 0 | DO38: 0 | DQ38: 0 | DS38: 0 | DU38: 0 | DW38: 0 | DY38: 0
C39: 5 | D39: Óculos ampla visão, em Acrílico. a serem utilizados em procedimentos que possam gerar respingos de material orgânico e atingir a conjuntiva ocular. Devem ter anteparo em borracha na borda superior, lateral e inferior. Ajuste por meio de tirante elastico. Marca Danny (modelo SILO S8/2 ) ou similar. | E39: 2 | F39: UND | G39: 40 | K39: 0 | M39: 0 | O39: 0 | Q39: 80 | S39: 80 | U39: 0 | W39: 0 | Y39: 0 | AA39: 0 | AC39: 0 | AE39: 0 | AG39: 0 | AI39: 0 | AK39: 0 | AM39: 0 | AO39: 0 | AQ39: 0 | AS39: 0 | AU39: 0 | AW39: 0 | AY39: 0 | BA39: 0 | BC39: 0 | BE39: 0 | BG39: 0 | BI39: 0 | BK39: 0 | BM39: 0 | BO39: 0 | BQ39: 0 | BS39: 0 | BU39: 0 | BW39: 0 | BY39: 0 | CA39: 0 | CC39: 0 | CE39: 0 | CG39: 0 | CI39: 0 | CK39: 0 | CM39: 0 | CO39: 0 | CQ39: 0 | CS39: 0 | CU39: 0 | CW39: 0 | CY39: 0 | DA39: 0 | DC39: 0 | DE39: 0 | DG39: 0 | DI39: 0 | DK39: 0 | DM39: 0 | DO39: 0 | DQ39: 0 | DS39: 0 | DU39: 0 | DW39: 0 | DY39: 0
C40: 6 | D40: JOELHEIRA, na cor Preta, confeccionada em tecido resistente na parte externa, e interior em malha respirável, possui couraça em TPU com rebites metálicos na cor do produto; ajuste maleável triplo, clip de engate rápido, acolchoamento por placa de EVA e etiqueta de identificação. Ref. INVICTUS, modelo Protec | E40: 1 | F40: PAR | G40: 259 | K40: 0 | M40: 0 | O40: 0 | Q40: 259 | S40: 259 | U40: 0 | W40: 0 | Y40: 0 | AA40: 0 | AC40: 0 | AE40: 0 | AG40: 0 | AI40: 0 | AK40: 0 | AM40: 0 | AO40: 0 | AQ40: 0 | AS40: 0 | AU40: 0 | AW40: 0 | AY40: 0 | BA40: 0 | BC40: 0 | BE40: 0 | BG40: 0 | BI40: 0 | BK40: 0 | BM40: 0 | BO40: 0 | BQ40: 0 | BS40: 0 | BU40: 0 | BW40: 0 | BY40: 0 | CA40: 0 | CC40: 0 | CE40: 0 | CG40: 0 | CI40: 0 | CK40: 0 | CM40: 0 | CO40: 0 | CQ40: 0 | CS40: 0 | CU40: 0 | CW40: 0 | CY40: 0 | DA40: 0 | DC40: 0 | DE40: 0 | DG40: 0 | DI40: 0 | DK40: 0 | DM40: 0 | DO40: 0 | DQ40: 0 | DS40: 0 | DU40: 0 | DW40: 0 | DY40: 0
C41: 7 | D41: Respirador de meia peça facial, compatibilidade com filtros químicos, mecânicos ou combinados, encaixes para dois filtros/cartuchos. Diferentes opções de tamanhos para proporcionar vedação adequada aos tipos de rostos dos usuários. Ref.: 3M, modelo 6201 | E41: 1 | F41: UND | G41: 166.265 | K41: 0 | M41: 0 | O41: 0 | Q41: 166.265 | S41: 166.265 | U41: 0 | W41: 0 | Y41: 0 | AA41: 0 | AC41: 0 | AE41: 0 | AG41: 0 | AI41: 0 | AK41: 0 | AM41: 0 | AO41: 0 | AQ41: 0 | AS41: 0 | AU41: 0 | AW41: 0 | AY41: 0 | BA41: 0 | BC41: 0 | BE41: 0 | BG41: 0 | BI41: 0 | BK41: 0 | BM41: 0 | BO41: 0 | BQ41: 0 | BS41: 0 | BU41: 0 | BW41: 0 | BY41: 0 | CA41: 0 | CC41: 0 | CE41: 0 | CG41: 0 | CI41: 0 | CK41: 0 | CM41: 0 | CO41: 0 | CQ41: 0 | CS41: 0 | CU41: 0 | CW41: 0 | CY41: 0 | DA41: 0 | DC41: 0 | DE41: 0 | DG41: 0 | DI41: 0 | DK41: 0 | DM41: 0 | DO41: 0 | DQ41: 0 | DS41: 0 | DU41: 0 | DW41: 0 | DY41: 0
C42: 8 | D42: Cartucho químico para Vapores orgânicos e gases ácidos compatível com o respirador de meia peça facial Ref. 6003 3M | E42: 2 | F42: PAR | G42: 98.99 | K42: 0 | M42: 0 | O42: 0 | Q42: 197.98 | S42: 197.98 | U42: 0 | W42: 0 | Y42: 0 | AA42: 0 | AC42: 0 | AE42: 0 | AG42: 0 | AI42: 0 | AK42: 0 | AM42: 0 | AO42: 0 | AQ42: 0 | AS42: 0 | AU42: 0 | AW42: 0 | AY42: 0 | BA42: 0 | BC42: 0 | BE42: 0 | BG42: 0 | BI42: 0 | BK42: 0 | BM42: 0 | BO42: 0 | BQ42: 0 | BS42: 0 | BU42: 0 | BW42: 0 | BY42: 0 | CA42: 0 | CC42: 0 | CE42: 0 | CG42: 0 | CI42: 0 | CK42: 0 | CM42: 0 | CO42: 0 | CQ42: 0 | CS42: 0 | CU42: 0 | CW42: 0 | CY42: 0 | DA42: 0 | DC42: 0 | DE42: 0 | DG42: 0 | DI42: 0 | DK42: 0 | DM42: 0 | DO42: 0 | DQ42: 0 | DS42: 0 | DU42: 0 | DW42: 0 | DY42: 0
C43: 9 | D43: Filtro mecânico para poeiras, névoas e fumos. a ser utilizado de forma combinada com o cartucho. Compatível com o respirador de meia peça facial a ser adquirido. Ref: 5N11 3M | E43: 2 | F43: UND | G43: 50.995 | K43: 0 | M43: 0 | O43: 0 | Q43: 101.99 | S43: 101.99 | U43: 0 | W43: 0 | Y43: 0 | AA43: 0 | AC43: 0 | AE43: 0 | AG43: 0 | AI43: 0 | AK43: 0 | AM43: 0 | AO43: 0 | AQ43: 0 | AS43: 0 | AU43: 0 | AW43: 0 | AY43: 0 | BA43: 0 | BC43: 0 | BE43: 0 | BG43: 0 | BI43: 0 | BK43: 0 | BM43: 0 | BO43: 0 | BQ43: 0 | BS43: 0 | BU43: 0 | BW43: 0 | BY43: 0 | CA43: 0 | CC43: 0 | CE43: 0 | CG43: 0 | CI43: 0 | CK43: 0 | CM43: 0 | CO43: 0 | CQ43: 0 | CS43: 0 | CU43: 0 | CW43: 0 | CY43: 0 | DA43: 0 | DC43: 0 | DE43: 0 | DG43: 0 | DI43: 0 | DK43: 0 | DM43: 0 | DO43: 0 | DQ43: 0 | DS43: 0 | DU43: 0 | DW43: 0 | DY43: 0
C44: 10 | D44: Retentor para filtro. Compatível com o respirador de meia peça facial a ser adquirido. Ref.: 3M 501 | E44: 2 | F44: UND | G44: 10.685 | K44: 0 | M44: 0 | O44: 0 | Q44: 21.37 | S44: 21.37 | U44: 0 | W44: 0 | Y44: 0 | AA44: 0 | AC44: 0 | AE44: 0 | AG44: 0 | AI44: 0 | AK44: 0 | AM44: 0 | AO44: 0 | AQ44: 0 | AS44: 0 | AU44: 0 | AW44: 0 | AY44: 0 | BA44: 0 | BC44: 0 | BE44: 0 | BG44: 0 | BI44: 0 | BK44: 0 | BM44: 0 | BO44: 0 | BQ44: 0 | BS44: 0 | BU44: 0 | BW44: 0 | BY44: 0 | CA44: 0 | CC44: 0 | CE44: 0 | CG44: 0 | CI44: 0 | CK44: 0 | CM44: 0 | CO44: 0 | CQ44: 0 | CS44: 0 | CU44: 0 | CW44: 0 | CY44: 0 | DA44: 0 | DC44: 0 | DE44: 0 | DG44: 0 | DI44: 0 | DK44: 0 | DM44: 0 | DO44: 0 | DQ44: 0 | DS44: 0 | DU44: 0 | DW44: 0 | DY44: 0
C45: 11 | D45: CAPACETE DE SEGURANÇA com carneira e jugular do tipo III (sem aba); com casco rígido; sem porosidade; não deverá ser condutor de corrente elétrica; na cor vermelha. Ref.: Ultra Safe | E45: 1 | F45: UND | G45: 62.94 | K45: =IF(SUM(J$29:J$30)>0,$E45*$G45,0) -> 0 | M45: 0 | O45: 0 | Q45: 62.94 | S45: 62.94 | U45: 0 | W45: 0 | Y45: =IF(SUM(X$29:X$30)>0,$E45*$G45,0) -> 0 | AA45: =IF(SUM(Z$29:Z$30)>0,$E45*$G45,0) -> 0 | AC45: =IF(SUM($J$29:$J$30)>0,$E45*$G45,0) -> 0 | AE45: =IF(SUM($J$29:$J$30)>0,$E45*$G45,0) -> 0 | AG45: =IF(SUM($J$29:$J$30)>0,$E45*$G45,0) -> 0 | AI45: =IF(SUM($J$29:$J$30)>0,$E45*$G45,0) -> 0 | AK45: =IF(SUM($J$29:$J$30)>0,$E45*$G45,0) -> 0 | AM45: =IF(SUM($J$29:$J$30)>0,$E45*$G45,0) -> 0 | AO45: =IF(SUM($J$29:$J$30)>0,$E45*$G45,0) -> 0 | AQ45: =IF(SUM($J$29:$J$30)>0,$E45*$G45,0) -> 0 | AS45: =IF(SUM($J$29:$J$30)>0,$E45*$G45,0) -> 0 | AU45: =IF(SUM($J$29:$J$30)>0,$E45*$G45,0) -> 0 | AW45: =IF(SUM($J$29:$J$30)>0,$E45*$G45,0) -> 0 | AY45: =IF(SUM($J$29:$J$30)>0,$E45*$G45,0) -> 0 | BA45: =IF(SUM($J$29:$J$30)>0,$E45*$G45,0) -> 0 | BC45: =IF(SUM($J$29:$J$30)>0,$E45*$G45,0) -> 0 | BE45: =IF(SUM($J$29:$J$30)>0,$E45*$G45,0) -> 0 | BG45: =IF(SUM($J$29:$J$30)>0,$E45*$G45,0) -> 0 | BI45: =IF(SUM($J$29:$J$30)>0,$E45*$G45,0) -> 0 | BK45: =IF(SUM($J$29:$J$30)>0,$E45*$G45,0) -> 0 | BM45: =IF(SUM($J$29:$J$30)>0,$E45*$G45,0) -> 0 | BO45: =IF(SUM($J$29:$J$30)>0,$E45*$G45,0) -> 0 | BQ45: =IF(SUM($J$29:$J$30)>0,$E45*$G45,0) -> 0 | BS45: =IF(SUM($J$29:$J$30)>0,$E45*$G45,0) -> 0 | BU45: =IF(SUM($J$29:$J$30)>0,$E45*$G45,0) -> 0 | BW45: =IF(SUM($J$29:$J$30)>0,$E45*$G45,0) -> 0 | BY45: =IF(SUM($J$29:$J$30)>0,$E45*$G45,0) -> 0 | CA45: =IF(SUM($J$29:$J$30)>0,$E45*$G45,0) -> 0 | CC45: =IF(SUM($J$29:$J$30)>0,$E45*$G45,0) -> 0 | CE45: =IF(SUM($J$29:$J$30)>0,$E45*$G45,0) -> 0 | CG45: =IF(SUM($J$29:$J$30)>0,$E45*$G45,0) -> 0 | CI45: =IF(SUM($J$29:$J$30)>0,$E45*$G45,0) -> 0 | CK45: =IF(SUM($J$29:$J$30)>0,$E45*$G45,0) -> 0 | CM45: =IF(SUM($J$29:$J$30)>0,$E45*$G45,0) -> 0 | CO45: =IF(SUM($J$29:$J$30)>0,$E45*$G45,0) -> 0 | CQ45: =IF(SUM($J$29:$J$30)>0,$E45*$G45,0) -> 0 | CS45: =IF(SUM($J$29:$J$30)>0,$E45*$G45,0) -> 0 | CU45: =IF(SUM($J$29:$J$30)>0,$E45*$G45,0) -> 0 | CW45: =IF(SUM($J$29:$J$30)>0,$E45*$G45,0) -> 0 | CY45: =IF(SUM($J$29:$J$30)>0,$E45*$G45,0) -> 0 | DA45: =IF(SUM($J$29:$J$30)>0,$E45*$G45,0) -> 0 | DC45: =IF(SUM($J$29:$J$30)>0,$E45*$G45,0) -> 0 | DE45: =IF(SUM($J$29:$J$30)>0,$E45*$G45,0) -> 0 | DG45: =IF(SUM($J$29:$J$30)>0,$E45*$G45,0) -> 0 | DI45: =IF(SUM($J$29:$J$30)>0,$E45*$G45,0) -> 0 | DK45: =IF(SUM($J$29:$J$30)>0,$E45*$G45,0) -> 0 | DM45: =IF(SUM($J$29:$J$30)>0,$E45*$G45,0) -> 0 | DO45: =IF(SUM($J$29:$J$30)>0,$E45*$G45,0) -> 0 | DQ45: =IF(SUM($J$29:$J$30)>0,$E45*$G45,0) -> 0 | DS45: =IF(SUM($J$29:$J$30)>0,$E45*$G45,0) -> 0 | DU45: =IF(SUM($J$29:$J$30)>0,$E45*$G45,0) -> 0 | DW45: =IF(SUM($J$29:$J$30)>0,$E45*$G45,0) -> 0 | DY45: =IF(SUM($J$29:$J$30)>0,$E45*$G45,0) -> 0

Sheet Não Rel - EPI
B4: EPIS NÃO RELACIONADOS DIRETAMENTE A UM POSTO DE TRABALHO - AQUISIÇÃO
D7: ITEM | E7: DESCRIÇÃO | F7: QUANT ANUAL | G7: UNIDADE | H7: CUSTO UNITÁRIO | I7: CUSTO ANUAL | J7: BDI (%) | K7: PREÇO TOTAL | L7: FONTE
D9: 1 | E9: Vestimenta de proteção para aproximação e combate a incêndio estrutural, composta por: - BLUSÃO, 3 camadas, confeccionada em meta-aramida, para-aramida e fibra antiestética, acabamento em Rip Stop, barreira de vapor formada por feltro de aramida laminado com filme respirável, barreira térmica formada por feltro de aramida costurado com tecido antichamas. Faixas refletivas no tórax e nas mangas, reforço no cotovelo, fechamento frontal com zíper e velcro, bolso para rádio, porta lanterna com passante e dois bolsos inferiores com tampa. Cor preta. Ref.: S.O.S. Sul Resgate. - CALÇA de proteção, 3 camadas, confeccionada em meta-aramida, para-aramida e fibras antiestáticas, acabamento em rip stop, barreira de vapor formada por feltro de aramida laminado com filme respirável, barreira térmica formada por feltro de aramida costurado com tecido antichamas. Faixas refletivas nas pernas. Braguilha na vertical com fechamento por velcro, reforço no joelho, dois bolsos nas laterais com tampa, com suspensório modelo H em elástico antichamas, com parte traseira e parte frontal com ajustador e fechamento por engates. Cor preta. Ref.: S.O.S. Sul Resgate | F9: 16 | G9: CONJ | H9: 3862.5 | I9: =H9*F9 -> 61800 | J9: =BDI!E26 -> 0.2314 | K9: =ROUND(I9*(1+J9),2) -> 76100.52 | L9: COTAÇÃO
D10: 2 | E10: Capacete de segurança para BOMBEIROS composto de casco injetado em termoplástico (poliamida) VERMELHO com tiras refletivas, conjunto de absorção contra impacto e risco elétrico confeccionado em placa de espuma moldada em poliuretano com reforço de aramida, conjunto de suspensão composto de carneira com cremalheira horizontal para regulagem com sistema de catraca, revestida com almofadas de absorção para proteção em couro antialérgico, presas através de tiras de fixação, tira jugular ergonômica de encaixe rápido com pontos de apoio e laterais almofadadas, visor interno retrátil de policarbonato transparente, visor externo retrátil de termoplástico com revestimento metalizado por ouro. Em conformidade com a norma EN 443. Ref.: MSA modelo Gallet F1XF | F10: 16 | G10: UN | H10: 2324.52 | I10: =H10*F10 -> 37192.32 | J10: =J9 -> 0.2314 | K10: =ROUND(I10*(1+J10),2) -> 45798.62 | L10: COTAÇÃO
D11: 3 | E11: Capuz TIPO BALACLAVA em malha de fibra de aramida de 300 g/m², com uma ou duas camadas; antichamas; abertura total na face; resistente à temperatura de até 250 ºC de aproximação. Ref.: Hércules | F11: 16 | G11: UN | H11: 128.495 | I11: =H11*F11 -> 2055.92 | J11: =J10 -> 0.2314 | K11: =ROUND(I11*(1+J11),2) -> 2531.66 | L11: COTAÇÃO
D12: 4 | E12: Calçado de segurança tipo bota, para uso no combate a incêndio, confeccionado em borracha vulcanizada na cor preta, forro em tecido retardante à chamas, biqueira interna em aço, palmilha de aço, camada isolante elétrica separada do solado através de feltro isolante térmico, proteção de tíbia e sua borda superior, com duas alças. Ref.: Hercules | F12: 16 | G12: PAR | H12: 835.325 | I12: 13365.2 | J12: 0.2314 | K12: 16457.91 | L12: COTAÇÃO
D13: 5 | E13: Luva de proteção contra incêndios, modelo 5 dedos, cor predominante preta, confeccionada em aramida, barreira de umidade em poliuretano respirável, forração interna dupla antialérgica em aramida, reforços em couro na palma e dorso e tiras de ajuste e fixação com velcro. Punho de 5cm aproximadamente. Ref.: JOBE LUV | F13: 16 | G13: PAR | H13: 418.495 | I13: 6695.92 | J13: 0.2314 | K13: 8245.36 | L13: COTAÇÃO
D14: 6 | E14: Luva de segurança confeccionada em borracha natural, com pó bioadsorvível, ambidestra e superfície lisa - caixa com 100 unidades. | F14: 60 | G14: CX | H14: 30.63 | I14: 1837.8 | J14: 0.2314 | K14: 2263.07 | L14: COTAÇÃO
D15: 7 | E15: Máscara Cirúrgica Tripla. Fabricada em não tecido 100% polipropileno. - Não estéril - Tripla camada com filtro - Três pregas horizontais - Clipe nasal - Soldada eletronicamente por ultrassom - Disponível na cor branca - Descartável e de uso único. Caixa com 50 unidades cada. Ref: DESCARPACK | F15: 60 | G15: CX | H15: 8.5 | I15: 510 | J15: 0.2314 | K15: 628.01 | L15: COTAÇÃO
D16: 8 | E16: Fita de sinalização (zebrada), com listas laranja e preta intercaladas-rolo 200 m x 70 mm. Ref.: 3M | F16: 20 | G16: UND | H16: 9.655 | I16: 193.1 | J16: 0.2314 | K16: 237.78 | L16: COTAÇÃO
D17: 9 | E17: Vestimenta de segurança para apicultor, composto por: - CALÇA em tecido Brim,100% algodão, com elástico nos tornozelos e na cintura. - JALECO em tecido Brim,100% algodão, com fechamento através de amarras no pescoço e elástico nos punhos e na cintura. Acompanha chapéu de palha duplo com protetor facial em tela. Ref: Tecmater | F17: 6 | G17: CONJ | H17: 202.43 | I17: 1214.58 | J17: 0.2314 | K17: 1495.63 | L17: COTAÇÃO
J19: SOMATÓRIO TOTAL MENSAL | K19: =K20/12 -> 12813.21333
J20: SOMATÓRIO TOTAL ANUAL | K20: =SUM(K8:K18) -> 153758.56 | N20: =SUM($I$9:$I$17) -> 124864.84 | O20: por ano sem bdi

Sheet Equip Rel (hidden)
C1: CÂMARA DOS DEPUTADOS
C2: DEPARTAMENTO TÉCNICO
C3: Coordenação de Planejamento e Gestão
C5: Data: | D5: ='Dados Gerais'!#REF! -> 
C6: Processo: | D6: ='Dados Gerais'!#REF! -> 
C7: Objeto: | D7: ='Dados Gerais'!#REF! -> 
B11: EQUIPAMENTOS RELACIONADOS AO POSTO - PAGAMENTO DA DEPRECIAÇÃO / MANUTENÇÃO | Q11: 1 | S11: =Q11+1 -> 2 | U11: =S11+1 -> 3 | W11: =U11+1 -> 4 | Y11: =W11+1 -> 5 | AA11: =Y11+1 -> 6 | AC11: =AA11+1 -> 7 | AE11: =AC11+1 -> 8 | AG11: =AE11+1 -> 9 | AI11: =AG11+1 -> 10 | AK11: =AI11+1 -> 11 | AM11: =AK11+1 -> 12 | AO11: =AM11+1 -> 13 | AQ11: =AO11+1 -> 14 | AS11: =AQ11+1 -> 15 | AU11: =AS11+1 -> 16 | AW11: =AU11+1 -> 17 | AY11: =AW11+1 -> 18 | BA11: =AY11+1 -> 19 | BC11: =BA11+1 -> 20 | BE11: =BC11+1 -> 21 | BG11: =BE11+1 -> 22 | BI11: =BG11+1 -> 23 | BK11: =BI11+1 -> 24 | BM11: =BK11+1 -> 25 | BO11: =BM11+1 -> 26 | BQ11: =BO11+1 -> 27 | BS11: =BQ11+1 -> 28 | BU11: =BS11+1 -> 29 | BW11: =BU11+1 -> 30 | BY11: =BW11+1 -> 31 | CA11: =BY11+1 -> 32 | CC11: =CA11+1 -> 33 | CE11: =CC11+1 -> 34 | CG11: =CE11+1 -> 35 | CI11: =CG11+1 -> 36 | CK11: =CI11+1 -> 37 | CM11: =CK11+1 -> 38 | CO11: =CM11+1 -> 39 | CQ11: =CO11+1 -> 40 | CS11: =CQ11+1 -> 41 | CU11: =CS11+1 -> 42 | CW11: =CU11+1 -> 43 | CY11: =CW11+1 -> 44 | DA11: =CY11+1 -> 45 | DC11: =DA11+1 -> 46 | DE11: =DC11+1 -> 47 | DG11: =DE11+1 -> 48 | DI11: =DG11+1 -> 49 | DK11: =DI11+1 -> 50 | DM11: =DK11+1 -> 51 | DO11: =DM11+1 -> 52 | DQ11: =DO11+1 -> 53 | DS11: =DQ11+1 -> 54 | DU11: =DS11+1 -> 55 | DW11: =DU11+1 -> 56 | DY11: =DW11+1 -> 57 | EA11: =DY11+1 -> 58 | EC11: =EA11+1 -> 59 | EE11: =EC11+1 -> 60
Q13: =SUM(R12:R61) -> 0 | S13: =SUM(T12:T61) -> 0 | U13: =SUM(V12:V61) -> 0 | W13: =SUM(X12:X61) -> 0 | Y13: =SUM(Z12:Z61) -> 0 | AA13: =SUM(AB12:AB61) -> 0 | AC13: =SUM(AD12:AD61) -> 0 | AE13: =SUM(AF12:AF61) -> 0 | AG13: =SUM(AH12:AH61) -> 0 | AI13: =SUM(AJ12:AJ61) -> 0 | AK13: =SUM(AL12:AL61) -> 0 | AM13: =SUM(AN12:AN61) -> 0 | AO13: =SUM(AP12:AP61) -> 0 | AQ13: =SUM(AR12:AR61) -> 0 | AS13: =SUM(AT12:AT61) -> 0 | AU13: =SUM(AV12:AV61) -> 0 | AW13: =SUM(AX12:AX61) -> 0 | AY13: =SUM(AZ12:AZ61) -> 0 | BA13: =SUM(BB12:BB61) -> 0 | BC13: =SUM(BD12:BD61) -> 0 | BE13: =SUM(BF12:BF61) -> 0 | BG13: =SUM(BH12:BH61) -> 0 | BI13: =SUM(BJ12:BJ61) -> 0 | BK13: =SUM(BL12:BL61) -> 0 | BM13: =SUM(BN12:BN61) -> 0 | BO13: =SUM(BP12:BP61) -> 0 | BQ13: =SUM(BR12:BR61) -> 0 | BS13: =SUM(BT12:BT61) -> 0 | BU13: =SUM(BV12:BV61) -> 0 | BW13: =SUM(BX12:BX61) -> 0 | BY13: =SUM(BZ12:BZ61) -> 0 | CA13: =SUM(CB12:CB61) -> 0 | CC13: =SUM(CD12:CD61) -> 0 | CE13: =SUM(CF12:CF61) -> 0 | CG13: =SUM(CH12:CH61) -> 0 | CI13: =SUM(CJ12:CJ61) -> 0 | CK13: =SUM(CL12:CL61) -> 0 | CM13: =SUM(CN12:CN61) -> 0 | CO13: =SUM(CP12:CP61) -> 0 | CQ13: =SUM(CR12:CR61) -> 0 | CS13: =SUM(CT12:CT61) -> 0 | CU13: =SUM(CV12:CV61) -> 0 | CW13: =SUM(CX12:CX61) -> 0 | CY13: =SUM(CZ12:CZ61) -> 0 | DA13: =SUM(DB12:DB61) -> 0 | DC13: =SUM(DD12:DD61) -> 0 | DE13: =SUM(DF12:DF61) -> 0 | DG13: =SUM(DH12:DH61) -> 0 | DI13: =SUM(DJ12:DJ61) -> 0 | DK13: =SUM(DL12:DL61) -> 0 | DM13: =SUM(DN12:DN61) -> 0 | DO13: =SUM(DP12:DP61) -> 0 | DQ13: =SUM(DR12:DR61) -> 0 | DS13: =SUM(DT12:DT61) -> 0 | DU13: =SUM(DV12:DV61) -> 0 | DW13: =SUM(DX12:DX61) -> 0 | DY13: =SUM(DZ12:DZ61) -> 0 | EA13: =SUM(EB12:EB61) -> 0 | EC13: =SUM(ED12:ED61) -> 0 | EE13: =SUM(EF12:EF61) -> 0
C14: CATEGORIAS | E14: QUANTIDADE
Q15: =IF($C15=Q$11,1,0) -> 0 | S15: =IF($C15=S$11,1,0) -> 0 | U15: =IF($C15=U$11,1,0) -> 0 | W15: =IF($C15=W$11,1,0) -> 0 | Y15: =IF($C15=Y$11,1,0) -> 0 | AA15: =IF($C15=AA$11,1,0) -> 0 | AC15: =IF($C15=AC$11,1,0) -> 0 | AE15: =IF($C15=AE$11,1,0) -> 0 | AG15: =IF($C15=AG$11,1,0) -> 0 | AI15: =IF($C15=AI$11,1,0) -> 0 | AK15: =IF($C15=AK$11,1,0) -> 0 | AM15: =IF($C15=AM$11,1,0) -> 0 | AO15: =IF($C15=AO$11,1,0) -> 0 | AQ15: =IF($C15=AQ$11,1,0) -> 0 | AS15: =IF($C15=AS$11,1,0) -> 0 | AU15: =IF($C15=AU$11,1,0) -> 0 | AW15: =IF($C15=AW$11,1,0) -> 0 | AY15: =IF($C15=AY$11,1,0) -> 0 | BA15: =IF($C15=BA$11,1,0) -> 0 | BC15: =IF($C15=BC$11,1,0) -> 0 | BE15: =IF($C15=BE$11,1,0) -> 0 | BG15: =IF($C15=BG$11,1,0) -> 0 | BI15: =IF($C15=BI$11,1,0) -> 0 | BK15: =IF($C15=BK$11,1,0) -> 0 | BM15: =IF($C15=BM$11,1,0) -> 0 | BO15: =IF($C15=BO$11,1,0) -> 0 | BQ15: =IF($C15=BQ$11,1,0) -> 0 | BS15: =IF($C15=BS$11,1,0) -> 0 | BU15: =IF($C15=BU$11,1,0) -> 0 | BW15: =IF($C15=BW$11,1,0) -> 0 | BY15: =IF($C15=BY$11,1,0) -> 0 | CA15: =IF($C15=CA$11,1,0) -> 0 | CC15: =IF($C15=CC$11,1,0) -> 0 | CE15: =IF($C15=CE$11,1,0) -> 0 | CG15: =IF($C15=CG$11,1,0) -> 0 | CI15: =IF($C15=CI$11,1,0) -> 0 | CK15: =IF($C15=CK$11,1,0) -> 0 | CM15: =IF($C15=CM$11,1,0) -> 0 | CO15: =IF($C15=CO$11,1,0) -> 0 | CQ15: =IF($C15=CQ$11,1,0) -> 0 | CS15: =IF($C15=CS$11,1,0) -> 0 | CU15: =IF($C15=CU$11,1,0) -> 0 | CW15: =IF($C15=CW$11,1,0) -> 0 | CY15: =IF($C15=CY$11,1,0) -> 0 | DA15: =IF($C15=DA$11,1,0) -> 0 | DC15: =IF($C15=DC$11,1,0) -> 0 | DE15: =IF($C15=DE$11,1,0) -> 0 | DG15: =IF($C15=DG$11,1,0) -> 0 | DI15: =IF($C15=DI$11,1,0) -> 0 | DK15: =IF($C15=DK$11,1,0) -> 0 | DM15: =IF($C15=DM$11,1,0) -> 0 | DO15: =IF($C15=DO$11,1,0) -> 0 | DQ15: =IF($C15=DQ$11,1,0) -> 0 | DS15: =IF($C15=DS$11,1,0) -> 0 | DU15: =IF($C15=DU$11,1,0) -> 0 | DW15: =IF($C15=DW$11,1,0) -> 0 | DY15: =IF($C15=DY$11,1,0) -> 0 | EA15: =IF($C15=EA$11,1,0) -> 0 | EC15: =IF($C15=EC$11,1,0) -> 0 | EE15: =IF($C15=EE$11,1,0) -> 0
D16: =HLOOKUP($C16,'Dados Gerais'!$D$5:$BK$10,6) ->  | E16: =HLOOKUP($C16,'Dados Gerais'!$D$5:$BK$14,10) ->  | Q16: =IF($C16=Q$11,1,0) -> 0 | S16: =IF($C16=S$11,1,0) -> 0 | U16: =IF($C16=U$11,1,0) -> 0 | W16: =IF($C16=W$11,1,0) -> 0 | Y16: =IF($C16=Y$11,1,0) -> 0 | AA16: =IF($C16=AA$11,1,0) -> 0 | AC16: =IF($C16=AC$11,1,0) -> 0 | AE16: =IF($C16=AE$11,1,0) -> 0 | AG16: =IF($C16=AG$11,1,0) -> 0 | AI16: =IF($C16=AI$11,1,0) -> 0 | AK16: =IF($C16=AK$11,1,0) -> 0 | AM16: =IF($C16=AM$11,1,0) -> 0 | AO16: =IF($C16=AO$11,1,0) -> 0 | AQ16: =IF($C16=AQ$11,1,0) -> 0 | AS16: =IF($C16=AS$11,1,0) -> 0 | AU16: =IF($C16=AU$11,1,0) -> 0 | AW16: =IF($C16=AW$11,1,0) -> 0 | AY16: =IF($C16=AY$11,1,0) -> 0 | BA16: =IF($C16=BA$11,1,0) -> 0 | BC16: =IF($C16=BC$11,1,0) -> 0 | BE16: =IF($C16=BE$11,1,0) -> 0 | BG16: =IF($C16=BG$11,1,0) -> 0 | BI16: =IF($C16=BI$11,1,0) -> 0 | BK16: =IF($C16=BK$11,1,0) -> 0 | BM16: =IF($C16=BM$11,1,0) -> 0 | BO16: =IF($C16=BO$11,1,0) -> 0 | BQ16: =IF($C16=BQ$11,1,0) -> 0 | BS16: =IF($C16=BS$11,1,0) -> 0 | BU16: =IF($C16=BU$11,1,0) -> 0 | BW16: =IF($C16=BW$11,1,0) -> 0 | BY16: =IF($C16=BY$11,1,0) -> 0 | CA16: =IF($C16=CA$11,1,0) -> 0 | CC16: =IF($C16=CC$11,1,0) -> 0 | CE16: =IF($C16=CE$11,1,0) -> 0 | CG16: =IF($C16=CG$11,1,0) -> 0 | CI16: =IF($C16=CI$11,1,0) -> 0 | CK16: =IF($C16=CK$11,1,0) -> 0 | CM16: =IF($C16=CM$11,1,0) -> 0 | CO16: =IF($C16=CO$11,1,0) -> 0 | CQ16: =IF($C16=CQ$11,1,0) -> 0 | CS16: =IF($C16=CS$11,1,0) -> 0 | CU16: =IF($C16=CU$11,1,0) -> 0 | CW16: =IF($C16=CW$11,1,0) -> 0 | CY16: =IF($C16=CY$11,1,0) -> 0 | DA16: =IF($C16=DA$11,1,0) -> 0 | DC16: =IF($C16=DC$11,1,0) -> 0 | DE16: =IF($C16=DE$11,1,0) -> 0 | DG16: =IF($C16=DG$11,1,0) -> 0 | DI16: =IF($C16=DI$11,1,0) -> 0 | DK16: =IF($C16=DK$11,1,0) -> 0 | DM16: =IF($C16=DM$11,1,0) -> 0 | DO16: =IF($C16=DO$11,1,0) -> 0 | DQ16: =IF($C16=DQ$11,1,0) -> 0 | DS16: =IF($C16=DS$11,1,0) -> 0 | DU16: =IF($C16=DU$11,1,0) -> 0 | DW16: =IF($C16=DW$11,1,0) -> 0 | DY16: =IF($C16=DY$11,1,0) -> 0 | EA16: =IF($C16=EA$11,1,0) -> 0 | EC16: =IF($C16=EC$11,1,0) -> 0 | EE16: =IF($C16=EE$11,1,0) -> 0
Q17: =IF($C17=Q$11,1,0) -> 0 | S17: =IF($C17=S$11,1,0) -> 0 | U17: =IF($C17=U$11,1,0) -> 0 | W17: =IF($C17=W$11,1,0) -> 0 | Y17: =IF($C17=Y$11,1,0) -> 0 | AA17: =IF($C17=AA$11,1,0) -> 0 | AC17: =IF($C17=AC$11,1,0) -> 0 | AE17: =IF($C17=AE$11,1,0) -> 0 | AG17: =IF($C17=AG$11,1,0) -> 0 | AI17: =IF($C17=AI$11,1,0) -> 0 | AK17: =IF($C17=AK$11,1,0) -> 0 | AM17: =IF($C17=AM$11,1,0) -> 0 | AO17: =IF($C17=AO$11,1,0) -> 0 | AQ17: =IF($C17=AQ$11,1,0) -> 0 | AS17: =IF($C17=AS$11,1,0) -> 0 | AU17: =IF($C17=AU$11,1,0) -> 0 | AW17: =IF($C17=AW$11,1,0) -> 0 | AY17: =IF($C17=AY$11,1,0) -> 0 | BA17: =IF($C17=BA$11,1,0) -> 0 | BC17: =IF($C17=BC$11,1,0) -> 0 | BE17: =IF($C17=BE$11,1,0) -> 0 | BG17: =IF($C17=BG$11,1,0) -> 0 | BI17: =IF($C17=BI$11,1,0) -> 0 | BK17: =IF($C17=BK$11,1,0) -> 0 | BM17: =IF($C17=BM$11,1,0) -> 0 | BO17: =IF($C17=BO$11,1,0) -> 0 | BQ17: =IF($C17=BQ$11,1,0) -> 0 | BS17: =IF($C17=BS$11,1,0) -> 0 | BU17: =IF($C17=BU$11,1,0) -> 0 | BW17: =IF($C17=BW$11,1,0) -> 0 | BY17: =IF($C17=BY$11,1,0) -> 0 | CA17: =IF($C17=CA$11,1,0) -> 0 | CC17: =IF($C17=CC$11,1,0) -> 0 | CE17: =IF($C17=CE$11,1,0) -> 0 | CG17: =IF($C17=CG$11,1,0) -> 0 | CI17: =IF($C17=CI$11,1,0) -> 0 | CK17: =IF($C17=CK$11,1,0) -> 0 | CM17: =IF($C17=CM$11,1,0) -> 0 | CO17: =IF($C17=CO$11,1,0) -> 0 | CQ17: =IF($C17=CQ$11,1,0) -> 0 | CS17: =IF($C17=CS$11,1,0) -> 0 | CU17: =IF($C17=CU$11,1,0) -> 0 | CW17: =IF($C17=CW$11,1,0) -> 0 | CY17: =IF($C17=CY$11,1,0) -> 0 | DA17: =IF($C17=DA$11,1,0) -> 0 | DC17: =IF($C17=DC$11,1,0) -> 0 | DE17: =IF($C17=DE$11,1,0) -> 0 | DG17: =IF($C17=DG$11,1,0) -> 0 | DI17: =IF($C17=DI$11,1,0) -> 0 | DK17: =IF($C17=DK$11,1,0) -> 0 | DM17: =IF($C17=DM$11,1,0) -> 0 | DO17: =IF($C17=DO$11,1,0) -> 0 | DQ17: =IF($C17=DQ$11,1,0) -> 0 | DS17: =IF($C17=DS$11,1,0) -> 0 | DU17: =IF($C17=DU$11,1,0) -> 0 | DW17: =IF($C17=DW$11,1,0) -> 0 | DY17: =IF($C17=DY$11,1,0) -> 0 | EA17: =IF($C17=EA$11,1,0) -> 0 | EC17: =IF($C17=EC$11,1,0) -> 0 | EE17: =IF($C17=EE$11,1,0) -> 0
C19: PAGAMENTO DA DEPRECIAÇÃO
C20: ITEM | D20: DESCRIÇÃO | E20: QUANT ANUAL | F20: CONTA SIAFI | G20: VALOR DE AQ. | H20: % RESIDUAL | I20: VIDA ÚTIL | J20: DEP. MENSAL | K20: CUSTO TOTAL | L20: BDI (%) | M20: PREÇO TOTAL | N20: FONTE | O20: REFERÊNCIA
J22: =G22*(1-H22)/(I22*12) ->  | K22: =J22*E22 ->  | L22: =BDI!E26 -> 0.2314 | M22: =ROUND(K22*(1+L22),2) ->  | N22: COTAÇÃO
C25: PAGAMENTO DA MANUTENÇÃO
C26: ITEM | D26: DESCRIÇÃO | H26: K (calculado) | I26: MENSAL DEPR. | J26: % MAN X DEP | K26: MENSAL MAN. | L26: BDI (%) | M26: PREÇO TOTAL
H28: =H35 -> 0.2395008 | I28: =M22 ->  | J28: =H28 -> 0.2395008 | K28: =I28*H28 ->  | L28: =L22 -> 0.2314 | M28: =ROUND(K28*(1+L28),2) -> 
E30: K1 | F30: K2 | G30: K3 | H30: K4
E31: 1 | F31: 1 | G31: 0.8 | H31: 0.8
E32: K5 | F32: K6 | G32: K7 | H32: K8
E33: 1 | F33: 0.6 | G33: 0.5 | H33: 1.1
E34: K9 | F34: K10 | G34: K11 | H34: RESULTADO
D35: * a descrição de cada coeficiente segue abaixo | E35: 0.9 | F35: 0.9 | G35: 1.4 | H35: =E31*F31*G31*H31*E33*F33*G33*H33*E35*F35*G35 -> 0.2395008
C38: MATERIAL DE CONSUMO ASSOCIADO
C39: ITEM | D39: DESCRIÇÃO | H39: QUANTID/ANO | I39: UNIDADE | J39: VALOR DE AQ. | K39: MENSAL MAT | L39: BDI (%) | M39: PREÇO TOTAL
K41: =J41*H41/12 -> 0 | L41: =L28 -> 0.2314 | M41: =ROUND(K41*(1+L41),2) -> 0
C44: MATERIAL DE CONSUMO ASSOCIADO
C45: ITEM | D45: DESCRIÇÃO | M45: PREÇO TOTAL
C47: 1 | D47: Componente DEPRECIAÇÃO - POR POSTO | M47: =M22 -> 
C48: 2 | D48: Componente MANUTENÇÃO - POR POSTO | M48: =M28 -> 
C49: 3 | D49: Componente MATERIAL DE CONSUMO ASSOCIADO - POR POSTO | M49: =M41 -> 0
L51: SOMATÓRIO TOTAL MENSAL - POR POSTO | M51: =SUM(M46:M50) ->  | R51: =IF(SUM(Q$15:Q$17)>0,$M51,0) -> 0 | T51: =IF(SUM(S$15:S$17)>0,$M51,0) -> 0 | V51: =IF(SUM(U$15:U$17)>0,$M51,0) -> 0 | X51: =IF(SUM(W$15:W$17)>0,$M51,0) -> 0 | Z51: =IF(SUM(Y$15:Y$17)>0,$M51,0) -> 0 | AB51: =IF(SUM(AA$15:AA$17)>0,$M51,0) -> 0 | AD51: =IF(SUM(AC$15:AC$17)>0,$M51,0) -> 0 | AF51: =IF(SUM(AE$15:AE$17)>0,$M51,0) -> 0 | AH51: =IF(SUM(AG$15:AG$17)>0,$M51,0) -> 0 | AJ51: =IF(SUM(AI$15:AI$17)>0,$M51,0) -> 0 | AL51: =IF(SUM(AK$15:AK$17)>0,$M51,0) -> 0 | AN51: =IF(SUM(AM$15:AM$17)>0,$M51,0) -> 0 | AP51: =IF(SUM(AO$15:AO$17)>0,$M51,0) -> 0 | AR51: =IF(SUM(AQ$15:AQ$17)>0,$M51,0) -> 0 | AT51: =IF(SUM(AS$15:AS$17)>0,$M51,0) -> 0 | AV51: =IF(SUM(AU$15:AU$17)>0,$M51,0) -> 0 | AX51: =IF(SUM(AW$15:AW$17)>0,$M51,0) -> 0 | AZ51: =IF(SUM(AY$15:AY$17)>0,$M51,0) -> 0 | BB51: =IF(SUM(BA$15:BA$17)>0,$M51,0) -> 0 | BD51: =IF(SUM(BC$15:BC$17)>0,$M51,0) -> 0 | BF51: =IF(SUM(BE$15:BE$17)>0,$M51,0) -> 0 | BH51: =IF(SUM(BG$15:BG$17)>0,$M51,0) -> 0 | BJ51: =IF(SUM(BI$15:BI$17)>0,$M51,0) -> 0 | BL51: =IF(SUM(BK$15:BK$17)>0,$M51,0) -> 0 | BN51: =IF(SUM(BM$15:BM$17)>0,$M51,0) -> 0 | BP51: =IF(SUM(BO$15:BO$17)>0,$M51,0) -> 0 | BR51: =IF(SUM(BQ$15:BQ$17)>0,$M51,0) -> 0 | BT51: =IF(SUM(BS$15:BS$17)>0,$M51,0) -> 0 | BV51: =IF(SUM(BU$15:BU$17)>0,$M51,0) -> 0 | BX51: =IF(SUM(BW$15:BW$17)>0,$M51,0) -> 0 | BZ51: =IF(SUM(BY$15:BY$17)>0,$M51,0) -> 0 | CB51: =IF(SUM(CA$15:CA$17)>0,$M51,0) -> 0 | CD51: =IF(SUM(CC$15:CC$17)>0,$M51,0) -> 0 | CF51: =IF(SUM(CE$15:CE$17)>0,$M51,0) -> 0 | CH51: =IF(SUM(CG$15:CG$17)>0,$M51,0) -> 0 | CJ51: =IF(SUM(CI$15:CI$17)>0,$M51,0) -> 0 | CL51: =IF(SUM(CK$15:CK$17)>0,$M51,0) -> 0 | CN51: =IF(SUM(CM$15:CM$17)>0,$M51,0) -> 0 | CP51: =IF(SUM(CO$15:CO$17)>0,$M51,0) -> 0 | CR51: =IF(SUM(CQ$15:CQ$17)>0,$M51,0) -> 0 | CT51: =IF(SUM(CS$15:CS$17)>0,$M51,0) -> 0 | CV51: =IF(SUM(CU$15:CU$17)>0,$M51,0) -> 0 | CX51: =IF(SUM(CW$15:CW$17)>0,$M51,0) -> 0 | CZ51: =IF(SUM(CY$15:CY$17)>0,$M51,0) -> 0 | DB51: =IF(SUM(DA$15:DA$17)>0,$M51,0) -> 0 | DD51: =IF(SUM(DC$15:DC$17)>0,$M51,0) -> 0 | DF51: =IF(SUM(DE$15:DE$17)>0,$M51,0) -> 0 | DH51: =IF(SUM(DG$15:DG$17)>0,$M51,0) -> 0 | DJ51: =IF(SUM(DI$15:DI$17)>0,$M51,0) -> 0 | DL51: =IF(SUM(DK$15:DK$17)>0,$M51,0) -> 0 | DN51: =IF(SUM(DM$15:DM$17)>0,$M51,0) -> 0 | DP51: =IF(SUM(DO$15:DO$17)>0,$M51,0) -> 0 | DR51: =IF(SUM(DQ$15:DQ$17)>0,$M51,0) -> 0 | DT51: =IF(SUM(DS$15:DS$17)>0,$M51,0) -> 0 | DV51: =IF(SUM(DU$15:DU$17)>0,$M51,0) -> 0 | DX51: =IF(SUM(DW$15:DW$17)>0,$M51,0) -> 0 | DZ51: =IF(SUM(DY$15:DY$17)>0,$M51,0) -> 0 | EB51: =IF(SUM(EA$15:EA$17)>0,$M51,0) -> 0 | ED51: =IF(SUM(EC$15:EC$17)>0,$M51,0) -> 0 | EF51: =IF(SUM(EE$15:EE$17)>0,$M51,0) -> 0
L52: SOMATÓRIO TOTAL ANUAL - POR POSTO | M52: =M51*12 -> 
C55: MATERIAL DE CONSUMO ASSOCIADO
C56: MEMÓRIA DE CÁLCULO DO COEFICIENTE DE CORRELAÇÃO MANUTENÇÃO X DEPRECIAÇÃO (K)
C58: JUSTIFICATIVAS | E58: TIPO | F58: K1 | H58: Condições de Trab | I58: K4 | K58: Tempo Vida (anos) | L58: K6 | N58: Temperatura | O58: K8
E59: Guindaste | F59: 0.5 | H59: Em espera | I59: 0.4 | K59: 1 | L59: 0.6 | N59: Muito quente (> 40º C) | O59: 1.3
C60: K1 | D60: Arbitrado 1 | E60: Caminhão-comum | F60: 0.8 | H60: Leves | I60: 0.8 | K60: 2 | L60: 0.7 | N60: Quente (30º a 40º C) | O60: 1.1
C61: K2 | D61: Considerado o operador médio | E61: Fora-de-estrada | F61: 1 | H61: Médias | I61: 1 | K61: 3 | L61: 0.8 | N61: Médio (10º a 30º C) | O61: 1
C62: K3 | D62: Consideradas ferramentas de primeira qualidade | E62: Carregadeira | F62: 1 | H62: Pesadas | I62: 1.4 | K62: 4 | L62: 0.9 | N62: Frio (< 10º C) | O62: 1.2
C63: K4 | D63: Consições leves | E63: Escavadeira | F63: 1.4 | H63: Severas | I63: 2 | K63: 5 | L63: 1
C64: K5 | D64: Considerando manutenção normal | E64: Motoescrêiper | F64: 1.1 | K64: 6 | L64: 1 | N64: Ritmo de Trabalho | O64: K9
C65: K6 | D65: Equipamentos novos | E65: Trator de esteira | F65: 1.2 | H65: Manutenção | I65: K5 | K65: 7 | L65: 1 | N65: Folgado | O65: 0.9
C66: K7 | D66: 220h por mês, 252 dias por ano | H66: Excelente | I66: 0.6 | K66: 8 | L66: 1.2 | N66: Médio | O66: 1
C67: K8 | D67: Clima quente, acima de 30º C | E67: Qualid do Operador | F67: K2 | H67: Boa | I67: 0.8 | K67: 9 | L67: 1.3 | N67: Com pressa | O67: 1.5
C68: K9 | D68: Ritmo de trabalho usualmente folgado | E68: Excelente | F68: 0.8 | H68: Média | I68: 1 | K68: 10 | L68: 1.4
C69: K10 | D69: Considerado o operador médio | E69: Boa | F69: 0.9 | H69: Ruim | I69: 1.5 | K69: 11 | L69: 2 | N69: Conh do Serviço | O69: K10
C70: K11 | D70: Foi considerada a opção de aluguel a terceiros, ainda que a simulação seja dos custos do contratado, contudo a execução dos serviços é em local de terceiros | E70: Média | F70: 1 | H70: Inexistente | I70: 3 | K70: 15 | L70: 2 | N70: Grande | O70: 0.8
E71: Ruim | F71: 1.2 | N71: Médio | O71: 0.9
E72: Péssima | F72: 2 | H72: Horas de Uso | I72: K7 | J72: 6000 | K72: 1 | N72: Pouco | O72: 1
H73: 1000 | I73: 0.5 | J73: 8000 | K73: 1.3
E74: Qualidade do Equip | F74: K3 | H74: 2000 | I74: 0.5 | J74: 10000 | K74: 1.6 | N74: Tipo do Serviço | O74: K11
E75: De primeira | F75: 0.8 | H75: 3000 | I75: 0.6 | J75: 12000 | K75: 1.9 | N75: Mina ou Pedreira | O75: 0.8
E76: Média | F76: 1 | H76: 4000 | I76: 0.7 | J76: 15000 | K76: 2.3 | N76: Construção Geral | O76: 1
E77: Ruim | F77: 1.5 | H77: 5000 | I77: 0.9 | J77: 20000 | K77: 3 | N77: Aluguel a Terceiros | O77: 1.4
E79: Fonte:
E80: MATTOS, Aldo Dórea. Como preparar orçamentos de obras. São Paulo: Pini, 2006. 281 p., il

Sheet Não Rel - Depr
B4: EQUIPAMENTOS NÃO RELACIONADOS DIRETAMENTE A UM POSTO DE TRABALHO - PAGAMENTO DA DEPRECIAÇÃO / MANUTENÇÃO
C7: PAGAMENTO DA DEPRECIAÇÃO
C8: ITEM | D8: DESCRIÇÃO | E8: QUANT ANUAL | F8: CONTA SIAFI | G8: VALOR DE AQ. | H8: % RESIDUAL | I8: VIDA ÚTIL | J8: DEP. MENSAL | K8: CUSTO TOTAL | L8: BDI (%) | M8: PREÇO TOTAL | N8: FONTE | O8: REFERÊNCIA
C10: 1 | D10: TALA MOLDÁVEL - MATERIAL: Talas reguláveis para imobilização tipo EVA. Tamanho EG * | E10: 10 | F10: 12311.01.05 | G10: 22.58333333 | H10: 0.1 | I10: 10 | J10: =G10*(1-H10)/(I10*12) -> 0.169375 | K10: =J10*E10 -> 1.69375 | L10: =BDI!$E$26 -> 0.2314 | M10: =ROUND(K10*(1+L10),2) -> 2.09 | N10: COTAÇÃO
C11: 2 | D11: TALA MOLDÁVEL - MATERIAL: Talas reguláveis para imobilização tipo EVA. Tamanho G * | E11: 10 | F11: 12311.01.05 | G11: 16.83 | H11: 0.1 | I11: 10 | J11: 0.126225 | K11: 1.26225 | L11: =BDI!$E$26 -> 0.2314 | M11: 1.55 | N11: COTAÇÃO
C12: 3 | D12: TALA MOLDÁVEL - MATERIAL: Talas reguláveis para imobilização tipo EVA. Tamanho M * | E12: 10 | F12: 12311.01.05 | G12: 14.4 | H12: 0.1 | I12: 10 | J12: 0.108 | K12: 1.08 | L12: =BDI!$E$26 -> 0.2314 | M12: 1.33 | N12: COTAÇÃO
C13: 4 | D13: TALA MOLDÁVEL - MATERIAL: Talas reguláveis para imobilização tipo EVA. Tamanho P * | E13: 10 | F13: 12311.01.05 | G13: 12.35 | H13: 0.1 | I13: 10 | J13: 0.092625 | K13: 0.92625 | L13: =BDI!$E$26 -> 0.2314 | M13: 1.14 | N13: COTAÇÃO
C14: 5 | D14: TALA MOLDÁVEL - MATERIAL: Talas reguláveis para imobilização tipo EVA. Tamanho PP * | E14: 10 | F14: 12311.01.05 | G14: 10.89 | H14: 0.1 | I14: 10 | J14: 0.081675 | K14: 0.81675 | L14: =BDI!$E$26 -> 0.2314 | M14: 1.01 | N14: COTAÇÃO
C15: 6 | D15: PRANCHA LONGA EM POLIPROPILENO * | E15: 10 | F15: 12311.01.05 | G15: 389.6575 | H15: 0.1 | I15: 10 | J15: 2.92243125 | K15: 29.2243125 | L15: =BDI!$E$26 -> 0.2314 | M15: 35.99 | N15: COTAÇÃO
C16: 7 | D16: IMOBILIZADOR DE CABEÇA* | E16: 10 | F16: 12311.01.05 | G16: 140.7966667 | H16: 0.1 | I16: 10 | J16: 1.055975 | K16: 10.55975 | L16: =BDI!$E$26 -> 0.2314 | M16: 13 | N16: COTAÇÃO
C17: 8 | D17: CINTO ARANHA* | E17: 10 | F17: 12311.01.05 | G17: 79.7725 | H17: 0.1 | I17: 10 | J17: 0.59829375 | K17: 5.9829375 | L17: =BDI!$E$26 -> 0.2314 | M17: 7.37 | N17: COTAÇÃO
C18: 9 | D18: MÁSCARA PARA RESPIRAÇÃO CARDIO PULMONAR – POCKET MASK: - confeccionada em material livre de látex e atóxico; - reutilizável e de fácil desinfecção; - de material transparente para melhor visualização do procedimento; - com válvula unidirecional removível de alta eficiência; - com almofada macia para evitar fuga de ar e possibilitar maior conforto ao paciente; - válvula descartável com filtro para evitar a contaminação cruzada.* | E18: 68 | F18: 12311.01.05 | G18: 92.26666667 | H18: 0.1 | I18: 10 | J18: 0.692 | K18: 47.056 | L18: =BDI!$E$26 -> 0.2314 | M18: 57.94 | N18: COTAÇÃO
C19: 10 | D19: COLAR CERVICAL AJUSTÁVEL: - quatro em um, tipo "Stifneck"; - transparente à radiação; - confeccionado em duas camadas, uma camada em espuma resistente, e outra camada protetora e sustentadora em plástico resistente, ajustável ao tamanho do pescoço e cabeça, com fecho em velcro; - com travas que asseguram o tamanho selecionado; - trilhos de ajuste para manter o alinhamento simétrico a cada tamanho; Adulto.* Marca de ref. AMBU | E19: 10 | F19: 12311.01.05 | G19: 65.40666667 | H19: 0.1 | I19: 10 | J19: 0.49055 | K19: 4.9055 | L19: =BDI!$E$26 -> 0.2314 | M19: 6.04 | N19: COTAÇÃO
C20: 11 | D20: REANIMADOR MANUAL (AMBÚ) - Equipamento de resgate e uso hospitalar/ambulatorial de fácil uso e esterilização. Infantil: 500ml * | E20: 10 | F20: 12311.01.05 | G20: 157.325 | H20: 0.1 | I20: 10 | J20: 1.1799375 | K20: 11.799375 | L20: =BDI!$E$26 -> 0.2314 | M20: 14.53 | N20: COTAÇÃO
C21: 12 | D21: REANIMADOR MANUAL (AMBÚ) - Equipamento de resgate e uso hospitalar/ambulatorial de fácil uso e esterilização. Adulto: 1600ml * | E21: 10 | F21: 12311.01.05 | G21: 156.54 | H21: 0.1 | I21: 10 | J21: =G21*(1-H21)/(I21*12) -> 1.17405 | K21: =J21*E21 -> 11.7405 | L21: =BDI!$E$26 -> 0.2314 | M21: =ROUND(K21*(1+L21),2) -> 14.46 | N21: COTAÇÃO
C22: 13 | D22: TESOURA DE RESGATE: - tesoura especial para atendimento pré-hospitalar; - destinada ao corte de roupas; - com lâminas ponta romba; - com cabo que proporcione uma ótima pegada; - dentes serrilhados em um dos lados para facilitar o corte de tecidos mais espessos; - orifício próximo ao cabo para cortar fios de pequena espessura; feita em aço, com cabo em polipropileno; comprimento total 19cm.* | E22: 10 | F22: 12311.01.05 | G22: 42 | H22: 0.1 | I22: 10 | J22: 0.315 | K22: 3.15 | L22: =BDI!$E$26 -> 0.2314 | M22: 3.88 | N22: COTAÇÃO
C23: 14 | D23: TORNIQUETES TÁTICOS: - Torniquete de aperto manual, composto por: um único sistema de fivela (em polímero ou aço) simples para tracionamento rápido e remoção de folgas; barra de tracionamento com sobressaltos nas extremidades, de localização fixa, que após aplicação do torniquete, ao ser girada no próprio eixo, traciona o sistema, produzindo a oclusão sanguínea no membro; - entrada chanfrada bilateral para trava rápida da barra de tracionamento, deve suportar o tracionamento para correta oclusão sanguínea; - fita afixada com solda ultrassônica ao torniquete, para fechar a entrada chanfrada bilateral depois da barra de tracionamento travada, com espaço para escrita a caneta; placa de estabilização com bordas arredondadas para não pinçar a pele do operador; recomendado pelo Comitê para o Tactical CombatCasualty Care (Co TCCC); possibilidade de auto aplicação com uma das mãos; - deverá possuir Certificado de Aprovação (CA) válido.* | E23: 20 | F23: 12311.01.05 | G23: 240 | H23: 0.1 | I23: 10 | J23: 1.8 | K23: 36 | L23: =BDI!$E$26 -> 0.2314 | M23: 44.33 | N23: COTAÇÃO
C24: 15 | D24: BANDAGEM DE EMERGÊNCIA MODELO ISRAELENSE 15 CM (6 POL): Bandagem elástica composta por: barra de pressão e barra de fechamento presas firmemente e de igual largura à bandagem; curativo não aderente costurado à bandagem no lado oposto ao lado de fixação da barra depressão; estéril.* | E24: 10 | F24: 12311.01.05 | G24: 62.5 | H24: 0.1 | I24: 10 | J24: 0.46875 | K24: 4.6875 | L24: =BDI!$E$26 -> 0.2314 | M24: 5.77 | N24: COTAÇÃO
C25: 16 | D25: BANDAGEM DE EMERGÊNCIA MODELO ISRAELENSE 10 CM (4 POL): Bandagem elástica composta por: barra de pressão e barra de fechamento presas firmemente e de igual largura à bandagem; curativo não aderente costurado à bandagem no lado oposto ao lado de fixação da barra depressão; estéril.* | E25: 10 | F25: 12311.01.05 | G25: 68 | H25: 0.1 | I25: 10 | J25: 0.51 | K25: 5.1 | L25: =BDI!$E$26 -> 0.2314 | M25: 6.28 | N25: COTAÇÃO
C26: 17 | D26: SELO DE TÓRAX VALVULADO: - Deve aderir ao corpo mesmo em ambiente molhado, mesmo com o corpo intensamente suado, mesmo com fluidos sanguíneos ou outros fluidos corporais presentes na superfície de aplicação; Não deve perder a adesão entre -40°C a 65°C; Deve possuir três canais com válvulas de alívio de pressão do pneumotórax hipertensivo; Dimensões aproximadas: 15cm x 15cm.* | E26: 10 | F26: 12311.01.05 | G26: 122.9333333 | H26: 0.1 | I26: 10 | J26: 0.922 | K26: 9.22 | L26: =BDI!$E$26 -> 0.2314 | M26: 11.35 | N26: COTAÇÃO
C27: 18 | D27: SELO DE TÓRAX OCLUSIVO NÃO VALVULADO - Deve aderir ao corpo mesmo em ambiente molhado, mesmo com o corpo intensamente suado, mesmo com fluidos sanguíneos ou outros fluidos corporais presentes na superfície de aplicação; Não deve perder a adesão entre -40°C a 65°C; Não valvulado; Dimensões aproximadas: 15cm x 15cm.* | E27: 10 | F27: 12311.01.05 | G27: 158.25 | H27: 0.1 | I27: 10 | J27: 1.186875 | K27: 11.86875 | L27: =BDI!$E$26 -> 0.2314 | M27: 14.62 | N27: COTAÇÃO
C28: 19 | D28: AFERIDOR DE PRESSÃO - CARACTERÍSTICA(S): Aferidor de pressão digital automático de pulso - Com classificação de pressão e sensor de arritmia* | E28: 10 | F28: 12311.01.05 | G28: 169.645 | H28: 0.1 | I28: 10 | J28: 1.2723375 | K28: 12.723375 | L28: =BDI!$E$26 -> 0.2314 | M28: 15.67 | N28: COTAÇÃO
C29: 20 | D29: OXÍMETRO DE DEDO: - Visor em tecnologia OLED, melhor visualização em qualquer condição de luminosidade; - Informa Saturação (SpO2) e Frequência Cardíaca; - Curva Plestimográfica.* | E29: 10 | F29: 12311.01.05 | G29: 71.42 | H29: 0.1 | I29: 10 | J29: 0.53565 | K29: 5.3565 | L29: =BDI!$E$26 -> 0.2314 | M29: 6.6 | N29: COTAÇÃO
C30: 21 | D30: TERMÔMETRO DIGITAL INFRAVERMELHO* | E30: 10 | F30: 12311.01.05 | G30: 85.575 | H30: 0.1 | I30: 10 | J30: 0.6418125 | K30: 6.418125 | L30: =BDI!$E$26 -> 0.2314 | M30: 7.9 | N30: COTAÇÃO
C31: 22 | D31: MANTA TÉRMICA: Cobertor Térmico para Resgate Aluminizado; confeccionada em polietileno aluminizado; não deforma; Prova d’água; resistente ao atrito com o solo; reflete o calor externo mantendo o calor interno; Comprimento aproximado: 2,10 m e Largura aproximada: 1,40 m.* | E31: 20 | F31: 12311.01.05 | G31: 6.345 | H31: 0.1 | I31: 10 | J31: 0.0475875 | K31: 0.95175 | L31: =BDI!$E$26 -> 0.2314 | M31: 1.17 | N31: COTAÇÃO
C32: 23 | D32: ESCADA DOBRÁVEL EM ALUMÍNIO DOBRÁVEL, 5 DEGRAUS * | E32: 8 | F32: 12311.01.99 | G32: 168.275 | H32: 0.1 | I32: 10 | J32: =G32*(1-H32)/(I32*12) -> 1.2620625 | K32: =J32*E32 -> 10.0965 | L32: =BDI!$E$26 -> 0.2314 | M32: =ROUND(K32*(1+L32),2) -> 12.43 | N32: COTAÇÃO
C33: 24 | D33: LANTERNA alcance 45metros, mínimo 140 lumens, 3 modos de iluminação (alto/econômico e SOS), alimentação por pilhas, anti-explosivas. Autonomia 1h30min de uso contínuo. * | E33: 68 | F33: 12311.01.99 | G33: 50.66 | H33: 0.1 | I33: 10 | J33: 0.37995 | K33: 25.8366 | L33: =BDI!$E$26 -> 0.2314 | M33: 31.82 | N33: COTAÇÃO
C34: 25 | D34: ALAVANCA DE 1,50 - MATERIAL: Alavanca de aço 1,50mx28mm * | E34: 3 | F34: 12311.01.99 | G34: 362.4 | H34: 0.1 | I34: 10 | J34: 2.718 | K34: 8.154 | L34: =BDI!$E$26 -> 0.2314 | M34: 10.04 | N34: COTAÇÃO
C35: 26 | D35: KIT DE CHAVES DE FENDA - MATERIAL: Aço - CARACTERÍSTICA(S): Chaves de fenda 5/16x14, 3/16x12, 5/16x10, 3/16x8 * | E35: 8 | F35: 12311.01.99 | G35: 43.22 | H35: 0.1 | I35: 10 | J35: 0.32415 | K35: 2.5932 | L35: =BDI!$E$26 -> 0.2314 | M35: 3.19 | N35: COTAÇÃO
C36: 27 | D36: KIT DE CHAVES DE BOCA - MATERIAL: Aço - CARACTERÍSTICA(S): Chaves de boca ns. 6, 8, 12, 13, 14, 16, 19 e 22 * | E36: 8 | F36: 12311.01.99 | G36: 108 | H36: 0.1 | I36: 10 | J36: 0.81 | K36: 6.48 | L36: =BDI!$E$26 -> 0.2314 | M36: 7.98 | N36: COTAÇÃO
C37: 28 | D37: MARTELO DE UNHA - MATERIAL: Martelo de aço 33cm com cabo de madeira * | E37: 8 | F37: 12311.01.99 | G37: 35.615 | H37: 0.1 | I37: 10 | J37: 0.2671125 | K37: 2.1369 | L37: =BDI!$E$26 -> 0.2314 | M37: 2.63 | N37: COTAÇÃO
C38: 29 | D38: MARTELO BOLA - CARACTERÍSTICA(S): Martelo de aço, tipo bola, 800g, com cabo de madeira * | E38: 8 | F38: 12311.01.99 | G38: 69.835 | H38: 0.1 | I38: 10 | J38: =G38*(1-H38)/(I38*12) -> 0.5237625 | K38: =J38*E38 -> 4.1901 | L38: =BDI!$E$26 -> 0.2314 | M38: =ROUND(K38*(1+L38),2) -> 5.16 | N38: COTAÇÃO
C39: 30 | D39: CAIXA DE FERRAMENTAS - Caixa Sanfonada 40cm com 5 compartimentos, pintura de alta resistência a pó com tratamento anti ferrugem, com alças fixas na parte superior. Material: Aço.* | E39: 8 | F39: 12311.01.99 | G39: 125.465 | H39: 0.1 | I39: 10 | J39: 0.9409875 | K39: 7.5279 | L39: =BDI!$E$26 -> 0.2314 | M39: 9.27 | N39: COTAÇÃO
C40: 31 | D40: PÁ - CARACTERÍSTICA(S): Pá de bico com cabo de 71cm * | E40: 3 | F40: 12311.01.99 | G40: 42.555 | H40: 0.1 | I40: 10 | J40: 0.3191625 | K40: 0.9574875 | L40: =BDI!$E$26 -> 0.2314 | M40: 1.18 | N40: COTAÇÃO
C41: 32 | D41: ENXADA - CARACTERÍSTICA(S): Enxada Larga Forjada Leve com Cabo de Madeira 1,50m * | E41: 3 | F41: 12311.01.99 | G41: 48.285 | H41: 0.1 | I41: 10 | J41: 0.3621375 | K41: 1.0864125 | L41: =BDI!$E$26 -> 0.2314 | M41: 1.34 | N41: COTAÇÃO
C42: 33 | D42: ALICATE UNIVERSAL - MATERIAL: Fabricado em aço cromo-vanádio, com cabo antideslizante com abas protetoras * | E42: 3 | F42: 12311.01.99 | G42: 33.55 | H42: 0.1 | I42: 10 | J42: =G42*(1-H42)/(I42*12) -> 0.251625 | K42: =J42*E42 -> 0.754875 | L42: =BDI!$E$26 -> 0.2314 | M42: =ROUND(K42*(1+L42),2) -> 0.93 | N42: COTAÇÃO
C45: PAGAMENTO DA MANUTENÇÃO
C46: ITEM | D46: DESCRIÇÃO | H46: K (calculado) | I46: MENSAL DEPR. | J46: % MAN X DEP | K46: MENSAL MAN. | L46: BDI (%) | M46: PREÇO TOTAL
H48: =H55 -> 0.38556 | I48: =SUM(M10:M42) -> 359.99 | J48: =H48 -> 0.38556 | K48: =I48*H48 -> 138.7977444 | L48: =BDI!E26 -> 0.2314 | M48: =ROUND(K48*(1+L48),2) -> 170.92
E50: K1 | F50: K2 | G50: K3 | H50: K4
E51: 0.85 | F51: 1 | G51: 0.8 | H51: 1
E52: K5 | F52: K6 | G52: K7 | H52: K8
E53: 1 | F53: 0.6 | G53: 0.5 | H53: 1
E54: K9 | F54: K10 | G54: K11 | H54: RESULTADO
D55: * a descrição de cada coeficiente segue abaixo | E55: 1.5 | F55: 0.9 | G55: 1.4 | H55: =E51*F51*G51*H51*E53*F53*G53*H53*E55*F55*G55 -> 0.38556
C58: MATERIAL DE CONSUMO ASSOCIADO
C59: ITEM | D59: DESCRIÇÃO | H59: QUANTID/ANO | I59: UNIDADE | J59: VALOR DE AQ. | K59: MENSAL MAT | L59: BDI (%) | M59: PREÇO TOTAL
K61: =J61*H61/12 -> 0 | L61: =BDI!E26 -> 0.2314 | M61: =ROUND(K61*(1+L61),2) -> 0
C64: MATERIAL DE CONSUMO ASSOCIADO
C65: ITEM | D65: DESCRIÇÃO | M65: PREÇO TOTAL
C67: 1 | D67: Componente DEPRECIAÇÃO | M67: =I48 -> 359.99
C68: 2 | D68: Componente MANUTENÇÃO | M68: =M48 -> 170.92
C69: 3 | D69: Componente MATERIAL DE CONSUMO ASSOCIADO | M69: =M61 -> 0
L71: SOMATÓRIO TOTAL MENSAL | M71: =SUM(M66:M70) -> 530.91
L72: SOMATÓRIO TOTAL ANUAL | M72: =M71*12 -> 6370.92
C75: MATERIAL DE CONSUMO ASSOCIADO
C76: MEMÓRIA DE CÁLCULO DO COEFICIENTE DE CORRELAÇÃO MANUTENÇÃO X DEPRECIAÇÃO (K)
C78: JUSTIFICATIVAS | E78: TIPO | F78: K1 | H78: Condições de Trab | I78: K4 | K78: Tempo Vida (anos) | L78: K6 | N78: Temperatura | O78: K8
E79: Guindaste | F79: 0.5 | H79: Em espera | I79: 0.4 | K79: 1 | L79: 0.6 | N79: Muito quente (> 40º C) | O79: 1.3
C80: K1 | D80: Considerado o valor médio de 0,85 | E80: Caminhão-comum | F80: 0.8 | H80: Leves | I80: 0.8 | K80: 2 | L80: 0.7 | N80: Quente (30º a 40º C) | O80: 1.1
C81: K2 | D81: Considerado o operador médio | E81: Fora-de-estrada | F81: 1 | H81: Médias | I81: 1 | K81: 3 | L81: 0.8 | N81: Médio (10º a 30º C) | O81: 1
C82: K3 | D82: Consideradas ferramentas de primeira qualidade | E82: Carregadeira | F82: 1 | H82: Pesadas | I82: 1.4 | K82: 4 | L82: 0.9 | N82: Frio (< 10º C) | O82: 1.2
C83: K4 | D83: Há todo o tipo de trabalho, foi considerado o valor médio | E83: Escavadeira | F83: 1.4 | H83: Severas | I83: 2 | K83: 5 | L83: 1
C84: K5 | D84: Considerando manutenção normal | E84: Motoescrêiper | F84: 1.1 | K84: 6 | L84: 1 | N84: Ritmo de Trabalho | O84: K9
C85: K6 | D85: Equipamentos novos | E85: Trator de esteira | F85: 1.2 | H85: Manutenção | I85: K5 | K85: 7 | L85: 1 | N85: Folgado | O85: 0.9
C86: K7 | D86: 220h por mês, 252 dias por ano | H86: Excelente | I86: 0.6 | K86: 8 | L86: 1.2 | N86: Médio | O86: 1
C87: K8 | D87: Clima médio | E87: Qualid do Operador | F87: K2 | H87: Boa | I87: 0.8 | K87: 9 | L87: 1.3 | N87: Com pressa | O87: 1.5
C88: K9 | D88: Ritmo de trabalho usualmente com pressa | E88: Excelente | F88: 0.8 | H88: Média | I88: 1 | K88: 10 | L88: 1.4
C89: K10 | D89: Considerado o operador médio | E89: Boa | F89: 0.9 | H89: Ruim | I89: 1.5 | K89: 11 | L89: 2 | N89: Conh do Serviço | O89: K10
C90: K11 | D90: Foi considerada a opção de aluguel a terceiros, ainda que a simulação seja dos custos do contratado, contudo a execução dos serviços é em local de terceiros | E90: Média | F90: 1 | H90: Inexistente | I90: 3 | K90: 15 | L90: 2 | N90: Grande | O90: 0.8
E91: Ruim | F91: 1.2 | N91: Médio | O91: 0.9
E92: Péssima | F92: 2 | H92: Horas de Uso | I92: K7 | J92: 6000 | K92: 1 | N92: Pouco | O92: 1
H93: 1000 | I93: 0.5 | J93: 8000 | K93: 1.3
E94: Qualidade do Equip | F94: K3 | H94: 2000 | I94: 0.5 | J94: 10000 | K94: 1.6 | N94: Tipo do Serviço | O94: K11
E95: De primeira | F95: 0.8 | H95: 3000 | I95: 0.6 | J95: 12000 | K95: 1.9 | N95: Mina ou Pedreira | O95: 0.8
E96: Média | F96: 1 | H96: 4000 | I96: 0.7 | J96: 15000 | K96: 2.3 | N96: Construção Geral | O96: 1
E97: Ruim | F97: 1.5 | H97: 5000 | I97: 0.9 | J97: 20000 | K97: 3 | N97: Aluguel a Terceiros | O97: 1.4
E99: Fonte:
E100: MATTOS, Aldo Dórea. Como preparar orçamentos de obras. São Paulo: Pini, 2006. 281 p., il

Sheet Não Rel - Mat Consumo
B4: MATERIAIS NÃO RELACIONADOS DIRETAMENTE A UM POSTO DE TRABALHO - AQUISIÇÃO SOB DEMANDA
C7: ITEM | D7: CÓDIGO | E7: DESCRIÇÃO | F7: MÉDIA CONSUMO MENSAL | G7: QUANT ANUAL | H7: UNIDADE | I7: CUSTO UNITÁRIO | J7: CUSTO TOTAL | K7: BDI (%) | L7: PREÇO TOTAL | M7: FONTE | N7: REFERÊNCIA
C9: 1 | E9: COMPRESSAS DE GAZE - MATERIAL: Compressa de gaze 7,5x7,5 cm - CARACTERÍSTICA(S): 11 fios estéreis – pacote com 10 unidades cada. | G9: 30 | H9: Pacote | I9: 0.73 | J9: =I9*G9 -> 21.9 | K9: =BDI!E26 -> 0.2314 | L9: =ROUND(J9*(1+K9),2) -> 26.97 | M9: Cotação
C10: 2 | E10: COMPRESSA CAMPO OPERATÓRIO - Alva 38g; tamanho 45x50cm, 4 camadas, 100% algodão, com 50 unidades cada pacote. | G10: 5 | H10: Pacote | I10: 56.41 | J10: =I10*G10 -> 282.05 | K10: =K9 -> 0.2314 | L10: =ROUND(J10*(1+K10),2) -> 347.32 | M10: Cotação
C11: 3 | E11: ATADURAS DE CREPE Tamanho: 10cmx1,8m - pacote com 12 unidades cada - MATERIAL: Crepom. | G11: 8 | H11: Pacote | I11: 6.7 | J11: 53.6 | K11: =K10 -> 0.2314 | L11: 66 | M11: Cotação
C12: 4 | E12: ATADURAS DE CREPE Tamanho: 15cmx1,8m - pacote com 12 unidades cada - MATERIAL: Crepom. | G12: 8 | H12: Pacote | I12: 12.99 | J12: 103.92 | K12: 0.2314 | L12: 127.97 | M12: Cotação
C13: 5 | E13: ATADURAS DE CREPE Tamanho: 20cmx1,8m - pacote com 12 unidades cada - MATERIAL: Crepom. | G13: 8 | H13: Pacote | I13: 21.865 | J13: 174.92 | K13: 0.2314 | L13: 215.4 | M13: Cotação
C14: 6 | E14: ATADURA ELÁSTICA DE ALTA COMPRESSÃO E ELASTICIDADE - Tamanho 10 cm x 1,3 m; com presilha de fixação. | G14: 20 | H14: Unidade | I14: 11.32833333 | J14: 226.5666667 | K14: 0.2314 | L14: 278.99 | M14: Cotação
C15: 7 | E15: ATADURA ELÁSTICA DE ALTA COMPRESSÃO E ELASTICIDADE - Tamanho 15 cm x 1,3 m; com presilha de fixação. | G15: 20 | H15: Unidade | I15: 17.76333333 | J15: 355.2666667 | K15: 0.2314 | L15: 437.48 | M15: Cotação
C16: 8 | E16: PLÁSTICO PROTETOR DE QUEIMADURAS E VISCERAÇÕES - MATERIAL: Confeccionado em polietileno de baixa densidade, atóxico, transparente, 90cmx1,20m. | G16: 10 | H16: Unidade | I16: 1.985 | J16: 19.85 | K16: 0.2314 | L16: 24.44 | M16: Cotação
C17: 9 | E17: FRASCO DE SORO FISIOLÓGICO - MATERIAL: Solução Fisiológica de Cloreto de sódio 0.9%, 250ml. | G17: 24 | H17: Frasco | I17: 4.695 | J17: 112.68 | K17: 0.2314 | L17: 138.75 | M17: Cotação
C18: 10 | E18: FLACONETES DE SORO FISIOLÓGICO - Solução Fisiológica de Cloreto de sódio 0.9%, 10ml. | G18: 200 | H18: Frasco | I18: 1.203333333 | J18: 240.6666667 | K18: 0.2314 | L18: 296.36 | M18: Cotação
C19: 11 | E19: ÁLCOOL ETÍLICO HIDRATADO 70° INPM - MATERIAL: Álcool 70% | G19: 48 | H19: Litro | I19: 5.325 | J19: 255.6 | K19: 0.2314 | L19: 314.75 | M19: Cotação
C20: 12 | E20: ESPARADRAPO IMPERMEÁVEL - Branco - 10cm x 4,5m. | G20: 20 | H20: Unidade | I20: 9.25 | J20: 185 | K20: 0.2314 | L20: 227.81 | M20: Cotação
C21: 13 | E21: FITA ADESIVA (CREPE) - 15mmx50mm. | G21: 20 | H21: Unidade | I21: 6.39 | J21: 127.8 | K21: 0.2314 | L21: 157.37 | M21: Cotação
C22: 14 | E22: FITA ADESIVA 45mmx45Mm - transparente. | G22: 20 | H22: Unidade | I22: 6.215 | J22: 124.3 | K22: 0.2314 | L22: 153.06 | M22: Cotação
K24: SOMATÓRIO TOTAL MENSAL | L24: =L25/12 -> 234.3891667
K25: SOMATÓRIO TOTAL ANUAL | L25: =SUM(L8:L23) -> 2812.67

Sheet SREP
B4: SISTEMA DE REGISTRO ELETRÔNICO DE PRESENÇA - SREP
C7: PAGAMENTO DA DEPRECIAÇÃO
C8: ITEM | D8: DESCRIÇÃO | E8: QUANT ANUAL | F8: CONTA SIAFI | G8: VALOR DE AQ. | H8: % RESIDUAL | I8: VIDA ÚTIL | J8: DEP. MENSAL | K8: CUSTO TOTAL | L8: BDI (%) | M8: PREÇO TOTAL | N8: FONTE | O8: REFERÊNCIA
C10: 1 | D10: Equipamento de Registro Eletrônico de Ponto, de parede, com teclado externo e leitor biométrico, em conformidade com a Portaria 1.510/2009 do MT | E10: 3 | F10: 12311.01.24 (máquinas e equip eletrônicos) | G10: 1597 | H10: 0.1 | I10: 10 | J10: =G10*(1-H10)/(I10*12) -> 11.9775 | K10: =J10*E10 -> 35.9325 | L10: =BDI!E26 -> 0.2314 | M10: =ROUND(K10*(1+L10),2) -> 44.25 | N10: COTAÇÃO
C13: PAGAMENTO DA MANUTENÇÃO
C14: ITEM | D14: DESCRIÇÃO | H14: K (calculado) | I14: MENSAL DEPR. | J14: % MAN X DEP | K14: MENSAL MAN. | L14: BDI (%) | M14: PREÇO TOTAL
C16: 2 | D16: Todos os itens | H16: =H23 -> 0.27216 | I16: =K10 -> 35.9325 | J16: =H16 -> 0.27216 | K16: =I16*H16 -> 9.7793892 | L16: =L10 -> 0.2314 | M16: =ROUND(K16*(1+L16),2) -> 12.04
E18: K1 | F18: K2 | G18: K3 | H18: K4
E19: 0.5 | F19: 1 | G19: 0.8 | H19: 1
E20: K5 | F20: K6 | G20: K7 | H20: K8
E21: 1 | F21: 0.6 | G21: 0.6 | H21: 1
E22: K9 | F22: K10 | G22: K11 | H22: RESULTADO
D23: * a descrição de cada coeficiente segue abaixo | E23: 1.5 | F23: 0.9 | G23: 1.4 | H23: =E19*F19*G19*H19*E21*F21*G21*H21*E23*F23*G23 -> 0.27216
C26: PAGAMENTO DO SOFTWARE
C27: ITEM | D27: DESCRIÇÃO | I27: QUANTIDADE | J27: UNIDADE | K27: UNIT. MENSAL | L27: BDI (%) | M27: PREÇO TOTAL
C29: 3 | D29: Software Ponto Secullum 4 - manutenção e suporte técnico com backup - Web Nuvem - Mensalidade até 200 usuários | I29: 1 | J29: Licença/mês | K29: 538.92 | L29: =L35 -> 0.2314 | M29: =ROUND(K29*(1+L29),2) -> 663.63 | N29: COTAÇÃO
C32: MATERIAL DE CONSUMO ASSOCIADO
C33: ITEM | D33: DESCRIÇÃO | H33: QUANTID/ANO | I33: UNIDADE | J33: VALOR DE AQ. | K33: MENSAL MAT | L33: BDI (%) | M33: PREÇO TOTAL
C35: 4 | D35: Bobina térmica específica para o registrador eletrônico de ponto, com papel termossensível, superfície de impressão externa ao rolo, durabilidade de impressão mínima de 5 anos e comprimento mínimo de 300m | E35: * estimado um gasto anual de 16 bobinas | H35: =ROUNDUP(SUM(Remunerações!E16)*4*22*12*0.05/300,0) -> 13 | I35: Bobina | J35: 36.7 | K35: =J35*H35/12 -> 39.75833333 | L35: =L16 -> 0.2314 | M35: =ROUND(K35*(1+L35),2) -> 48.96 | N35: COTAÇÃO
C38: MATERIAL DE CONSUMO ASSOCIADO
C39: ITEM | D39: DESCRIÇÃO | M39: PREÇO TOTAL
C41: 1 | D41: Componente DEPRECIAÇÃO | M41: =M10 -> 44.25
C42: 2 | D42: Componente MANUTENÇÃO | M42: =M16 -> 12.04
C43: 3 | D43: Componente SOFTWARE | M43: =M29 -> 663.63
C44: 4 | D44: Componente MATERIAL DE CONSUMO ASSOCIADO | M44: =M35 -> 48.96
L46: SOMATÓRIO TOTAL MENSAL | M46: =SUM(M40:M45) -> 768.88
L47: SOMATÓRIO TOTAL ANUAL | M47: =M46*12 -> 9226.56
C50: MATERIAL DE CONSUMO ASSOCIADO
C51: MEMÓRIA DE CÁLCULO DO COEFICIENTE DE CORRELAÇÃO MANUTENÇÃO X DEPRECIAÇÃO (K)
C53: JUSTIFICATIVAS | E53: TIPO | F53: K1 | H53: Condições de Trab | I53: K4 | K53: Tempo Vida (anos) | L53: K6 | N53: Temperatura | O53: K8
E54: Guindaste | F54: 0.5 | H54: Em espera | I54: 0.4 | K54: 1 | L54: 0.6 | N54: Muito quente (> 40º C) | O54: 1.3
C55: K1 | D55: Considerado o valor mínimo de 0,5 | E55: Caminhão-comum | F55: 0.8 | H55: Leves | I55: 0.8 | K55: 2 | L55: 0.7 | N55: Quente (30º a 40º C) | O55: 1.1
C56: K2 | D56: Considerado o operador médio | E56: Fora-de-estrada | F56: 1 | H56: Médias | I56: 1 | K56: 3 | L56: 0.8 | N56: Médio (10º a 30º C) | O56: 1
C57: K3 | D57: Consideradas ferramentas de primeira qualidade | E57: Carregadeira | F57: 1 | H57: Pesadas | I57: 1.4 | K57: 4 | L57: 0.9 | N57: Frio (< 10º C) | O57: 1.2
C58: K4 | D58: Foi considerado condições médias | E58: Escavadeira | F58: 1.4 | H58: Severas | I58: 2 | K58: 5 | L58: 1
C59: K5 | D59: Considerando manutenção normal | E59: Motoescrêiper | F59: 1.1 | K59: 6 | L59: 1 | N59: Ritmo de Trabalho | O59: K9
C60: K6 | D60: Equipamentos novos | E60: Trator de esteira | F60: 1.2 | H60: Manutenção | I60: K5 | K60: 7 | L60: 1 | N60: Folgado | O60: 0.9
C61: K7 | D61: 10h por dia, 252 dias por ano | H61: Excelente | I61: 0.6 | K61: 8 | L61: 1.2 | N61: Médio | O61: 1
C62: K8 | D62: Clima médio | E62: Qualid do Operador | F62: K2 | H62: Boa | I62: 0.8 | K62: 9 | L62: 1.3 | N62: Com pressa | O62: 1.5
C63: K9 | D63: Ritmo de trabalho usualmente com pressa | E63: Excelente | F63: 0.8 | H63: Média | I63: 1 | K63: 10 | L63: 1.4
C64: K10 | D64: Considerado o operador médio | E64: Boa | F64: 0.9 | H64: Ruim | I64: 1.5 | K64: 11 | L64: 2 | N64: Conh do Serviço | O64: K10
C65: K11 | D65: Foi considerada a opção de aluguel a terceiros, ainda que a simulação seja dos custos do contratado, contudo a execução dos serviços é em local de terceiros | E65: Média | F65: 1 | H65: Inexistente | I65: 3 | K65: 15 | L65: 2 | N65: Grande | O65: 0.8
E66: Ruim | F66: 1.2 | N66: Médio | O66: 0.9
E67: Péssima | F67: 2 | H67: Horas de Uso | I67: K7 | J67: 6000 | K67: 1 | N67: Pouco | O67: 1
H68: 1000 | I68: 0.5 | J68: 8000 | K68: 1.3
E69: Qualidade do Equip | F69: K3 | H69: 2000 | I69: 0.5 | J69: 10000 | K69: 1.6 | N69: Tipo do Serviço | O69: K11
E70: De primeira | F70: 0.8 | H70: 3000 | I70: 0.6 | J70: 12000 | K70: 1.9 | N70: Mina ou Pedreira | O70: 0.8
E71: Média | F71: 1 | H71: 4000 | I71: 0.7 | J71: 15000 | K71: 2.3 | N71: Construção Geral | O71: 1
E72: Ruim | F72: 1.5 | H72: 5000 | I72: 0.9 | J72: 20000 | K72: 3 | N72: Aluguel a Terceiros | O72: 1.4
E74: Fonte:
E75: MATTOS, Aldo Dórea. Como preparar orçamentos de obras. São Paulo: Pini, 2006. 281 p., il

Sheet Não Rel - Mat Cons Durável (hidden)
B4: MATERIAIS DE CONSUMO PERMANENTE NÃO RELACIONADOS DIRETAMENTE A UM POSTO DE TRABALHO - AQUISIÇÃO SOB DEMANDA
C7: ITEM | D7: CÓDIGO | E7: DESCRIÇÃO | F7: ESTOQUE INICIAL | G7: MÉDIA CONSUMO MENSAL | H7: QTDE. ANUAL | I7: UNIDADE | J7: CUSTO UNITÁRIO | K7: CUSTO TOTAL | L7: BDI (%) | M7: PREÇO TOTAL | N7: FONTE | O7: REFERÊNCIA
C9: 1 | E9: Balde Plástico 12 Litros | G9: 8 | H9: 166 | I9: Unidade | K9: =J9*H9 -> 0 | L9: =BDI!E26 -> 0.2314 | M9: =ROUND(K9*(1+L9),2) -> 0 | N9: Cotação
C10: 2 | E10: Balde plástico 20 litros | G10: 2 | H10: 44 | I10: Unidade | K10: =J10*H10 -> 0 | L10: =L9 -> 0.2314 | M10: =ROUND(K10*(1+L10),2) -> 0 | N10: Cotação
C11: 3 | E11: Balde Plástico 60 Litros | G11: 1 | H11: 16 | I11: Unidade | K11: 0 | L11: =L10 -> 0.2314 | M11: 0 | N11: Cotação
C12: 4 | E12: Capa para chuva com capuz, cor amarela, longa, tamanho G | G12: 2 | H12: 32 | I12: Unidade | K12: 0 | L12: 0.2314 | M12: 0 | N12: Cotação
C13: 5 | E13: Chapéu legionário (com proteção p/ nuca) | G13: 2 | H13: 44 | I13: Unidade | K13: 0 | L13: 0.2314 | M13: 0 | N13: Cotação
C14: 6 | E14: Conjunto completo para limpeza de rodapé (cabo, suporte e fibra) (ref. Braslimpia ST 304 e FP262 ou similar) | G14: 0 | H14: 8 | I14: Unidade | K14: 0 | L14: 0.2314 | M14: 0 | N14: Cotação
C15: 7 | E15: Conjunto completo para Mop pó, com amarração (cabo, armação e cabeleira) (ref. Mop seco Euro CJ 60E ou similar) | G15: 0 | H15: 8 | I15: Unidade | K15: 0 | L15: 0.2314 | M15: 0 | N15: Cotação
C16: 8 | E16: Espátula de aço com cabo de madeira 4" 101x185mm, cabo amarelo (ref. Max Ferramentas ou similar) | G16: 2 | H16: 36 | I16: Unidade | K16: 0 | L16: 0.2314 | M16: 0 | N16: Cotação
C17: 9 | E17: Extensão elétrica com carretel 2 X 2,5mm² X 50,00 m – suporte com carretel injetado em polipropileno com diâmetro de 290mm com 3 tomadas universais | G17: 0 | H17: 10 | I17: Unidade | K17: 0 | L17: 0.2314 | M17: 0 | N17: Cotação
C18: 10 | E18: Fita para isolamento de área zebrada amarelo e preta ultra resistente 7,6cm x 200m | G18: 0 | H18: 10 | I18: Unidade | K18: 0 | L18: 0.2314 | M18: 0 | N18: Cotação
C19: 11 | E19: Macacão de segurança Tipo 6 (ref. SteelgenVicsa, Steelflex ou outro de desempenho e qualidade similar ou superior). | G19: 4 | H19: 60 | I19: Unidade | K19: 0 | L19: 0.2314 | M19: 0 | N19: Cotação
C20: 12 | E20: Mangueira Top cristal Ø3/4”x 250m em PVC flexível, camada em poliester trançado, para pressões de 6 bar (ref. Tramontina Mult Johnson ou outro de desempenho e qualidade similar ou superior) | G20: 0 | H20: 5 | I20: Unidade | K20: 0 | L20: 0.2314 | M20: 0 | N20: Cotação
C21: 13 | E21: Pá para lixo, plástica, com cabo longo 90 cm (ref. 15300 marca Tomki São Bernardo, Madetec Johnson ou outro de desempenho e qualidade similar ou superior) | G21: 2 | H21: 44 | I21: Unidade | K21: 0 | L21: 0.2314 | M21: 0 | N21: Cotação
C22: 14 | E22: Placa de sinalização em vinil para piso molhado | G22: 0 | H22: 40 | I22: Unidade | K22: 0 | L22: 0.2314 | M22: 0 | N22: Cotação
C23: 15 | E23: Pulverizador Costal Simétrico 20L (ref.Guarany, Vulcan,Vonder ou outro de desempenho e qualidade similar ou superior). | G23: 0 | H23: 2 | I23: Unidade | K23: 0 | L23: 0.2314 | M23: 0 | N23: Cotação
C24: 16 | E24: Rodo P/ Pia de Banheiro manual anatômico – (ref. Guirado, Bettani ou Dalcim ou outro de desempenho e qualidade similar ou superior) | G24: 1 | H24: 27 | I24: Unidade | K24: 0 | L24: 0.2314 | M24: 0 | N24: Cotação
C25: 17 | E25: Rodo de 40cm de madeira/plástico (borracha dupla) com cabo 1,50 m – marcas Tomki, Guirado, Bettani, Dalcim ou outro de desempenho e qualidade similar ou superior) | G25: 10 | H25: 200 | I25: Unidade | K25: 0 | L25: 0.2314 | M25: 0 | N25: Cotação
C26: 18 | E26: Rodo de 60cm de madeira/plástico (borracha dupla) com cabo 1,50m (ref. Tomki, Guirado, Bettani, Dalcim ou outro de desempenho e qualidade similar ou superior) | G26: 8 | H26: 131 | I26: Unidade | K26: 0 | L26: 0.2314 | M26: 0 | N26: Cotação
C27: 19 | E27: Rodo de 90cm de madeira/plástico (borracha dupla) com cabo 1,50m (ref. Tomki, Guirado, Bettani, Dalcim ou outro de desempenho e qualidade similar ou superior) | G27: 2 | H27: 39 | I27: Unidade | K27: 0 | L27: 0.2314 | M27: 0 | N27: Cotação
C28: 20 | E28: Saco para aspirador doméstico pequeno descartável (ref. Eletrolux Silent Prof ou Leo da Soteco ou outro de desempenho e qualidade similar ou superior) | G28: 3 | H28: 48 | I28: Unidade | K28: 0 | L28: 0.2314 | M28: 0 | N28: Cotação
C29: 21 | E29: Saco para aspirador industrial água e pó descartável (ref. Karcher A2104 ou Eletrolux GT 3000 Pro ou outro de desempenho e qualidade similar ou superior) | G29: 2 | H29: 28 | I29: Unidade | K29: 0 | L29: 0.2314 | M29: 0 | N29: Cotação
C30: 22 | E30: Suporte para papel higiênico (ref. Santher ou outro de desempenho e qualidade similar ou superior) | G30: 2 | H30: 369 | I30: Unidade | K30: 0 | L30: 0.2314 | M30: 0 | N30: Cotação
C31: 23 | E31: Suporte para papel toalha (ref. Santher ou outro de desempenho e qualidade similar ou superior) | G31: 2 | H31: 409 | I31: Unidade | K31: 0 | L31: 0.2314 | M31: 0 | N31: Cotação
C32: 24 | E32: Suporte para saboneteira (ref. Santher ou outro de desempenho e qualidade similar ou superior) | G32: 2 | H32: 254 | I32: Unidade | K32: 0 | L32: 0.2314 | M32: 0 | N32: Cotação
C33: 25 | E33: Vassoura de Pêlo 40cm nylon com cabo 1,50 m (ref. Tomki, Guirado, Bettani, Dalcim ou outro de desempenho e qualidade similar ou superior) | G33: 2 | H33: 36 | I33: Unidade | K33: 0 | L33: =L31 -> 0.2314 | M33: =ROUND(K33*(1+L33),2) -> 0 | N33: Cotação
C34: 26 | E34: Vassoura Piaçava nº 3 com cabo 1,50m (ref. Guirado, Bettani, Dalcim ou outro de desempenho e qualidade similar ou superior) | G34: 8 | H34: 126 | I34: Unidade | K34: =J34*H34 -> 0 | L34: =L31 -> 0.2314 | M34: 0 | N34: Cotação
C35: 27 | E35: Vassoura para Vaso Sanitário com cabo de madeira (ref. Guirado, Bettani, Dalcim ou outro de desempenho e qualidade similar ou superior) | G35: 10 | H35: 180 | I35: Unidade | K35: 0 | L35: =L32 -> 0.2314 | M35: 0 | N35: Cotação
L37: SOMATÓRIO TOTAL MENSAL | M37: =M38/12 -> 0
L38: SOMATÓRIO TOTAL ANUAL | M38: =SUM(M8:M36) -> 0

Sheet Não Rel - Serviços (hidden)
B3: SERVIÇOS NÃO RELACIONADOS DIRETAMENTE A UM POSTO DE TRABALHO - SOB DEMANDA
C6: ITEM | D6: CÓDIGO | E6: DESCRIÇÃO | F6: QUANT ANUAL | G6: UNIDADE | H6: CUSTO UNITÁRIO | I6: CUSTO TOTAL | J6: BDI (%) | K6: PREÇO TOTAL | L6: FONTE | M6: REFERÊNCIA
C8: 1 | E8: Serviços de desinsetização e desratização em uma área de 59.203 m² | G8: aplicações | H8: 8422.5 | I8: =H8*F8 -> 0 | J8: =BDI!E26 -> 0.2314 | K8: =ROUND(I8*(1+J8),2) -> 0 | L8: Cotação
J10: SOMATÓRIO TOTAL MENSAL | K10: =K11/12 -> 0
J11: SOMATÓRIO TOTAL ANUAL | K11: =SUM(K7:K9) -> 0

Sheet Not. Demanda (hidden)
B3: ADICIONAL NOTURNO SOB DEMANDA
C6: CATEGORIAS | G6: HORAS / MÊS | H6: % NOTURNA
C8: 8 | D8: =HLOOKUP($C8,'Dados Gerais'!$D$5:$BK$10,6) -> BOMBEIRO CIVIL BÁSICO NOTURNO | H8: 0.225
C9: 9 | D9: =HLOOKUP($C9,'Dados Gerais'!$D$5:$BK$10,6) -> BOMBEIRO CIVIL BÁSICO NOTURNO | H9: 0.225
C12: AJUSTE DE HORAS FICTAS | E12: AJUSTE H.NOT | F12: HORA NORMAL | G12: H.FICTAS/MÊS | H12: H.ÚTEIS/MÊS
C14: 8 | D14: =HLOOKUP($C14,'Dados Gerais'!$D$5:$BK$10,6) -> BOMBEIRO CIVIL BÁSICO NOTURNO | E14: 60 | F14: 60 | G14: =G8*(F14/E14) -> 0 | H14: =HLOOKUP(C14,'Dados Gerais'!$D$5:$L$16,12,0) -> 
C15: 9 | D15: =HLOOKUP($C15,'Dados Gerais'!$D$5:$BK$10,6) -> BOMBEIRO CIVIL BÁSICO NOTURNO | E15: 60 | F15: 60 | G15: =G9*(F15/E15) -> 0 | H15: =HLOOKUP(C15,'Dados Gerais'!$D$5:$L$16,12,0) -> 
C18: VALOR DO ADICIONAL NOTURNO | F18: SALÁRIO MÊS | G18: VL.H.NORMAL | H18: ADIC.H.FICTAS
C20: 8 | D20: =HLOOKUP($C20,'Dados Gerais'!$D$5:$BK$10,6) -> BOMBEIRO CIVIL BÁSICO NOTURNO | F20: =HLOOKUP(C20,'Dados Gerais'!$D$5:$L$12,8,0) ->  | G20: =F20/H14 ->  | H20: =G20*(H8) -> 
C21: 9 | D21: =HLOOKUP($C21,'Dados Gerais'!$D$5:$BK$10,6) -> BOMBEIRO CIVIL BÁSICO NOTURNO | F21: =HLOOKUP(C21,'Dados Gerais'!$D$5:$L$12,8,0) ->  | G21: =F21/H15 ->  | H21: =G21*(H9) -> 
C24: RESUMO DO ADICIONAL NOTURNO SOB DEMANDA
C25: TOTAIS MENSAIS | G25: PREÇO MENSAL
C27: 8 | D27: =HLOOKUP($C27,'Dados Gerais'!$D$5:$BK$10,6) -> BOMBEIRO CIVIL BÁSICO NOTURNO | G27: =H20*G14 -> 
C28: 9 | D28: =HLOOKUP($C28,'Dados Gerais'!$D$5:$BK$10,6) -> BOMBEIRO CIVIL BÁSICO NOTURNO | G28: =H21*G15 -> 
F30: SOMATÓRIO TOTAL MENSAL | G30: =SUM(G27:G29) -> 
F31: SOMATÓRIO TOTAL ANUAL | G31: =G30*12 -> 
C34: ENCARGOS SOCIAIS E BDI SOBRE ADICIONAL NOTURNO SOB DEMANDA
C35: TOTAIS MENSAIS | F35: PERCENTUAIS | G35: PREÇO MENSAL
D37: ENCARGOS SOCIAIS | F37: ='Encargos Sociais'!$E$46 -> 0.739 | G37: =F37*G30 -> 
D38: BDI | F38: =BDI!$E$26 -> 0.2314 | G38: =F38*(G30+G37) -> 
F40: SOMATÓRIO TOTAL MENSAL | G40: =SUM(G37:G39) -> 
F41: SOMATÓRIO TOTAL ANUAL | G41: =G40*12 -> 
C44: VALOR TOTAL ADICIONAL NOTURNO SOB DEMANDA (COM ENCARGOS SOCIAIS E BDI INCLUSOS)
C45: TOTAIS MENSAIS | F45: PERCENTUAIS | G45: PREÇO MENSAL
D47: ENCARGOS SOCIAIS | F47: ='Encargos Sociais'!$E$46 -> 0.739 | G47: =G27+G37 -> 
D48: BDI | F48: =BDI!$E$26 -> 0.2314 | G48: =G28+G38 -> 
F50: SOMATÓRIO TOTAL MENSAL | G50: =SUM(G47:G49) -> 
F51: SOMATÓRIO TOTAL ANUAL | G51: =G50*12 -> 

Sheet Mat Cons (hidden)
C1: CÂMARA DOS DEPUTADOS
C2: DEPARTAMENTO TÉCNICO
C3: Coordenação de Planejamento e Gestão
C5: Data: | D5: ='Dados Gerais'!#REF! -> 
C6: Processo: | D6: ='Dados Gerais'!#REF! -> 
C7: Objeto: | D7: ='Dados Gerais'!#REF! -> 
B11: MATERIAIS DE CONSUMO RELACIONADOS AO POSTO - AQUISIÇÃO | I11: 1 | K11: =I11+1 -> 2 | M11: =K11+1 -> 3 | O11: =M11+1 -> 4 | Q11: =O11+1 -> 5 | S11: =Q11+1 -> 6 | U11: =S11+1 -> 7 | W11: =U11+1 -> 8 | Y11: =W11+1 -> 9 | AA11: =Y11+1 -> 10 | AC11: =AA11+1 -> 11 | AE11: =AC11+1 -> 12 | AG11: =AE11+1 -> 13 | AI11: =AG11+1 -> 14 | AK11: =AI11+1 -> 15 | AM11: =AK11+1 -> 16 | AO11: =AM11+1 -> 17 | AQ11: =AO11+1 -> 18 | AS11: =AQ11+1 -> 19 | AU11: =AS11+1 -> 20 | AW11: =AU11+1 -> 21 | AY11: =AW11+1 -> 22 | BA11: =AY11+1 -> 23 | BC11: =BA11+1 -> 24 | BE11: =BC11+1 -> 25 | BG11: =BE11+1 -> 26 | BI11: =BG11+1 -> 27 | BK11: =BI11+1 -> 28 | BM11: =BK11+1 -> 29 | BO11: =BM11+1 -> 30 | BQ11: =BO11+1 -> 31 | BS11: =BQ11+1 -> 32 | BU11: =BS11+1 -> 33 | BW11: =BU11+1 -> 34 | BY11: =BW11+1 -> 35 | CA11: =BY11+1 -> 36 | CC11: =CA11+1 -> 37 | CE11: =CC11+1 -> 38 | CG11: =CE11+1 -> 39 | CI11: =CG11+1 -> 40 | CK11: =CI11+1 -> 41 | CM11: =CK11+1 -> 42 | CO11: =CM11+1 -> 43 | CQ11: =CO11+1 -> 44 | CS11: =CQ11+1 -> 45 | CU11: =CS11+1 -> 46 | CW11: =CU11+1 -> 47 | CY11: =CW11+1 -> 48 | DA11: =CY11+1 -> 49 | DC11: =DA11+1 -> 50 | DE11: =DC11+1 -> 51 | DG11: =DE11+1 -> 52 | DI11: =DG11+1 -> 53 | DK11: =DI11+1 -> 54 | DM11: =DK11+1 -> 55 | DO11: =DM11+1 -> 56 | DQ11: =DO11+1 -> 57 | DS11: =DQ11+1 -> 58 | DU11: =DS11+1 -> 59 | DW11: =DU11+1 -> 60
I13: =ROUND(SUM(J12:J65),2) -> 0 | K13: =ROUND(SUM(L12:L65),2) -> 0 | M13: =ROUND(SUM(N12:N65),2) -> 0 | O13: =ROUND(SUM(P12:P65),2) -> 0 | Q13: =ROUND(SUM(R12:R65),2) -> 0 | S13: =ROUND(SUM(T12:T65),2) -> 0 | U13: =ROUND(SUM(V12:V65),2) -> 0 | W13: =ROUND(SUM(X12:X65),2) -> 0 | Y13: =ROUND(SUM(Z12:Z65),2) -> 0 | AA13: =ROUND(SUM(AB12:AB65),2) -> 0 | AC13: =ROUND(SUM(AD12:AD65),2) -> 0 | AE13: =ROUND(SUM(AF12:AF65),2) -> 0 | AG13: =ROUND(SUM(AH12:AH65),2) -> 0 | AI13: =ROUND(SUM(AJ12:AJ65),2) -> 0 | AK13: =ROUND(SUM(AL12:AL65),2) -> 0 | AM13: =ROUND(SUM(AN12:AN65),2) -> 0 | AO13: =ROUND(SUM(AP12:AP65),2) -> 0 | AQ13: =ROUND(SUM(AR12:AR65),2) -> 0 | AS13: =ROUND(SUM(AT12:AT65),2) -> 0 | AU13: =ROUND(SUM(AV12:AV65),2) -> 0 | AW13: =ROUND(SUM(AX12:AX65),2) -> 0 | AY13: =ROUND(SUM(AZ12:AZ65),2) -> 0 | BA13: =ROUND(SUM(BB12:BB65),2) -> 0 | BC13: =ROUND(SUM(BD12:BD65),2) -> 0 | BE13: =ROUND(SUM(BF12:BF65),2) -> 0 | BG13: =ROUND(SUM(BH12:BH65),2) -> 0 | BI13: =ROUND(SUM(BJ12:BJ65),2) -> 0 | BK13: =ROUND(SUM(BL12:BL65),2) -> 0 | BM13: =ROUND(SUM(BN12:BN65),2) -> 0 | BO13: =ROUND(SUM(BP12:BP65),2) -> 0 | BQ13: =ROUND(SUM(BR12:BR65),2) -> 0 | BS13: =ROUND(SUM(BT12:BT65),2) -> 0 | BU13: =ROUND(SUM(BV12:BV65),2) -> 0 | BW13: =ROUND(SUM(BX12:BX65),2) -> 0 | BY13: =ROUND(SUM(BZ12:BZ65),2) -> 0 | CA13: =ROUND(SUM(CB12:CB65),2) -> 0 | CC13: =ROUND(SUM(CD12:CD65),2) -> 0 | CE13: =ROUND(SUM(CF12:CF65),2) -> 0 | CG13: =ROUND(SUM(CH12:CH65),2) -> 0 | CI13: =ROUND(SUM(CJ12:CJ65),2) -> 0 | CK13: =ROUND(SUM(CL12:CL65),2) -> 0 | CM13: =ROUND(SUM(CN12:CN65),2) -> 0 | CO13: =ROUND(SUM(CP12:CP65),2) -> 0 | CQ13: =ROUND(SUM(CR12:CR65),2) -> 0 | CS13: =ROUND(SUM(CT12:CT65),2) -> 0 | CU13: =ROUND(SUM(CV12:CV65),2) -> 0 | CW13: =ROUND(SUM(CX12:CX65),2) -> 0 | CY13: =ROUND(SUM(CZ12:CZ65),2) -> 0 | DA13: =ROUND(SUM(DB12:DB65),2) -> 0 | DC13: =ROUND(SUM(DD12:DD65),2) -> 0 | DE13: =ROUND(SUM(DF12:DF65),2) -> 0 | DG13: =ROUND(SUM(DH12:DH65),2) -> 0 | DI13: =ROUND(SUM(DJ12:DJ65),2) -> 0 | DK13: =ROUND(SUM(DL12:DL65),2) -> 0 | DM13: =ROUND(SUM(DN12:DN65),2) -> 0 | DO13: =ROUND(SUM(DP12:DP65),2) -> 0 | DQ13: =ROUND(SUM(DR12:DR65),2) -> 0 | DS13: =ROUND(SUM(DT12:DT65),2) -> 0 | DU13: =ROUND(SUM(DV12:DV65),2) -> 0 | DW13: =ROUND(SUM(DX12:DX65),2) -> 0
C14: CATEGORIAS | F14: QUANTIDADE
I15: =IF($C15=I$11,1,0) -> 0
I16: 0 | K16: =IF($C16=K$11,1,0) -> 0 | M16: =IF($C16=M$11,1,0) -> 0 | O16: =IF($C16=O$11,1,0) -> 0 | Q16: =IF($C16=Q$11,1,0) -> 0 | S16: =IF($C16=S$11,1,0) -> 0 | U16: =IF($C16=U$11,1,0) -> 0 | W16: =IF($C16=W$11,1,0) -> 0 | Y16: =IF($C16=Y$11,1,0) -> 0 | AA16: =IF($C16=AA$11,1,0) -> 0 | AC16: =IF($C16=AC$11,1,0) -> 0 | AE16: =IF($C16=AE$11,1,0) -> 0 | AG16: =IF($C16=AG$11,1,0) -> 0 | AI16: =IF($C16=AI$11,1,0) -> 0 | AK16: =IF($C16=AK$11,1,0) -> 0 | AM16: =IF($C16=AM$11,1,0) -> 0 | AO16: =IF($C16=AO$11,1,0) -> 0 | AQ16: =IF($C16=AQ$11,1,0) -> 0 | AS16: =IF($C16=AS$11,1,0) -> 0 | AU16: =IF($C16=AU$11,1,0) -> 0 | AW16: =IF($C16=AW$11,1,0) -> 0 | AY16: =IF($C16=AY$11,1,0) -> 0 | BA16: =IF($C16=BA$11,1,0) -> 0 | BC16: =IF($C16=BC$11,1,0) -> 0 | BE16: =IF($C16=BE$11,1,0) -> 0 | BG16: =IF($C16=BG$11,1,0) -> 0 | BI16: =IF($C16=BI$11,1,0) -> 0 | BK16: =IF($C16=BK$11,1,0) -> 0 | BM16: =IF($C16=BM$11,1,0) -> 0 | BO16: =IF($C16=BO$11,1,0) -> 0 | BQ16: =IF($C16=BQ$11,1,0) -> 0 | BS16: =IF($C16=BS$11,1,0) -> 0 | BU16: =IF($C16=BU$11,1,0) -> 0 | BW16: =IF($C16=BW$11,1,0) -> 0 | BY16: =IF($C16=BY$11,1,0) -> 0 | CA16: =IF($C16=CA$11,1,0) -> 0 | CC16: =IF($C16=CC$11,1,0) -> 0 | CE16: =IF($C16=CE$11,1,0) -> 0 | CG16: =IF($C16=CG$11,1,0) -> 0 | CI16: =IF($C16=CI$11,1,0) -> 0 | CK16: =IF($C16=CK$11,1,0) -> 0 | CM16: =IF($C16=CM$11,1,0) -> 0 | CO16: =IF($C16=CO$11,1,0) -> 0 | CQ16: =IF($C16=CQ$11,1,0) -> 0 | CS16: =IF($C16=CS$11,1,0) -> 0 | CU16: =IF($C16=CU$11,1,0) -> 0 | CW16: =IF($C16=CW$11,1,0) -> 0 | CY16: =IF($C16=CY$11,1,0) -> 0 | DA16: =IF($C16=DA$11,1,0) -> 0 | DC16: =IF($C16=DC$11,1,0) -> 0 | DE16: =IF($C16=DE$11,1,0) -> 0 | DG16: =IF($C16=DG$11,1,0) -> 0 | DI16: =IF($C16=DI$11,1,0) -> 0 | DK16: =IF($C16=DK$11,1,0) -> 0 | DM16: =IF($C16=DM$11,1,0) -> 0 | DO16: =IF($C16=DO$11,1,0) -> 0 | DQ16: =IF($C16=DQ$11,1,0) -> 0 | DS16: =IF($C16=DS$11,1,0) -> 0 | DU16: =IF($C16=DU$11,1,0) -> 0 | DW16: =IF($C16=DW$11,1,0) -> 0
I17: 0 | K17: 0 | M17: 0 | O17: 0 | Q17: 0 | S17: 0 | U17: 0 | W17: 0 | Y17: 0 | AA17: 0 | AC17: 0 | AE17: 0 | AG17: 0 | AI17: 0 | AK17: 0 | AM17: 0 | AO17: 0 | AQ17: 0 | AS17: 0 | AU17: 0 | AW17: 0 | AY17: 0 | BA17: 0 | BC17: 0 | BE17: 0 | BG17: 0 | BI17: 0 | BK17: 0 | BM17: 0 | BO17: 0 | BQ17: 0 | BS17: 0 | BU17: 0 | BW17: 0 | BY17: 0 | CA17: 0 | CC17: 0 | CE17: 0 | CG17: 0 | CI17: 0 | CK17: 0 | CM17: 0 | CO17: 0 | CQ17: 0 | CS17: 0 | CU17: 0 | CW17: 0 | CY17: 0 | DA17: 0 | DC17: 0 | DE17: 0 | DG17: 0 | DI17: 0 | DK17: 0 | DM17: 0 | DO17: 0 | DQ17: 0 | DS17: 0 | DU17: 0 | DW17: 0
I18: 0 | K18: 0 | M18: 0 | O18: 0 | Q18: 0 | S18: 0 | U18: 0 | W18: 0 | Y18: 0 | AA18: 0 | AC18: 0 | AE18: 0 | AG18: 0 | AI18: 0 | AK18: 0 | AM18: 0 | AO18: 0 | AQ18: 0 | AS18: 0 | AU18: 0 | AW18: 0 | AY18: 0 | BA18: 0 | BC18: 0 | BE18: 0 | BG18: 0 | BI18: 0 | BK18: 0 | BM18: 0 | BO18: 0 | BQ18: 0 | BS18: 0 | BU18: 0 | BW18: 0 | BY18: 0 | CA18: 0 | CC18: 0 | CE18: 0 | CG18: 0 | CI18: 0 | CK18: 0 | CM18: 0 | CO18: 0 | CQ18: 0 | CS18: 0 | CU18: 0 | CW18: 0 | CY18: 0 | DA18: 0 | DC18: 0 | DE18: 0 | DG18: 0 | DI18: 0 | DK18: 0 | DM18: 0 | DO18: 0 | DQ18: 0 | DS18: 0 | DU18: 0 | DW18: 0
I19: 0 | K19: 0 | M19: 0 | O19: 0 | Q19: 0 | S19: 0 | U19: 0 | W19: 0 | Y19: 0 | AA19: 0 | AC19: 0 | AE19: 0 | AG19: 0 | AI19: 0 | AK19: 0 | AM19: 0 | AO19: 0 | AQ19: 0 | AS19: 0 | AU19: 0 | AW19: 0 | AY19: 0 | BA19: 0 | BC19: 0 | BE19: 0 | BG19: 0 | BI19: 0 | BK19: 0 | BM19: 0 | BO19: 0 | BQ19: 0 | BS19: 0 | BU19: 0 | BW19: 0 | BY19: 0 | CA19: 0 | CC19: 0 | CE19: 0 | CG19: 0 | CI19: 0 | CK19: 0 | CM19: 0 | CO19: 0 | CQ19: 0 | CS19: 0 | CU19: 0 | CW19: 0 | CY19: 0 | DA19: 0 | DC19: 0 | DE19: 0 | DG19: 0 | DI19: 0 | DK19: 0 | DM19: 0 | DO19: 0 | DQ19: 0 | DS19: 0 | DU19: 0 | DW19: 0
I20: 0 | K20: 0 | M20: 0 | O20: 0 | Q20: 0 | S20: 0 | U20: 0 | W20: 0 | Y20: 0 | AA20: 0 | AC20: 0 | AE20: 0 | AG20: 0 | AI20: 0 | AK20: 0 | AM20: 0 | AO20: 0 | AQ20: 0 | AS20: 0 | AU20: 0 | AW20: 0 | AY20: 0 | BA20: 0 | BC20: 0 | BE20: 0 | BG20: 0 | BI20: 0 | BK20: 0 | BM20: 0 | BO20: 0 | BQ20: 0 | BS20: 0 | BU20: 0 | BW20: 0 | BY20: 0 | CA20: 0 | CC20: 0 | CE20: 0 | CG20: 0 | CI20: 0 | CK20: 0 | CM20: 0 | CO20: 0 | CQ20: 0 | CS20: 0 | CU20: 0 | CW20: 0 | CY20: 0 | DA20: 0 | DC20: 0 | DE20: 0 | DG20: 0 | DI20: 0 | DK20: 0 | DM20: 0 | DO20: 0 | DQ20: 0 | DS20: 0 | DU20: 0 | DW20: 0
I21: 0 | K21: 0 | M21: 0 | O21: 0 | Q21: 0 | S21: 0 | U21: 0 | W21: 0 | Y21: 0 | AA21: 0 | AC21: 0 | AE21: 0 | AG21: 0 | AI21: 0 | AK21: 0 | AM21: 0 | AO21: 0 | AQ21: 0 | AS21: 0 | AU21: 0 | AW21: 0 | AY21: 0 | BA21: 0 | BC21: 0 | BE21: 0 | BG21: 0 | BI21: 0 | BK21: 0 | BM21: 0 | BO21: 0 | BQ21: 0 | BS21: 0 | BU21: 0 | BW21: 0 | BY21: 0 | CA21: 0 | CC21: 0 | CE21: 0 | CG21: 0 | CI21: 0 | CK21: 0 | CM21: 0 | CO21: 0 | CQ21: 0 | CS21: 0 | CU21: 0 | CW21: 0 | CY21: 0 | DA21: 0 | DC21: 0 | DE21: 0 | DG21: 0 | DI21: 0 | DK21: 0 | DM21: 0 | DO21: 0 | DQ21: 0 | DS21: 0 | DU21: 0 | DW21: 0
I22: 0
C24: ITEM | D24: DESCRIÇÃO | E24: QUANT ANUAL | F24: VALOR
J25: =IF(SUM(I$15:I$22)>0,$E25*$F25,0) -> 0 | L25: =IF(SUM(K$15:K$22)>0,$E25*$F25,0) -> 0 | N25: =IF(SUM(M$15:M$22)>0,$E25*$F25,0) -> 0 | P25: =IF(SUM(O$15:O$22)>0,$E25*$F25,0) -> 0 | R25: =IF(SUM(Q$15:Q$22)>0,$E25*$F25,0) -> 0 | T25: =IF(SUM(S$15:S$22)>0,$E25*$F25,0) -> 0 | V25: =IF(SUM(U$15:U$22)>0,$E25*$F25,0) -> 0 | X25: =IF(SUM(W$15:W$22)>0,$E25*$F25,0) -> 0 | Z25: =IF(SUM(Y$15:Y$22)>0,$E25*$F25,0) -> 0 | AB25: =IF(SUM(AA$15:AA$22)>0,$E25*$F25,0) -> 0 | AD25: =IF(SUM(AC$15:AC$22)>0,$E25*$F25,0) -> 0 | AF25: =IF(SUM(AE$15:AE$22)>0,$E25*$F25,0) -> 0 | AH25: =IF(SUM(AG$15:AG$22)>0,$E25*$F25,0) -> 0 | AJ25: =IF(SUM(AI$15:AI$22)>0,$E25*$F25,0) -> 0 | AL25: =IF(SUM(AK$15:AK$22)>0,$E25*$F25,0) -> 0 | AN25: =IF(SUM(AM$15:AM$22)>0,$E25*$F25,0) -> 0 | AP25: =IF(SUM(AO$15:AO$22)>0,$E25*$F25,0) -> 0 | AR25: =IF(SUM(AQ$15:AQ$22)>0,$E25*$F25,0) -> 0 | AT25: =IF(SUM(AS$15:AS$22)>0,$E25*$F25,0) -> 0 | AV25: =IF(SUM(AU$15:AU$22)>0,$E25*$F25,0) -> 0 | AX25: =IF(SUM(AW$15:AW$22)>0,$E25*$F25,0) -> 0 | AZ25: =IF(SUM(AY$15:AY$22)>0,$E25*$F25,0) -> 0 | BB25: =IF(SUM(BA$15:BA$22)>0,$E25*$F25,0) -> 0 | BD25: =IF(SUM(BC$15:BC$22)>0,$E25*$F25,0) -> 0 | BF25: =IF(SUM(BE$15:BE$22)>0,$E25*$F25,0) -> 0 | BH25: =IF(SUM(BG$15:BG$22)>0,$E25*$F25,0) -> 0 | BJ25: =IF(SUM(BI$15:BI$22)>0,$E25*$F25,0) -> 0 | BL25: =IF(SUM(BK$15:BK$22)>0,$E25*$F25,0) -> 0 | BN25: =IF(SUM(BM$15:BM$22)>0,$E25*$F25,0) -> 0 | BP25: =IF(SUM(BO$15:BO$22)>0,$E25*$F25,0) -> 0 | BR25: =IF(SUM(BQ$15:BQ$22)>0,$E25*$F25,0) -> 0 | BT25: =IF(SUM(BS$15:BS$22)>0,$E25*$F25,0) -> 0 | BV25: =IF(SUM(BU$15:BU$22)>0,$E25*$F25,0) -> 0 | BX25: =IF(SUM(BW$15:BW$22)>0,$E25*$F25,0) -> 0 | BZ25: =IF(SUM(BY$15:BY$22)>0,$E25*$F25,0) -> 0 | CB25: =IF(SUM(CA$15:CA$22)>0,$E25*$F25,0) -> 0 | CD25: =IF(SUM(CC$15:CC$22)>0,$E25*$F25,0) -> 0 | CF25: =IF(SUM(CE$15:CE$22)>0,$E25*$F25,0) -> 0 | CH25: =IF(SUM(CG$15:CG$22)>0,$E25*$F25,0) -> 0 | CJ25: =IF(SUM(CI$15:CI$22)>0,$E25*$F25,0) -> 0 | CL25: =IF(SUM(CK$15:CK$22)>0,$E25*$F25,0) -> 0 | CN25: =IF(SUM(CM$15:CM$22)>0,$E25*$F25,0) -> 0 | CP25: =IF(SUM(CO$15:CO$22)>0,$E25*$F25,0) -> 0 | CR25: =IF(SUM(CQ$15:CQ$22)>0,$E25*$F25,0) -> 0 | CT25: =IF(SUM(CS$15:CS$22)>0,$E25*$F25,0) -> 0 | CV25: =IF(SUM(CU$15:CU$22)>0,$E25*$F25,0) -> 0 | CX25: =IF(SUM(CW$15:CW$22)>0,$E25*$F25,0) -> 0 | CZ25: =IF(SUM(CY$15:CY$22)>0,$E25*$F25,0) -> 0 | DB25: =IF(SUM(DA$15:DA$22)>0,$E25*$F25,0) -> 0 | DD25: =IF(SUM(DC$15:DC$22)>0,$E25*$F25,0) -> 0 | DF25: =IF(SUM(DE$15:DE$22)>0,$E25*$F25,0) -> 0 | DH25: =IF(SUM(DG$15:DG$22)>0,$E25*$F25,0) -> 0 | DJ25: =IF(SUM(DI$15:DI$22)>0,$E25*$F25,0) -> 0 | DL25: =IF(SUM(DK$15:DK$22)>0,$E25*$F25,0) -> 0 | DN25: =IF(SUM(DM$15:DM$22)>0,$E25*$F25,0) -> 0 | DP25: =IF(SUM(DO$15:DO$22)>0,$E25*$F25,0) -> 0 | DR25: =IF(SUM(DQ$15:DQ$22)>0,$E25*$F25,0) -> 0 | DT25: =IF(SUM(DS$15:DS$22)>0,$E25*$F25,0) -> 0 | DV25: =IF(SUM(DU$15:DU$22)>0,$E25*$F25,0) -> 0 | DX25: =IF(SUM(DW$15:DW$22)>0,$E25*$F25,0) -> 0
J26: =IF(SUM(I$15:I$22)>0,$E26*$F26,0) -> 0 | L26: =IF(SUM(K$15:K$22)>0,$E26*$F26,0) -> 0 | N26: =IF(SUM(M$15:M$22)>0,$E26*$F26,0) -> 0 | P26: =IF(SUM(O$15:O$22)>0,$E26*$F26,0) -> 0 | R26: =IF(SUM(Q$15:Q$22)>0,$E26*$F26,0) -> 0 | T26: =IF(SUM(S$15:S$22)>0,$E26*$F26,0) -> 0 | V26: =IF(SUM(U$15:U$22)>0,$E26*$F26,0) -> 0 | X26: =IF(SUM(W$15:W$22)>0,$E26*$F26,0) -> 0 | Z26: =IF(SUM(Y$15:Y$22)>0,$E26*$F26,0) -> 0 | AB26: =IF(SUM(AA$15:AA$22)>0,$E26*$F26,0) -> 0 | AD26: =IF(SUM(AC$15:AC$22)>0,$E26*$F26,0) -> 0 | AF26: =IF(SUM(AE$15:AE$22)>0,$E26*$F26,0) -> 0 | AH26: =IF(SUM(AG$15:AG$22)>0,$E26*$F26,0) -> 0 | AJ26: =IF(SUM(AI$15:AI$22)>0,$E26*$F26,0) -> 0 | AL26: =IF(SUM(AK$15:AK$22)>0,$E26*$F26,0) -> 0 | AN26: =IF(SUM(AM$15:AM$22)>0,$E26*$F26,0) -> 0 | AP26: =IF(SUM(AO$15:AO$22)>0,$E26*$F26,0) -> 0 | AR26: =IF(SUM(AQ$15:AQ$22)>0,$E26*$F26,0) -> 0 | AT26: =IF(SUM(AS$15:AS$22)>0,$E26*$F26,0) -> 0 | AV26: =IF(SUM(AU$15:AU$22)>0,$E26*$F26,0) -> 0 | AX26: =IF(SUM(AW$15:AW$22)>0,$E26*$F26,0) -> 0 | AZ26: =IF(SUM(AY$15:AY$22)>0,$E26*$F26,0) -> 0 | BB26: =IF(SUM(BA$15:BA$22)>0,$E26*$F26,0) -> 0 | BD26: =IF(SUM(BC$15:BC$22)>0,$E26*$F26,0) -> 0 | BF26: =IF(SUM(BE$15:BE$22)>0,$E26*$F26,0) -> 0 | BH26: =IF(SUM(BG$15:BG$22)>0,$E26*$F26,0) -> 0 | BJ26: =IF(SUM(BI$15:BI$22)>0,$E26*$F26,0) -> 0 | BL26: =IF(SUM(BK$15:BK$22)>0,$E26*$F26,0) -> 0 | BN26: =IF(SUM(BM$15:BM$22)>0,$E26*$F26,0) -> 0 | BP26: =IF(SUM(BO$15:BO$22)>0,$E26*$F26,0) -> 0 | BR26: =IF(SUM(BQ$15:BQ$22)>0,$E26*$F26,0) -> 0 | BT26: =IF(SUM(BS$15:BS$22)>0,$E26*$F26,0) -> 0 | BV26: =IF(SUM(BU$15:BU$22)>0,$E26*$F26,0) -> 0 | BX26: =IF(SUM(BW$15:BW$22)>0,$E26*$F26,0) -> 0 | BZ26: =IF(SUM(BY$15:BY$22)>0,$E26*$F26,0) -> 0 | CB26: =IF(SUM(CA$15:CA$22)>0,$E26*$F26,0) -> 0 | CD26: =IF(SUM(CC$15:CC$22)>0,$E26*$F26,0) -> 0 | CF26: =IF(SUM(CE$15:CE$22)>0,$E26*$F26,0) -> 0 | CH26: =IF(SUM(CG$15:CG$22)>0,$E26*$F26,0) -> 0 | CJ26: =IF(SUM(CI$15:CI$22)>0,$E26*$F26,0) -> 0 | CL26: =IF(SUM(CK$15:CK$22)>0,$E26*$F26,0) -> 0 | CN26: =IF(SUM(CM$15:CM$22)>0,$E26*$F26,0) -> 0 | CP26: =IF(SUM(CO$15:CO$22)>0,$E26*$F26,0) -> 0 | CR26: =IF(SUM(CQ$15:CQ$22)>0,$E26*$F26,0) -> 0 | CT26: =IF(SUM(CS$15:CS$22)>0,$E26*$F26,0) -> 0 | CV26: =IF(SUM(CU$15:CU$22)>0,$E26*$F26,0) -> 0 | CX26: =IF(SUM(CW$15:CW$22)>0,$E26*$F26,0) -> 0 | CZ26: =IF(SUM(CY$15:CY$22)>0,$E26*$F26,0) -> 0 | DB26: =IF(SUM(DA$15:DA$22)>0,$E26*$F26,0) -> 0 | DD26: =IF(SUM(DC$15:DC$22)>0,$E26*$F26,0) -> 0 | DF26: =IF(SUM(DE$15:DE$22)>0,$E26*$F26,0) -> 0 | DH26: =IF(SUM(DG$15:DG$22)>0,$E26*$F26,0) -> 0 | DJ26: =IF(SUM(DI$15:DI$22)>0,$E26*$F26,0) -> 0 | DL26: =IF(SUM(DK$15:DK$22)>0,$E26*$F26,0) -> 0 | DN26: =IF(SUM(DM$15:DM$22)>0,$E26*$F26,0) -> 0 | DP26: =IF(SUM(DO$15:DO$22)>0,$E26*$F26,0) -> 0 | DR26: =IF(SUM(DQ$15:DQ$22)>0,$E26*$F26,0) -> 0 | DT26: =IF(SUM(DS$15:DS$22)>0,$E26*$F26,0) -> 0 | DV26: =IF(SUM(DU$15:DU$22)>0,$E26*$F26,0) -> 0 | DX26: =IF(SUM(DW$15:DW$22)>0,$E26*$F26,0) -> 0
J27: =IF(SUM(I$15:I$22)>0,$E27*$F27,0) -> 0 | L27: =IF(SUM(K$15:K$22)>0,$E27*$F27,0) -> 0 | N27: =IF(SUM(M$15:M$22)>0,$E27*$F27,0) -> 0 | P27: =IF(SUM(O$15:O$22)>0,$E27*$F27,0) -> 0 | R27: =IF(SUM(Q$15:Q$22)>0,$E27*$F27,0) -> 0 | T27: =IF(SUM(S$15:S$22)>0,$E27*$F27,0) -> 0 | V27: =IF(SUM(U$15:U$22)>0,$E27*$F27,0) -> 0 | X27: =IF(SUM(W$15:W$22)>0,$E27*$F27,0) -> 0 | Z27: =IF(SUM(Y$15:Y$22)>0,$E27*$F27,0) -> 0 | AB27: =IF(SUM(AA$15:AA$22)>0,$E27*$F27,0) -> 0 | AD27: =IF(SUM(AC$15:AC$22)>0,$E27*$F27,0) -> 0 | AF27: =IF(SUM(AE$15:AE$22)>0,$E27*$F27,0) -> 0 | AH27: =IF(SUM(AG$15:AG$22)>0,$E27*$F27,0) -> 0 | AJ27: =IF(SUM(AI$15:AI$22)>0,$E27*$F27,0) -> 0 | AL27: =IF(SUM(AK$15:AK$22)>0,$E27*$F27,0) -> 0 | AN27: =IF(SUM(AM$15:AM$22)>0,$E27*$F27,0) -> 0 | AP27: =IF(SUM(AO$15:AO$22)>0,$E27*$F27,0) -> 0 | AR27: =IF(SUM(AQ$15:AQ$22)>0,$E27*$F27,0) -> 0 | AT27: =IF(SUM(AS$15:AS$22)>0,$E27*$F27,0) -> 0 | AV27: =IF(SUM(AU$15:AU$22)>0,$E27*$F27,0) -> 0 | AX27: =IF(SUM(AW$15:AW$22)>0,$E27*$F27,0) -> 0 | AZ27: =IF(SUM(AY$15:AY$22)>0,$E27*$F27,0) -> 0 | BB27: =IF(SUM(BA$15:BA$22)>0,$E27*$F27,0) -> 0 | BD27: =IF(SUM(BC$15:BC$22)>0,$E27*$F27,0) -> 0 | BF27: =IF(SUM(BE$15:BE$22)>0,$E27*$F27,0) -> 0 | BH27: =IF(SUM(BG$15:BG$22)>0,$E27*$F27,0) -> 0 | BJ27: =IF(SUM(BI$15:BI$22)>0,$E27*$F27,0) -> 0 | BL27: =IF(SUM(BK$15:BK$22)>0,$E27*$F27,0) -> 0 | BN27: =IF(SUM(BM$15:BM$22)>0,$E27*$F27,0) -> 0 | BP27: =IF(SUM(BO$15:BO$22)>0,$E27*$F27,0) -> 0 | BR27: =IF(SUM(BQ$15:BQ$22)>0,$E27*$F27,0) -> 0 | BT27: =IF(SUM(BS$15:BS$22)>0,$E27*$F27,0) -> 0 | BV27: =IF(SUM(BU$15:BU$22)>0,$E27*$F27,0) -> 0 | BX27: =IF(SUM(BW$15:BW$22)>0,$E27*$F27,0) -> 0 | BZ27: =IF(SUM(BY$15:BY$22)>0,$E27*$F27,0) -> 0 | CB27: =IF(SUM(CA$15:CA$22)>0,$E27*$F27,0) -> 0 | CD27: =IF(SUM(CC$15:CC$22)>0,$E27*$F27,0) -> 0 | CF27: =IF(SUM(CE$15:CE$22)>0,$E27*$F27,0) -> 0 | CH27: =IF(SUM(CG$15:CG$22)>0,$E27*$F27,0) -> 0 | CJ27: =IF(SUM(CI$15:CI$22)>0,$E27*$F27,0) -> 0 | CL27: =IF(SUM(CK$15:CK$22)>0,$E27*$F27,0) -> 0 | CN27: =IF(SUM(CM$15:CM$22)>0,$E27*$F27,0) -> 0 | CP27: =IF(SUM(CO$15:CO$22)>0,$E27*$F27,0) -> 0 | CR27: =IF(SUM(CQ$15:CQ$22)>0,$E27*$F27,0) -> 0 | CT27: =IF(SUM(CS$15:CS$22)>0,$E27*$F27,0) -> 0 | CV27: =IF(SUM(CU$15:CU$22)>0,$E27*$F27,0) -> 0 | CX27: =IF(SUM(CW$15:CW$22)>0,$E27*$F27,0) -> 0 | CZ27: =IF(SUM(CY$15:CY$22)>0,$E27*$F27,0) -> 0 | DB27: =IF(SUM(DA$15:DA$22)>0,$E27*$F27,0) -> 0 | DD27: =IF(SUM(DC$15:DC$22)>0,$E27*$F27,0) -> 0 | DF27: =IF(SUM(DE$15:DE$22)>0,$E27*$F27,0) -> 0 | DH27: =IF(SUM(DG$15:DG$22)>0,$E27*$F27,0) -> 0 | DJ27: =IF(SUM(DI$15:DI$22)>0,$E27*$F27,0) -> 0 | DL27: =IF(SUM(DK$15:DK$22)>0,$E27*$F27,0) -> 0 | DN27: =IF(SUM(DM$15:DM$22)>0,$E27*$F27,0) -> 0 | DP27: =IF(SUM(DO$15:DO$22)>0,$E27*$F27,0) -> 0 | DR27: =IF(SUM(DQ$15:DQ$22)>0,$E27*$F27,0) -> 0 | DT27: =IF(SUM(DS$15:DS$22)>0,$E27*$F27,0) -> 0 | DV27: =IF(SUM(DU$15:DU$22)>0,$E27*$F27,0) -> 0 | DX27: =IF(SUM(DW$15:DW$22)>0,$E27*$F27,0) -> 0
J28: =IF(SUM(I$15:I$22)>0,$E28*$F28,0) -> 0 | L28: =IF(SUM(K$15:K$22)>0,$E28*$F28,0) -> 0 | N28: =IF(SUM(M$15:M$22)>0,$E28*$F28,0) -> 0 | P28: =IF(SUM(O$15:O$22)>0,$E28*$F28,0) -> 0 | R28: =IF(SUM(Q$15:Q$22)>0,$E28*$F28,0) -> 0 | T28: =IF(SUM(S$15:S$22)>0,$E28*$F28,0) -> 0 | V28: =IF(SUM(U$15:U$22)>0,$E28*$F28,0) -> 0 | X28: =IF(SUM(W$15:W$22)>0,$E28*$F28,0) -> 0 | Z28: =IF(SUM(Y$15:Y$22)>0,$E28*$F28,0) -> 0 | AB28: =IF(SUM(AA$15:AA$22)>0,$E28*$F28,0) -> 0 | AD28: =IF(SUM(AC$15:AC$22)>0,$E28*$F28,0) -> 0 | AF28: =IF(SUM(AE$15:AE$22)>0,$E28*$F28,0) -> 0 | AH28: =IF(SUM(AG$15:AG$22)>0,$E28*$F28,0) -> 0 | AJ28: =IF(SUM(AI$15:AI$22)>0,$E28*$F28,0) -> 0 | AL28: =IF(SUM(AK$15:AK$22)>0,$E28*$F28,0) -> 0 | AN28: =IF(SUM(AM$15:AM$22)>0,$E28*$F28,0) -> 0 | AP28: =IF(SUM(AO$15:AO$22)>0,$E28*$F28,0) -> 0 | AR28: =IF(SUM(AQ$15:AQ$22)>0,$E28*$F28,0) -> 0 | AT28: =IF(SUM(AS$15:AS$22)>0,$E28*$F28,0) -> 0 | AV28: =IF(SUM(AU$15:AU$22)>0,$E28*$F28,0) -> 0 | AX28: =IF(SUM(AW$15:AW$22)>0,$E28*$F28,0) -> 0 | AZ28: =IF(SUM(AY$15:AY$22)>0,$E28*$F28,0) -> 0 | BB28: =IF(SUM(BA$15:BA$22)>0,$E28*$F28,0) -> 0 | BD28: =IF(SUM(BC$15:BC$22)>0,$E28*$F28,0) -> 0 | BF28: =IF(SUM(BE$15:BE$22)>0,$E28*$F28,0) -> 0 | BH28: =IF(SUM(BG$15:BG$22)>0,$E28*$F28,0) -> 0 | BJ28: =IF(SUM(BI$15:BI$22)>0,$E28*$F28,0) -> 0 | BL28: =IF(SUM(BK$15:BK$22)>0,$E28*$F28,0) -> 0 | BN28: =IF(SUM(BM$15:BM$22)>0,$E28*$F28,0) -> 0 | BP28: =IF(SUM(BO$15:BO$22)>0,$E28*$F28,0) -> 0 | BR28: =IF(SUM(BQ$15:BQ$22)>0,$E28*$F28,0) -> 0 | BT28: =IF(SUM(BS$15:BS$22)>0,$E28*$F28,0) -> 0 | BV28: =IF(SUM(BU$15:BU$22)>0,$E28*$F28,0) -> 0 | BX28: =IF(SUM(BW$15:BW$22)>0,$E28*$F28,0) -> 0 | BZ28: =IF(SUM(BY$15:BY$22)>0,$E28*$F28,0) -> 0 | CB28: =IF(SUM(CA$15:CA$22)>0,$E28*$F28,0) -> 0 | CD28: =IF(SUM(CC$15:CC$22)>0,$E28*$F28,0) -> 0 | CF28: =IF(SUM(CE$15:CE$22)>0,$E28*$F28,0) -> 0 | CH28: =IF(SUM(CG$15:CG$22)>0,$E28*$F28,0) -> 0 | CJ28: =IF(SUM(CI$15:CI$22)>0,$E28*$F28,0) -> 0 | CL28: =IF(SUM(CK$15:CK$22)>0,$E28*$F28,0) -> 0 | CN28: =IF(SUM(CM$15:CM$22)>0,$E28*$F28,0) -> 0 | CP28: =IF(SUM(CO$15:CO$22)>0,$E28*$F28,0) -> 0 | CR28: =IF(SUM(CQ$15:CQ$22)>0,$E28*$F28,0) -> 0 | CT28: =IF(SUM(CS$15:CS$22)>0,$E28*$F28,0) -> 0 | CV28: =IF(SUM(CU$15:CU$22)>0,$E28*$F28,0) -> 0 | CX28: =IF(SUM(CW$15:CW$22)>0,$E28*$F28,0) -> 0 | CZ28: =IF(SUM(CY$15:CY$22)>0,$E28*$F28,0) -> 0 | DB28: =IF(SUM(DA$15:DA$22)>0,$E28*$F28,0) -> 0 | DD28: =IF(SUM(DC$15:DC$22)>0,$E28*$F28,0) -> 0 | DF28: =IF(SUM(DE$15:DE$22)>0,$E28*$F28,0) -> 0 | DH28: =IF(SUM(DG$15:DG$22)>0,$E28*$F28,0) -> 0 | DJ28: =IF(SUM(DI$15:DI$22)>0,$E28*$F28,0) -> 0 | DL28: =IF(SUM(DK$15:DK$22)>0,$E28*$F28,0) -> 0 | DN28: =IF(SUM(DM$15:DM$22)>0,$E28*$F28,0) -> 0 | DP28: =IF(SUM(DO$15:DO$22)>0,$E28*$F28,0) -> 0 | DR28: =IF(SUM(DQ$15:DQ$22)>0,$E28*$F28,0) -> 0 | DT28: =IF(SUM(DS$15:DS$22)>0,$E28*$F28,0) -> 0 | DV28: =IF(SUM(DU$15:DU$22)>0,$E28*$F28,0) -> 0 | DX28: =IF(SUM(DW$15:DW$22)>0,$E28*$F28,0) -> 0

Sheet Mat Perm (hidden)
C1: CÂMARA DOS DEPUTADOS
C2: DEPARTAMENTO TÉCNICO
C3: Coordenação de Planejamento e Gestão
C5: Data: | D5: ='Dados Gerais'!#REF! -> 
C6: Processo: | D6: ='Dados Gerais'!#REF! -> 
C7: Objeto: | D7: ='Dados Gerais'!#REF! -> 
B11: MATERIAIS PERMANENTES RELACIONADOS AO POSTO - PAGAMENTO DA DEPRECIAÇÃO / MANUTENÇÃO | Q11: 1 | S11: =Q11+1 -> 2 | U11: =S11+1 -> 3 | W11: =U11+1 -> 4 | Y11: =W11+1 -> 5 | AA11: =Y11+1 -> 6 | AC11: =AA11+1 -> 7 | AE11: =AC11+1 -> 8 | AG11: =AE11+1 -> 9 | AI11: =AG11+1 -> 10 | AK11: =AI11+1 -> 11 | AM11: =AK11+1 -> 12 | AO11: =AM11+1 -> 13 | AQ11: =AO11+1 -> 14 | AS11: =AQ11+1 -> 15 | AU11: =AS11+1 -> 16 | AW11: =AU11+1 -> 17 | AY11: =AW11+1 -> 18 | BA11: =AY11+1 -> 19 | BC11: =BA11+1 -> 20 | BE11: =BC11+1 -> 21 | BG11: =BE11+1 -> 22 | BI11: =BG11+1 -> 23 | BK11: =BI11+1 -> 24 | BM11: =BK11+1 -> 25 | BO11: =BM11+1 -> 26 | BQ11: =BO11+1 -> 27 | BS11: =BQ11+1 -> 28 | BU11: =BS11+1 -> 29 | BW11: =BU11+1 -> 30 | BY11: =BW11+1 -> 31 | CA11: =BY11+1 -> 32 | CC11: =CA11+1 -> 33 | CE11: =CC11+1 -> 34 | CG11: =CE11+1 -> 35 | CI11: =CG11+1 -> 36 | CK11: =CI11+1 -> 37 | CM11: =CK11+1 -> 38 | CO11: =CM11+1 -> 39 | CQ11: =CO11+1 -> 40 | CS11: =CQ11+1 -> 41 | CU11: =CS11+1 -> 42 | CW11: =CU11+1 -> 43 | CY11: =CW11+1 -> 44 | DA11: =CY11+1 -> 45 | DC11: =DA11+1 -> 46 | DE11: =DC11+1 -> 47 | DG11: =DE11+1 -> 48 | DI11: =DG11+1 -> 49 | DK11: =DI11+1 -> 50 | DM11: =DK11+1 -> 51 | DO11: =DM11+1 -> 52 | DQ11: =DO11+1 -> 53 | DS11: =DQ11+1 -> 54 | DU11: =DS11+1 -> 55 | DW11: =DU11+1 -> 56 | DY11: =DW11+1 -> 57 | EA11: =DY11+1 -> 58 | EC11: =EA11+1 -> 59 | EE11: =EC11+1 -> 60
Q13: =SUM(R12:R94) -> 0 | S13: =SUM(T12:T94) -> 0 | U13: =SUM(V12:V94) -> 0 | W13: =SUM(X12:X94) -> 0 | Y13: =SUM(Z12:Z94) -> 0 | AA13: =SUM(AB12:AB94) -> 0 | AC13: =SUM(AD12:AD94) -> 0 | AE13: =SUM(AF12:AF94) -> 0 | AG13: =SUM(AH12:AH94) -> 0 | AI13: =SUM(AJ12:AJ94) -> 0 | AK13: =SUM(AL12:AL94) -> 0 | AM13: =SUM(AN12:AN94) -> 0 | AO13: =SUM(AP12:AP94) -> 0 | AQ13: =SUM(AR12:AR94) -> 0 | AS13: =SUM(AT12:AT94) -> 0 | AU13: =SUM(AV12:AV94) -> 0 | AW13: =SUM(AX12:AX94) -> 0 | AY13: =SUM(AZ12:AZ94) -> 0 | BA13: =SUM(BB12:BB94) -> 0 | BC13: =SUM(BD12:BD94) -> 0 | BE13: =SUM(BF12:BF94) -> 0 | BG13: =SUM(BH12:BH94) -> 0 | BI13: =SUM(BJ12:BJ94) -> 0 | BK13: =SUM(BL12:BL94) -> 0 | BM13: =SUM(BN12:BN94) -> 0 | BO13: =SUM(BP12:BP94) -> 0 | BQ13: =SUM(BR12:BR94) -> 0 | BS13: =SUM(BT12:BT94) -> 0 | BU13: =SUM(BV12:BV94) -> 0 | BW13: =SUM(BX12:BX94) -> 0 | BY13: =SUM(BZ12:BZ94) -> 0 | CA13: =SUM(CB12:CB94) -> 0 | CC13: =SUM(CD12:CD94) -> 0 | CE13: =SUM(CF12:CF94) -> 0 | CG13: =SUM(CH12:CH94) -> 0 | CI13: =SUM(CJ12:CJ94) -> 0 | CK13: =SUM(CL12:CL94) -> 0 | CM13: =SUM(CN12:CN94) -> 0 | CO13: =SUM(CP12:CP94) -> 0 | CQ13: =SUM(CR12:CR94) -> 0 | CS13: =SUM(CT12:CT94) -> 0 | CU13: =SUM(CV12:CV94) -> 0 | CW13: =SUM(CX12:CX94) -> 0 | CY13: =SUM(CZ12:CZ94) -> 0 | DA13: =SUM(DB12:DB94) -> 0 | DC13: =SUM(DD12:DD94) -> 0 | DE13: =SUM(DF12:DF94) -> 0 | DG13: =SUM(DH12:DH94) -> 0 | DI13: =SUM(DJ12:DJ94) -> 0 | DK13: =SUM(DL12:DL94) -> 0 | DM13: =SUM(DN12:DN94) -> 0 | DO13: =SUM(DP12:DP94) -> 0 | DQ13: =SUM(DR12:DR94) -> 0 | DS13: =SUM(DT12:DT94) -> 0 | DU13: =SUM(DV12:DV94) -> 0 | DW13: =SUM(DX12:DX94) -> 0 | DY13: =SUM(DZ12:DZ94) -> 0 | EA13: =SUM(EB12:EB94) -> 0 | EC13: =SUM(ED12:ED94) -> 0 | EE13: =SUM(EF12:EF94) -> 0
C14: CATEGORIAS | E14: QUANTIDADE
Q15: =IF($C15=Q$11,1,0) -> 0 | S15: =IF($C15=S$11,1,0) -> 0 | U15: =IF($C15=U$11,1,0) -> 0 | W15: =IF($C15=W$11,1,0) -> 0 | Y15: =IF($C15=Y$11,1,0) -> 0 | AA15: =IF($C15=AA$11,1,0) -> 0 | AC15: =IF($C15=AC$11,1,0) -> 0 | AE15: =IF($C15=AE$11,1,0) -> 0 | AG15: =IF($C15=AG$11,1,0) -> 0 | AI15: =IF($C15=AI$11,1,0) -> 0 | AK15: =IF($C15=AK$11,1,0) -> 0 | AM15: =IF($C15=AM$11,1,0) -> 0 | AO15: =IF($C15=AO$11,1,0) -> 0 | AQ15: =IF($C15=AQ$11,1,0) -> 0 | AS15: =IF($C15=AS$11,1,0) -> 0 | AU15: =IF($C15=AU$11,1,0) -> 0 | AW15: =IF($C15=AW$11,1,0) -> 0 | AY15: =IF($C15=AY$11,1,0) -> 0 | BA15: =IF($C15=BA$11,1,0) -> 0 | BC15: =IF($C15=BC$11,1,0) -> 0 | BE15: =IF($C15=BE$11,1,0) -> 0 | BG15: =IF($C15=BG$11,1,0) -> 0 | BI15: =IF($C15=BI$11,1,0) -> 0 | BK15: =IF($C15=BK$11,1,0) -> 0 | BM15: =IF($C15=BM$11,1,0) -> 0 | BO15: =IF($C15=BO$11,1,0) -> 0 | BQ15: =IF($C15=BQ$11,1,0) -> 0 | BS15: =IF($C15=BS$11,1,0) -> 0 | BU15: =IF($C15=BU$11,1,0) -> 0 | BW15: =IF($C15=BW$11,1,0) -> 0 | BY15: =IF($C15=BY$11,1,0) -> 0 | CA15: =IF($C15=CA$11,1,0) -> 0 | CC15: =IF($C15=CC$11,1,0) -> 0 | CE15: =IF($C15=CE$11,1,0) -> 0 | CG15: =IF($C15=CG$11,1,0) -> 0 | CI15: =IF($C15=CI$11,1,0) -> 0 | CK15: =IF($C15=CK$11,1,0) -> 0 | CM15: =IF($C15=CM$11,1,0) -> 0 | CO15: =IF($C15=CO$11,1,0) -> 0 | CQ15: =IF($C15=CQ$11,1,0) -> 0 | CS15: =IF($C15=CS$11,1,0) -> 0 | CU15: =IF($C15=CU$11,1,0) -> 0 | CW15: =IF($C15=CW$11,1,0) -> 0 | CY15: =IF($C15=CY$11,1,0) -> 0 | DA15: =IF($C15=DA$11,1,0) -> 0 | DC15: =IF($C15=DC$11,1,0) -> 0 | DE15: =IF($C15=DE$11,1,0) -> 0 | DG15: =IF($C15=DG$11,1,0) -> 0 | DI15: =IF($C15=DI$11,1,0) -> 0 | DK15: =IF($C15=DK$11,1,0) -> 0 | DM15: =IF($C15=DM$11,1,0) -> 0 | DO15: =IF($C15=DO$11,1,0) -> 0 | DQ15: =IF($C15=DQ$11,1,0) -> 0 | DS15: =IF($C15=DS$11,1,0) -> 0 | DU15: =IF($C15=DU$11,1,0) -> 0 | DW15: =IF($C15=DW$11,1,0) -> 0 | DY15: =IF($C15=DY$11,1,0) -> 0 | EA15: =IF($C15=EA$11,1,0) -> 0 | EC15: =IF($C15=EC$11,1,0) -> 0 | EE15: =IF($C15=EE$11,1,0) -> 0
